Workbook

Sheet Simulador
J1: Cliente | N1: E-mail
J2: Ejecutivo | N2: Teléfono
J3: Punto de Vta
B5: Datos del Crédito
D7: Fecha de cotización | F7: =TODAY() -> 2023-07-28 | K7: Programa | N7: Tradicional
D9: Elige un destino | E9: =VLOOKUP(F9,Sheet1!$B$2:$C$10,2,0) -> 1 | F9: Adquisición | H9: =IF($F$9="Mejora",'Tabla Parámetros'!$M$52,"") ->  | K9: Tipo de seguro | N9: Básico
D11: Elige un producto | E11: =VLOOKUP(F11,Sheet1!$E$2:$F$5,2,0) -> 1 | F11: =Sheet1!W2 -> Hipoteca Fuerte | H11: =IF($F$9="Mejora",'Tabla Parámetros'!$O$52,"") ->  | K11: Ingresa valor de vivienda | M11: Capturable | N11: 1111111.12
D13: Seguros BANORTE | F13: SI | J13: ¿Conoces la Suma Asegurable? | K13: NO | L13: *Suma Asegurable | M13: Capturable | N13: =IF($J$11="SI",0,IF($F$9='Tabla Parámetros'!$O$6,0,Simulador!$N$11*0.7)) -> 777777.784
D15: =IF(F15=0,"","Monto Crédito") -> Monto Crédito | E15: Capturable | F15: 1000000 | H15: =IF(OR(Sheet1!I10=3,Sheet1!I10=5),"",IF(F15/N11>N19,'Tabla Parámetros'!M53,"")) ->  | J15: ¿Exenta Comisión Apertura? | K15: NO | L15: Comisión apertura | N15: =IF($K$15="Si",0,VLOOKUP($F$9,'Tabla Parámetros'!$G$30:$I$38,3,0)) -> 0
D17: =IF($N$7="Cofinavit"," ",IF($N$7='Tabla Parámetros'!$C$34," ",IF($N$7="Respalda2"," ","Monto Enganche"))) -> Monto Enganche | F17: =IF(OR($N$7="Cofinavit",N7="Cuenta INFONAVIT + BANORTE",N7="FOVISSSTE para todos"),0,'Tabla Parámetros'!$F$20) -> 111111.12 | H17: =IF(F17=0,"",IF($N$7='Tabla Parámetros'!R35,'Tabla Parámetros'!M54,IF(Simulador!$N$7='Tabla Parámetros'!$R$37,'Tabla Parámetros'!M54,IF(Simulador!$N$7='Tabla Parámetros'!$R$39,'Tabla Parámetros'!M54,"")))) ->  | K17: Comisión apertura financiada | N17: NO
D19: Plazo en meses | F19: 240 | I19: =IF('Estados y Datos Notariales'!$I$1=12,"¿El municipio es León?","") ->  | K19: =IF($N$7="Cofinavit"," ",IF($N$7="Alia2+"," ",IF($N$7="Respalda2"," ","Selecciona el Aforo"))) -> Selecciona el Aforo | N19: =IF(F11='Tabla Parámetros'!G45,'Tabla Parámetros'!G49,IF(Simulador!F11='Tabla Parámetros'!G65,'Tabla Parámetros'!G68,IF(F11='Tabla Parámetros'!G37,'Tabla Parámetros'!G62,IF(Simulador!F11='Tabla Parámetros'!G38,'Tabla Parámetros'!G63,IF($N$7="Cofinavit"," ",IF($N$7="Alia2+"," ",IF($N$7="Respalda2"," ",))))))) -> 0.8999999928
C21: Estado | F21: Ciudad de México | I21: NO | L21: *Es el resultado de restar al valor comercial del inmueble, el valor del terreno.
F22: =N7 -> Tradicional
H23: Titular | I23: =IF(OR(N7="Cofinavit",N7='Tabla Parámetros'!C34),"Cotitular","") ->  | L23: RECURSOS PARA ADQUIRIR LA VIVIENDA
G24: Ingreso mensual bruto: | J24: =IF($H$24<10000,COFINAVIT!$G$14,"") -> Ingreso mínimo $10,000.00
G25: Subcuenta vivienda: | M25: =G25 -> Subcuenta vivienda: | N25: =$H$25+$I$25 -> 0
G26: =IF(N7='Tabla Parámetros'!$C$34,"","Crédito INFONAVIT:") -> Crédito INFONAVIT: | J26: =IF((H26)>COFINAVIT!$G$10,"Máximo $1,024,951.20"," ") ->  | K26: =IF((I26)>COFINAVIT!$G$10,"Máximo $950,653.60"," ") ->  | M26: =G26 -> Crédito INFONAVIT: | N26: =$H$26+$I$26 -> 0
G27: =IF(N7='Tabla Parámetros'!$C$34,"","Desc INFONAVIT:") -> Desc INFONAVIT: | J27: =IF(N7='Tabla Parámetros'!$C$34,"","Ingresos Adicionales") -> Ingresos Adicionales | M27: =G31 -> Crédito Banorte: | N27: =$H$31 -> 1000000
G28: Enganche opcional: | M28: =G30 -> Enganche obligado: | N28: =$H$30 -> 111111.12
G29: =IF(N7='Tabla Parámetros'!$C$34,"","Desc ecotecnologías:") -> Desc ecotecnologías: | H29: =IF(N7='Tabla Parámetros'!$C$34,"",Ecotecnologias!G4) -> 0 | M29: =G28 -> Enganche opcional: | N29: =$H$28 -> 0
G30: Enganche obligado: | H30: =IF(((N11)-(H25+I25+H26+I26+H28+H31))<0,0,((N11)-(H25+I25+H26+I26+H28+H31))) -> 111111.12 | I30: =IF(N7='Tabla Parámetros'!$C$34,"",COFINAVIT!$C$33) -> 0 | J30: =IF(N7='Tabla Parámetros'!$C$34,"","Gastos Infonavit") -> Gastos Infonavit
G31: Crédito Banorte: | H31: =IF(F15>0,F15,IF(N7='Tabla Parámetros'!$C$34,Fovissste!$B$14,IF(Simulador!N7='Tabla Parámetros'!$C$32,COFINAVIT!$C$28))) -> 1000000 | I31: =$H$31/$N$11 -> 0.8999999928 | J31: Aforo | K31: =+IF(I31>95%,"Máximo 95%","") ->  | M31: Total | N31: =IF(SUM(N25:N29)>F32,F32,SUM(N25:N29)) -> 1111111.12
F32: =+N11*1 -> 1111111.12 | K32: =+IF(SUM(N25:N29)>N11,"La Suma de los Recursos no puede ser mayor al valor de vivienda, ajusta el crédito Banorte","") -> 
E33: Cuenta Infonavit más Crédito Bancario | L33: RECURSOS PARA ADQUIRIR LA VIVIENDA
H34: Titular | I34: Cotitular
B35: Tasa interés Infonavit: | E35: 0.1045 | G35: Ingreso mensual bruto: | J35: =IF($H$35<10000,COFINAVIT!$G$14,"") -> Ingreso mínimo $10,000.00 | M35: =G36 -> Subcuenta vivienda: | N35: =$H$36+$I$36 -> 0
B36: Plazo Crédito Infonavit: | E36: =H49 -> 240 | G36: Subcuenta vivienda: | M36: =G38 -> Crédito INFONAVIT: | N36: =$H$38+$I$37 -> 300000
B37: Capital e intereses: | E37: =PMT(E35/12,E36,-H38) -> 2985.070535 | G37: Crédito estimado: | H37: =COFINAVIT!C43 -> 1000000 | M37: =G39 -> Crédito Banorte: | N37: =$H$39 -> 700000
B38: Comisión Admon. Infonavit: | E38: =(H38*0.01)/12 -> 250 | G38: Crédito INFONAVIT: | H38: =COFINAVIT!$C$44 -> 300000 | J38: =IF(H38>COFINAVIT!$F$39,"Máximo $1,024,951.20"," ") ->  | K38: =IF((I37)>[7]COFINAVIT!$G$10,"Máximo $885,445.60"," ") ->  | M38: =G40 -> Enganche: | N38: =$H$40 -> 111111.12
B39: Mensualidad Infonavit: | E39: =+E37+E38 -> 3235.070535 | G39: Crédito Banorte: | H39: =COFINAVIT!$C$46 -> 700000 | I39: =$H$39/$N$11 -> 0.629999995 | J39: Aforo Banorte
B40: Mensualidad BANORTE: | E40: =HLOOKUP(F62,I55:L57,3,0) -> 10523.23558 | G40: Enganche: | H40: =COFINAVIT!C57 -> 111111.12
B41: Mensualidad Estimada: | E41: =+E39+E40 -> 13758.30611 | K41: =+IF(I39>95%,"Máximo 95%","") ->  | M41: Total | N41: =IF(SUM(N35:N39)>F42,F42,SUM(N35:N39)) -> 1111111.12
F42: =+N11*1 -> 1111111.12 | K42: =+IF(SUM(N35:N39)>N11,"La Suma de los Recursos no puede ser mayor al valor de vivienda, ajusta el crédito Banorte","") -> 
B44: Condiciones Financieras
K45: =IF(N7="Cofinavit",J30,"") ->  | L45: =IF($N$7="Cofinavit",$I$30,0) -> 0
G46: Producto: | H46: =F11 -> Hipoteca Fuerte | K46: Comisión Apertura: | L46: =IF($F$9="Terreno_Urbanizado",($H$48*$N$15)*1.16,IF($F$9="Liquidez",($H$48*$N$15)*1.16,$H$48*$N$15)) -> 0 | M46: =IF(N17="SI","Financiada","") -> 
G47: Valor Vivienda: | H47: =N11 -> 1111111.12 | K47: Avalúo: | L47: =+'Tabla Parámetros'!T91*1.16 -> 0 | M47: Con IVA
G48: Monto de Crédito: | H48: =IF(N7='Tabla Parámetros'!C32,Simulador!H31,IF(N7='Tabla Parámetros'!C33,Simulador!H39,IF(N7='Tabla Parámetros'!C34,H31,Simulador!F15))) -> 1000000 | K48: =IF(F9="Mejora","*Honorarios Notariales:",IF(F9="Mejora_más_Remodelación","*Honorarios Notariales:","*Gastos Notariales Estimados:")) -> *Gastos Notariales Estimados: | L48: =IF(Sheet1!$D$14=2,VLOOKUP(Simulador!$F$21,Notariales!$B$2:$E$33,4,0),IF(Sheet1!$D$14=3,$H$48*$H$50,IF(Sheet1!$D$14=1,Simulador!$N$11*Simulador!$H$50,))) -> 91111.11184 | M48: =IF(L48=0,"","Sin IVA") -> Sin IVA
G49: Plazo en meses: | H49: =F19 -> 240 | K49: Comisión Investigación: | L49: =IF(H46='Tabla Parámetros'!W1,'Tabla Parámetros'!W25,'Tabla Parámetros'!Y9) -> 750
B50: *Se sugiere seleccionar este porcentaje y/o monto, el monto definitivo lo informa el notario previo a la firma del contrato de crédito. | G50: =IF($F$9="Mejora"," ",IF($F$9="Mejora_más_Remodelación"," ","*Gastos Notariales:")) -> *Gastos Notariales: | H50: 0.082 | K50: Enganche: | L50: =IF(OR(N7="Cofinavit",N7="FOVISSSTE para todos"),H28+H30,IF(N7="Cuenta INFONAVIT + BANORTE",H40,F17)) -> 111111.12
G51: =IF(N7='Tabla Parámetros'!$C$34,"Seguro Vida:","Seguro Vida y Daños:") -> Seguro Vida y Daños: | H51: =$N$9 -> Básico | K51: =IF(N7="",G32,"") ->  | L51: =IF(N7="",H32,0) -> 0
G52: Desembolso Inicial Estimado: | L52: =IF(N17="SI",(L45+L47+L48+L49+L50)-L51,(L45+L46+L47+L48+L49+L50)-L51) -> 202972.2318 | M52: =IF($L$52<0,"Saldo a Favor del Cliente","") -> 
I54: =IF(Sheet1!AA1<>1,"",IF(Sheet1!$I$10=5,"","Premium")) -> Premium | J54: =IF(Sheet1!$I$10=5,"FOVISSSTE",Sheet1!AC1) -> Mínima | K54: =IF(Sheet1!AA1<>1,"",IF(Sheet1!$I$10=5,"","Baja")) -> Baja | L54: =IF(Sheet1!AA1<>1,"",IF(Sheet1!$I$10=5,"","Media")) -> Media | M54: =IF(Sheet1!AA1<>1,"",IF(Sheet1!$I$10=5,"","Alta")) -> Alta
G55: *Tasa Interés anual fija | I55: =IF(Sheet1!AA1<>1,"",IF(Sheet1!$I$10=5,"",'Pago x mil'!$E$12)) -> 0.0948 | J55: ='Pago x mil'!$F$12 -> 0.0978 | K55: =IF(Sheet1!AA1<>1,"",IF(Sheet1!$I$10=5,"",'Pago x mil'!$G$12)) -> 0.1028 | L55: =IF(Sheet1!AA1<>1,"",IF(Sheet1!$I$10=5,"",'Pago x mil'!$H$12)) -> 0.1068 | M55: =IF(Sheet1!AA1<>1,"",IF(Sheet1!$I$10=5,"",'Pago x mil'!$I$12)) -> 0.1108
G56: Pago por Mil | I56: =IF(Sheet1!AA1<>1,"",IF(Sheet1!$I$10=5,"",'Pago x mil'!$E$13)) -> 9.390902243 | J56: ='Pago x mil'!$F$13 -> 9.590927669 | K56: =IF(Sheet1!AA1<>1,"",IF(Sheet1!$I$10=5,"",'Pago x mil'!$G$13)) -> 9.92815247 | L56: =IF(Sheet1!AA1<>1,"",IF(Sheet1!$I$10=5,"",'Pago x mil'!$H$13)) -> 10.2012915 | M56: =IF(Sheet1!AA1<>1,"",IF(Sheet1!$I$10=5,"",'Pago x mil'!$I$13)) -> 10.47731526
B57: *La Tasa otorgada será en base a la evaluación de crédito y se mantiene fija toda la vida del crédito | G57: Mensualidad Inicial | I57: =IF(Sheet1!AA1<>1,"",IF(Sheet1!$I$10=5,"",'Pago x mil'!$E$21)) -> 10523.23558 | J57: ='Pago x mil'!$F$21 -> 10723.261 | K57: =IF(Sheet1!AA1<>1,"",IF(Sheet1!$I$10=5,"",'Pago x mil'!$G$21)) -> 11060.4858 | L57: =IF(Sheet1!AA1<>1,"",IF(Sheet1!$I$10=5,"",'Pago x mil'!$H$21)) -> 11333.62483 | M57: =IF(Sheet1!AA1<>1,"",IF(Sheet1!$I$10=5,"",'Pago x mil'!$I$21)) -> 11609.6486
G58: Ingreso Requerido | I58: =IF(Sheet1!AA1<>1,"",IF(Sheet1!$I$10=5,"",'Pago x mil'!$E$22)) -> 21046.47116 | J58: ='Pago x mil'!$F$22 -> 21446.52201 | K58: =IF(Sheet1!AA1<>1,"",IF(Sheet1!$I$10=5,"",'Pago x mil'!$G$22)) -> 22120.97161 | L58: =IF(Sheet1!AA1<>1,"",IF(Sheet1!$I$10=5,"",'Pago x mil'!$H$22)) -> 22667.24967 | M58: =IF(Sheet1!AA1<>1,"",IF(Sheet1!$I$10=5,"",'Pago x mil'!$I$22)) -> 23219.29719
B60: Tabla de Pagos
B62: Selecciona la Tasa a cotizar | F62: 0.0948 | J62: 0 | L62: Selecciona tipo de prepago | N62: Reduce Plazo
L63: Su crédito se amortizará en | N63: =IF($F$9='Tabla Parámetros'!$J$7,SUM(Simulador!R392:R631),IF($F$9='Tabla Parámetros'!$J$9,SUM(Simulador!R392:R631),IF($F$9='Tabla Parámetros'!J8,SUM(Simulador!R392:R631),SUM(Q67:Q366)))) -> 240 | O63: meses
B64: CAT Promedio | D64: =IF(F11='Tabla Parámetros'!G45,'Tabla Parámetros'!G50,IF(Simulador!F11='Tabla Parámetros'!G65,'Tabla Parámetros'!G70,IF(Simulador!F11='Tabla Parámetros'!B52,'Tabla Parámetros'!G61,IF(Simulador!F11='Tabla Parámetros'!B53,'Tabla Parámetros'!G61,)))) -> 0.1166508656 | E64: Sin IVA Informativo | I64: =IF(Sheet1!$Z$1=3,"Monto de cada bonificación:","") ->  | J64: =IF(I64="","",'Tabla Fijos'!$P$9) -> 
B66: No. | C66: Fecha | D66: Días | E66: Tasa | F66: Saldo Inicial | G66: Capital | H66: Interés | I66: =IF($F$9="Liquidez",'Tabla Fijos'!$I$10,IF($F$9="Terreno_Urbanizado",'Tabla Fijos'!$I$10,IF($J$9="SI",'Tabla Fijos'!$I$10,IF($J$11="SI",'Tabla Fijos'!$I$10,"")))) ->  | J66: Seguro de Vida | K66: Seguro de Daños y Contenidos | L66: Comisión Diferida | M66: =IF(OR($N$7='Tabla Parámetros'!$C$31,$N$7='Tabla Parámetros'!$C$34),'Tabla Fijos'!$N$10,"") ->  | N66: Aportación a Capital | O66: Pago Mensual | P66: Saldo Final
B67: 1 | C67: =IF($B67="","",'Fecha Pago'!K4) -> 2023-08-03 | D67: =IF($B$67="","",'Fecha Pago'!L4) -> 7 | E67: =IF(B67="","",IF(Sheet1!$Z$1=4,'Tabla de Pagos Crecientes'!E7,$F$62)) -> 0.0948 | F67: =IF($B67="","",IF(Sheet1!$Z$1=4,'Tabla de Pagos Crecientes'!F7,'Tabla Fijos'!F12)) -> 1000000 | G67: =IF($B67="","",IF(Sheet1!$Z$1=4,'Tabla de Pagos Crecientes'!G7,'Tabla Fijos'!G12)) -> 1385.56891 | H67: =IF($B67="","",IF(Sheet1!$Z$1=4,'Tabla de Pagos Crecientes'!H7,'Tabla Fijos'!H12)) -> 1843.333333 | I67: =IF($B67=0,0,IF(B67="","",VLOOKUP($B67,'Tabla Fijos'!$B$12:$R$311,8,0))) -> 0 | J67: =IF($B67="","",IF(Sheet1!$Z$1=4,'Tabla de Pagos Crecientes'!J7,'Tabla Fijos'!K12)) -> 140 | K67: =IF($B67="","",IF(Sheet1!$Z$1=4,'Tabla de Pagos Crecientes'!K7,'Tabla Fijos'!L12)) -> 54.44444488 | L67: =IF($B67="","",IF(Sheet1!$Z$1=4,'Tabla de Pagos Crecientes'!L7,'Tabla Fijos'!M12)) -> 299 | M67: =IF($B67=0,0,IF(B67="","",VLOOKUP($B67,'Tabla Fijos'!$B$12:$R$311,13,0))) -> 0 | O67: =IF(B67="","",G67+H67+I67+J67+K67+L67-M67-'Tabla Fijos'!P12) -> 3722.346688 | P67: =IF(B67="","",F67-G67) -> 998614.4311 | Q67: =IF(OR($B67="",$F67<=0),0,1) -> 1
B68: =IF(B67="","",IF(B67=$H$49,"",B67+1)) -> 2 | C68: =IF($B68="","",'Fecha Pago'!K5) -> 2023-09-03 | D68: =IF($B$67="","",'Fecha Pago'!L5) -> 30.4 | E68: =IF(B68="","",IF(Sheet1!$Z$1=4,'Tabla de Pagos Crecientes'!E8,$F$62)) -> 0.0948 | F68: =IF($B68="","",IF(Sheet1!$Z$1=4,'Tabla de Pagos Crecientes'!F8,'Tabla Fijos'!F13)) -> 998614.4311 | G68: =IF($B68="","",IF(Sheet1!$Z$1=4,'Tabla de Pagos Crecientes'!G8,'Tabla Fijos'!G13)) -> 1396.660851 | H68: =IF($B68="","",IF(Sheet1!$Z$1=4,'Tabla de Pagos Crecientes'!H8,'Tabla Fijos'!H13)) -> 7994.241392 | I68: =IF($B68=0,0,IF(B68="","",VLOOKUP($B68,'Tabla Fijos'!$B$12:$R$311,8,0))) -> 0 | J68: =IF($B68="","",IF(Sheet1!$Z$1=4,'Tabla de Pagos Crecientes'!J8,'Tabla Fijos'!K13)) -> 599.1686587 | K68: =IF($B68="","",IF(Sheet1!$Z$1=4,'Tabla de Pagos Crecientes'!K8,'Tabla Fijos'!L13)) -> 233.3333352 | L68: =IF($B68="","",IF(Sheet1!$Z$1=4,'Tabla de Pagos Crecientes'!L8,'Tabla Fijos'!M13)) -> 299 | M68: =IF($B68=0,0,IF(B68="","",VLOOKUP($B68,'Tabla Fijos'!$B$12:$R$311,13,0))) -> 0 | O68: =IF(B68="","",G68+H68+I68+J68+K68+L68-M68-'Tabla Fijos'!P13) -> 10522.40424 | P68: 997217.7702 | Q68: =IF(OR($B68="",$F68<=0),0,1) -> 1
B69: =IF(B68="","",IF(B68=$H$49,"",B68+1)) -> 3 | C69: =IF($B69="","",'Fecha Pago'!K6) -> 2023-10-03 | D69: =IF($B$67="","",'Fecha Pago'!L6) -> 30.4 | E69: =IF(B69="","",IF(Sheet1!$Z$1=4,'Tabla de Pagos Crecientes'!E9,$F$62)) -> 0.0948 | F69: =IF($B69="","",IF(Sheet1!$Z$1=4,'Tabla de Pagos Crecientes'!F9,'Tabla Fijos'!F14)) -> 997217.7702 | G69: =IF($B69="","",IF(Sheet1!$Z$1=4,'Tabla de Pagos Crecientes'!G9,'Tabla Fijos'!G14)) -> 1407.841586 | H69: =IF($B69="","",IF(Sheet1!$Z$1=4,'Tabla de Pagos Crecientes'!H9,'Tabla Fijos'!H14)) -> 7983.060657 | I69: =IF($B69=0,0,IF(B69="","",VLOOKUP($B69,'Tabla Fijos'!$B$12:$R$311,8,0))) -> 0 | J69: =IF($B69="","",IF(Sheet1!$Z$1=4,'Tabla de Pagos Crecientes'!J9,'Tabla Fijos'!K14)) -> 598.3306621 | K69: =IF($B69="","",IF(Sheet1!$Z$1=4,'Tabla de Pagos Crecientes'!K9,'Tabla Fijos'!L14)) -> 233.3333352 | L69: =IF($B69="","",IF(Sheet1!$Z$1=4,'Tabla de Pagos Crecientes'!L9,'Tabla Fijos'!M14)) -> 299 | M69: =IF($B69=0,0,IF(B69="","",VLOOKUP($B69,'Tabla Fijos'!$B$12:$R$311,13,0))) -> 0 | O69: =IF(B69="","",G69+H69+I69+J69+K69+L69-M69-'Tabla Fijos'!P14) -> 10521.56624 | P69: 995809.9287 | Q69: 1
B70: 4 | C70: =IF($B70="","",'Fecha Pago'!K7) -> 2023-11-03 | D70: =IF($B$67="","",'Fecha Pago'!L7) -> 30.4 | E70: =IF(B70="","",IF(Sheet1!$Z$1=4,'Tabla de Pagos Crecientes'!E10,$F$62)) -> 0.0948 | F70: =IF($B70="","",IF(Sheet1!$Z$1=4,'Tabla de Pagos Crecientes'!F10,'Tabla Fijos'!F15)) -> 995809.9287 | G70: =IF($B70="","",IF(Sheet1!$Z$1=4,'Tabla de Pagos Crecientes'!G10,'Tabla Fijos'!G15)) -> 1419.111827 | H70: =IF($B70="","",IF(Sheet1!$Z$1=4,'Tabla de Pagos Crecientes'!H10,'Tabla Fijos'!H15)) -> 7971.790416 | I70: =IF($B70=0,0,IF(B70="","",VLOOKUP($B70,'Tabla Fijos'!$B$12:$R$311,8,0))) -> 0 | J70: =IF($B70="","",IF(Sheet1!$Z$1=4,'Tabla de Pagos Crecientes'!J10,'Tabla Fijos'!K15)) -> 597.4859572 | K70: =IF($B70="","",IF(Sheet1!$Z$1=4,'Tabla de Pagos Crecientes'!K10,'Tabla Fijos'!L15)) -> 233.3333352 | L70: =IF($B70="","",IF(Sheet1!$Z$1=4,'Tabla de Pagos Crecientes'!L10,'Tabla Fijos'!M15)) -> 299 | M70: =IF($B70=0,0,IF(B70="","",VLOOKUP($B70,'Tabla Fijos'!$B$12:$R$311,13,0))) -> 0 | O70: =IF(B70="","",G70+H70+I70+J70+K70+L70-M70-'Tabla Fijos'!P15) -> 10520.72154 | P70: 994390.8168 | Q70: 1
B71: 5 | C71: =IF($B71="","",'Fecha Pago'!K8) -> 2023-12-03 | D71: =IF($B$67="","",'Fecha Pago'!L8) -> 30.4 | E71: =IF(B71="","",IF(Sheet1!$Z$1=4,'Tabla de Pagos Crecientes'!E11,$F$62)) -> 0.0948 | F71: =IF($B71="","",IF(Sheet1!$Z$1=4,'Tabla de Pagos Crecientes'!F11,'Tabla Fijos'!F16)) -> 994390.8168 | G71: =IF($B71="","",IF(Sheet1!$Z$1=4,'Tabla de Pagos Crecientes'!G11,'Tabla Fijos'!G16)) -> 1430.472291 | H71: =IF($B71="","",IF(Sheet1!$Z$1=4,'Tabla de Pagos Crecientes'!H11,'Tabla Fijos'!H16)) -> 7960.429952 | I71: =IF($B71=0,0,IF(B71="","",VLOOKUP($B71,'Tabla Fijos'!$B$12:$R$311,8,0))) -> 0 | J71: =IF($B71="","",IF(Sheet1!$Z$1=4,'Tabla de Pagos Crecientes'!J11,'Tabla Fijos'!K16)) -> 596.6344901 | K71: =IF($B71="","",IF(Sheet1!$Z$1=4,'Tabla de Pagos Crecientes'!K11,'Tabla Fijos'!L16)) -> 233.3333352 | L71: =IF($B71="","",IF(Sheet1!$Z$1=4,'Tabla de Pagos Crecientes'!L11,'Tabla Fijos'!M16)) -> 299 | M71: =IF($B71=0,0,IF(B71="","",VLOOKUP($B71,'Tabla Fijos'!$B$12:$R$311,13,0))) -> 0 | O71: =IF(B71="","",G71+H71+I71+J71+K71+L71-M71-'Tabla Fijos'!P16) -> 10519.87007 | P71: 992960.3445 | Q71: 1
B72: 6 | C72: =IF($B72="","",'Fecha Pago'!K9) -> 2024-01-03 | D72: =IF($B$67="","",'Fecha Pago'!L9) -> 30.4 | E72: =IF(B72="","",IF(Sheet1!$Z$1=4,'Tabla de Pagos Crecientes'!E12,$F$62)) -> 0.0948 | F72: =IF($B72="","",IF(Sheet1!$Z$1=4,'Tabla de Pagos Crecientes'!F12,'Tabla Fijos'!F17)) -> 992960.3445 | G72: =IF($B72="","",IF(Sheet1!$Z$1=4,'Tabla de Pagos Crecientes'!G12,'Tabla Fijos'!G17)) -> 1441.923698 | H72: =IF($B72="","",IF(Sheet1!$Z$1=4,'Tabla de Pagos Crecientes'!H12,'Tabla Fijos'!H17)) -> 7948.978545 | I72: =IF($B72=0,0,IF(B72="","",VLOOKUP($B72,'Tabla Fijos'!$B$12:$R$311,8,0))) -> 0 | J72: =IF($B72="","",IF(Sheet1!$Z$1=4,'Tabla de Pagos Crecientes'!J12,'Tabla Fijos'!K17)) -> 595.7762067 | K72: =IF($B72="","",IF(Sheet1!$Z$1=4,'Tabla de Pagos Crecientes'!K12,'Tabla Fijos'!L17)) -> 233.3333352 | L72: =IF($B72="","",IF(Sheet1!$Z$1=4,'Tabla de Pagos Crecientes'!L12,'Tabla Fijos'!M17)) -> 299 | M72: =IF($B72=0,0,IF(B72="","",VLOOKUP($B72,'Tabla Fijos'!$B$12:$R$311,13,0))) -> 0 | O72: =IF(B72="","",G72+H72+I72+J72+K72+L72-M72-'Tabla Fijos'!P17) -> 10519.01178 | P72: 991518.4208 | Q72: 1
B73: 7 | C73: =IF($B73="","",'Fecha Pago'!K10) -> 2024-02-03 | D73: =IF($B$67="","",'Fecha Pago'!L10) -> 30.4 | E73: =IF(B73="","",IF(Sheet1!$Z$1=4,'Tabla de Pagos Crecientes'!E13,$F$62)) -> 0.0948 | F73: =IF($B73="","",IF(Sheet1!$Z$1=4,'Tabla de Pagos Crecientes'!F13,'Tabla Fijos'!F18)) -> 991518.4208 | G73: =IF($B73="","",IF(Sheet1!$Z$1=4,'Tabla de Pagos Crecientes'!G13,'Tabla Fijos'!G18)) -> 1453.466778 | H73: =IF($B73="","",IF(Sheet1!$Z$1=4,'Tabla de Pagos Crecientes'!H13,'Tabla Fijos'!H18)) -> 7937.435465 | I73: =IF($B73=0,0,IF(B73="","",VLOOKUP($B73,'Tabla Fijos'!$B$12:$R$311,8,0))) -> 0 | J73: =IF($B73="","",IF(Sheet1!$Z$1=4,'Tabla de Pagos Crecientes'!J13,'Tabla Fijos'!K18)) -> 594.9110525 | K73: =IF($B73="","",IF(Sheet1!$Z$1=4,'Tabla de Pagos Crecientes'!K13,'Tabla Fijos'!L18)) -> 233.3333352 | L73: =IF($B73="","",IF(Sheet1!$Z$1=4,'Tabla de Pagos Crecientes'!L13,'Tabla Fijos'!M18)) -> 299 | M73: =IF($B73=0,0,IF(B73="","",VLOOKUP($B73,'Tabla Fijos'!$B$12:$R$311,13,0))) -> 0 | O73: =IF(B73="","",G73+H73+I73+J73+K73+L73-M73-'Tabla Fijos'!P18) -> 10518.14663 | P73: 990064.9541 | Q73: 1
B74: 8 | C74: =IF($B74="","",'Fecha Pago'!K11) -> 2024-03-03 | D74: =IF($B$67="","",'Fecha Pago'!L11) -> 30.4 | E74: =IF(B74="","",IF(Sheet1!$Z$1=4,'Tabla de Pagos Crecientes'!E14,$F$62)) -> 0.0948 | F74: =IF($B74="","",IF(Sheet1!$Z$1=4,'Tabla de Pagos Crecientes'!F14,'Tabla Fijos'!F19)) -> 990064.9541 | G74: =IF($B74="","",IF(Sheet1!$Z$1=4,'Tabla de Pagos Crecientes'!G14,'Tabla Fijos'!G19)) -> 1465.102264 | H74: =IF($B74="","",IF(Sheet1!$Z$1=4,'Tabla de Pagos Crecientes'!H14,'Tabla Fijos'!H19)) -> 7925.799979 | I74: =IF($B74=0,0,IF(B74="","",VLOOKUP($B74,'Tabla Fijos'!$B$12:$R$311,8,0))) -> 0 | J74: =IF($B74="","",IF(Sheet1!$Z$1=4,'Tabla de Pagos Crecientes'!J14,'Tabla Fijos'!K19)) -> 594.0389724 | K74: =IF($B74="","",IF(Sheet1!$Z$1=4,'Tabla de Pagos Crecientes'!K14,'Tabla Fijos'!L19)) -> 233.3333352 | L74: =IF($B74="","",IF(Sheet1!$Z$1=4,'Tabla de Pagos Crecientes'!L14,'Tabla Fijos'!M19)) -> 299 | M74: =IF($B74=0,0,IF(B74="","",VLOOKUP($B74,'Tabla Fijos'!$B$12:$R$311,13,0))) -> 0 | O74: =IF(B74="","",G74+H74+I74+J74+K74+L74-M74-'Tabla Fijos'!P19) -> 10517.27455 | P74: 988599.8518 | Q74: 1
B75: 9 | C75: =IF($B75="","",'Fecha Pago'!K12) -> 2024-04-03 | D75: =IF($B$67="","",'Fecha Pago'!L12) -> 30.4 | E75: =IF(B75="","",IF(Sheet1!$Z$1=4,'Tabla de Pagos Crecientes'!E15,$F$62)) -> 0.0948 | F75: =IF($B75="","",IF(Sheet1!$Z$1=4,'Tabla de Pagos Crecientes'!F15,'Tabla Fijos'!F20)) -> 988599.8518 | G75: =IF($B75="","",IF(Sheet1!$Z$1=4,'Tabla de Pagos Crecientes'!G15,'Tabla Fijos'!G20)) -> 1476.830896 | H75: =IF($B75="","",IF(Sheet1!$Z$1=4,'Tabla de Pagos Crecientes'!H15,'Tabla Fijos'!H20)) -> 7914.071347 | I75: =IF($B75=0,0,IF(B75="","",VLOOKUP($B75,'Tabla Fijos'!$B$12:$R$311,8,0))) -> 0 | J75: =IF($B75="","",IF(Sheet1!$Z$1=4,'Tabla de Pagos Crecientes'!J15,'Tabla Fijos'!K20)) -> 593.1599111 | K75: =IF($B75="","",IF(Sheet1!$Z$1=4,'Tabla de Pagos Crecientes'!K15,'Tabla Fijos'!L20)) -> 233.3333352 | L75: =IF($B75="","",IF(Sheet1!$Z$1=4,'Tabla de Pagos Crecientes'!L15,'Tabla Fijos'!M20)) -> 299 | M75: =IF($B75=0,0,IF(B75="","",VLOOKUP($B75,'Tabla Fijos'!$B$12:$R$311,13,0))) -> 0 | O75: =IF(B75="","",G75+H75+I75+J75+K75+L75-M75-'Tabla Fijos'!P20) -> 10516.39549 | P75: 987123.0209 | Q75: 1
B76: 10 | C76: =IF($B76="","",'Fecha Pago'!K13) -> 2024-05-03 | D76: =IF($B$67="","",'Fecha Pago'!L13) -> 30.4 | E76: =IF(B76="","",IF(Sheet1!$Z$1=4,'Tabla de Pagos Crecientes'!E16,$F$62)) -> 0.0948 | F76: =IF($B76="","",IF(Sheet1!$Z$1=4,'Tabla de Pagos Crecientes'!F16,'Tabla Fijos'!F21)) -> 987123.0209 | G76: =IF($B76="","",IF(Sheet1!$Z$1=4,'Tabla de Pagos Crecientes'!G16,'Tabla Fijos'!G21)) -> 1488.65342 | H76: =IF($B76="","",IF(Sheet1!$Z$1=4,'Tabla de Pagos Crecientes'!H16,'Tabla Fijos'!H21)) -> 7902.248823 | I76: =IF($B76=0,0,IF(B76="","",VLOOKUP($B76,'Tabla Fijos'!$B$12:$R$311,8,0))) -> 0 | J76: =IF($B76="","",IF(Sheet1!$Z$1=4,'Tabla de Pagos Crecientes'!J16,'Tabla Fijos'!K21)) -> 592.2738125 | K76: =IF($B76="","",IF(Sheet1!$Z$1=4,'Tabla de Pagos Crecientes'!K16,'Tabla Fijos'!L21)) -> 233.3333352 | L76: =IF($B76="","",IF(Sheet1!$Z$1=4,'Tabla de Pagos Crecientes'!L16,'Tabla Fijos'!M21)) -> 299 | M76: =IF($B76=0,0,IF(B76="","",VLOOKUP($B76,'Tabla Fijos'!$B$12:$R$311,13,0))) -> 0 | O76: =IF(B76="","",G76+H76+I76+J76+K76+L76-M76-'Tabla Fijos'!P21) -> 10515.50939 | P76: 985634.3675 | Q76: 1
B77: 11 | C77: =IF($B77="","",'Fecha Pago'!K14) -> 2024-06-03 | D77: =IF($B$67="","",'Fecha Pago'!L14) -> 30.4 | E77: =IF(B77="","",IF(Sheet1!$Z$1=4,'Tabla de Pagos Crecientes'!E17,$F$62)) -> 0.0948 | F77: =IF($B77="","",IF(Sheet1!$Z$1=4,'Tabla de Pagos Crecientes'!F17,'Tabla Fijos'!F22)) -> 985634.3675 | G77: =IF($B77="","",IF(Sheet1!$Z$1=4,'Tabla de Pagos Crecientes'!G17,'Tabla Fijos'!G22)) -> 1500.570587 | H77: =IF($B77="","",IF(Sheet1!$Z$1=4,'Tabla de Pagos Crecientes'!H17,'Tabla Fijos'!H22)) -> 7890.331656 | I77: =IF($B77=0,0,IF(B77="","",VLOOKUP($B77,'Tabla Fijos'!$B$12:$R$311,8,0))) -> 0 | J77: =IF($B77="","",IF(Sheet1!$Z$1=4,'Tabla de Pagos Crecientes'!J17,'Tabla Fijos'!K22)) -> 591.3806205 | K77: =IF($B77="","",IF(Sheet1!$Z$1=4,'Tabla de Pagos Crecientes'!K17,'Tabla Fijos'!L22)) -> 233.3333352 | L77: =IF($B77="","",IF(Sheet1!$Z$1=4,'Tabla de Pagos Crecientes'!L17,'Tabla Fijos'!M22)) -> 299 | M77: =IF($B77=0,0,IF(B77="","",VLOOKUP($B77,'Tabla Fijos'!$B$12:$R$311,13,0))) -> 0 | O77: =IF(B77="","",G77+H77+I77+J77+K77+L77-M77-'Tabla Fijos'!P22) -> 10514.6162 | P77: 984133.7969 | Q77: 1
B78: 12 | C78: =IF($B78="","",'Fecha Pago'!K15) -> 2024-07-03 | D78: =IF($B$67="","",'Fecha Pago'!L15) -> 30.4 | E78: =IF(B78="","",IF(Sheet1!$Z$1=4,'Tabla de Pagos Crecientes'!E18,$F$62)) -> 0.0948 | F78: =IF($B78="","",IF(Sheet1!$Z$1=4,'Tabla de Pagos Crecientes'!F18,'Tabla Fijos'!F23)) -> 984133.7969 | G78: =IF($B78="","",IF(Sheet1!$Z$1=4,'Tabla de Pagos Crecientes'!G18,'Tabla Fijos'!G23)) -> 1512.583154 | H78: =IF($B78="","",IF(Sheet1!$Z$1=4,'Tabla de Pagos Crecientes'!H18,'Tabla Fijos'!H23)) -> 7878.319089 | I78: =IF($B78=0,0,IF(B78="","",VLOOKUP($B78,'Tabla Fijos'!$B$12:$R$311,8,0))) -> 0 | J78: =IF($B78="","",IF(Sheet1!$Z$1=4,'Tabla de Pagos Crecientes'!J18,'Tabla Fijos'!K23)) -> 590.4802781 | K78: =IF($B78="","",IF(Sheet1!$Z$1=4,'Tabla de Pagos Crecientes'!K18,'Tabla Fijos'!L23)) -> 233.3333352 | L78: =IF($B78="","",IF(Sheet1!$Z$1=4,'Tabla de Pagos Crecientes'!L18,'Tabla Fijos'!M23)) -> 299 | M78: =IF($B78=0,0,IF(B78="","",VLOOKUP($B78,'Tabla Fijos'!$B$12:$R$311,13,0))) -> 0 | O78: =IF(B78="","",G78+H78+I78+J78+K78+L78-M78-'Tabla Fijos'!P23) -> 10513.71586 | P78: 982621.2137 | Q78: 1
B79: 13 | C79: =IF($B79="","",'Fecha Pago'!K16) -> 2024-08-03 | D79: =IF($B$67="","",'Fecha Pago'!L16) -> 30.4 | E79: =IF(B79="","",IF(Sheet1!$Z$1=4,'Tabla de Pagos Crecientes'!E19,$F$62)) -> 0.0948 | F79: =IF($B79="","",IF(Sheet1!$Z$1=4,'Tabla de Pagos Crecientes'!F19,'Tabla Fijos'!F24)) -> 982621.2137 | G79: =IF($B79="","",IF(Sheet1!$Z$1=4,'Tabla de Pagos Crecientes'!G19,'Tabla Fijos'!G24)) -> 1524.691887 | H79: =IF($B79="","",IF(Sheet1!$Z$1=4,'Tabla de Pagos Crecientes'!H19,'Tabla Fijos'!H24)) -> 7866.210356 | I79: =IF($B79=0,0,IF(B79="","",VLOOKUP($B79,'Tabla Fijos'!$B$12:$R$311,8,0))) -> 0 | J79: =IF($B79="","",IF(Sheet1!$Z$1=4,'Tabla de Pagos Crecientes'!J19,'Tabla Fijos'!K24)) -> 589.5727282 | K79: =IF($B79="","",IF(Sheet1!$Z$1=4,'Tabla de Pagos Crecientes'!K19,'Tabla Fijos'!L24)) -> 233.3333352 | L79: =IF($B79="","",IF(Sheet1!$Z$1=4,'Tabla de Pagos Crecientes'!L19,'Tabla Fijos'!M24)) -> 299 | M79: =IF($B79=0,0,IF(B79="","",VLOOKUP($B79,'Tabla Fijos'!$B$12:$R$311,13,0))) -> 0 | O79: =IF(B79="","",G79+H79+I79+J79+K79+L79-M79-'Tabla Fijos'!P24) -> 10512.80831 | P79: 981096.5219 | Q79: 1
B80: 14 | C80: =IF($B80="","",'Fecha Pago'!K17) -> 2024-09-03 | D80: =IF($B$67="","",'Fecha Pago'!L17) -> 30.4 | E80: =IF(B80="","",IF(Sheet1!$Z$1=4,'Tabla de Pagos Crecientes'!E20,$F$62)) -> 0.0948 | F80: =IF($B80="","",IF(Sheet1!$Z$1=4,'Tabla de Pagos Crecientes'!F20,'Tabla Fijos'!F25)) -> 981096.5219 | G80: =IF($B80="","",IF(Sheet1!$Z$1=4,'Tabla de Pagos Crecientes'!G20,'Tabla Fijos'!G25)) -> 1536.897553 | H80: =IF($B80="","",IF(Sheet1!$Z$1=4,'Tabla de Pagos Crecientes'!H20,'Tabla Fijos'!H25)) -> 7854.00469 | I80: =IF($B80=0,0,IF(B80="","",VLOOKUP($B80,'Tabla Fijos'!$B$12:$R$311,8,0))) -> 0 | J80: =IF($B80="","",IF(Sheet1!$Z$1=4,'Tabla de Pagos Crecientes'!J20,'Tabla Fijos'!K25)) -> 588.6579131 | K80: =IF($B80="","",IF(Sheet1!$Z$1=4,'Tabla de Pagos Crecientes'!K20,'Tabla Fijos'!L25)) -> 233.3333352 | L80: =IF($B80="","",IF(Sheet1!$Z$1=4,'Tabla de Pagos Crecientes'!L20,'Tabla Fijos'!M25)) -> 299 | M80: =IF($B80=0,0,IF(B80="","",VLOOKUP($B80,'Tabla Fijos'!$B$12:$R$311,13,0))) -> 0 | O80: =IF(B80="","",G80+H80+I80+J80+K80+L80-M80-'Tabla Fijos'!P25) -> 10511.89349 | P80: 979559.6243 | Q80: 1
B81: 15 | C81: =IF($B81="","",'Fecha Pago'!K18) -> 2024-10-03 | D81: =IF($B$67="","",'Fecha Pago'!L18) -> 30.4 | E81: =IF(B81="","",IF(Sheet1!$Z$1=4,'Tabla de Pagos Crecientes'!E21,$F$62)) -> 0.0948 | F81: =IF($B81="","",IF(Sheet1!$Z$1=4,'Tabla de Pagos Crecientes'!F21,'Tabla Fijos'!F26)) -> 979559.6243 | G81: =IF($B81="","",IF(Sheet1!$Z$1=4,'Tabla de Pagos Crecientes'!G21,'Tabla Fijos'!G26)) -> 1549.200931 | H81: =IF($B81="","",IF(Sheet1!$Z$1=4,'Tabla de Pagos Crecientes'!H21,'Tabla Fijos'!H26)) -> 7841.701312 | I81: =IF($B81=0,0,IF(B81="","",VLOOKUP($B81,'Tabla Fijos'!$B$12:$R$311,8,0))) -> 0 | J81: =IF($B81="","",IF(Sheet1!$Z$1=4,'Tabla de Pagos Crecientes'!J21,'Tabla Fijos'!K26)) -> 587.7357746 | K81: =IF($B81="","",IF(Sheet1!$Z$1=4,'Tabla de Pagos Crecientes'!K21,'Tabla Fijos'!L26)) -> 233.3333352 | L81: =IF($B81="","",IF(Sheet1!$Z$1=4,'Tabla de Pagos Crecientes'!L21,'Tabla Fijos'!M26)) -> 299 | M81: =IF($B81=0,0,IF(B81="","",VLOOKUP($B81,'Tabla Fijos'!$B$12:$R$311,13,0))) -> 0 | O81: =IF(B81="","",G81+H81+I81+J81+K81+L81-M81-'Tabla Fijos'!P26) -> 10510.97135 | P81: 978010.4234 | Q81: 1
B82: 16 | C82: =IF($B82="","",'Fecha Pago'!K19) -> 2024-11-03 | D82: =IF($B$67="","",'Fecha Pago'!L19) -> 30.4 | E82: =IF(B82="","",IF(Sheet1!$Z$1=4,'Tabla de Pagos Crecientes'!E22,$F$62)) -> 0.0948 | F82: =IF($B82="","",IF(Sheet1!$Z$1=4,'Tabla de Pagos Crecientes'!F22,'Tabla Fijos'!F27)) -> 978010.4234 | G82: =IF($B82="","",IF(Sheet1!$Z$1=4,'Tabla de Pagos Crecientes'!G22,'Tabla Fijos'!G27)) -> 1561.6028 | H82: =IF($B82="","",IF(Sheet1!$Z$1=4,'Tabla de Pagos Crecientes'!H22,'Tabla Fijos'!H27)) -> 7829.299443 | I82: =IF($B82=0,0,IF(B82="","",VLOOKUP($B82,'Tabla Fijos'!$B$12:$R$311,8,0))) -> 0 | J82: =IF($B82="","",IF(Sheet1!$Z$1=4,'Tabla de Pagos Crecientes'!J22,'Tabla Fijos'!K27)) -> 586.806254 | K82: =IF($B82="","",IF(Sheet1!$Z$1=4,'Tabla de Pagos Crecientes'!K22,'Tabla Fijos'!L27)) -> 233.3333352 | L82: =IF($B82="","",IF(Sheet1!$Z$1=4,'Tabla de Pagos Crecientes'!L22,'Tabla Fijos'!M27)) -> 299 | M82: =IF($B82=0,0,IF(B82="","",VLOOKUP($B82,'Tabla Fijos'!$B$12:$R$311,13,0))) -> 0 | O82: =IF(B82="","",G82+H82+I82+J82+K82+L82-M82-'Tabla Fijos'!P27) -> 10510.04183 | P82: 976448.8206 | Q82: 1
B83: 17 | C83: =IF($B83="","",'Fecha Pago'!K20) -> 2024-12-03 | D83: =IF($B$67="","",'Fecha Pago'!L20) -> 30.4 | E83: =IF(B83="","",IF(Sheet1!$Z$1=4,'Tabla de Pagos Crecientes'!E23,$F$62)) -> 0.0948 | F83: =IF($B83="","",IF(Sheet1!$Z$1=4,'Tabla de Pagos Crecientes'!F23,'Tabla Fijos'!F28)) -> 976448.8206 | G83: =IF($B83="","",IF(Sheet1!$Z$1=4,'Tabla de Pagos Crecientes'!G23,'Tabla Fijos'!G28)) -> 1574.103951 | H83: =IF($B83="","",IF(Sheet1!$Z$1=4,'Tabla de Pagos Crecientes'!H23,'Tabla Fijos'!H28)) -> 7816.798292 | I83: =IF($B83=0,0,IF(B83="","",VLOOKUP($B83,'Tabla Fijos'!$B$12:$R$311,8,0))) -> 0 | J83: =IF($B83="","",IF(Sheet1!$Z$1=4,'Tabla de Pagos Crecientes'!J23,'Tabla Fijos'!K28)) -> 585.8692923 | K83: =IF($B83="","",IF(Sheet1!$Z$1=4,'Tabla de Pagos Crecientes'!K23,'Tabla Fijos'!L28)) -> 233.3333352 | L83: =IF($B83="","",IF(Sheet1!$Z$1=4,'Tabla de Pagos Crecientes'!L23,'Tabla Fijos'!M28)) -> 299 | M83: =IF($B83=0,0,IF(B83="","",VLOOKUP($B83,'Tabla Fijos'!$B$12:$R$311,13,0))) -> 0 | O83: =IF(B83="","",G83+H83+I83+J83+K83+L83-M83-'Tabla Fijos'!P28) -> 10509.10487 | P83: 974874.7166 | Q83: 1
B84: 18 | C84: =IF($B84="","",'Fecha Pago'!K21) -> 2025-01-03 | D84: =IF($B$67="","",'Fecha Pago'!L21) -> 30.4 | E84: =IF(B84="","",IF(Sheet1!$Z$1=4,'Tabla de Pagos Crecientes'!E24,$F$62)) -> 0.0948 | F84: =IF($B84="","",IF(Sheet1!$Z$1=4,'Tabla de Pagos Crecientes'!F24,'Tabla Fijos'!F29)) -> 974874.7166 | G84: =IF($B84="","",IF(Sheet1!$Z$1=4,'Tabla de Pagos Crecientes'!G24,'Tabla Fijos'!G29)) -> 1586.705178 | H84: =IF($B84="","",IF(Sheet1!$Z$1=4,'Tabla de Pagos Crecientes'!H24,'Tabla Fijos'!H29)) -> 7804.197065 | I84: =IF($B84=0,0,IF(B84="","",VLOOKUP($B84,'Tabla Fijos'!$B$12:$R$311,8,0))) -> 0 | J84: =IF($B84="","",IF(Sheet1!$Z$1=4,'Tabla de Pagos Crecientes'!J24,'Tabla Fijos'!K29)) -> 584.92483 | K84: =IF($B84="","",IF(Sheet1!$Z$1=4,'Tabla de Pagos Crecientes'!K24,'Tabla Fijos'!L29)) -> 233.3333352 | L84: =IF($B84="","",IF(Sheet1!$Z$1=4,'Tabla de Pagos Crecientes'!L24,'Tabla Fijos'!M29)) -> 299 | M84: =IF($B84=0,0,IF(B84="","",VLOOKUP($B84,'Tabla Fijos'!$B$12:$R$311,13,0))) -> 0 | O84: =IF(B84="","",G84+H84+I84+J84+K84+L84-M84-'Tabla Fijos'!P29) -> 10508.16041 | P84: 973288.0114 | Q84: 1
B85: 19 | C85: =IF($B85="","",'Fecha Pago'!K22) -> 2025-02-03 | D85: =IF($B$67="","",'Fecha Pago'!L22) -> 30.4 | E85: =IF(B85="","",IF(Sheet1!$Z$1=4,'Tabla de Pagos Crecientes'!E25,$F$62)) -> 0.0948 | F85: =IF($B85="","",IF(Sheet1!$Z$1=4,'Tabla de Pagos Crecientes'!F25,'Tabla Fijos'!F30)) -> 973288.0114 | G85: =IF($B85="","",IF(Sheet1!$Z$1=4,'Tabla de Pagos Crecientes'!G25,'Tabla Fijos'!G30)) -> 1599.407282 | H85: =IF($B85="","",IF(Sheet1!$Z$1=4,'Tabla de Pagos Crecientes'!H25,'Tabla Fijos'!H30)) -> 7791.494961 | I85: =IF($B85=0,0,IF(B85="","",VLOOKUP($B85,'Tabla Fijos'!$B$12:$R$311,8,0))) -> 0 | J85: =IF($B85="","",IF(Sheet1!$Z$1=4,'Tabla de Pagos Crecientes'!J25,'Tabla Fijos'!K30)) -> 583.9728069 | K85: =IF($B85="","",IF(Sheet1!$Z$1=4,'Tabla de Pagos Crecientes'!K25,'Tabla Fijos'!L30)) -> 233.3333352 | L85: =IF($B85="","",IF(Sheet1!$Z$1=4,'Tabla de Pagos Crecientes'!L25,'Tabla Fijos'!M30)) -> 299 | M85: =IF($B85=0,0,IF(B85="","",VLOOKUP($B85,'Tabla Fijos'!$B$12:$R$311,13,0))) -> 0 | O85: =IF(B85="","",G85+H85+I85+J85+K85+L85-M85-'Tabla Fijos'!P30) -> 10507.20839 | P85: 971688.6042 | Q85: 1
B86: 20 | C86: =IF($B86="","",'Fecha Pago'!K23) -> 2025-03-03 | D86: =IF($B$67="","",'Fecha Pago'!L23) -> 30.4 | E86: =IF(B86="","",IF(Sheet1!$Z$1=4,'Tabla de Pagos Crecientes'!E26,$F$62)) -> 0.0948 | F86: =IF($B86="","",IF(Sheet1!$Z$1=4,'Tabla de Pagos Crecientes'!F26,'Tabla Fijos'!F31)) -> 971688.6042 | G86: =IF($B86="","",IF(Sheet1!$Z$1=4,'Tabla de Pagos Crecientes'!G26,'Tabla Fijos'!G31)) -> 1612.211071 | H86: =IF($B86="","",IF(Sheet1!$Z$1=4,'Tabla de Pagos Crecientes'!H26,'Tabla Fijos'!H31)) -> 7778.691172 | I86: =IF($B86=0,0,IF(B86="","",VLOOKUP($B86,'Tabla Fijos'!$B$12:$R$311,8,0))) -> 0 | J86: =IF($B86="","",IF(Sheet1!$Z$1=4,'Tabla de Pagos Crecientes'!J26,'Tabla Fijos'!K31)) -> 583.0131625 | K86: =IF($B86="","",IF(Sheet1!$Z$1=4,'Tabla de Pagos Crecientes'!K26,'Tabla Fijos'!L31)) -> 233.3333352 | L86: =IF($B86="","",IF(Sheet1!$Z$1=4,'Tabla de Pagos Crecientes'!L26,'Tabla Fijos'!M31)) -> 299 | M86: =IF($B86=0,0,IF(B86="","",VLOOKUP($B86,'Tabla Fijos'!$B$12:$R$311,13,0))) -> 0 | O86: =IF(B86="","",G86+H86+I86+J86+K86+L86-M86-'Tabla Fijos'!P31) -> 10506.24874 | P86: 970076.3931 | Q86: 1
B87: 21 | C87: =IF($B87="","",'Fecha Pago'!K24) -> 2025-04-03 | D87: =IF($B$67="","",'Fecha Pago'!L24) -> 30.4 | E87: =IF(B87="","",IF(Sheet1!$Z$1=4,'Tabla de Pagos Crecientes'!E27,$F$62)) -> 0.0948 | F87: =IF($B87="","",IF(Sheet1!$Z$1=4,'Tabla de Pagos Crecientes'!F27,'Tabla Fijos'!F32)) -> 970076.3931 | G87: =IF($B87="","",IF(Sheet1!$Z$1=4,'Tabla de Pagos Crecientes'!G27,'Tabla Fijos'!G32)) -> 1625.117358 | H87: =IF($B87="","",IF(Sheet1!$Z$1=4,'Tabla de Pagos Crecientes'!H27,'Tabla Fijos'!H32)) -> 7765.784885 | I87: =IF($B87=0,0,IF(B87="","",VLOOKUP($B87,'Tabla Fijos'!$B$12:$R$311,8,0))) -> 0 | J87: =IF($B87="","",IF(Sheet1!$Z$1=4,'Tabla de Pagos Crecientes'!J27,'Tabla Fijos'!K32)) -> 582.0458359 | K87: =IF($B87="","",IF(Sheet1!$Z$1=4,'Tabla de Pagos Crecientes'!K27,'Tabla Fijos'!L32)) -> 233.3333352 | L87: =IF($B87="","",IF(Sheet1!$Z$1=4,'Tabla de Pagos Crecientes'!L27,'Tabla Fijos'!M32)) -> 299 | M87: =IF($B87=0,0,IF(B87="","",VLOOKUP($B87,'Tabla Fijos'!$B$12:$R$311,13,0))) -> 0 | O87: =IF(B87="","",G87+H87+I87+J87+K87+L87-M87-'Tabla Fijos'!P32) -> 10505.28141 | P87: 968451.2757 | Q87: 1
B88: 22 | C88: =IF($B88="","",'Fecha Pago'!K25) -> 2025-05-03 | D88: =IF($B$67="","",'Fecha Pago'!L25) -> 30.4 | E88: =IF(B88="","",IF(Sheet1!$Z$1=4,'Tabla de Pagos Crecientes'!E28,$F$62)) -> 0.0948 | F88: =IF($B88="","",IF(Sheet1!$Z$1=4,'Tabla de Pagos Crecientes'!F28,'Tabla Fijos'!F33)) -> 968451.2757 | G88: =IF($B88="","",IF(Sheet1!$Z$1=4,'Tabla de Pagos Crecientes'!G28,'Tabla Fijos'!G33)) -> 1638.126964 | H88: =IF($B88="","",IF(Sheet1!$Z$1=4,'Tabla de Pagos Crecientes'!H28,'Tabla Fijos'!H33)) -> 7752.775279 | I88: =IF($B88=0,0,IF(B88="","",VLOOKUP($B88,'Tabla Fijos'!$B$12:$R$311,8,0))) -> 0 | J88: =IF($B88="","",IF(Sheet1!$Z$1=4,'Tabla de Pagos Crecientes'!J28,'Tabla Fijos'!K33)) -> 581.0707654 | K88: =IF($B88="","",IF(Sheet1!$Z$1=4,'Tabla de Pagos Crecientes'!K28,'Tabla Fijos'!L33)) -> 233.3333352 | L88: =IF($B88="","",IF(Sheet1!$Z$1=4,'Tabla de Pagos Crecientes'!L28,'Tabla Fijos'!M33)) -> 299 | M88: =IF($B88=0,0,IF(B88="","",VLOOKUP($B88,'Tabla Fijos'!$B$12:$R$311,13,0))) -> 0 | O88: =IF(B88="","",G88+H88+I88+J88+K88+L88-M88-'Tabla Fijos'!P33) -> 10504.30634 | P88: 966813.1488 | Q88: 1
B89: 23 | C89: =IF($B89="","",'Fecha Pago'!K26) -> 2025-06-03 | D89: =IF($B$67="","",'Fecha Pago'!L26) -> 30.4 | E89: =IF(B89="","",IF(Sheet1!$Z$1=4,'Tabla de Pagos Crecientes'!E29,$F$62)) -> 0.0948 | F89: =IF($B89="","",IF(Sheet1!$Z$1=4,'Tabla de Pagos Crecientes'!F29,'Tabla Fijos'!F34)) -> 966813.1488 | G89: =IF($B89="","",IF(Sheet1!$Z$1=4,'Tabla de Pagos Crecientes'!G29,'Tabla Fijos'!G34)) -> 1651.240716 | H89: =IF($B89="","",IF(Sheet1!$Z$1=4,'Tabla de Pagos Crecientes'!H29,'Tabla Fijos'!H34)) -> 7739.661527 | I89: =IF($B89=0,0,IF(B89="","",VLOOKUP($B89,'Tabla Fijos'!$B$12:$R$311,8,0))) -> 0 | J89: =IF($B89="","",IF(Sheet1!$Z$1=4,'Tabla de Pagos Crecientes'!J29,'Tabla Fijos'!K34)) -> 580.0878893 | K89: =IF($B89="","",IF(Sheet1!$Z$1=4,'Tabla de Pagos Crecientes'!K29,'Tabla Fijos'!L34)) -> 233.3333352 | L89: =IF($B89="","",IF(Sheet1!$Z$1=4,'Tabla de Pagos Crecientes'!L29,'Tabla Fijos'!M34)) -> 299 | M89: =IF($B89=0,0,IF(B89="","",VLOOKUP($B89,'Tabla Fijos'!$B$12:$R$311,13,0))) -> 0 | O89: =IF(B89="","",G89+H89+I89+J89+K89+L89-M89-'Tabla Fijos'!P34) -> 10503.32347 | P89: 965161.908 | Q89: 1
B90: 24 | C90: =IF($B90="","",'Fecha Pago'!K27) -> 2025-07-03 | D90: =IF($B$67="","",'Fecha Pago'!L27) -> 30.4 | E90: =IF(B90="","",IF(Sheet1!$Z$1=4,'Tabla de Pagos Crecientes'!E30,$F$62)) -> 0.0948 | F90: =IF($B90="","",IF(Sheet1!$Z$1=4,'Tabla de Pagos Crecientes'!F30,'Tabla Fijos'!F35)) -> 965161.908 | G90: =IF($B90="","",IF(Sheet1!$Z$1=4,'Tabla de Pagos Crecientes'!G30,'Tabla Fijos'!G35)) -> 1664.459448 | H90: =IF($B90="","",IF(Sheet1!$Z$1=4,'Tabla de Pagos Crecientes'!H30,'Tabla Fijos'!H35)) -> 7726.442795 | I90: =IF($B90=0,0,IF(B90="","",VLOOKUP($B90,'Tabla Fijos'!$B$12:$R$311,8,0))) -> 0 | J90: =IF($B90="","",IF(Sheet1!$Z$1=4,'Tabla de Pagos Crecientes'!J30,'Tabla Fijos'!K35)) -> 579.0971448 | K90: =IF($B90="","",IF(Sheet1!$Z$1=4,'Tabla de Pagos Crecientes'!K30,'Tabla Fijos'!L35)) -> 233.3333352 | L90: =IF($B90="","",IF(Sheet1!$Z$1=4,'Tabla de Pagos Crecientes'!L30,'Tabla Fijos'!M35)) -> 299 | M90: =IF($B90=0,0,IF(B90="","",VLOOKUP($B90,'Tabla Fijos'!$B$12:$R$311,13,0))) -> 0 | O90: =IF(B90="","",G90+H90+I90+J90+K90+L90-M90-'Tabla Fijos'!P35) -> 10502.33272 | P90: 963497.4486 | Q90: 1
B91: 25 | C91: =IF($B91="","",'Fecha Pago'!K28) -> 2025-08-03 | D91: =IF($B$67="","",'Fecha Pago'!L28) -> 30.4 | E91: =IF(B91="","",IF(Sheet1!$Z$1=4,'Tabla de Pagos Crecientes'!E31,$F$62)) -> 0.0948 | F91: =IF($B91="","",IF(Sheet1!$Z$1=4,'Tabla de Pagos Crecientes'!F31,'Tabla Fijos'!F36)) -> 963497.4486 | G91: =IF($B91="","",IF(Sheet1!$Z$1=4,'Tabla de Pagos Crecientes'!G31,'Tabla Fijos'!G36)) -> 1677.784001 | H91: =IF($B91="","",IF(Sheet1!$Z$1=4,'Tabla de Pagos Crecientes'!H31,'Tabla Fijos'!H36)) -> 7713.118242 | I91: =IF($B91=0,0,IF(B91="","",VLOOKUP($B91,'Tabla Fijos'!$B$12:$R$311,8,0))) -> 0 | J91: =IF($B91="","",IF(Sheet1!$Z$1=4,'Tabla de Pagos Crecientes'!J31,'Tabla Fijos'!K36)) -> 578.0984692 | K91: =IF($B91="","",IF(Sheet1!$Z$1=4,'Tabla de Pagos Crecientes'!K31,'Tabla Fijos'!L36)) -> 233.3333352 | L91: =IF($B91="","",IF(Sheet1!$Z$1=4,'Tabla de Pagos Crecientes'!L31,'Tabla Fijos'!M36)) -> 299 | M91: =IF($B91=0,0,IF(B91="","",VLOOKUP($B91,'Tabla Fijos'!$B$12:$R$311,13,0))) -> 0 | O91: =IF(B91="","",G91+H91+I91+J91+K91+L91-M91-'Tabla Fijos'!P36) -> 10501.33405 | P91: 961819.6646 | Q91: 1
B92: 26 | C92: =IF($B92="","",'Fecha Pago'!K29) -> 2025-09-03 | D92: =IF($B$67="","",'Fecha Pago'!L29) -> 30.4 | E92: =IF(B92="","",IF(Sheet1!$Z$1=4,'Tabla de Pagos Crecientes'!E32,$F$62)) -> 0.0948 | F92: =IF($B92="","",IF(Sheet1!$Z$1=4,'Tabla de Pagos Crecientes'!F32,'Tabla Fijos'!F37)) -> 961819.6646 | G92: =IF($B92="","",IF(Sheet1!$Z$1=4,'Tabla de Pagos Crecientes'!G32,'Tabla Fijos'!G37)) -> 1691.215221 | H92: =IF($B92="","",IF(Sheet1!$Z$1=4,'Tabla de Pagos Crecientes'!H32,'Tabla Fijos'!H37)) -> 7699.687022 | I92: =IF($B92=0,0,IF(B92="","",VLOOKUP($B92,'Tabla Fijos'!$B$12:$R$311,8,0))) -> 0 | J92: =IF($B92="","",IF(Sheet1!$Z$1=4,'Tabla de Pagos Crecientes'!J32,'Tabla Fijos'!K37)) -> 577.0917988 | K92: =IF($B92="","",IF(Sheet1!$Z$1=4,'Tabla de Pagos Crecientes'!K32,'Tabla Fijos'!L37)) -> 233.3333352 | L92: =IF($B92="","",IF(Sheet1!$Z$1=4,'Tabla de Pagos Crecientes'!L32,'Tabla Fijos'!M37)) -> 299 | M92: =IF($B92=0,0,IF(B92="","",VLOOKUP($B92,'Tabla Fijos'!$B$12:$R$311,13,0))) -> 0 | O92: =IF(B92="","",G92+H92+I92+J92+K92+L92-M92-'Tabla Fijos'!P37) -> 10500.32738 | P92: 960128.4494 | Q92: 1
B93: 27 | C93: =IF($B93="","",'Fecha Pago'!K30) -> 2025-10-03 | D93: =IF($B$67="","",'Fecha Pago'!L30) -> 30.4 | E93: =IF(B93="","",IF(Sheet1!$Z$1=4,'Tabla de Pagos Crecientes'!E33,$F$62)) -> 0.0948 | F93: =IF($B93="","",IF(Sheet1!$Z$1=4,'Tabla de Pagos Crecientes'!F33,'Tabla Fijos'!F38)) -> 960128.4494 | G93: =IF($B93="","",IF(Sheet1!$Z$1=4,'Tabla de Pagos Crecientes'!G33,'Tabla Fijos'!G38)) -> 1704.753963 | H93: =IF($B93="","",IF(Sheet1!$Z$1=4,'Tabla de Pagos Crecientes'!H33,'Tabla Fijos'!H38)) -> 7686.14828 | I93: =IF($B93=0,0,IF(B93="","",VLOOKUP($B93,'Tabla Fijos'!$B$12:$R$311,8,0))) -> 0 | J93: =IF($B93="","",IF(Sheet1!$Z$1=4,'Tabla de Pagos Crecientes'!J33,'Tabla Fijos'!K38)) -> 576.0770696 | K93: =IF($B93="","",IF(Sheet1!$Z$1=4,'Tabla de Pagos Crecientes'!K33,'Tabla Fijos'!L38)) -> 233.3333352 | L93: =IF($B93="","",IF(Sheet1!$Z$1=4,'Tabla de Pagos Crecientes'!L33,'Tabla Fijos'!M38)) -> 299 | M93: =IF($B93=0,0,IF(B93="","",VLOOKUP($B93,'Tabla Fijos'!$B$12:$R$311,13,0))) -> 0 | O93: =IF(B93="","",G93+H93+I93+J93+K93+L93-M93-'Tabla Fijos'!P38) -> 10499.31265 | P93: 958423.6954 | Q93: 1
B94: 28 | C94: =IF($B94="","",'Fecha Pago'!K31) -> 2025-11-03 | D94: =IF($B$67="","",'Fecha Pago'!L31) -> 30.4 | E94: =IF(B94="","",IF(Sheet1!$Z$1=4,'Tabla de Pagos Crecientes'!E34,$F$62)) -> 0.0948 | F94: =IF($B94="","",IF(Sheet1!$Z$1=4,'Tabla de Pagos Crecientes'!F34,'Tabla Fijos'!F39)) -> 958423.6954 | G94: =IF($B94="","",IF(Sheet1!$Z$1=4,'Tabla de Pagos Crecientes'!G34,'Tabla Fijos'!G39)) -> 1718.401087 | H94: =IF($B94="","",IF(Sheet1!$Z$1=4,'Tabla de Pagos Crecientes'!H34,'Tabla Fijos'!H39)) -> 7672.501156 | I94: =IF($B94=0,0,IF(B94="","",VLOOKUP($B94,'Tabla Fijos'!$B$12:$R$311,8,0))) -> 0 | J94: =IF($B94="","",IF(Sheet1!$Z$1=4,'Tabla de Pagos Crecientes'!J34,'Tabla Fijos'!K39)) -> 575.0542172 | K94: =IF($B94="","",IF(Sheet1!$Z$1=4,'Tabla de Pagos Crecientes'!K34,'Tabla Fijos'!L39)) -> 233.3333352 | L94: =IF($B94="","",IF(Sheet1!$Z$1=4,'Tabla de Pagos Crecientes'!L34,'Tabla Fijos'!M39)) -> 299 | M94: =IF($B94=0,0,IF(B94="","",VLOOKUP($B94,'Tabla Fijos'!$B$12:$R$311,13,0))) -> 0 | O94: =IF(B94="","",G94+H94+I94+J94+K94+L94-M94-'Tabla Fijos'!P39) -> 10498.2898 | P94: 956705.2943 | Q94: 1
B95: 29 | C95: =IF($B95="","",'Fecha Pago'!K32) -> 2025-12-03 | D95: =IF($B$67="","",'Fecha Pago'!L32) -> 30.4 | E95: =IF(B95="","",IF(Sheet1!$Z$1=4,'Tabla de Pagos Crecientes'!E35,$F$62)) -> 0.0948 | F95: =IF($B95="","",IF(Sheet1!$Z$1=4,'Tabla de Pagos Crecientes'!F35,'Tabla Fijos'!F40)) -> 956705.2943 | G95: =IF($B95="","",IF(Sheet1!$Z$1=4,'Tabla de Pagos Crecientes'!G35,'Tabla Fijos'!G40)) -> 1732.15746 | H95: =IF($B95="","",IF(Sheet1!$Z$1=4,'Tabla de Pagos Crecientes'!H35,'Tabla Fijos'!H40)) -> 7658.744783 | I95: =IF($B95=0,0,IF(B95="","",VLOOKUP($B95,'Tabla Fijos'!$B$12:$R$311,8,0))) -> 0 | J95: =IF($B95="","",IF(Sheet1!$Z$1=4,'Tabla de Pagos Crecientes'!J35,'Tabla Fijos'!K40)) -> 574.0231766 | K95: =IF($B95="","",IF(Sheet1!$Z$1=4,'Tabla de Pagos Crecientes'!K35,'Tabla Fijos'!L40)) -> 233.3333352 | L95: =IF($B95="","",IF(Sheet1!$Z$1=4,'Tabla de Pagos Crecientes'!L35,'Tabla Fijos'!M40)) -> 299 | M95: =IF($B95=0,0,IF(B95="","",VLOOKUP($B95,'Tabla Fijos'!$B$12:$R$311,13,0))) -> 0 | O95: =IF(B95="","",G95+H95+I95+J95+K95+L95-M95-'Tabla Fijos'!P40) -> 10497.25875 | P95: 954973.1369 | Q95: 1
B96: 30 | C96: =IF($B96="","",'Fecha Pago'!K33) -> 2026-01-03 | D96: =IF($B$67="","",'Fecha Pago'!L33) -> 30.4 | E96: =IF(B96="","",IF(Sheet1!$Z$1=4,'Tabla de Pagos Crecientes'!E36,$F$62)) -> 0.0948 | F96: =IF($B96="","",IF(Sheet1!$Z$1=4,'Tabla de Pagos Crecientes'!F36,'Tabla Fijos'!F41)) -> 954973.1369 | G96: =IF($B96="","",IF(Sheet1!$Z$1=4,'Tabla de Pagos Crecientes'!G36,'Tabla Fijos'!G41)) -> 1746.023958 | H96: =IF($B96="","",IF(Sheet1!$Z$1=4,'Tabla de Pagos Crecientes'!H36,'Tabla Fijos'!H41)) -> 7644.878285 | I96: =IF($B96=0,0,IF(B96="","",VLOOKUP($B96,'Tabla Fijos'!$B$12:$R$311,8,0))) -> 0 | J96: =IF($B96="","",IF(Sheet1!$Z$1=4,'Tabla de Pagos Crecientes'!J36,'Tabla Fijos'!K41)) -> 572.9838821 | K96: =IF($B96="","",IF(Sheet1!$Z$1=4,'Tabla de Pagos Crecientes'!K36,'Tabla Fijos'!L41)) -> 233.3333352 | L96: =IF($B96="","",IF(Sheet1!$Z$1=4,'Tabla de Pagos Crecientes'!L36,'Tabla Fijos'!M41)) -> 299 | M96: =IF($B96=0,0,IF(B96="","",VLOOKUP($B96,'Tabla Fijos'!$B$12:$R$311,13,0))) -> 0 | O96: =IF(B96="","",G96+H96+I96+J96+K96+L96-M96-'Tabla Fijos'!P41) -> 10496.21946 | P96: 953227.1129 | Q96: 1
B97: 31 | C97: =IF($B97="","",'Fecha Pago'!K34) -> 2026-02-03 | D97: =IF($B$67="","",'Fecha Pago'!L34) -> 30.4 | E97: =IF(B97="","",IF(Sheet1!$Z$1=4,'Tabla de Pagos Crecientes'!E37,$F$62)) -> 0.0948 | F97: =IF($B97="","",IF(Sheet1!$Z$1=4,'Tabla de Pagos Crecientes'!F37,'Tabla Fijos'!F42)) -> 953227.1129 | G97: =IF($B97="","",IF(Sheet1!$Z$1=4,'Tabla de Pagos Crecientes'!G37,'Tabla Fijos'!G42)) -> 1760.001462 | H97: =IF($B97="","",IF(Sheet1!$Z$1=4,'Tabla de Pagos Crecientes'!H37,'Tabla Fijos'!H42)) -> 7630.900781 | I97: =IF($B97=0,0,IF(B97="","",VLOOKUP($B97,'Tabla Fijos'!$B$12:$R$311,8,0))) -> 0 | J97: =IF($B97="","",IF(Sheet1!$Z$1=4,'Tabla de Pagos Crecientes'!J37,'Tabla Fijos'!K42)) -> 571.9362677 | K97: =IF($B97="","",IF(Sheet1!$Z$1=4,'Tabla de Pagos Crecientes'!K37,'Tabla Fijos'!L42)) -> 233.3333352 | L97: =IF($B97="","",IF(Sheet1!$Z$1=4,'Tabla de Pagos Crecientes'!L37,'Tabla Fijos'!M42)) -> 299 | M97: =IF($B97=0,0,IF(B97="","",VLOOKUP($B97,'Tabla Fijos'!$B$12:$R$311,13,0))) -> 0 | O97: =IF(B97="","",G97+H97+I97+J97+K97+L97-M97-'Tabla Fijos'!P42) -> 10495.17185 | P97: 951467.1114 | Q97: 1
B98: 32 | C98: =IF($B98="","",'Fecha Pago'!K35) -> 2026-03-03 | D98: =IF($B$67="","",'Fecha Pago'!L35) -> 30.4 | E98: =IF(B98="","",IF(Sheet1!$Z$1=4,'Tabla de Pagos Crecientes'!E38,$F$62)) -> 0.0948 | F98: =IF($B98="","",IF(Sheet1!$Z$1=4,'Tabla de Pagos Crecientes'!F38,'Tabla Fijos'!F43)) -> 951467.1114 | G98: =IF($B98="","",IF(Sheet1!$Z$1=4,'Tabla de Pagos Crecientes'!G38,'Tabla Fijos'!G43)) -> 1774.09086 | H98: =IF($B98="","",IF(Sheet1!$Z$1=4,'Tabla de Pagos Crecientes'!H38,'Tabla Fijos'!H43)) -> 7616.811383 | I98: =IF($B98=0,0,IF(B98="","",VLOOKUP($B98,'Tabla Fijos'!$B$12:$R$311,8,0))) -> 0 | J98: =IF($B98="","",IF(Sheet1!$Z$1=4,'Tabla de Pagos Crecientes'!J38,'Tabla Fijos'!K43)) -> 570.8802669 | K98: =IF($B98="","",IF(Sheet1!$Z$1=4,'Tabla de Pagos Crecientes'!K38,'Tabla Fijos'!L43)) -> 233.3333352 | L98: =IF($B98="","",IF(Sheet1!$Z$1=4,'Tabla de Pagos Crecientes'!L38,'Tabla Fijos'!M43)) -> 299 | M98: =IF($B98=0,0,IF(B98="","",VLOOKUP($B98,'Tabla Fijos'!$B$12:$R$311,13,0))) -> 0 | O98: =IF(B98="","",G98+H98+I98+J98+K98+L98-M98-'Tabla Fijos'!P43) -> 10494.11585 | P98: 949693.0206 | Q98: 1
B99: 33 | C99: =IF($B99="","",'Fecha Pago'!K36) -> 2026-04-03 | D99: =IF($B$67="","",'Fecha Pago'!L36) -> 30.4 | E99: =IF(B99="","",IF(Sheet1!$Z$1=4,'Tabla de Pagos Crecientes'!E39,$F$62)) -> 0.0948 | F99: =IF($B99="","",IF(Sheet1!$Z$1=4,'Tabla de Pagos Crecientes'!F39,'Tabla Fijos'!F44)) -> 949693.0206 | G99: =IF($B99="","",IF(Sheet1!$Z$1=4,'Tabla de Pagos Crecientes'!G39,'Tabla Fijos'!G44)) -> 1788.293049 | H99: =IF($B99="","",IF(Sheet1!$Z$1=4,'Tabla de Pagos Crecientes'!H39,'Tabla Fijos'!H44)) -> 7602.609194 | I99: =IF($B99=0,0,IF(B99="","",VLOOKUP($B99,'Tabla Fijos'!$B$12:$R$311,8,0))) -> 0 | J99: =IF($B99="","",IF(Sheet1!$Z$1=4,'Tabla de Pagos Crecientes'!J39,'Tabla Fijos'!K44)) -> 569.8158124 | K99: =IF($B99="","",IF(Sheet1!$Z$1=4,'Tabla de Pagos Crecientes'!K39,'Tabla Fijos'!L44)) -> 233.3333352 | L99: =IF($B99="","",IF(Sheet1!$Z$1=4,'Tabla de Pagos Crecientes'!L39,'Tabla Fijos'!M44)) -> 299 | M99: =IF($B99=0,0,IF(B99="","",VLOOKUP($B99,'Tabla Fijos'!$B$12:$R$311,13,0))) -> 0 | O99: =IF(B99="","",G99+H99+I99+J99+K99+L99-M99-'Tabla Fijos'!P44) -> 10493.05139 | P99: 947904.7275 | Q99: 1
B100: 34 | C100: =IF($B100="","",'Fecha Pago'!K37) -> 2026-05-03 | D100: =IF($B$67="","",'Fecha Pago'!L37) -> 30.4 | E100: =IF(B100="","",IF(Sheet1!$Z$1=4,'Tabla de Pagos Crecientes'!E40,$F$62)) -> 0.0948 | F100: =IF($B100="","",IF(Sheet1!$Z$1=4,'Tabla de Pagos Crecientes'!F40,'Tabla Fijos'!F45)) -> 947904.7275 | G100: =IF($B100="","",IF(Sheet1!$Z$1=4,'Tabla de Pagos Crecientes'!G40,'Tabla Fijos'!G45)) -> 1802.608931 | H100: =IF($B100="","",IF(Sheet1!$Z$1=4,'Tabla de Pagos Crecientes'!H40,'Tabla Fijos'!H45)) -> 7588.293312 | I100: =IF($B100=0,0,IF(B100="","",VLOOKUP($B100,'Tabla Fijos'!$B$12:$R$311,8,0))) -> 0 | J100: =IF($B100="","",IF(Sheet1!$Z$1=4,'Tabla de Pagos Crecientes'!J40,'Tabla Fijos'!K45)) -> 568.7428365 | K100: =IF($B100="","",IF(Sheet1!$Z$1=4,'Tabla de Pagos Crecientes'!K40,'Tabla Fijos'!L45)) -> 233.3333352 | L100: =IF($B100="","",IF(Sheet1!$Z$1=4,'Tabla de Pagos Crecientes'!L40,'Tabla Fijos'!M45)) -> 299 | M100: =IF($B100=0,0,IF(B100="","",VLOOKUP($B100,'Tabla Fijos'!$B$12:$R$311,13,0))) -> 0 | O100: =IF(B100="","",G100+H100+I100+J100+K100+L100-M100-'Tabla Fijos'!P45) -> 10491.97841 | P100: 946102.1186 | Q100: 1
B101: 35 | C101: =IF($B101="","",'Fecha Pago'!K38) -> 2026-06-03 | D101: =IF($B$67="","",'Fecha Pago'!L38) -> 30.4 | E101: =IF(B101="","",IF(Sheet1!$Z$1=4,'Tabla de Pagos Crecientes'!E41,$F$62)) -> 0.0948 | F101: =IF($B101="","",IF(Sheet1!$Z$1=4,'Tabla de Pagos Crecientes'!F41,'Tabla Fijos'!F46)) -> 946102.1186 | G101: =IF($B101="","",IF(Sheet1!$Z$1=4,'Tabla de Pagos Crecientes'!G41,'Tabla Fijos'!G46)) -> 1817.039416 | H101: =IF($B101="","",IF(Sheet1!$Z$1=4,'Tabla de Pagos Crecientes'!H41,'Tabla Fijos'!H46)) -> 7573.862827 | I101: =IF($B101=0,0,IF(B101="","",VLOOKUP($B101,'Tabla Fijos'!$B$12:$R$311,8,0))) -> 0 | J101: =IF($B101="","",IF(Sheet1!$Z$1=4,'Tabla de Pagos Crecientes'!J41,'Tabla Fijos'!K46)) -> 567.6612712 | K101: =IF($B101="","",IF(Sheet1!$Z$1=4,'Tabla de Pagos Crecientes'!K41,'Tabla Fijos'!L46)) -> 233.3333352 | L101: =IF($B101="","",IF(Sheet1!$Z$1=4,'Tabla de Pagos Crecientes'!L41,'Tabla Fijos'!M46)) -> 299 | M101: =IF($B101=0,0,IF(B101="","",VLOOKUP($B101,'Tabla Fijos'!$B$12:$R$311,13,0))) -> 0 | O101: =IF(B101="","",G101+H101+I101+J101+K101+L101-M101-'Tabla Fijos'!P46) -> 10490.89685 | P101: 944285.0792 | Q101: 1
B102: 36 | C102: =IF($B102="","",'Fecha Pago'!K39) -> 2026-07-03 | D102: =IF($B$67="","",'Fecha Pago'!L39) -> 30.4 | E102: =IF(B102="","",IF(Sheet1!$Z$1=4,'Tabla de Pagos Crecientes'!E42,$F$62)) -> 0.0948 | F102: =IF($B102="","",IF(Sheet1!$Z$1=4,'Tabla de Pagos Crecientes'!F42,'Tabla Fijos'!F47)) -> 944285.0792 | G102: =IF($B102="","",IF(Sheet1!$Z$1=4,'Tabla de Pagos Crecientes'!G42,'Tabla Fijos'!G47)) -> 1831.585422 | H102: =IF($B102="","",IF(Sheet1!$Z$1=4,'Tabla de Pagos Crecientes'!H42,'Tabla Fijos'!H47)) -> 7559.316821 | I102: =IF($B102=0,0,IF(B102="","",VLOOKUP($B102,'Tabla Fijos'!$B$12:$R$311,8,0))) -> 0 | J102: =IF($B102="","",IF(Sheet1!$Z$1=4,'Tabla de Pagos Crecientes'!J42,'Tabla Fijos'!K47)) -> 566.5710475 | K102: =IF($B102="","",IF(Sheet1!$Z$1=4,'Tabla de Pagos Crecientes'!K42,'Tabla Fijos'!L47)) -> 233.3333352 | L102: =IF($B102="","",IF(Sheet1!$Z$1=4,'Tabla de Pagos Crecientes'!L42,'Tabla Fijos'!M47)) -> 299 | M102: =IF($B102=0,0,IF(B102="","",VLOOKUP($B102,'Tabla Fijos'!$B$12:$R$311,13,0))) -> 0 | O102: =IF(B102="","",G102+H102+I102+J102+K102+L102-M102-'Tabla Fijos'!P47) -> 10489.80663 | P102: 942453.4938 | Q102: 1
B103: 37 | C103: =IF($B103="","",'Fecha Pago'!K40) -> 2026-08-03 | D103: =IF($B$67="","",'Fecha Pago'!L40) -> 30.4 | E103: =IF(B103="","",IF(Sheet1!$Z$1=4,'Tabla de Pagos Crecientes'!E43,$F$62)) -> 0.0948 | F103: =IF($B103="","",IF(Sheet1!$Z$1=4,'Tabla de Pagos Crecientes'!F43,'Tabla Fijos'!F48)) -> 942453.4938 | G103: =IF($B103="","",IF(Sheet1!$Z$1=4,'Tabla de Pagos Crecientes'!G43,'Tabla Fijos'!G48)) -> 1846.247874 | H103: =IF($B103="","",IF(Sheet1!$Z$1=4,'Tabla de Pagos Crecientes'!H43,'Tabla Fijos'!H48)) -> 7544.654369 | I103: =IF($B103=0,0,IF(B103="","",VLOOKUP($B103,'Tabla Fijos'!$B$12:$R$311,8,0))) -> 0 | J103: =IF($B103="","",IF(Sheet1!$Z$1=4,'Tabla de Pagos Crecientes'!J43,'Tabla Fijos'!K48)) -> 565.4720963 | K103: =IF($B103="","",IF(Sheet1!$Z$1=4,'Tabla de Pagos Crecientes'!K43,'Tabla Fijos'!L48)) -> 233.3333352 | L103: =IF($B103="","",IF(Sheet1!$Z$1=4,'Tabla de Pagos Crecientes'!L43,'Tabla Fijos'!M48)) -> 299 | M103: =IF($B103=0,0,IF(B103="","",VLOOKUP($B103,'Tabla Fijos'!$B$12:$R$311,13,0))) -> 0 | O103: =IF(B103="","",G103+H103+I103+J103+K103+L103-M103-'Tabla Fijos'!P48) -> 10488.70767 | P103: 940607.2459 | Q103: 1
B104: 38 | C104: =IF($B104="","",'Fecha Pago'!K41) -> 2026-09-03 | D104: =IF($B$67="","",'Fecha Pago'!L41) -> 30.4 | E104: =IF(B104="","",IF(Sheet1!$Z$1=4,'Tabla de Pagos Crecientes'!E44,$F$62)) -> 0.0948 | F104: =IF($B104="","",IF(Sheet1!$Z$1=4,'Tabla de Pagos Crecientes'!F44,'Tabla Fijos'!F49)) -> 940607.2459 | G104: =IF($B104="","",IF(Sheet1!$Z$1=4,'Tabla de Pagos Crecientes'!G44,'Tabla Fijos'!G49)) -> 1861.027704 | H104: =IF($B104="","",IF(Sheet1!$Z$1=4,'Tabla de Pagos Crecientes'!H44,'Tabla Fijos'!H49)) -> 7529.874539 | I104: =IF($B104=0,0,IF(B104="","",VLOOKUP($B104,'Tabla Fijos'!$B$12:$R$311,8,0))) -> 0 | J104: =IF($B104="","",IF(Sheet1!$Z$1=4,'Tabla de Pagos Crecientes'!J44,'Tabla Fijos'!K49)) -> 564.3643475 | K104: =IF($B104="","",IF(Sheet1!$Z$1=4,'Tabla de Pagos Crecientes'!K44,'Tabla Fijos'!L49)) -> 233.3333352 | L104: =IF($B104="","",IF(Sheet1!$Z$1=4,'Tabla de Pagos Crecientes'!L44,'Tabla Fijos'!M49)) -> 299 | M104: =IF($B104=0,0,IF(B104="","",VLOOKUP($B104,'Tabla Fijos'!$B$12:$R$311,13,0))) -> 0 | O104: =IF(B104="","",G104+H104+I104+J104+K104+L104-M104-'Tabla Fijos'!P49) -> 10487.59993 | P104: 938746.2182 | Q104: 1
B105: 39 | C105: =IF($B105="","",'Fecha Pago'!K42) -> 2026-10-03 | D105: =IF($B$67="","",'Fecha Pago'!L42) -> 30.4 | E105: =IF(B105="","",IF(Sheet1!$Z$1=4,'Tabla de Pagos Crecientes'!E45,$F$62)) -> 0.0948 | F105: =IF($B105="","",IF(Sheet1!$Z$1=4,'Tabla de Pagos Crecientes'!F45,'Tabla Fijos'!F50)) -> 938746.2182 | G105: =IF($B105="","",IF(Sheet1!$Z$1=4,'Tabla de Pagos Crecientes'!G45,'Tabla Fijos'!G50)) -> 1875.925851 | H105: =IF($B105="","",IF(Sheet1!$Z$1=4,'Tabla de Pagos Crecientes'!H45,'Tabla Fijos'!H50)) -> 7514.976392 | I105: =IF($B105=0,0,IF(B105="","",VLOOKUP($B105,'Tabla Fijos'!$B$12:$R$311,8,0))) -> 0 | J105: =IF($B105="","",IF(Sheet1!$Z$1=4,'Tabla de Pagos Crecientes'!J45,'Tabla Fijos'!K50)) -> 563.2477309 | K105: =IF($B105="","",IF(Sheet1!$Z$1=4,'Tabla de Pagos Crecientes'!K45,'Tabla Fijos'!L50)) -> 233.3333352 | L105: =IF($B105="","",IF(Sheet1!$Z$1=4,'Tabla de Pagos Crecientes'!L45,'Tabla Fijos'!M50)) -> 299 | M105: =IF($B105=0,0,IF(B105="","",VLOOKUP($B105,'Tabla Fijos'!$B$12:$R$311,13,0))) -> 0 | O105: =IF(B105="","",G105+H105+I105+J105+K105+L105-M105-'Tabla Fijos'!P50) -> 10486.48331 | P105: 936870.2923 | Q105: 1
B106: 40 | C106: =IF($B106="","",'Fecha Pago'!K43) -> 2026-11-03 | D106: =IF($B$67="","",'Fecha Pago'!L43) -> 30.4 | E106: =IF(B106="","",IF(Sheet1!$Z$1=4,'Tabla de Pagos Crecientes'!E46,$F$62)) -> 0.0948 | F106: =IF($B106="","",IF(Sheet1!$Z$1=4,'Tabla de Pagos Crecientes'!F46,'Tabla Fijos'!F51)) -> 936870.2923 | G106: =IF($B106="","",IF(Sheet1!$Z$1=4,'Tabla de Pagos Crecientes'!G46,'Tabla Fijos'!G51)) -> 1890.943263 | H106: =IF($B106="","",IF(Sheet1!$Z$1=4,'Tabla de Pagos Crecientes'!H46,'Tabla Fijos'!H51)) -> 7499.95898 | I106: =IF($B106=0,0,IF(B106="","",VLOOKUP($B106,'Tabla Fijos'!$B$12:$R$311,8,0))) -> 0 | J106: =IF($B106="","",IF(Sheet1!$Z$1=4,'Tabla de Pagos Crecientes'!J46,'Tabla Fijos'!K51)) -> 562.1221754 | K106: =IF($B106="","",IF(Sheet1!$Z$1=4,'Tabla de Pagos Crecientes'!K46,'Tabla Fijos'!L51)) -> 233.3333352 | L106: =IF($B106="","",IF(Sheet1!$Z$1=4,'Tabla de Pagos Crecientes'!L46,'Tabla Fijos'!M51)) -> 299 | M106: =IF($B106=0,0,IF(B106="","",VLOOKUP($B106,'Tabla Fijos'!$B$12:$R$311,13,0))) -> 0 | O106: =IF(B106="","",G106+H106+I106+J106+K106+L106-M106-'Tabla Fijos'!P51) -> 10485.35775 | P106: 934979.3491 | Q106: 1
B107: 41 | C107: =IF($B107="","",'Fecha Pago'!K44) -> 2026-12-03 | D107: =IF($B$67="","",'Fecha Pago'!L44) -> 30.4 | E107: =IF(B107="","",IF(Sheet1!$Z$1=4,'Tabla de Pagos Crecientes'!E47,$F$62)) -> 0.0948 | F107: =IF($B107="","",IF(Sheet1!$Z$1=4,'Tabla de Pagos Crecientes'!F47,'Tabla Fijos'!F52)) -> 934979.3491 | G107: =IF($B107="","",IF(Sheet1!$Z$1=4,'Tabla de Pagos Crecientes'!G47,'Tabla Fijos'!G52)) -> 1906.080894 | H107: =IF($B107="","",IF(Sheet1!$Z$1=4,'Tabla de Pagos Crecientes'!H47,'Tabla Fijos'!H52)) -> 7484.821349 | I107: =IF($B107=0,0,IF(B107="","",VLOOKUP($B107,'Tabla Fijos'!$B$12:$R$311,8,0))) -> 0 | J107: =IF($B107="","",IF(Sheet1!$Z$1=4,'Tabla de Pagos Crecientes'!J47,'Tabla Fijos'!K52)) -> 560.9876094 | K107: =IF($B107="","",IF(Sheet1!$Z$1=4,'Tabla de Pagos Crecientes'!K47,'Tabla Fijos'!L52)) -> 233.3333352 | L107: =IF($B107="","",IF(Sheet1!$Z$1=4,'Tabla de Pagos Crecientes'!L47,'Tabla Fijos'!M52)) -> 299 | M107: =IF($B107=0,0,IF(B107="","",VLOOKUP($B107,'Tabla Fijos'!$B$12:$R$311,13,0))) -> 0 | O107: =IF(B107="","",G107+H107+I107+J107+K107+L107-M107-'Tabla Fijos'!P52) -> 10484.22319 | P107: 933073.2682 | Q107: 1
B108: 42 | C108: =IF($B108="","",'Fecha Pago'!K45) -> 2027-01-03 | D108: =IF($B$67="","",'Fecha Pago'!L45) -> 30.4 | E108: =IF(B108="","",IF(Sheet1!$Z$1=4,'Tabla de Pagos Crecientes'!E48,$F$62)) -> 0.0948 | F108: =IF($B108="","",IF(Sheet1!$Z$1=4,'Tabla de Pagos Crecientes'!F48,'Tabla Fijos'!F53)) -> 933073.2682 | G108: =IF($B108="","",IF(Sheet1!$Z$1=4,'Tabla de Pagos Crecientes'!G48,'Tabla Fijos'!G53)) -> 1921.339707 | H108: =IF($B108="","",IF(Sheet1!$Z$1=4,'Tabla de Pagos Crecientes'!H48,'Tabla Fijos'!H53)) -> 7469.562536 | I108: =IF($B108=0,0,IF(B108="","",VLOOKUP($B108,'Tabla Fijos'!$B$12:$R$311,8,0))) -> 0 | J108: =IF($B108="","",IF(Sheet1!$Z$1=4,'Tabla de Pagos Crecientes'!J48,'Tabla Fijos'!K53)) -> 559.8439609 | K108: =IF($B108="","",IF(Sheet1!$Z$1=4,'Tabla de Pagos Crecientes'!K48,'Tabla Fijos'!L53)) -> 233.3333352 | L108: =IF($B108="","",IF(Sheet1!$Z$1=4,'Tabla de Pagos Crecientes'!L48,'Tabla Fijos'!M53)) -> 299 | M108: =IF($B108=0,0,IF(B108="","",VLOOKUP($B108,'Tabla Fijos'!$B$12:$R$311,13,0))) -> 0 | O108: =IF(B108="","",G108+H108+I108+J108+K108+L108-M108-'Tabla Fijos'!P53) -> 10483.07954 | P108: 931151.9285 | Q108: 1
B109: 43 | C109: =IF($B109="","",'Fecha Pago'!K46) -> 2027-02-03 | D109: =IF($B$67="","",'Fecha Pago'!L46) -> 30.4 | E109: =IF(B109="","",IF(Sheet1!$Z$1=4,'Tabla de Pagos Crecientes'!E49,$F$62)) -> 0.0948 | F109: =IF($B109="","",IF(Sheet1!$Z$1=4,'Tabla de Pagos Crecientes'!F49,'Tabla Fijos'!F54)) -> 931151.9285 | G109: =IF($B109="","",IF(Sheet1!$Z$1=4,'Tabla de Pagos Crecientes'!G49,'Tabla Fijos'!G54)) -> 1936.720672 | H109: =IF($B109="","",IF(Sheet1!$Z$1=4,'Tabla de Pagos Crecientes'!H49,'Tabla Fijos'!H54)) -> 7454.181571 | I109: =IF($B109=0,0,IF(B109="","",VLOOKUP($B109,'Tabla Fijos'!$B$12:$R$311,8,0))) -> 0 | J109: =IF($B109="","",IF(Sheet1!$Z$1=4,'Tabla de Pagos Crecientes'!J49,'Tabla Fijos'!K54)) -> 558.6911571 | K109: =IF($B109="","",IF(Sheet1!$Z$1=4,'Tabla de Pagos Crecientes'!K49,'Tabla Fijos'!L54)) -> 233.3333352 | L109: =IF($B109="","",IF(Sheet1!$Z$1=4,'Tabla de Pagos Crecientes'!L49,'Tabla Fijos'!M54)) -> 299 | M109: =IF($B109=0,0,IF(B109="","",VLOOKUP($B109,'Tabla Fijos'!$B$12:$R$311,13,0))) -> 0 | O109: =IF(B109="","",G109+H109+I109+J109+K109+L109-M109-'Tabla Fijos'!P54) -> 10481.92674 | P109: 929215.2078 | Q109: 1
B110: 44 | C110: =IF($B110="","",'Fecha Pago'!K47) -> 2027-03-03 | D110: =IF($B$67="","",'Fecha Pago'!L47) -> 30.4 | E110: =IF(B110="","",IF(Sheet1!$Z$1=4,'Tabla de Pagos Crecientes'!E50,$F$62)) -> 0.0948 | F110: =IF($B110="","",IF(Sheet1!$Z$1=4,'Tabla de Pagos Crecientes'!F50,'Tabla Fijos'!F55)) -> 929215.2078 | G110: =IF($B110="","",IF(Sheet1!$Z$1=4,'Tabla de Pagos Crecientes'!G50,'Tabla Fijos'!G55)) -> 1952.224766 | H110: =IF($B110="","",IF(Sheet1!$Z$1=4,'Tabla de Pagos Crecientes'!H50,'Tabla Fijos'!H55)) -> 7438.677477 | I110: =IF($B110=0,0,IF(B110="","",VLOOKUP($B110,'Tabla Fijos'!$B$12:$R$311,8,0))) -> 0 | J110: =IF($B110="","",IF(Sheet1!$Z$1=4,'Tabla de Pagos Crecientes'!J50,'Tabla Fijos'!K55)) -> 557.5291247 | K110: =IF($B110="","",IF(Sheet1!$Z$1=4,'Tabla de Pagos Crecientes'!K50,'Tabla Fijos'!L55)) -> 233.3333352 | L110: =IF($B110="","",IF(Sheet1!$Z$1=4,'Tabla de Pagos Crecientes'!L50,'Tabla Fijos'!M55)) -> 299 | M110: =IF($B110=0,0,IF(B110="","",VLOOKUP($B110,'Tabla Fijos'!$B$12:$R$311,13,0))) -> 0 | O110: =IF(B110="","",G110+H110+I110+J110+K110+L110-M110-'Tabla Fijos'!P55) -> 10480.7647 | P110: 927262.983 | Q110: 1
B111: 45 | C111: =IF($B111="","",'Fecha Pago'!K48) -> 2027-04-03 | D111: =IF($B$67="","",'Fecha Pago'!L48) -> 30.4 | E111: =IF(B111="","",IF(Sheet1!$Z$1=4,'Tabla de Pagos Crecientes'!E51,$F$62)) -> 0.0948 | F111: =IF($B111="","",IF(Sheet1!$Z$1=4,'Tabla de Pagos Crecientes'!F51,'Tabla Fijos'!F56)) -> 927262.983 | G111: =IF($B111="","",IF(Sheet1!$Z$1=4,'Tabla de Pagos Crecientes'!G51,'Tabla Fijos'!G56)) -> 1967.852976 | H111: =IF($B111="","",IF(Sheet1!$Z$1=4,'Tabla de Pagos Crecientes'!H51,'Tabla Fijos'!H56)) -> 7423.049267 | I111: =IF($B111=0,0,IF(B111="","",VLOOKUP($B111,'Tabla Fijos'!$B$12:$R$311,8,0))) -> 0 | J111: =IF($B111="","",IF(Sheet1!$Z$1=4,'Tabla de Pagos Crecientes'!J51,'Tabla Fijos'!K56)) -> 556.3577898 | K111: =IF($B111="","",IF(Sheet1!$Z$1=4,'Tabla de Pagos Crecientes'!K51,'Tabla Fijos'!L56)) -> 233.3333352 | L111: =IF($B111="","",IF(Sheet1!$Z$1=4,'Tabla de Pagos Crecientes'!L51,'Tabla Fijos'!M56)) -> 299 | M111: =IF($B111=0,0,IF(B111="","",VLOOKUP($B111,'Tabla Fijos'!$B$12:$R$311,13,0))) -> 0 | O111: =IF(B111="","",G111+H111+I111+J111+K111+L111-M111-'Tabla Fijos'!P56) -> 10479.59337 | P111: 925295.1301 | Q111: 1
B112: 46 | C112: =IF($B112="","",'Fecha Pago'!K49) -> 2027-05-03 | D112: =IF($B$67="","",'Fecha Pago'!L49) -> 30.4 | E112: =IF(B112="","",IF(Sheet1!$Z$1=4,'Tabla de Pagos Crecientes'!E52,$F$62)) -> 0.0948 | F112: =IF($B112="","",IF(Sheet1!$Z$1=4,'Tabla de Pagos Crecientes'!F52,'Tabla Fijos'!F57)) -> 925295.1301 | G112: =IF($B112="","",IF(Sheet1!$Z$1=4,'Tabla de Pagos Crecientes'!G52,'Tabla Fijos'!G57)) -> 1983.606295 | H112: =IF($B112="","",IF(Sheet1!$Z$1=4,'Tabla de Pagos Crecientes'!H52,'Tabla Fijos'!H57)) -> 7407.295948 | I112: =IF($B112=0,0,IF(B112="","",VLOOKUP($B112,'Tabla Fijos'!$B$12:$R$311,8,0))) -> 0 | J112: =IF($B112="","",IF(Sheet1!$Z$1=4,'Tabla de Pagos Crecientes'!J52,'Tabla Fijos'!K57)) -> 555.177078 | K112: =IF($B112="","",IF(Sheet1!$Z$1=4,'Tabla de Pagos Crecientes'!K52,'Tabla Fijos'!L57)) -> 233.3333352 | L112: =IF($B112="","",IF(Sheet1!$Z$1=4,'Tabla de Pagos Crecientes'!L52,'Tabla Fijos'!M57)) -> 299 | M112: =IF($B112=0,0,IF(B112="","",VLOOKUP($B112,'Tabla Fijos'!$B$12:$R$311,13,0))) -> 0 | O112: =IF(B112="","",G112+H112+I112+J112+K112+L112-M112-'Tabla Fijos'!P57) -> 10478.41266 | P112: 923311.5238 | Q112: 1
B113: 47 | C113: =IF($B113="","",'Fecha Pago'!K50) -> 2027-06-03 | D113: =IF($B$67="","",'Fecha Pago'!L50) -> 30.4 | E113: =IF(B113="","",IF(Sheet1!$Z$1=4,'Tabla de Pagos Crecientes'!E53,$F$62)) -> 0.0948 | F113: =IF($B113="","",IF(Sheet1!$Z$1=4,'Tabla de Pagos Crecientes'!F53,'Tabla Fijos'!F58)) -> 923311.5238 | G113: =IF($B113="","",IF(Sheet1!$Z$1=4,'Tabla de Pagos Crecientes'!G53,'Tabla Fijos'!G58)) -> 1999.485725 | H113: =IF($B113="","",IF(Sheet1!$Z$1=4,'Tabla de Pagos Crecientes'!H53,'Tabla Fijos'!H58)) -> 7391.416518 | I113: =IF($B113=0,0,IF(B113="","",VLOOKUP($B113,'Tabla Fijos'!$B$12:$R$311,8,0))) -> 0 | J113: =IF($B113="","",IF(Sheet1!$Z$1=4,'Tabla de Pagos Crecientes'!J53,'Tabla Fijos'!K58)) -> 553.9869143 | K113: =IF($B113="","",IF(Sheet1!$Z$1=4,'Tabla de Pagos Crecientes'!K53,'Tabla Fijos'!L58)) -> 233.3333352 | L113: =IF($B113="","",IF(Sheet1!$Z$1=4,'Tabla de Pagos Crecientes'!L53,'Tabla Fijos'!M58)) -> 299 | M113: =IF($B113=0,0,IF(B113="","",VLOOKUP($B113,'Tabla Fijos'!$B$12:$R$311,13,0))) -> 0 | O113: =IF(B113="","",G113+H113+I113+J113+K113+L113-M113-'Tabla Fijos'!P58) -> 10477.22249 | P113: 921312.038 | Q113: 1
B114: 48 | C114: =IF($B114="","",'Fecha Pago'!K51) -> 2027-07-03 | D114: =IF($B$67="","",'Fecha Pago'!L51) -> 30.4 | E114: =IF(B114="","",IF(Sheet1!$Z$1=4,'Tabla de Pagos Crecientes'!E54,$F$62)) -> 0.0948 | F114: =IF($B114="","",IF(Sheet1!$Z$1=4,'Tabla de Pagos Crecientes'!F54,'Tabla Fijos'!F59)) -> 921312.038 | G114: =IF($B114="","",IF(Sheet1!$Z$1=4,'Tabla de Pagos Crecientes'!G54,'Tabla Fijos'!G59)) -> 2015.492274 | H114: =IF($B114="","",IF(Sheet1!$Z$1=4,'Tabla de Pagos Crecientes'!H54,'Tabla Fijos'!H59)) -> 7375.409969 | I114: =IF($B114=0,0,IF(B114="","",VLOOKUP($B114,'Tabla Fijos'!$B$12:$R$311,8,0))) -> 0 | J114: =IF($B114="","",IF(Sheet1!$Z$1=4,'Tabla de Pagos Crecientes'!J54,'Tabla Fijos'!K59)) -> 552.7872228 | K114: =IF($B114="","",IF(Sheet1!$Z$1=4,'Tabla de Pagos Crecientes'!K54,'Tabla Fijos'!L59)) -> 233.3333352 | L114: =IF($B114="","",IF(Sheet1!$Z$1=4,'Tabla de Pagos Crecientes'!L54,'Tabla Fijos'!M59)) -> 299 | M114: =IF($B114=0,0,IF(B114="","",VLOOKUP($B114,'Tabla Fijos'!$B$12:$R$311,13,0))) -> 0 | O114: =IF(B114="","",G114+H114+I114+J114+K114+L114-M114-'Tabla Fijos'!P59) -> 10476.0228 | P114: 919296.5458 | Q114: 1
B115: 49 | C115: =IF($B115="","",'Fecha Pago'!K52) -> 2027-08-03 | D115: =IF($B$67="","",'Fecha Pago'!L52) -> 30.4 | E115: =IF(B115="","",IF(Sheet1!$Z$1=4,'Tabla de Pagos Crecientes'!E55,$F$62)) -> 0.0948 | F115: =IF($B115="","",IF(Sheet1!$Z$1=4,'Tabla de Pagos Crecientes'!F55,'Tabla Fijos'!F60)) -> 919296.5458 | G115: =IF($B115="","",IF(Sheet1!$Z$1=4,'Tabla de Pagos Crecientes'!G55,'Tabla Fijos'!G60)) -> 2031.626962 | H115: =IF($B115="","",IF(Sheet1!$Z$1=4,'Tabla de Pagos Crecientes'!H55,'Tabla Fijos'!H60)) -> 7359.275281 | I115: =IF($B115=0,0,IF(B115="","",VLOOKUP($B115,'Tabla Fijos'!$B$12:$R$311,8,0))) -> 0 | J115: =IF($B115="","",IF(Sheet1!$Z$1=4,'Tabla de Pagos Crecientes'!J55,'Tabla Fijos'!K60)) -> 551.5779275 | K115: =IF($B115="","",IF(Sheet1!$Z$1=4,'Tabla de Pagos Crecientes'!K55,'Tabla Fijos'!L60)) -> 233.3333352 | L115: =IF($B115="","",IF(Sheet1!$Z$1=4,'Tabla de Pagos Crecientes'!L55,'Tabla Fijos'!M60)) -> 299 | M115: =IF($B115=0,0,IF(B115="","",VLOOKUP($B115,'Tabla Fijos'!$B$12:$R$311,13,0))) -> 0 | O115: =IF(B115="","",G115+H115+I115+J115+K115+L115-M115-'Tabla Fijos'!P60) -> 10474.81351 | P115: 917264.9188 | Q115: 1
B116: 50 | C116: =IF($B116="","",'Fecha Pago'!K53) -> 2027-09-03 | D116: =IF($B$67="","",'Fecha Pago'!L53) -> 30.4 | E116: =IF(B116="","",IF(Sheet1!$Z$1=4,'Tabla de Pagos Crecientes'!E56,$F$62)) -> 0.0948 | F116: =IF($B116="","",IF(Sheet1!$Z$1=4,'Tabla de Pagos Crecientes'!F56,'Tabla Fijos'!F61)) -> 917264.9188 | G116: =IF($B116="","",IF(Sheet1!$Z$1=4,'Tabla de Pagos Crecientes'!G56,'Tabla Fijos'!G61)) -> 2047.890813 | H116: =IF($B116="","",IF(Sheet1!$Z$1=4,'Tabla de Pagos Crecientes'!H56,'Tabla Fijos'!H61)) -> 7343.01143 | I116: =IF($B116=0,0,IF(B116="","",VLOOKUP($B116,'Tabla Fijos'!$B$12:$R$311,8,0))) -> 0 | J116: =IF($B116="","",IF(Sheet1!$Z$1=4,'Tabla de Pagos Crecientes'!J56,'Tabla Fijos'!K61)) -> 550.3589513 | K116: =IF($B116="","",IF(Sheet1!$Z$1=4,'Tabla de Pagos Crecientes'!K56,'Tabla Fijos'!L61)) -> 233.3333352 | L116: =IF($B116="","",IF(Sheet1!$Z$1=4,'Tabla de Pagos Crecientes'!L56,'Tabla Fijos'!M61)) -> 299 | M116: =IF($B116=0,0,IF(B116="","",VLOOKUP($B116,'Tabla Fijos'!$B$12:$R$311,13,0))) -> 0 | O116: =IF(B116="","",G116+H116+I116+J116+K116+L116-M116-'Tabla Fijos'!P61) -> 10473.59453 | P116: 915217.028 | Q116: 1
B117: 51 | C117: =IF($B117="","",'Fecha Pago'!K54) -> 2027-10-03 | D117: =IF($B$67="","",'Fecha Pago'!L54) -> 30.4 | E117: =IF(B117="","",IF(Sheet1!$Z$1=4,'Tabla de Pagos Crecientes'!E57,$F$62)) -> 0.0948 | F117: =IF($B117="","",IF(Sheet1!$Z$1=4,'Tabla de Pagos Crecientes'!F57,'Tabla Fijos'!F62)) -> 915217.028 | G117: =IF($B117="","",IF(Sheet1!$Z$1=4,'Tabla de Pagos Crecientes'!G57,'Tabla Fijos'!G62)) -> 2064.284862 | H117: =IF($B117="","",IF(Sheet1!$Z$1=4,'Tabla de Pagos Crecientes'!H57,'Tabla Fijos'!H62)) -> 7326.617381 | I117: =IF($B117=0,0,IF(B117="","",VLOOKUP($B117,'Tabla Fijos'!$B$12:$R$311,8,0))) -> 0 | J117: =IF($B117="","",IF(Sheet1!$Z$1=4,'Tabla de Pagos Crecientes'!J57,'Tabla Fijos'!K62)) -> 549.1302168 | K117: =IF($B117="","",IF(Sheet1!$Z$1=4,'Tabla de Pagos Crecientes'!K57,'Tabla Fijos'!L62)) -> 233.3333352 | L117: =IF($B117="","",IF(Sheet1!$Z$1=4,'Tabla de Pagos Crecientes'!L57,'Tabla Fijos'!M62)) -> 299 | M117: =IF($B117=0,0,IF(B117="","",VLOOKUP($B117,'Tabla Fijos'!$B$12:$R$311,13,0))) -> 0 | O117: =IF(B117="","",G117+H117+I117+J117+K117+L117-M117-'Tabla Fijos'!P62) -> 10472.3658 | P117: 913152.7431 | Q117: 1
B118: 52 | C118: =IF($B118="","",'Fecha Pago'!K55) -> 2027-11-03 | D118: =IF($B$67="","",'Fecha Pago'!L55) -> 30.4 | E118: =IF(B118="","",IF(Sheet1!$Z$1=4,'Tabla de Pagos Crecientes'!E58,$F$62)) -> 0.0948 | F118: =IF($B118="","",IF(Sheet1!$Z$1=4,'Tabla de Pagos Crecientes'!F58,'Tabla Fijos'!F63)) -> 913152.7431 | G118: =IF($B118="","",IF(Sheet1!$Z$1=4,'Tabla de Pagos Crecientes'!G58,'Tabla Fijos'!G63)) -> 2080.81015 | H118: =IF($B118="","",IF(Sheet1!$Z$1=4,'Tabla de Pagos Crecientes'!H58,'Tabla Fijos'!H63)) -> 7310.092093 | I118: =IF($B118=0,0,IF(B118="","",VLOOKUP($B118,'Tabla Fijos'!$B$12:$R$311,8,0))) -> 0 | J118: =IF($B118="","",IF(Sheet1!$Z$1=4,'Tabla de Pagos Crecientes'!J58,'Tabla Fijos'!K63)) -> 547.8916459 | K118: =IF($B118="","",IF(Sheet1!$Z$1=4,'Tabla de Pagos Crecientes'!K58,'Tabla Fijos'!L63)) -> 233.3333352 | L118: =IF($B118="","",IF(Sheet1!$Z$1=4,'Tabla de Pagos Crecientes'!L58,'Tabla Fijos'!M63)) -> 299 | M118: =IF($B118=0,0,IF(B118="","",VLOOKUP($B118,'Tabla Fijos'!$B$12:$R$311,13,0))) -> 0 | O118: =IF(B118="","",G118+H118+I118+J118+K118+L118-M118-'Tabla Fijos'!P63) -> 10471.12722 | P118: 911071.933 | Q118: 1
B119: 53 | C119: =IF($B119="","",'Fecha Pago'!K56) -> 2027-12-03 | D119: =IF($B$67="","",'Fecha Pago'!L56) -> 30.4 | E119: =IF(B119="","",IF(Sheet1!$Z$1=4,'Tabla de Pagos Crecientes'!E59,$F$62)) -> 0.0948 | F119: =IF($B119="","",IF(Sheet1!$Z$1=4,'Tabla de Pagos Crecientes'!F59,'Tabla Fijos'!F64)) -> 911071.933 | G119: =IF($B119="","",IF(Sheet1!$Z$1=4,'Tabla de Pagos Crecientes'!G59,'Tabla Fijos'!G64)) -> 2097.467729 | H119: =IF($B119="","",IF(Sheet1!$Z$1=4,'Tabla de Pagos Crecientes'!H59,'Tabla Fijos'!H64)) -> 7293.434514 | I119: =IF($B119=0,0,IF(B119="","",VLOOKUP($B119,'Tabla Fijos'!$B$12:$R$311,8,0))) -> 0 | J119: =IF($B119="","",IF(Sheet1!$Z$1=4,'Tabla de Pagos Crecientes'!J59,'Tabla Fijos'!K64)) -> 546.6431598 | K119: =IF($B119="","",IF(Sheet1!$Z$1=4,'Tabla de Pagos Crecientes'!K59,'Tabla Fijos'!L64)) -> 233.3333352 | L119: =IF($B119="","",IF(Sheet1!$Z$1=4,'Tabla de Pagos Crecientes'!L59,'Tabla Fijos'!M64)) -> 299 | M119: =IF($B119=0,0,IF(B119="","",VLOOKUP($B119,'Tabla Fijos'!$B$12:$R$311,13,0))) -> 0 | O119: =IF(B119="","",G119+H119+I119+J119+K119+L119-M119-'Tabla Fijos'!P64) -> 10469.87874 | P119: 908974.4653 | Q119: 1
B120: 54 | C120: =IF($B120="","",'Fecha Pago'!K57) -> 2028-01-03 | D120: =IF($B$67="","",'Fecha Pago'!L57) -> 30.4 | E120: =IF(B120="","",IF(Sheet1!$Z$1=4,'Tabla de Pagos Crecientes'!E60,$F$62)) -> 0.0948 | F120: =IF($B120="","",IF(Sheet1!$Z$1=4,'Tabla de Pagos Crecientes'!F60,'Tabla Fijos'!F65)) -> 908974.4653 | G120: =IF($B120="","",IF(Sheet1!$Z$1=4,'Tabla de Pagos Crecientes'!G60,'Tabla Fijos'!G65)) -> 2114.258657 | H120: =IF($B120="","",IF(Sheet1!$Z$1=4,'Tabla de Pagos Crecientes'!H60,'Tabla Fijos'!H65)) -> 7276.643586 | I120: =IF($B120=0,0,IF(B120="","",VLOOKUP($B120,'Tabla Fijos'!$B$12:$R$311,8,0))) -> 0 | J120: =IF($B120="","",IF(Sheet1!$Z$1=4,'Tabla de Pagos Crecientes'!J60,'Tabla Fijos'!K65)) -> 545.3846792 | K120: =IF($B120="","",IF(Sheet1!$Z$1=4,'Tabla de Pagos Crecientes'!K60,'Tabla Fijos'!L65)) -> 233.3333352 | L120: =IF($B120="","",IF(Sheet1!$Z$1=4,'Tabla de Pagos Crecientes'!L60,'Tabla Fijos'!M65)) -> 299 | M120: =IF($B120=0,0,IF(B120="","",VLOOKUP($B120,'Tabla Fijos'!$B$12:$R$311,13,0))) -> 0 | O120: =IF(B120="","",G120+H120+I120+J120+K120+L120-M120-'Tabla Fijos'!P65) -> 10468.62026 | P120: 906860.2066 | Q120: 1
B121: 55 | C121: =IF($B121="","",'Fecha Pago'!K58) -> 2028-02-03 | D121: =IF($B$67="","",'Fecha Pago'!L58) -> 30.4 | E121: =IF(B121="","",IF(Sheet1!$Z$1=4,'Tabla de Pagos Crecientes'!E61,$F$62)) -> 0.0948 | F121: =IF($B121="","",IF(Sheet1!$Z$1=4,'Tabla de Pagos Crecientes'!F61,'Tabla Fijos'!F66)) -> 906860.2066 | G121: =IF($B121="","",IF(Sheet1!$Z$1=4,'Tabla de Pagos Crecientes'!G61,'Tabla Fijos'!G66)) -> 2131.184002 | H121: =IF($B121="","",IF(Sheet1!$Z$1=4,'Tabla de Pagos Crecientes'!H61,'Tabla Fijos'!H66)) -> 7259.718241 | I121: =IF($B121=0,0,IF(B121="","",VLOOKUP($B121,'Tabla Fijos'!$B$12:$R$311,8,0))) -> 0 | J121: =IF($B121="","",IF(Sheet1!$Z$1=4,'Tabla de Pagos Crecientes'!J61,'Tabla Fijos'!K66)) -> 544.116124 | K121: =IF($B121="","",IF(Sheet1!$Z$1=4,'Tabla de Pagos Crecientes'!K61,'Tabla Fijos'!L66)) -> 233.3333352 | L121: =IF($B121="","",IF(Sheet1!$Z$1=4,'Tabla de Pagos Crecientes'!L61,'Tabla Fijos'!M66)) -> 299 | M121: =IF($B121=0,0,IF(B121="","",VLOOKUP($B121,'Tabla Fijos'!$B$12:$R$311,13,0))) -> 0 | O121: =IF(B121="","",G121+H121+I121+J121+K121+L121-M121-'Tabla Fijos'!P66) -> 10467.3517 | P121: 904729.0226 | Q121: 1
B122: 56 | C122: =IF($B122="","",'Fecha Pago'!K59) -> 2028-03-03 | D122: =IF($B$67="","",'Fecha Pago'!L59) -> 30.4 | E122: =IF(B122="","",IF(Sheet1!$Z$1=4,'Tabla de Pagos Crecientes'!E62,$F$62)) -> 0.0948 | F122: =IF($B122="","",IF(Sheet1!$Z$1=4,'Tabla de Pagos Crecientes'!F62,'Tabla Fijos'!F67)) -> 904729.0226 | G122: =IF($B122="","",IF(Sheet1!$Z$1=4,'Tabla de Pagos Crecientes'!G62,'Tabla Fijos'!G67)) -> 2148.244841 | H122: =IF($B122="","",IF(Sheet1!$Z$1=4,'Tabla de Pagos Crecientes'!H62,'Tabla Fijos'!H67)) -> 7242.657402 | I122: =IF($B122=0,0,IF(B122="","",VLOOKUP($B122,'Tabla Fijos'!$B$12:$R$311,8,0))) -> 0 | J122: =IF($B122="","",IF(Sheet1!$Z$1=4,'Tabla de Pagos Crecientes'!J62,'Tabla Fijos'!K67)) -> 542.8374136 | K122: =IF($B122="","",IF(Sheet1!$Z$1=4,'Tabla de Pagos Crecientes'!K62,'Tabla Fijos'!L67)) -> 233.3333352 | L122: =IF($B122="","",IF(Sheet1!$Z$1=4,'Tabla de Pagos Crecientes'!L62,'Tabla Fijos'!M67)) -> 299 | M122: =IF($B122=0,0,IF(B122="","",VLOOKUP($B122,'Tabla Fijos'!$B$12:$R$311,13,0))) -> 0 | O122: =IF(B122="","",G122+H122+I122+J122+K122+L122-M122-'Tabla Fijos'!P67) -> 10466.07299 | P122: 902580.7778 | Q122: 1
B123: 57 | C123: =IF($B123="","",'Fecha Pago'!K60) -> 2028-04-03 | D123: =IF($B$67="","",'Fecha Pago'!L60) -> 30.4 | E123: =IF(B123="","",IF(Sheet1!$Z$1=4,'Tabla de Pagos Crecientes'!E63,$F$62)) -> 0.0948 | F123: =IF($B123="","",IF(Sheet1!$Z$1=4,'Tabla de Pagos Crecientes'!F63,'Tabla Fijos'!F68)) -> 902580.7778 | G123: =IF($B123="","",IF(Sheet1!$Z$1=4,'Tabla de Pagos Crecientes'!G63,'Tabla Fijos'!G68)) -> 2165.442257 | H123: =IF($B123="","",IF(Sheet1!$Z$1=4,'Tabla de Pagos Crecientes'!H63,'Tabla Fijos'!H68)) -> 7225.459986 | I123: =IF($B123=0,0,IF(B123="","",VLOOKUP($B123,'Tabla Fijos'!$B$12:$R$311,8,0))) -> 0 | J123: =IF($B123="","",IF(Sheet1!$Z$1=4,'Tabla de Pagos Crecientes'!J63,'Tabla Fijos'!K68)) -> 541.5484667 | K123: =IF($B123="","",IF(Sheet1!$Z$1=4,'Tabla de Pagos Crecientes'!K63,'Tabla Fijos'!L68)) -> 233.3333352 | L123: =IF($B123="","",IF(Sheet1!$Z$1=4,'Tabla de Pagos Crecientes'!L63,'Tabla Fijos'!M68)) -> 299 | M123: =IF($B123=0,0,IF(B123="","",VLOOKUP($B123,'Tabla Fijos'!$B$12:$R$311,13,0))) -> 0 | O123: =IF(B123="","",G123+H123+I123+J123+K123+L123-M123-'Tabla Fijos'!P68) -> 10464.78404 | P123: 900415.3355 | Q123: 1
B124: 58 | C124: =IF($B124="","",'Fecha Pago'!K61) -> 2028-05-03 | D124: =IF($B$67="","",'Fecha Pago'!L61) -> 30.4 | E124: =IF(B124="","",IF(Sheet1!$Z$1=4,'Tabla de Pagos Crecientes'!E64,$F$62)) -> 0.0948 | F124: =IF($B124="","",IF(Sheet1!$Z$1=4,'Tabla de Pagos Crecientes'!F64,'Tabla Fijos'!F69)) -> 900415.3355 | G124: =IF($B124="","",IF(Sheet1!$Z$1=4,'Tabla de Pagos Crecientes'!G64,'Tabla Fijos'!G69)) -> 2182.777344 | H124: =IF($B124="","",IF(Sheet1!$Z$1=4,'Tabla de Pagos Crecientes'!H64,'Tabla Fijos'!H69)) -> 7208.124899 | I124: =IF($B124=0,0,IF(B124="","",VLOOKUP($B124,'Tabla Fijos'!$B$12:$R$311,8,0))) -> 0 | J124: =IF($B124="","",IF(Sheet1!$Z$1=4,'Tabla de Pagos Crecientes'!J64,'Tabla Fijos'!K69)) -> 540.2492013 | K124: =IF($B124="","",IF(Sheet1!$Z$1=4,'Tabla de Pagos Crecientes'!K64,'Tabla Fijos'!L69)) -> 233.3333352 | L124: =IF($B124="","",IF(Sheet1!$Z$1=4,'Tabla de Pagos Crecientes'!L64,'Tabla Fijos'!M69)) -> 299 | M124: =IF($B124=0,0,IF(B124="","",VLOOKUP($B124,'Tabla Fijos'!$B$12:$R$311,13,0))) -> 0 | O124: =IF(B124="","",G124+H124+I124+J124+K124+L124-M124-'Tabla Fijos'!P69) -> 10463.48478 | P124: 898232.5582 | Q124: 1
B125: 59 | C125: =IF($B125="","",'Fecha Pago'!K62) -> 2028-06-03 | D125: =IF($B$67="","",'Fecha Pago'!L62) -> 30.4 | E125: =IF(B125="","",IF(Sheet1!$Z$1=4,'Tabla de Pagos Crecientes'!E65,$F$62)) -> 0.0948 | F125: =IF($B125="","",IF(Sheet1!$Z$1=4,'Tabla de Pagos Crecientes'!F65,'Tabla Fijos'!F70)) -> 898232.5582 | G125: =IF($B125="","",IF(Sheet1!$Z$1=4,'Tabla de Pagos Crecientes'!G65,'Tabla Fijos'!G70)) -> 2200.251204 | H125: =IF($B125="","",IF(Sheet1!$Z$1=4,'Tabla de Pagos Crecientes'!H65,'Tabla Fijos'!H70)) -> 7190.651039 | I125: =IF($B125=0,0,IF(B125="","",VLOOKUP($B125,'Tabla Fijos'!$B$12:$R$311,8,0))) -> 0 | J125: =IF($B125="","",IF(Sheet1!$Z$1=4,'Tabla de Pagos Crecientes'!J65,'Tabla Fijos'!K70)) -> 538.9395349 | K125: =IF($B125="","",IF(Sheet1!$Z$1=4,'Tabla de Pagos Crecientes'!K65,'Tabla Fijos'!L70)) -> 233.3333352 | L125: =IF($B125="","",IF(Sheet1!$Z$1=4,'Tabla de Pagos Crecientes'!L65,'Tabla Fijos'!M70)) -> 299 | M125: =IF($B125=0,0,IF(B125="","",VLOOKUP($B125,'Tabla Fijos'!$B$12:$R$311,13,0))) -> 0 | O125: =IF(B125="","",G125+H125+I125+J125+K125+L125-M125-'Tabla Fijos'!P70) -> 10462.17511 | P125: 896032.3069 | Q125: 1
B126: 60 | C126: =IF($B126="","",'Fecha Pago'!K63) -> 2028-07-03 | D126: =IF($B$67="","",'Fecha Pago'!L63) -> 30.4 | E126: =IF(B126="","",IF(Sheet1!$Z$1=4,'Tabla de Pagos Crecientes'!E66,$F$62)) -> 0.0948 | F126: =IF($B126="","",IF(Sheet1!$Z$1=4,'Tabla de Pagos Crecientes'!F66,'Tabla Fijos'!F71)) -> 896032.3069 | G126: =IF($B126="","",IF(Sheet1!$Z$1=4,'Tabla de Pagos Crecientes'!G66,'Tabla Fijos'!G71)) -> 2217.864948 | H126: =IF($B126="","",IF(Sheet1!$Z$1=4,'Tabla de Pagos Crecientes'!H66,'Tabla Fijos'!H71)) -> 7173.037295 | I126: =IF($B126=0,0,IF(B126="","",VLOOKUP($B126,'Tabla Fijos'!$B$12:$R$311,8,0))) -> 0 | J126: =IF($B126="","",IF(Sheet1!$Z$1=4,'Tabla de Pagos Crecientes'!J66,'Tabla Fijos'!K71)) -> 537.6193842 | K126: =IF($B126="","",IF(Sheet1!$Z$1=4,'Tabla de Pagos Crecientes'!K66,'Tabla Fijos'!L71)) -> 233.3333352 | L126: =IF($B126="","",IF(Sheet1!$Z$1=4,'Tabla de Pagos Crecientes'!L66,'Tabla Fijos'!M71)) -> 299 | M126: =IF($B126=0,0,IF(B126="","",VLOOKUP($B126,'Tabla Fijos'!$B$12:$R$311,13,0))) -> 0 | O126: =IF(B126="","",G126+H126+I126+J126+K126+L126-M126-'Tabla Fijos'!P71) -> 10460.85496 | P126: 893814.442 | Q126: 1
B127: 61 | C127: =IF($B127="","",'Fecha Pago'!K64) -> 2028-08-03 | D127: =IF($B$67="","",'Fecha Pago'!L64) -> 30.4 | E127: =IF(B127="","",IF(Sheet1!$Z$1=4,'Tabla de Pagos Crecientes'!E67,$F$62)) -> 0.0948 | F127: =IF($B127="","",IF(Sheet1!$Z$1=4,'Tabla de Pagos Crecientes'!F67,'Tabla Fijos'!F72)) -> 893814.442 | G127: =IF($B127="","",IF(Sheet1!$Z$1=4,'Tabla de Pagos Crecientes'!G67,'Tabla Fijos'!G72)) -> 2235.619697 | H127: =IF($B127="","",IF(Sheet1!$Z$1=4,'Tabla de Pagos Crecientes'!H67,'Tabla Fijos'!H72)) -> 7155.282546 | I127: =IF($B127=0,0,IF(B127="","",VLOOKUP($B127,'Tabla Fijos'!$B$12:$R$311,8,0))) -> 0 | J127: =IF($B127="","",IF(Sheet1!$Z$1=4,'Tabla de Pagos Crecientes'!J67,'Tabla Fijos'!K72)) -> 536.2886652 | K127: =IF($B127="","",IF(Sheet1!$Z$1=4,'Tabla de Pagos Crecientes'!K67,'Tabla Fijos'!L72)) -> 233.3333352 | L127: =IF($B127="","",IF(Sheet1!$Z$1=4,'Tabla de Pagos Crecientes'!L67,'Tabla Fijos'!M72)) -> 299 | M127: =IF($B127=0,0,IF(B127="","",VLOOKUP($B127,'Tabla Fijos'!$B$12:$R$311,13,0))) -> 0 | O127: =IF(B127="","",G127+H127+I127+J127+K127+L127-M127-'Tabla Fijos'!P72) -> 10459.52424 | P127: 891578.8223 | Q127: 1
B128: 62 | C128: =IF($B128="","",'Fecha Pago'!K65) -> 2028-09-03 | D128: =IF($B$67="","",'Fecha Pago'!L65) -> 30.4 | E128: =IF(B128="","",IF(Sheet1!$Z$1=4,'Tabla de Pagos Crecientes'!E68,$F$62)) -> 0.0948 | F128: =IF($B128="","",IF(Sheet1!$Z$1=4,'Tabla de Pagos Crecientes'!F68,'Tabla Fijos'!F73)) -> 891578.8223 | G128: =IF($B128="","",IF(Sheet1!$Z$1=4,'Tabla de Pagos Crecientes'!G68,'Tabla Fijos'!G73)) -> 2253.516578 | H128: =IF($B128="","",IF(Sheet1!$Z$1=4,'Tabla de Pagos Crecientes'!H68,'Tabla Fijos'!H73)) -> 7137.385665 | I128: =IF($B128=0,0,IF(B128="","",VLOOKUP($B128,'Tabla Fijos'!$B$12:$R$311,8,0))) -> 0 | J128: =IF($B128="","",IF(Sheet1!$Z$1=4,'Tabla de Pagos Crecientes'!J68,'Tabla Fijos'!K73)) -> 534.9472934 | K128: =IF($B128="","",IF(Sheet1!$Z$1=4,'Tabla de Pagos Crecientes'!K68,'Tabla Fijos'!L73)) -> 233.3333352 | L128: =IF($B128="","",IF(Sheet1!$Z$1=4,'Tabla de Pagos Crecientes'!L68,'Tabla Fijos'!M73)) -> 299 | M128: =IF($B128=0,0,IF(B128="","",VLOOKUP($B128,'Tabla Fijos'!$B$12:$R$311,13,0))) -> 0 | O128: =IF(B128="","",G128+H128+I128+J128+K128+L128-M128-'Tabla Fijos'!P73) -> 10458.18287 | P128: 889325.3057 | Q128: 1
B129: 63 | C129: =IF($B129="","",'Fecha Pago'!K66) -> 2028-10-03 | D129: =IF($B$67="","",'Fecha Pago'!L66) -> 30.4 | E129: =IF(B129="","",IF(Sheet1!$Z$1=4,'Tabla de Pagos Crecientes'!E69,$F$62)) -> 0.0948 | F129: =IF($B129="","",IF(Sheet1!$Z$1=4,'Tabla de Pagos Crecientes'!F69,'Tabla Fijos'!F74)) -> 889325.3057 | G129: =IF($B129="","",IF(Sheet1!$Z$1=4,'Tabla de Pagos Crecientes'!G69,'Tabla Fijos'!G74)) -> 2271.556729 | H129: =IF($B129="","",IF(Sheet1!$Z$1=4,'Tabla de Pagos Crecientes'!H69,'Tabla Fijos'!H74)) -> 7119.345514 | I129: =IF($B129=0,0,IF(B129="","",VLOOKUP($B129,'Tabla Fijos'!$B$12:$R$311,8,0))) -> 0 | J129: =IF($B129="","",IF(Sheet1!$Z$1=4,'Tabla de Pagos Crecientes'!J69,'Tabla Fijos'!K74)) -> 533.5951834 | K129: =IF($B129="","",IF(Sheet1!$Z$1=4,'Tabla de Pagos Crecientes'!K69,'Tabla Fijos'!L74)) -> 233.3333352 | L129: =IF($B129="","",IF(Sheet1!$Z$1=4,'Tabla de Pagos Crecientes'!L69,'Tabla Fijos'!M74)) -> 299 | M129: =IF($B129=0,0,IF(B129="","",VLOOKUP($B129,'Tabla Fijos'!$B$12:$R$311,13,0))) -> 0 | O129: =IF(B129="","",G129+H129+I129+J129+K129+L129-M129-'Tabla Fijos'!P74) -> 10456.83076 | P129: 887053.749 | Q129: 1
B130: 64 | C130: =IF($B130="","",'Fecha Pago'!K67) -> 2028-11-03 | D130: =IF($B$67="","",'Fecha Pago'!L67) -> 30.4 | E130: =IF(B130="","",IF(Sheet1!$Z$1=4,'Tabla de Pagos Crecientes'!E70,$F$62)) -> 0.0948 | F130: =IF($B130="","",IF(Sheet1!$Z$1=4,'Tabla de Pagos Crecientes'!F70,'Tabla Fijos'!F75)) -> 887053.749 | G130: =IF($B130="","",IF(Sheet1!$Z$1=4,'Tabla de Pagos Crecientes'!G70,'Tabla Fijos'!G75)) -> 2289.741298 | H130: =IF($B130="","",IF(Sheet1!$Z$1=4,'Tabla de Pagos Crecientes'!H70,'Tabla Fijos'!H75)) -> 7101.160945 | I130: =IF($B130=0,0,IF(B130="","",VLOOKUP($B130,'Tabla Fijos'!$B$12:$R$311,8,0))) -> 0 | J130: =IF($B130="","",IF(Sheet1!$Z$1=4,'Tabla de Pagos Crecientes'!J70,'Tabla Fijos'!K75)) -> 532.2322494 | K130: =IF($B130="","",IF(Sheet1!$Z$1=4,'Tabla de Pagos Crecientes'!K70,'Tabla Fijos'!L75)) -> 233.3333352 | L130: =IF($B130="","",IF(Sheet1!$Z$1=4,'Tabla de Pagos Crecientes'!L70,'Tabla Fijos'!M75)) -> 299 | M130: =IF($B130=0,0,IF(B130="","",VLOOKUP($B130,'Tabla Fijos'!$B$12:$R$311,13,0))) -> 0 | O130: =IF(B130="","",G130+H130+I130+J130+K130+L130-M130-'Tabla Fijos'!P75) -> 10455.46783 | P130: 884764.0077 | Q130: 1
B131: 65 | C131: =IF($B131="","",'Fecha Pago'!K68) -> 2028-12-03 | D131: =IF($B$67="","",'Fecha Pago'!L68) -> 30.4 | E131: =IF(B131="","",IF(Sheet1!$Z$1=4,'Tabla de Pagos Crecientes'!E71,$F$62)) -> 0.0948 | F131: =IF($B131="","",IF(Sheet1!$Z$1=4,'Tabla de Pagos Crecientes'!F71,'Tabla Fijos'!F76)) -> 884764.0077 | G131: =IF($B131="","",IF(Sheet1!$Z$1=4,'Tabla de Pagos Crecientes'!G71,'Tabla Fijos'!G76)) -> 2308.07144 | H131: =IF($B131="","",IF(Sheet1!$Z$1=4,'Tabla de Pagos Crecientes'!H71,'Tabla Fijos'!H76)) -> 7082.830803 | I131: =IF($B131=0,0,IF(B131="","",VLOOKUP($B131,'Tabla Fijos'!$B$12:$R$311,8,0))) -> 0 | J131: =IF($B131="","",IF(Sheet1!$Z$1=4,'Tabla de Pagos Crecientes'!J71,'Tabla Fijos'!K76)) -> 530.8584046 | K131: =IF($B131="","",IF(Sheet1!$Z$1=4,'Tabla de Pagos Crecientes'!K71,'Tabla Fijos'!L76)) -> 233.3333352 | L131: =IF($B131="","",IF(Sheet1!$Z$1=4,'Tabla de Pagos Crecientes'!L71,'Tabla Fijos'!M76)) -> 299 | M131: =IF($B131=0,0,IF(B131="","",VLOOKUP($B131,'Tabla Fijos'!$B$12:$R$311,13,0))) -> 0 | O131: =IF(B131="","",G131+H131+I131+J131+K131+L131-M131-'Tabla Fijos'!P76) -> 10454.09398 | P131: =IF(B131="","",F131-G131) -> 882455.9363 | Q131: 1
B132: 66 | C132: =IF($B132="","",'Fecha Pago'!K69) -> 2029-01-03 | D132: =IF($B$67="","",'Fecha Pago'!L69) -> 30.4 | E132: =IF(B132="","",IF(Sheet1!$Z$1=4,'Tabla de Pagos Crecientes'!E72,$F$62)) -> 0.0948 | F132: =IF($B132="","",IF(Sheet1!$Z$1=4,'Tabla de Pagos Crecientes'!F72,'Tabla Fijos'!F77)) -> 882455.9363 | G132: =IF($B132="","",IF(Sheet1!$Z$1=4,'Tabla de Pagos Crecientes'!G72,'Tabla Fijos'!G77)) -> 2326.548321 | H132: =IF($B132="","",IF(Sheet1!$Z$1=4,'Tabla de Pagos Crecientes'!H72,'Tabla Fijos'!H77)) -> 7064.353922 | I132: =IF($B132=0,0,IF(B132="","",VLOOKUP($B132,'Tabla Fijos'!$B$12:$R$311,8,0))) -> 0 | J132: =IF($B132="","",IF(Sheet1!$Z$1=4,'Tabla de Pagos Crecientes'!J72,'Tabla Fijos'!K77)) -> 529.4735618 | K132: =IF($B132="","",IF(Sheet1!$Z$1=4,'Tabla de Pagos Crecientes'!K72,'Tabla Fijos'!L77)) -> 233.3333352 | L132: =IF($B132="","",IF(Sheet1!$Z$1=4,'Tabla de Pagos Crecientes'!L72,'Tabla Fijos'!M77)) -> 299 | M132: =IF($B132=0,0,IF(B132="","",VLOOKUP($B132,'Tabla Fijos'!$B$12:$R$311,13,0))) -> 0 | O132: =IF(B132="","",G132+H132+I132+J132+K132+L132-M132-'Tabla Fijos'!P77) -> 10452.70914 | P132: 880129.3879 | Q132: =IF(OR($B132="",$F132<=0),0,1) -> 1
B133: =IF(B132="","",IF(B132=$H$49,"",B132+1)) -> 67 | C133: =IF($B133="","",'Fecha Pago'!K70) -> 2029-02-03 | D133: =IF($B$67="","",'Fecha Pago'!L70) -> 30.4 | E133: =IF(B133="","",IF(Sheet1!$Z$1=4,'Tabla de Pagos Crecientes'!E73,$F$62)) -> 0.0948 | F133: =IF($B133="","",IF(Sheet1!$Z$1=4,'Tabla de Pagos Crecientes'!F73,'Tabla Fijos'!F78)) -> 880129.3879 | G133: =IF($B133="","",IF(Sheet1!$Z$1=4,'Tabla de Pagos Crecientes'!G73,'Tabla Fijos'!G78)) -> 2345.173116 | H133: =IF($B133="","",IF(Sheet1!$Z$1=4,'Tabla de Pagos Crecientes'!H73,'Tabla Fijos'!H78)) -> 7045.729127 | I133: =IF($B133=0,0,IF(B133="","",VLOOKUP($B133,'Tabla Fijos'!$B$12:$R$311,8,0))) -> 0 | J133: =IF($B133="","",IF(Sheet1!$Z$1=4,'Tabla de Pagos Crecientes'!J73,'Tabla Fijos'!K78)) -> 528.0776328 | K133: =IF($B133="","",IF(Sheet1!$Z$1=4,'Tabla de Pagos Crecientes'!K73,'Tabla Fijos'!L78)) -> 233.3333352 | L133: =IF($B133="","",IF(Sheet1!$Z$1=4,'Tabla de Pagos Crecientes'!L73,'Tabla Fijos'!M78)) -> 299 | M133: =IF($B133=0,0,IF(B133="","",VLOOKUP($B133,'Tabla Fijos'!$B$12:$R$311,13,0))) -> 0 | O133: =IF(B133="","",G133+H133+I133+J133+K133+L133-M133-'Tabla Fijos'!P78) -> 10451.31321 | P133: 877784.2148 | Q133: 1
B134: 68 | C134: =IF($B134="","",'Fecha Pago'!K71) -> 2029-03-03 | D134: =IF($B$67="","",'Fecha Pago'!L71) -> 30.4 | E134: =IF(B134="","",IF(Sheet1!$Z$1=4,'Tabla de Pagos Crecientes'!E74,$F$62)) -> 0.0948 | F134: =IF($B134="","",IF(Sheet1!$Z$1=4,'Tabla de Pagos Crecientes'!F74,'Tabla Fijos'!F79)) -> 877784.2148 | G134: =IF($B134="","",IF(Sheet1!$Z$1=4,'Tabla de Pagos Crecientes'!G74,'Tabla Fijos'!G79)) -> 2363.947009 | H134: =IF($B134="","",IF(Sheet1!$Z$1=4,'Tabla de Pagos Crecientes'!H74,'Tabla Fijos'!H79)) -> 7026.955234 | I134: =IF($B134=0,0,IF(B134="","",VLOOKUP($B134,'Tabla Fijos'!$B$12:$R$311,8,0))) -> 0 | J134: =IF($B134="","",IF(Sheet1!$Z$1=4,'Tabla de Pagos Crecientes'!J74,'Tabla Fijos'!K79)) -> 526.6705289 | K134: =IF($B134="","",IF(Sheet1!$Z$1=4,'Tabla de Pagos Crecientes'!K74,'Tabla Fijos'!L79)) -> 233.3333352 | L134: =IF($B134="","",IF(Sheet1!$Z$1=4,'Tabla de Pagos Crecientes'!L74,'Tabla Fijos'!M79)) -> 299 | M134: =IF($B134=0,0,IF(B134="","",VLOOKUP($B134,'Tabla Fijos'!$B$12:$R$311,13,0))) -> 0 | O134: =IF(B134="","",G134+H134+I134+J134+K134+L134-M134-'Tabla Fijos'!P79) -> 10449.90611 | P134: 875420.2678 | Q134: 1
B135: 69 | C135: =IF($B135="","",'Fecha Pago'!K72) -> 2029-04-03 | D135: =IF($B$67="","",'Fecha Pago'!L72) -> 30.4 | E135: =IF(B135="","",IF(Sheet1!$Z$1=4,'Tabla de Pagos Crecientes'!E75,$F$62)) -> 0.0948 | F135: =IF($B135="","",IF(Sheet1!$Z$1=4,'Tabla de Pagos Crecientes'!F75,'Tabla Fijos'!F80)) -> 875420.2678 | G135: =IF($B135="","",IF(Sheet1!$Z$1=4,'Tabla de Pagos Crecientes'!G75,'Tabla Fijos'!G80)) -> 2382.871192 | H135: =IF($B135="","",IF(Sheet1!$Z$1=4,'Tabla de Pagos Crecientes'!H75,'Tabla Fijos'!H80)) -> 7008.031051 | I135: =IF($B135=0,0,IF(B135="","",VLOOKUP($B135,'Tabla Fijos'!$B$12:$R$311,8,0))) -> 0 | J135: =IF($B135="","",IF(Sheet1!$Z$1=4,'Tabla de Pagos Crecientes'!J75,'Tabla Fijos'!K80)) -> 525.2521607 | K135: =IF($B135="","",IF(Sheet1!$Z$1=4,'Tabla de Pagos Crecientes'!K75,'Tabla Fijos'!L80)) -> 233.3333352 | L135: =IF($B135="","",IF(Sheet1!$Z$1=4,'Tabla de Pagos Crecientes'!L75,'Tabla Fijos'!M80)) -> 299 | M135: =IF($B135=0,0,IF(B135="","",VLOOKUP($B135,'Tabla Fijos'!$B$12:$R$311,13,0))) -> 0 | O135: =IF(B135="","",G135+H135+I135+J135+K135+L135-M135-'Tabla Fijos'!P80) -> 10448.48774 | P135: 873037.3966 | Q135: 1
B136: 70 | C136: =IF($B136="","",'Fecha Pago'!K73) -> 2029-05-03 | D136: =IF($B$67="","",'Fecha Pago'!L73) -> 30.4 | E136: =IF(B136="","",IF(Sheet1!$Z$1=4,'Tabla de Pagos Crecientes'!E76,$F$62)) -> 0.0948 | F136: =IF($B136="","",IF(Sheet1!$Z$1=4,'Tabla de Pagos Crecientes'!F76,'Tabla Fijos'!F81)) -> 873037.3966 | G136: =IF($B136="","",IF(Sheet1!$Z$1=4,'Tabla de Pagos Crecientes'!G76,'Tabla Fijos'!G81)) -> 2401.946871 | H136: =IF($B136="","",IF(Sheet1!$Z$1=4,'Tabla de Pagos Crecientes'!H76,'Tabla Fijos'!H81)) -> 6988.955372 | I136: =IF($B136=0,0,IF(B136="","",VLOOKUP($B136,'Tabla Fijos'!$B$12:$R$311,8,0))) -> 0 | J136: =IF($B136="","",IF(Sheet1!$Z$1=4,'Tabla de Pagos Crecientes'!J76,'Tabla Fijos'!K81)) -> 523.822438 | K136: =IF($B136="","",IF(Sheet1!$Z$1=4,'Tabla de Pagos Crecientes'!K76,'Tabla Fijos'!L81)) -> 233.3333352 | L136: =IF($B136="","",IF(Sheet1!$Z$1=4,'Tabla de Pagos Crecientes'!L76,'Tabla Fijos'!M81)) -> 299 | M136: =IF($B136=0,0,IF(B136="","",VLOOKUP($B136,'Tabla Fijos'!$B$12:$R$311,13,0))) -> 0 | O136: =IF(B136="","",G136+H136+I136+J136+K136+L136-M136-'Tabla Fijos'!P81) -> 10447.05802 | P136: 870635.4497 | Q136: 1
B137: 71 | C137: =IF($B137="","",'Fecha Pago'!K74) -> 2029-06-03 | D137: =IF($B$67="","",'Fecha Pago'!L74) -> 30.4 | E137: =IF(B137="","",IF(Sheet1!$Z$1=4,'Tabla de Pagos Crecientes'!E77,$F$62)) -> 0.0948 | F137: =IF($B137="","",IF(Sheet1!$Z$1=4,'Tabla de Pagos Crecientes'!F77,'Tabla Fijos'!F82)) -> 870635.4497 | G137: =IF($B137="","",IF(Sheet1!$Z$1=4,'Tabla de Pagos Crecientes'!G77,'Tabla Fijos'!G82)) -> 2421.175256 | H137: =IF($B137="","",IF(Sheet1!$Z$1=4,'Tabla de Pagos Crecientes'!H77,'Tabla Fijos'!H82)) -> 6969.726987 | I137: =IF($B137=0,0,IF(B137="","",VLOOKUP($B137,'Tabla Fijos'!$B$12:$R$311,8,0))) -> 0 | J137: =IF($B137="","",IF(Sheet1!$Z$1=4,'Tabla de Pagos Crecientes'!J77,'Tabla Fijos'!K82)) -> 522.3812698 | K137: =IF($B137="","",IF(Sheet1!$Z$1=4,'Tabla de Pagos Crecientes'!K77,'Tabla Fijos'!L82)) -> 233.3333352 | L137: =IF($B137="","",IF(Sheet1!$Z$1=4,'Tabla de Pagos Crecientes'!L77,'Tabla Fijos'!M82)) -> 299 | M137: =IF($B137=0,0,IF(B137="","",VLOOKUP($B137,'Tabla Fijos'!$B$12:$R$311,13,0))) -> 0 | O137: =IF(B137="","",G137+H137+I137+J137+K137+L137-M137-'Tabla Fijos'!P82) -> 10445.61685 | P137: 868214.2745 | Q137: 1
B138: 72 | C138: =IF($B138="","",'Fecha Pago'!K75) -> 2029-07-03 | D138: =IF($B$67="","",'Fecha Pago'!L75) -> 30.4 | E138: =IF(B138="","",IF(Sheet1!$Z$1=4,'Tabla de Pagos Crecientes'!E78,$F$62)) -> 0.0948 | F138: =IF($B138="","",IF(Sheet1!$Z$1=4,'Tabla de Pagos Crecientes'!F78,'Tabla Fijos'!F83)) -> 868214.2745 | G138: =IF($B138="","",IF(Sheet1!$Z$1=4,'Tabla de Pagos Crecientes'!G78,'Tabla Fijos'!G83)) -> 2440.557571 | H138: =IF($B138="","",IF(Sheet1!$Z$1=4,'Tabla de Pagos Crecientes'!H78,'Tabla Fijos'!H83)) -> 6950.344672 | I138: =IF($B138=0,0,IF(B138="","",VLOOKUP($B138,'Tabla Fijos'!$B$12:$R$311,8,0))) -> 0 | J138: =IF($B138="","",IF(Sheet1!$Z$1=4,'Tabla de Pagos Crecientes'!J78,'Tabla Fijos'!K83)) -> 520.9285647 | K138: =IF($B138="","",IF(Sheet1!$Z$1=4,'Tabla de Pagos Crecientes'!K78,'Tabla Fijos'!L83)) -> 233.3333352 | L138: =IF($B138="","",IF(Sheet1!$Z$1=4,'Tabla de Pagos Crecientes'!L78,'Tabla Fijos'!M83)) -> 299 | M138: =IF($B138=0,0,IF(B138="","",VLOOKUP($B138,'Tabla Fijos'!$B$12:$R$311,13,0))) -> 0 | O138: =IF(B138="","",G138+H138+I138+J138+K138+L138-M138-'Tabla Fijos'!P83) -> 10444.16414 | P138: 865773.7169 | Q138: 1
B139: 73 | C139: =IF($B139="","",'Fecha Pago'!K76) -> 2029-08-03 | D139: =IF($B$67="","",'Fecha Pago'!L76) -> 30.4 | E139: =IF(B139="","",IF(Sheet1!$Z$1=4,'Tabla de Pagos Crecientes'!E79,$F$62)) -> 0.0948 | F139: =IF($B139="","",IF(Sheet1!$Z$1=4,'Tabla de Pagos Crecientes'!F79,'Tabla Fijos'!F84)) -> 865773.7169 | G139: =IF($B139="","",IF(Sheet1!$Z$1=4,'Tabla de Pagos Crecientes'!G79,'Tabla Fijos'!G84)) -> 2460.095048 | H139: =IF($B139="","",IF(Sheet1!$Z$1=4,'Tabla de Pagos Crecientes'!H79,'Tabla Fijos'!H84)) -> 6930.807195 | I139: =IF($B139=0,0,IF(B139="","",VLOOKUP($B139,'Tabla Fijos'!$B$12:$R$311,8,0))) -> 0 | J139: =IF($B139="","",IF(Sheet1!$Z$1=4,'Tabla de Pagos Crecientes'!J79,'Tabla Fijos'!K84)) -> 519.4642302 | K139: =IF($B139="","",IF(Sheet1!$Z$1=4,'Tabla de Pagos Crecientes'!K79,'Tabla Fijos'!L84)) -> 233.3333352 | L139: =IF($B139="","",IF(Sheet1!$Z$1=4,'Tabla de Pagos Crecientes'!L79,'Tabla Fijos'!M84)) -> 299 | M139: =IF($B139=0,0,IF(B139="","",VLOOKUP($B139,'Tabla Fijos'!$B$12:$R$311,13,0))) -> 0 | O139: =IF(B139="","",G139+H139+I139+J139+K139+L139-M139-'Tabla Fijos'!P84) -> 10442.69981 | P139: 863313.6219 | Q139: 1
B140: 74 | C140: =IF($B140="","",'Fecha Pago'!K77) -> 2029-09-03 | D140: =IF($B$67="","",'Fecha Pago'!L77) -> 30.4 | E140: =IF(B140="","",IF(Sheet1!$Z$1=4,'Tabla de Pagos Crecientes'!E80,$F$62)) -> 0.0948 | F140: =IF($B140="","",IF(Sheet1!$Z$1=4,'Tabla de Pagos Crecientes'!F80,'Tabla Fijos'!F85)) -> 863313.6219 | G140: =IF($B140="","",IF(Sheet1!$Z$1=4,'Tabla de Pagos Crecientes'!G80,'Tabla Fijos'!G85)) -> 2479.788929 | H140: =IF($B140="","",IF(Sheet1!$Z$1=4,'Tabla de Pagos Crecientes'!H80,'Tabla Fijos'!H85)) -> 6911.113314 | I140: =IF($B140=0,0,IF(B140="","",VLOOKUP($B140,'Tabla Fijos'!$B$12:$R$311,8,0))) -> 0 | J140: =IF($B140="","",IF(Sheet1!$Z$1=4,'Tabla de Pagos Crecientes'!J80,'Tabla Fijos'!K85)) -> 517.9881731 | K140: =IF($B140="","",IF(Sheet1!$Z$1=4,'Tabla de Pagos Crecientes'!K80,'Tabla Fijos'!L85)) -> 233.3333352 | L140: =IF($B140="","",IF(Sheet1!$Z$1=4,'Tabla de Pagos Crecientes'!L80,'Tabla Fijos'!M85)) -> 299 | M140: =IF($B140=0,0,IF(B140="","",VLOOKUP($B140,'Tabla Fijos'!$B$12:$R$311,13,0))) -> 0 | O140: =IF(B140="","",G140+H140+I140+J140+K140+L140-M140-'Tabla Fijos'!P85) -> 10441.22375 | P140: 860833.8329 | Q140: 1
B141: 75 | C141: =IF($B141="","",'Fecha Pago'!K78) -> 2029-10-03 | D141: =IF($B$67="","",'Fecha Pago'!L78) -> 30.4 | E141: =IF(B141="","",IF(Sheet1!$Z$1=4,'Tabla de Pagos Crecientes'!E81,$F$62)) -> 0.0948 | F141: =IF($B141="","",IF(Sheet1!$Z$1=4,'Tabla de Pagos Crecientes'!F81,'Tabla Fijos'!F86)) -> 860833.8329 | G141: =IF($B141="","",IF(Sheet1!$Z$1=4,'Tabla de Pagos Crecientes'!G81,'Tabla Fijos'!G86)) -> 2499.640466 | H141: =IF($B141="","",IF(Sheet1!$Z$1=4,'Tabla de Pagos Crecientes'!H81,'Tabla Fijos'!H86)) -> 6891.261777 | I141: =IF($B141=0,0,IF(B141="","",VLOOKUP($B141,'Tabla Fijos'!$B$12:$R$311,8,0))) -> 0 | J141: =IF($B141="","",IF(Sheet1!$Z$1=4,'Tabla de Pagos Crecientes'!J81,'Tabla Fijos'!K86)) -> 516.5002998 | K141: =IF($B141="","",IF(Sheet1!$Z$1=4,'Tabla de Pagos Crecientes'!K81,'Tabla Fijos'!L86)) -> 233.3333352 | L141: =IF($B141="","",IF(Sheet1!$Z$1=4,'Tabla de Pagos Crecientes'!L81,'Tabla Fijos'!M86)) -> 299 | M141: =IF($B141=0,0,IF(B141="","",VLOOKUP($B141,'Tabla Fijos'!$B$12:$R$311,13,0))) -> 0 | O141: =IF(B141="","",G141+H141+I141+J141+K141+L141-M141-'Tabla Fijos'!P86) -> 10439.73588 | P141: 858334.1925 | Q141: 1
B142: 76 | C142: =IF($B142="","",'Fecha Pago'!K79) -> 2029-11-03 | D142: =IF($B$67="","",'Fecha Pago'!L79) -> 30.4 | E142: =IF(B142="","",IF(Sheet1!$Z$1=4,'Tabla de Pagos Crecientes'!E82,$F$62)) -> 0.0948 | F142: =IF($B142="","",IF(Sheet1!$Z$1=4,'Tabla de Pagos Crecientes'!F82,'Tabla Fijos'!F87)) -> 858334.1925 | G142: =IF($B142="","",IF(Sheet1!$Z$1=4,'Tabla de Pagos Crecientes'!G82,'Tabla Fijos'!G87)) -> 2519.650921 | H142: =IF($B142="","",IF(Sheet1!$Z$1=4,'Tabla de Pagos Crecientes'!H82,'Tabla Fijos'!H87)) -> 6871.251322 | I142: =IF($B142=0,0,IF(B142="","",VLOOKUP($B142,'Tabla Fijos'!$B$12:$R$311,8,0))) -> 0 | J142: =IF($B142="","",IF(Sheet1!$Z$1=4,'Tabla de Pagos Crecientes'!J82,'Tabla Fijos'!K87)) -> 515.0005155 | K142: =IF($B142="","",IF(Sheet1!$Z$1=4,'Tabla de Pagos Crecientes'!K82,'Tabla Fijos'!L87)) -> 233.3333352 | L142: =IF($B142="","",IF(Sheet1!$Z$1=4,'Tabla de Pagos Crecientes'!L82,'Tabla Fijos'!M87)) -> 299 | M142: =IF($B142=0,0,IF(B142="","",VLOOKUP($B142,'Tabla Fijos'!$B$12:$R$311,13,0))) -> 0 | O142: =IF(B142="","",G142+H142+I142+J142+K142+L142-M142-'Tabla Fijos'!P87) -> 10438.23609 | P142: 855814.5416 | Q142: 1
B143: 77 | C143: =IF($B143="","",'Fecha Pago'!K80) -> 2029-12-03 | D143: =IF($B$67="","",'Fecha Pago'!L80) -> 30.4 | E143: =IF(B143="","",IF(Sheet1!$Z$1=4,'Tabla de Pagos Crecientes'!E83,$F$62)) -> 0.0948 | F143: =IF($B143="","",IF(Sheet1!$Z$1=4,'Tabla de Pagos Crecientes'!F83,'Tabla Fijos'!F88)) -> 855814.5416 | G143: =IF($B143="","",IF(Sheet1!$Z$1=4,'Tabla de Pagos Crecientes'!G83,'Tabla Fijos'!G88)) -> 2539.821566 | H143: =IF($B143="","",IF(Sheet1!$Z$1=4,'Tabla de Pagos Crecientes'!H83,'Tabla Fijos'!H88)) -> 6851.080677 | I143: =IF($B143=0,0,IF(B143="","",VLOOKUP($B143,'Tabla Fijos'!$B$12:$R$311,8,0))) -> 0 | J143: =IF($B143="","",IF(Sheet1!$Z$1=4,'Tabla de Pagos Crecientes'!J83,'Tabla Fijos'!K88)) -> 513.4887249 | K143: =IF($B143="","",IF(Sheet1!$Z$1=4,'Tabla de Pagos Crecientes'!K83,'Tabla Fijos'!L88)) -> 233.3333352 | L143: =IF($B143="","",IF(Sheet1!$Z$1=4,'Tabla de Pagos Crecientes'!L83,'Tabla Fijos'!M88)) -> 299 | M143: =IF($B143=0,0,IF(B143="","",VLOOKUP($B143,'Tabla Fijos'!$B$12:$R$311,13,0))) -> 0 | O143: =IF(B143="","",G143+H143+I143+J143+K143+L143-M143-'Tabla Fijos'!P88) -> 10436.7243 | P143: 853274.72 | Q143: 1
B144: 78 | C144: =IF($B144="","",'Fecha Pago'!K81) -> 2030-01-03 | D144: =IF($B$67="","",'Fecha Pago'!L81) -> 30.4 | E144: =IF(B144="","",IF(Sheet1!$Z$1=4,'Tabla de Pagos Crecientes'!E84,$F$62)) -> 0.0948 | F144: =IF($B144="","",IF(Sheet1!$Z$1=4,'Tabla de Pagos Crecientes'!F84,'Tabla Fijos'!F89)) -> 853274.72 | G144: =IF($B144="","",IF(Sheet1!$Z$1=4,'Tabla de Pagos Crecientes'!G84,'Tabla Fijos'!G89)) -> 2560.153685 | H144: =IF($B144="","",IF(Sheet1!$Z$1=4,'Tabla de Pagos Crecientes'!H84,'Tabla Fijos'!H89)) -> 6830.748558 | I144: =IF($B144=0,0,IF(B144="","",VLOOKUP($B144,'Tabla Fijos'!$B$12:$R$311,8,0))) -> 0 | J144: =IF($B144="","",IF(Sheet1!$Z$1=4,'Tabla de Pagos Crecientes'!J84,'Tabla Fijos'!K89)) -> 511.964832 | K144: =IF($B144="","",IF(Sheet1!$Z$1=4,'Tabla de Pagos Crecientes'!K84,'Tabla Fijos'!L89)) -> 233.3333352 | L144: =IF($B144="","",IF(Sheet1!$Z$1=4,'Tabla de Pagos Crecientes'!L84,'Tabla Fijos'!M89)) -> 299 | M144: =IF($B144=0,0,IF(B144="","",VLOOKUP($B144,'Tabla Fijos'!$B$12:$R$311,13,0))) -> 0 | O144: =IF(B144="","",G144+H144+I144+J144+K144+L144-M144-'Tabla Fijos'!P89) -> 10435.20041 | P144: 850714.5663 | Q144: 1
B145: 79 | C145: =IF($B145="","",'Fecha Pago'!K82) -> 2030-02-03 | D145: =IF($B$67="","",'Fecha Pago'!L82) -> 30.4 | E145: =IF(B145="","",IF(Sheet1!$Z$1=4,'Tabla de Pagos Crecientes'!E85,$F$62)) -> 0.0948 | F145: =IF($B145="","",IF(Sheet1!$Z$1=4,'Tabla de Pagos Crecientes'!F85,'Tabla Fijos'!F90)) -> 850714.5663 | G145: =IF($B145="","",IF(Sheet1!$Z$1=4,'Tabla de Pagos Crecientes'!G85,'Tabla Fijos'!G90)) -> 2580.648568 | H145: =IF($B145="","",IF(Sheet1!$Z$1=4,'Tabla de Pagos Crecientes'!H85,'Tabla Fijos'!H90)) -> 6810.253675 | I145: =IF($B145=0,0,IF(B145="","",VLOOKUP($B145,'Tabla Fijos'!$B$12:$R$311,8,0))) -> 0 | J145: =IF($B145="","",IF(Sheet1!$Z$1=4,'Tabla de Pagos Crecientes'!J85,'Tabla Fijos'!K90)) -> 510.4287398 | K145: =IF($B145="","",IF(Sheet1!$Z$1=4,'Tabla de Pagos Crecientes'!K85,'Tabla Fijos'!L90)) -> 233.3333352 | L145: =IF($B145="","",IF(Sheet1!$Z$1=4,'Tabla de Pagos Crecientes'!L85,'Tabla Fijos'!M90)) -> 299 | M145: =IF($B145=0,0,IF(B145="","",VLOOKUP($B145,'Tabla Fijos'!$B$12:$R$311,13,0))) -> 0 | O145: =IF(B145="","",G145+H145+I145+J145+K145+L145-M145-'Tabla Fijos'!P90) -> 10433.66432 | P145: 848133.9177 | Q145: 1
B146: 80 | C146: =IF($B146="","",'Fecha Pago'!K83) -> 2030-03-03 | D146: =IF($B$67="","",'Fecha Pago'!L83) -> 30.4 | E146: =IF(B146="","",IF(Sheet1!$Z$1=4,'Tabla de Pagos Crecientes'!E86,$F$62)) -> 0.0948 | F146: =IF($B146="","",IF(Sheet1!$Z$1=4,'Tabla de Pagos Crecientes'!F86,'Tabla Fijos'!F91)) -> 848133.9177 | G146: =IF($B146="","",IF(Sheet1!$Z$1=4,'Tabla de Pagos Crecientes'!G86,'Tabla Fijos'!G91)) -> 2601.30752 | H146: =IF($B146="","",IF(Sheet1!$Z$1=4,'Tabla de Pagos Crecientes'!H86,'Tabla Fijos'!H91)) -> 6789.594723 | I146: =IF($B146=0,0,IF(B146="","",VLOOKUP($B146,'Tabla Fijos'!$B$12:$R$311,8,0))) -> 0 | J146: =IF($B146="","",IF(Sheet1!$Z$1=4,'Tabla de Pagos Crecientes'!J86,'Tabla Fijos'!K91)) -> 508.8803506 | K146: =IF($B146="","",IF(Sheet1!$Z$1=4,'Tabla de Pagos Crecientes'!K86,'Tabla Fijos'!L91)) -> 233.3333352 | L146: =IF($B146="","",IF(Sheet1!$Z$1=4,'Tabla de Pagos Crecientes'!L86,'Tabla Fijos'!M91)) -> 299 | M146: =IF($B146=0,0,IF(B146="","",VLOOKUP($B146,'Tabla Fijos'!$B$12:$R$311,13,0))) -> 0 | O146: =IF(B146="","",G146+H146+I146+J146+K146+L146-M146-'Tabla Fijos'!P91) -> 10432.11593 | P146: 845532.6102 | Q146: 1
B147: 81 | C147: =IF($B147="","",'Fecha Pago'!K84) -> 2030-04-03 | D147: =IF($B$67="","",'Fecha Pago'!L84) -> 30.4 | E147: =IF(B147="","",IF(Sheet1!$Z$1=4,'Tabla de Pagos Crecientes'!E87,$F$62)) -> 0.0948 | F147: =IF($B147="","",IF(Sheet1!$Z$1=4,'Tabla de Pagos Crecientes'!F87,'Tabla Fijos'!F92)) -> 845532.6102 | G147: =IF($B147="","",IF(Sheet1!$Z$1=4,'Tabla de Pagos Crecientes'!G87,'Tabla Fijos'!G92)) -> 2622.131854 | H147: =IF($B147="","",IF(Sheet1!$Z$1=4,'Tabla de Pagos Crecientes'!H87,'Tabla Fijos'!H92)) -> 6768.770389 | I147: =IF($B147=0,0,IF(B147="","",VLOOKUP($B147,'Tabla Fijos'!$B$12:$R$311,8,0))) -> 0 | J147: =IF($B147="","",IF(Sheet1!$Z$1=4,'Tabla de Pagos Crecientes'!J87,'Tabla Fijos'!K92)) -> 507.3195661 | K147: =IF($B147="","",IF(Sheet1!$Z$1=4,'Tabla de Pagos Crecientes'!K87,'Tabla Fijos'!L92)) -> 233.3333352 | L147: =IF($B147="","",IF(Sheet1!$Z$1=4,'Tabla de Pagos Crecientes'!L87,'Tabla Fijos'!M92)) -> 299 | M147: =IF($B147=0,0,IF(B147="","",VLOOKUP($B147,'Tabla Fijos'!$B$12:$R$311,13,0))) -> 0 | O147: =IF(B147="","",G147+H147+I147+J147+K147+L147-M147-'Tabla Fijos'!P92) -> 10430.55514 | P147: 842910.4784 | Q147: 1
B148: 82 | C148: =IF($B148="","",'Fecha Pago'!K85) -> 2030-05-03 | D148: =IF($B$67="","",'Fecha Pago'!L85) -> 30.4 | E148: =IF(B148="","",IF(Sheet1!$Z$1=4,'Tabla de Pagos Crecientes'!E88,$F$62)) -> 0.0948 | F148: =IF($B148="","",IF(Sheet1!$Z$1=4,'Tabla de Pagos Crecientes'!F88,'Tabla Fijos'!F93)) -> 842910.4784 | G148: =IF($B148="","",IF(Sheet1!$Z$1=4,'Tabla de Pagos Crecientes'!G88,'Tabla Fijos'!G93)) -> 2643.122894 | H148: =IF($B148="","",IF(Sheet1!$Z$1=4,'Tabla de Pagos Crecientes'!H88,'Tabla Fijos'!H93)) -> 6747.779349 | I148: =IF($B148=0,0,IF(B148="","",VLOOKUP($B148,'Tabla Fijos'!$B$12:$R$311,8,0))) -> 0 | J148: =IF($B148="","",IF(Sheet1!$Z$1=4,'Tabla de Pagos Crecientes'!J88,'Tabla Fijos'!K93)) -> 505.746287 | K148: =IF($B148="","",IF(Sheet1!$Z$1=4,'Tabla de Pagos Crecientes'!K88,'Tabla Fijos'!L93)) -> 233.3333352 | L148: =IF($B148="","",IF(Sheet1!$Z$1=4,'Tabla de Pagos Crecientes'!L88,'Tabla Fijos'!M93)) -> 299 | M148: =IF($B148=0,0,IF(B148="","",VLOOKUP($B148,'Tabla Fijos'!$B$12:$R$311,13,0))) -> 0 | O148: =IF(B148="","",G148+H148+I148+J148+K148+L148-M148-'Tabla Fijos'!P93) -> 10428.98187 | P148: 840267.3555 | Q148: 1
B149: 83 | C149: =IF($B149="","",'Fecha Pago'!K86) -> 2030-06-03 | D149: =IF($B$67="","",'Fecha Pago'!L86) -> 30.4 | E149: =IF(B149="","",IF(Sheet1!$Z$1=4,'Tabla de Pagos Crecientes'!E89,$F$62)) -> 0.0948 | F149: =IF($B149="","",IF(Sheet1!$Z$1=4,'Tabla de Pagos Crecientes'!F89,'Tabla Fijos'!F94)) -> 840267.3555 | G149: =IF($B149="","",IF(Sheet1!$Z$1=4,'Tabla de Pagos Crecientes'!G89,'Tabla Fijos'!G94)) -> 2664.281973 | H149: =IF($B149="","",IF(Sheet1!$Z$1=4,'Tabla de Pagos Crecientes'!H89,'Tabla Fijos'!H94)) -> 6726.62027 | I149: =IF($B149=0,0,IF(B149="","",VLOOKUP($B149,'Tabla Fijos'!$B$12:$R$311,8,0))) -> 0 | J149: =IF($B149="","",IF(Sheet1!$Z$1=4,'Tabla de Pagos Crecientes'!J89,'Tabla Fijos'!K94)) -> 504.1604133 | K149: =IF($B149="","",IF(Sheet1!$Z$1=4,'Tabla de Pagos Crecientes'!K89,'Tabla Fijos'!L94)) -> 233.3333352 | L149: =IF($B149="","",IF(Sheet1!$Z$1=4,'Tabla de Pagos Crecientes'!L89,'Tabla Fijos'!M94)) -> 299 | M149: =IF($B149=0,0,IF(B149="","",VLOOKUP($B149,'Tabla Fijos'!$B$12:$R$311,13,0))) -> 0 | O149: =IF(B149="","",G149+H149+I149+J149+K149+L149-M149-'Tabla Fijos'!P94) -> 10427.39599 | P149: 837603.0735 | Q149: 1
B150: 84 | C150: =IF($B150="","",'Fecha Pago'!K87) -> 2030-07-03 | D150: =IF($B$67="","",'Fecha Pago'!L87) -> 30.4 | E150: =IF(B150="","",IF(Sheet1!$Z$1=4,'Tabla de Pagos Crecientes'!E90,$F$62)) -> 0.0948 | F150: =IF($B150="","",IF(Sheet1!$Z$1=4,'Tabla de Pagos Crecientes'!F90,'Tabla Fijos'!F95)) -> 837603.0735 | G150: =IF($B150="","",IF(Sheet1!$Z$1=4,'Tabla de Pagos Crecientes'!G90,'Tabla Fijos'!G95)) -> 2685.610439 | H150: =IF($B150="","",IF(Sheet1!$Z$1=4,'Tabla de Pagos Crecientes'!H90,'Tabla Fijos'!H95)) -> 6705.291804 | I150: =IF($B150=0,0,IF(B150="","",VLOOKUP($B150,'Tabla Fijos'!$B$12:$R$311,8,0))) -> 0 | J150: =IF($B150="","",IF(Sheet1!$Z$1=4,'Tabla de Pagos Crecientes'!J90,'Tabla Fijos'!K95)) -> 502.5618441 | K150: =IF($B150="","",IF(Sheet1!$Z$1=4,'Tabla de Pagos Crecientes'!K90,'Tabla Fijos'!L95)) -> 233.3333352 | L150: =IF($B150="","",IF(Sheet1!$Z$1=4,'Tabla de Pagos Crecientes'!L90,'Tabla Fijos'!M95)) -> 299 | M150: =IF($B150=0,0,IF(B150="","",VLOOKUP($B150,'Tabla Fijos'!$B$12:$R$311,13,0))) -> 0 | O150: =IF(B150="","",G150+H150+I150+J150+K150+L150-M150-'Tabla Fijos'!P95) -> 10425.79742 | P150: 834917.4631 | Q150: 1
B151: 85 | C151: =IF($B151="","",'Fecha Pago'!K88) -> 2030-08-03 | D151: =IF($B$67="","",'Fecha Pago'!L88) -> 30.4 | E151: =IF(B151="","",IF(Sheet1!$Z$1=4,'Tabla de Pagos Crecientes'!E91,$F$62)) -> 0.0948 | F151: =IF($B151="","",IF(Sheet1!$Z$1=4,'Tabla de Pagos Crecientes'!F91,'Tabla Fijos'!F96)) -> 834917.4631 | G151: =IF($B151="","",IF(Sheet1!$Z$1=4,'Tabla de Pagos Crecientes'!G91,'Tabla Fijos'!G96)) -> 2707.109645 | H151: =IF($B151="","",IF(Sheet1!$Z$1=4,'Tabla de Pagos Crecientes'!H91,'Tabla Fijos'!H96)) -> 6683.792598 | I151: =IF($B151=0,0,IF(B151="","",VLOOKUP($B151,'Tabla Fijos'!$B$12:$R$311,8,0))) -> 0 | J151: =IF($B151="","",IF(Sheet1!$Z$1=4,'Tabla de Pagos Crecientes'!J91,'Tabla Fijos'!K96)) -> 500.9504778 | K151: =IF($B151="","",IF(Sheet1!$Z$1=4,'Tabla de Pagos Crecientes'!K91,'Tabla Fijos'!L96)) -> 233.3333352 | L151: =IF($B151="","",IF(Sheet1!$Z$1=4,'Tabla de Pagos Crecientes'!L91,'Tabla Fijos'!M96)) -> 299 | M151: =IF($B151=0,0,IF(B151="","",VLOOKUP($B151,'Tabla Fijos'!$B$12:$R$311,13,0))) -> 0 | O151: =IF(B151="","",G151+H151+I151+J151+K151+L151-M151-'Tabla Fijos'!P96) -> 10424.18606 | P151: 832210.3534 | Q151: 1
B152: 86 | C152: =IF($B152="","",'Fecha Pago'!K89) -> 2030-09-03 | D152: =IF($B$67="","",'Fecha Pago'!L89) -> 30.4 | E152: =IF(B152="","",IF(Sheet1!$Z$1=4,'Tabla de Pagos Crecientes'!E92,$F$62)) -> 0.0948 | F152: =IF($B152="","",IF(Sheet1!$Z$1=4,'Tabla de Pagos Crecientes'!F92,'Tabla Fijos'!F97)) -> 832210.3534 | G152: =IF($B152="","",IF(Sheet1!$Z$1=4,'Tabla de Pagos Crecientes'!G92,'Tabla Fijos'!G97)) -> 2728.78096 | H152: =IF($B152="","",IF(Sheet1!$Z$1=4,'Tabla de Pagos Crecientes'!H92,'Tabla Fijos'!H97)) -> 6662.121283 | I152: =IF($B152=0,0,IF(B152="","",VLOOKUP($B152,'Tabla Fijos'!$B$12:$R$311,8,0))) -> 0 | J152: =IF($B152="","",IF(Sheet1!$Z$1=4,'Tabla de Pagos Crecientes'!J92,'Tabla Fijos'!K97)) -> 499.326212 | K152: =IF($B152="","",IF(Sheet1!$Z$1=4,'Tabla de Pagos Crecientes'!K92,'Tabla Fijos'!L97)) -> 233.3333352 | L152: =IF($B152="","",IF(Sheet1!$Z$1=4,'Tabla de Pagos Crecientes'!L92,'Tabla Fijos'!M97)) -> 299 | M152: =IF($B152=0,0,IF(B152="","",VLOOKUP($B152,'Tabla Fijos'!$B$12:$R$311,13,0))) -> 0 | O152: =IF(B152="","",G152+H152+I152+J152+K152+L152-M152-'Tabla Fijos'!P97) -> 10422.56179 | P152: 829481.5725 | Q152: 1
B153: 87 | C153: =IF($B153="","",'Fecha Pago'!K90) -> 2030-10-03 | D153: =IF($B$67="","",'Fecha Pago'!L90) -> 30.4 | E153: =IF(B153="","",IF(Sheet1!$Z$1=4,'Tabla de Pagos Crecientes'!E93,$F$62)) -> 0.0948 | F153: =IF($B153="","",IF(Sheet1!$Z$1=4,'Tabla de Pagos Crecientes'!F93,'Tabla Fijos'!F98)) -> 829481.5725 | G153: =IF($B153="","",IF(Sheet1!$Z$1=4,'Tabla de Pagos Crecientes'!G93,'Tabla Fijos'!G98)) -> 2750.625762 | H153: =IF($B153="","",IF(Sheet1!$Z$1=4,'Tabla de Pagos Crecientes'!H93,'Tabla Fijos'!H98)) -> 6640.276481 | I153: =IF($B153=0,0,IF(B153="","",VLOOKUP($B153,'Tabla Fijos'!$B$12:$R$311,8,0))) -> 0 | J153: =IF($B153="","",IF(Sheet1!$Z$1=4,'Tabla de Pagos Crecientes'!J93,'Tabla Fijos'!K98)) -> 497.6889435 | K153: =IF($B153="","",IF(Sheet1!$Z$1=4,'Tabla de Pagos Crecientes'!K93,'Tabla Fijos'!L98)) -> 233.3333352 | L153: =IF($B153="","",IF(Sheet1!$Z$1=4,'Tabla de Pagos Crecientes'!L93,'Tabla Fijos'!M98)) -> 299 | M153: =IF($B153=0,0,IF(B153="","",VLOOKUP($B153,'Tabla Fijos'!$B$12:$R$311,13,0))) -> 0 | O153: =IF(B153="","",G153+H153+I153+J153+K153+L153-M153-'Tabla Fijos'!P98) -> 10420.92452 | P153: 826730.9467 | Q153: 1
B154: 88 | C154: =IF($B154="","",'Fecha Pago'!K91) -> 2030-11-03 | D154: =IF($B$67="","",'Fecha Pago'!L91) -> 30.4 | E154: =IF(B154="","",IF(Sheet1!$Z$1=4,'Tabla de Pagos Crecientes'!E94,$F$62)) -> 0.0948 | F154: =IF($B154="","",IF(Sheet1!$Z$1=4,'Tabla de Pagos Crecientes'!F94,'Tabla Fijos'!F99)) -> 826730.9467 | G154: =IF($B154="","",IF(Sheet1!$Z$1=4,'Tabla de Pagos Crecientes'!G94,'Tabla Fijos'!G99)) -> 2772.645438 | H154: =IF($B154="","",IF(Sheet1!$Z$1=4,'Tabla de Pagos Crecientes'!H94,'Tabla Fijos'!H99)) -> 6618.256805 | I154: =IF($B154=0,0,IF(B154="","",VLOOKUP($B154,'Tabla Fijos'!$B$12:$R$311,8,0))) -> 0 | J154: =IF($B154="","",IF(Sheet1!$Z$1=4,'Tabla de Pagos Crecientes'!J94,'Tabla Fijos'!K99)) -> 496.038568 | K154: =IF($B154="","",IF(Sheet1!$Z$1=4,'Tabla de Pagos Crecientes'!K94,'Tabla Fijos'!L99)) -> 233.3333352 | L154: =IF($B154="","",IF(Sheet1!$Z$1=4,'Tabla de Pagos Crecientes'!L94,'Tabla Fijos'!M99)) -> 299 | M154: =IF($B154=0,0,IF(B154="","",VLOOKUP($B154,'Tabla Fijos'!$B$12:$R$311,13,0))) -> 0 | O154: =IF(B154="","",G154+H154+I154+J154+K154+L154-M154-'Tabla Fijos'!P99) -> 10419.27415 | P154: 823958.3013 | Q154: 1
B155: 89 | C155: =IF($B155="","",'Fecha Pago'!K92) -> 2030-12-03 | D155: =IF($B$67="","",'Fecha Pago'!L92) -> 30.4 | E155: =IF(B155="","",IF(Sheet1!$Z$1=4,'Tabla de Pagos Crecientes'!E95,$F$62)) -> 0.0948 | F155: =IF($B155="","",IF(Sheet1!$Z$1=4,'Tabla de Pagos Crecientes'!F95,'Tabla Fijos'!F100)) -> 823958.3013 | G155: =IF($B155="","",IF(Sheet1!$Z$1=4,'Tabla de Pagos Crecientes'!G95,'Tabla Fijos'!G100)) -> 2794.841389 | H155: =IF($B155="","",IF(Sheet1!$Z$1=4,'Tabla de Pagos Crecientes'!H95,'Tabla Fijos'!H100)) -> 6596.060854 | I155: =IF($B155=0,0,IF(B155="","",VLOOKUP($B155,'Tabla Fijos'!$B$12:$R$311,8,0))) -> 0 | J155: =IF($B155="","",IF(Sheet1!$Z$1=4,'Tabla de Pagos Crecientes'!J95,'Tabla Fijos'!K100)) -> 494.3749808 | K155: =IF($B155="","",IF(Sheet1!$Z$1=4,'Tabla de Pagos Crecientes'!K95,'Tabla Fijos'!L100)) -> 233.3333352 | L155: =IF($B155="","",IF(Sheet1!$Z$1=4,'Tabla de Pagos Crecientes'!L95,'Tabla Fijos'!M100)) -> 299 | M155: =IF($B155=0,0,IF(B155="","",VLOOKUP($B155,'Tabla Fijos'!$B$12:$R$311,13,0))) -> 0 | O155: =IF(B155="","",G155+H155+I155+J155+K155+L155-M155-'Tabla Fijos'!P100) -> 10417.61056 | P155: 821163.4599 | Q155: 1
B156: 90 | C156: =IF($B156="","",'Fecha Pago'!K93) -> 2031-01-03 | D156: =IF($B$67="","",'Fecha Pago'!L93) -> 30.4 | E156: =IF(B156="","",IF(Sheet1!$Z$1=4,'Tabla de Pagos Crecientes'!E96,$F$62)) -> 0.0948 | F156: =IF($B156="","",IF(Sheet1!$Z$1=4,'Tabla de Pagos Crecientes'!F96,'Tabla Fijos'!F101)) -> 821163.4599 | G156: =IF($B156="","",IF(Sheet1!$Z$1=4,'Tabla de Pagos Crecientes'!G96,'Tabla Fijos'!G101)) -> 2817.215026 | H156: =IF($B156="","",IF(Sheet1!$Z$1=4,'Tabla de Pagos Crecientes'!H96,'Tabla Fijos'!H101)) -> 6573.687217 | I156: =IF($B156=0,0,IF(B156="","",VLOOKUP($B156,'Tabla Fijos'!$B$12:$R$311,8,0))) -> 0 | J156: =IF($B156="","",IF(Sheet1!$Z$1=4,'Tabla de Pagos Crecientes'!J96,'Tabla Fijos'!K101)) -> 492.6980759 | K156: =IF($B156="","",IF(Sheet1!$Z$1=4,'Tabla de Pagos Crecientes'!K96,'Tabla Fijos'!L101)) -> 233.3333352 | L156: =IF($B156="","",IF(Sheet1!$Z$1=4,'Tabla de Pagos Crecientes'!L96,'Tabla Fijos'!M101)) -> 299 | M156: =IF($B156=0,0,IF(B156="","",VLOOKUP($B156,'Tabla Fijos'!$B$12:$R$311,13,0))) -> 0 | O156: =IF(B156="","",G156+H156+I156+J156+K156+L156-M156-'Tabla Fijos'!P101) -> 10415.93365 | P156: 818346.2448 | Q156: 1
B157: 91 | C157: =IF($B157="","",'Fecha Pago'!K94) -> 2031-02-03 | D157: =IF($B$67="","",'Fecha Pago'!L94) -> 30.4 | E157: =IF(B157="","",IF(Sheet1!$Z$1=4,'Tabla de Pagos Crecientes'!E97,$F$62)) -> 0.0948 | F157: =IF($B157="","",IF(Sheet1!$Z$1=4,'Tabla de Pagos Crecientes'!F97,'Tabla Fijos'!F102)) -> 818346.2448 | G157: =IF($B157="","",IF(Sheet1!$Z$1=4,'Tabla de Pagos Crecientes'!G97,'Tabla Fijos'!G102)) -> 2839.767771 | H157: =IF($B157="","",IF(Sheet1!$Z$1=4,'Tabla de Pagos Crecientes'!H97,'Tabla Fijos'!H102)) -> 6551.134472 | I157: =IF($B157=0,0,IF(B157="","",VLOOKUP($B157,'Tabla Fijos'!$B$12:$R$311,8,0))) -> 0 | J157: =IF($B157="","",IF(Sheet1!$Z$1=4,'Tabla de Pagos Crecientes'!J97,'Tabla Fijos'!K102)) -> 491.0077469 | K157: =IF($B157="","",IF(Sheet1!$Z$1=4,'Tabla de Pagos Crecientes'!K97,'Tabla Fijos'!L102)) -> 233.3333352 | L157: =IF($B157="","",IF(Sheet1!$Z$1=4,'Tabla de Pagos Crecientes'!L97,'Tabla Fijos'!M102)) -> 299 | M157: =IF($B157=0,0,IF(B157="","",VLOOKUP($B157,'Tabla Fijos'!$B$12:$R$311,13,0))) -> 0 | O157: =IF(B157="","",G157+H157+I157+J157+K157+L157-M157-'Tabla Fijos'!P102) -> 10414.24333 | P157: 815506.4771 | Q157: 1
B158: 92 | C158: =IF($B158="","",'Fecha Pago'!K95) -> 2031-03-03 | D158: =IF($B$67="","",'Fecha Pago'!L95) -> 30.4 | E158: =IF(B158="","",IF(Sheet1!$Z$1=4,'Tabla de Pagos Crecientes'!E98,$F$62)) -> 0.0948 | F158: =IF($B158="","",IF(Sheet1!$Z$1=4,'Tabla de Pagos Crecientes'!F98,'Tabla Fijos'!F103)) -> 815506.4771 | G158: =IF($B158="","",IF(Sheet1!$Z$1=4,'Tabla de Pagos Crecientes'!G98,'Tabla Fijos'!G103)) -> 2862.501059 | H158: =IF($B158="","",IF(Sheet1!$Z$1=4,'Tabla de Pagos Crecientes'!H98,'Tabla Fijos'!H103)) -> 6528.401184 | I158: =IF($B158=0,0,IF(B158="","",VLOOKUP($B158,'Tabla Fijos'!$B$12:$R$311,8,0))) -> 0 | J158: =IF($B158="","",IF(Sheet1!$Z$1=4,'Tabla de Pagos Crecientes'!J98,'Tabla Fijos'!K103)) -> 489.3038862 | K158: =IF($B158="","",IF(Sheet1!$Z$1=4,'Tabla de Pagos Crecientes'!K98,'Tabla Fijos'!L103)) -> 233.3333352 | L158: =IF($B158="","",IF(Sheet1!$Z$1=4,'Tabla de Pagos Crecientes'!L98,'Tabla Fijos'!M103)) -> 299 | M158: =IF($B158=0,0,IF(B158="","",VLOOKUP($B158,'Tabla Fijos'!$B$12:$R$311,13,0))) -> 0 | O158: =IF(B158="","",G158+H158+I158+J158+K158+L158-M158-'Tabla Fijos'!P103) -> 10412.53946 | P158: 812643.976 | Q158: 1
B159: 93 | C159: =IF($B159="","",'Fecha Pago'!K96) -> 2031-04-03 | D159: =IF($B$67="","",'Fecha Pago'!L96) -> 30.4 | E159: =IF(B159="","",IF(Sheet1!$Z$1=4,'Tabla de Pagos Crecientes'!E99,$F$62)) -> 0.0948 | F159: =IF($B159="","",IF(Sheet1!$Z$1=4,'Tabla de Pagos Crecientes'!F99,'Tabla Fijos'!F104)) -> 812643.976 | G159: =IF($B159="","",IF(Sheet1!$Z$1=4,'Tabla de Pagos Crecientes'!G99,'Tabla Fijos'!G104)) -> 2885.416334 | H159: =IF($B159="","",IF(Sheet1!$Z$1=4,'Tabla de Pagos Crecientes'!H99,'Tabla Fijos'!H104)) -> 6505.485909 | I159: =IF($B159=0,0,IF(B159="","",VLOOKUP($B159,'Tabla Fijos'!$B$12:$R$311,8,0))) -> 0 | J159: =IF($B159="","",IF(Sheet1!$Z$1=4,'Tabla de Pagos Crecientes'!J99,'Tabla Fijos'!K104)) -> 487.5863856 | K159: =IF($B159="","",IF(Sheet1!$Z$1=4,'Tabla de Pagos Crecientes'!K99,'Tabla Fijos'!L104)) -> 233.3333352 | L159: =IF($B159="","",IF(Sheet1!$Z$1=4,'Tabla de Pagos Crecientes'!L99,'Tabla Fijos'!M104)) -> 299 | M159: =IF($B159=0,0,IF(B159="","",VLOOKUP($B159,'Tabla Fijos'!$B$12:$R$311,13,0))) -> 0 | O159: =IF(B159="","",G159+H159+I159+J159+K159+L159-M159-'Tabla Fijos'!P104) -> 10410.82196 | P159: 809758.5597 | Q159: 1
B160: 94 | C160: =IF($B160="","",'Fecha Pago'!K97) -> 2031-05-03 | D160: =IF($B$67="","",'Fecha Pago'!L97) -> 30.4 | E160: =IF(B160="","",IF(Sheet1!$Z$1=4,'Tabla de Pagos Crecientes'!E100,$F$62)) -> 0.0948 | F160: =IF($B160="","",IF(Sheet1!$Z$1=4,'Tabla de Pagos Crecientes'!F100,'Tabla Fijos'!F105)) -> 809758.5597 | G160: =IF($B160="","",IF(Sheet1!$Z$1=4,'Tabla de Pagos Crecientes'!G100,'Tabla Fijos'!G105)) -> 2908.515053 | H160: =IF($B160="","",IF(Sheet1!$Z$1=4,'Tabla de Pagos Crecientes'!H100,'Tabla Fijos'!H105)) -> 6482.38719 | I160: =IF($B160=0,0,IF(B160="","",VLOOKUP($B160,'Tabla Fijos'!$B$12:$R$311,8,0))) -> 0 | J160: =IF($B160="","",IF(Sheet1!$Z$1=4,'Tabla de Pagos Crecientes'!J100,'Tabla Fijos'!K105)) -> 485.8551358 | K160: =IF($B160="","",IF(Sheet1!$Z$1=4,'Tabla de Pagos Crecientes'!K100,'Tabla Fijos'!L105)) -> 233.3333352 | L160: =IF($B160="","",IF(Sheet1!$Z$1=4,'Tabla de Pagos Crecientes'!L100,'Tabla Fijos'!M105)) -> 299 | M160: =IF($B160=0,0,IF(B160="","",VLOOKUP($B160,'Tabla Fijos'!$B$12:$R$311,13,0))) -> 0 | O160: =IF(B160="","",G160+H160+I160+J160+K160+L160-M160-'Tabla Fijos'!P105) -> 10409.09071 | P160: 806850.0446 | Q160: 1
B161: 95 | C161: =IF($B161="","",'Fecha Pago'!K98) -> 2031-06-03 | D161: =IF($B$67="","",'Fecha Pago'!L98) -> 30.4 | E161: =IF(B161="","",IF(Sheet1!$Z$1=4,'Tabla de Pagos Crecientes'!E101,$F$62)) -> 0.0948 | F161: =IF($B161="","",IF(Sheet1!$Z$1=4,'Tabla de Pagos Crecientes'!F101,'Tabla Fijos'!F106)) -> 806850.0446 | G161: =IF($B161="","",IF(Sheet1!$Z$1=4,'Tabla de Pagos Crecientes'!G101,'Tabla Fijos'!G106)) -> 2931.798686 | H161: =IF($B161="","",IF(Sheet1!$Z$1=4,'Tabla de Pagos Crecientes'!H101,'Tabla Fijos'!H106)) -> 6459.103557 | I161: =IF($B161=0,0,IF(B161="","",VLOOKUP($B161,'Tabla Fijos'!$B$12:$R$311,8,0))) -> 0 | J161: =IF($B161="","",IF(Sheet1!$Z$1=4,'Tabla de Pagos Crecientes'!J101,'Tabla Fijos'!K106)) -> 484.1100268 | K161: =IF($B161="","",IF(Sheet1!$Z$1=4,'Tabla de Pagos Crecientes'!K101,'Tabla Fijos'!L106)) -> 233.3333352 | L161: =IF($B161="","",IF(Sheet1!$Z$1=4,'Tabla de Pagos Crecientes'!L101,'Tabla Fijos'!M106)) -> 299 | M161: =IF($B161=0,0,IF(B161="","",VLOOKUP($B161,'Tabla Fijos'!$B$12:$R$311,13,0))) -> 0 | O161: =IF(B161="","",G161+H161+I161+J161+K161+L161-M161-'Tabla Fijos'!P106) -> 10407.3456 | P161: 803918.2459 | Q161: 1
B162: 96 | C162: =IF($B162="","",'Fecha Pago'!K99) -> 2031-07-03 | D162: =IF($B$67="","",'Fecha Pago'!L99) -> 30.4 | E162: =IF(B162="","",IF(Sheet1!$Z$1=4,'Tabla de Pagos Crecientes'!E102,$F$62)) -> 0.0948 | F162: =IF($B162="","",IF(Sheet1!$Z$1=4,'Tabla de Pagos Crecientes'!F102,'Tabla Fijos'!F107)) -> 803918.2459 | G162: =IF($B162="","",IF(Sheet1!$Z$1=4,'Tabla de Pagos Crecientes'!G102,'Tabla Fijos'!G107)) -> 2955.268712 | H162: =IF($B162="","",IF(Sheet1!$Z$1=4,'Tabla de Pagos Crecientes'!H102,'Tabla Fijos'!H107)) -> 6435.633531 | I162: =IF($B162=0,0,IF(B162="","",VLOOKUP($B162,'Tabla Fijos'!$B$12:$R$311,8,0))) -> 0 | J162: =IF($B162="","",IF(Sheet1!$Z$1=4,'Tabla de Pagos Crecientes'!J102,'Tabla Fijos'!K107)) -> 482.3509476 | K162: =IF($B162="","",IF(Sheet1!$Z$1=4,'Tabla de Pagos Crecientes'!K102,'Tabla Fijos'!L107)) -> 233.3333352 | L162: =IF($B162="","",IF(Sheet1!$Z$1=4,'Tabla de Pagos Crecientes'!L102,'Tabla Fijos'!M107)) -> 299 | M162: =IF($B162=0,0,IF(B162="","",VLOOKUP($B162,'Tabla Fijos'!$B$12:$R$311,13,0))) -> 0 | O162: =IF(B162="","",G162+H162+I162+J162+K162+L162-M162-'Tabla Fijos'!P107) -> 10405.58653 | P162: 800962.9772 | Q162: 1
B163: 97 | C163: =IF($B163="","",'Fecha Pago'!K100) -> 2031-08-03 | D163: =IF($B$67="","",'Fecha Pago'!L100) -> 30.4 | E163: =IF(B163="","",IF(Sheet1!$Z$1=4,'Tabla de Pagos Crecientes'!E103,$F$62)) -> 0.0948 | F163: =IF($B163="","",IF(Sheet1!$Z$1=4,'Tabla de Pagos Crecientes'!F103,'Tabla Fijos'!F108)) -> 800962.9772 | G163: =IF($B163="","",IF(Sheet1!$Z$1=4,'Tabla de Pagos Crecientes'!G103,'Tabla Fijos'!G108)) -> 2978.926623 | H163: =IF($B163="","",IF(Sheet1!$Z$1=4,'Tabla de Pagos Crecientes'!H103,'Tabla Fijos'!H108)) -> 6411.97562 | I163: =IF($B163=0,0,IF(B163="","",VLOOKUP($B163,'Tabla Fijos'!$B$12:$R$311,8,0))) -> 0 | J163: =IF($B163="","",IF(Sheet1!$Z$1=4,'Tabla de Pagos Crecientes'!J103,'Tabla Fijos'!K108)) -> 480.5777863 | K163: =IF($B163="","",IF(Sheet1!$Z$1=4,'Tabla de Pagos Crecientes'!K103,'Tabla Fijos'!L108)) -> 233.3333352 | L163: =IF($B163="","",IF(Sheet1!$Z$1=4,'Tabla de Pagos Crecientes'!L103,'Tabla Fijos'!M108)) -> 299 | M163: =IF($B163=0,0,IF(B163="","",VLOOKUP($B163,'Tabla Fijos'!$B$12:$R$311,13,0))) -> 0 | O163: =IF(B163="","",G163+H163+I163+J163+K163+L163-M163-'Tabla Fijos'!P108) -> 10403.81336 | P163: 797984.0506 | Q163: 1
B164: 98 | C164: =IF($B164="","",'Fecha Pago'!K101) -> 2031-09-03 | D164: =IF($B$67="","",'Fecha Pago'!L101) -> 30.4 | E164: =IF(B164="","",IF(Sheet1!$Z$1=4,'Tabla de Pagos Crecientes'!E104,$F$62)) -> 0.0948 | F164: =IF($B164="","",IF(Sheet1!$Z$1=4,'Tabla de Pagos Crecientes'!F104,'Tabla Fijos'!F109)) -> 797984.0506 | G164: =IF($B164="","",IF(Sheet1!$Z$1=4,'Tabla de Pagos Crecientes'!G104,'Tabla Fijos'!G109)) -> 3002.773923 | H164: =IF($B164="","",IF(Sheet1!$Z$1=4,'Tabla de Pagos Crecientes'!H104,'Tabla Fijos'!H109)) -> 6388.12832 | I164: =IF($B164=0,0,IF(B164="","",VLOOKUP($B164,'Tabla Fijos'!$B$12:$R$311,8,0))) -> 0 | J164: =IF($B164="","",IF(Sheet1!$Z$1=4,'Tabla de Pagos Crecientes'!J104,'Tabla Fijos'!K109)) -> 478.7904304 | K164: =IF($B164="","",IF(Sheet1!$Z$1=4,'Tabla de Pagos Crecientes'!K104,'Tabla Fijos'!L109)) -> 233.3333352 | L164: =IF($B164="","",IF(Sheet1!$Z$1=4,'Tabla de Pagos Crecientes'!L104,'Tabla Fijos'!M109)) -> 299 | M164: =IF($B164=0,0,IF(B164="","",VLOOKUP($B164,'Tabla Fijos'!$B$12:$R$311,13,0))) -> 0 | O164: =IF(B164="","",G164+H164+I164+J164+K164+L164-M164-'Tabla Fijos'!P109) -> 10402.02601 | P164: 794981.2767 | Q164: 1
B165: 99 | C165: =IF($B165="","",'Fecha Pago'!K102) -> 2031-10-03 | D165: =IF($B$67="","",'Fecha Pago'!L102) -> 30.4 | E165: =IF(B165="","",IF(Sheet1!$Z$1=4,'Tabla de Pagos Crecientes'!E105,$F$62)) -> 0.0948 | F165: =IF($B165="","",IF(Sheet1!$Z$1=4,'Tabla de Pagos Crecientes'!F105,'Tabla Fijos'!F110)) -> 794981.2767 | G165: =IF($B165="","",IF(Sheet1!$Z$1=4,'Tabla de Pagos Crecientes'!G105,'Tabla Fijos'!G110)) -> 3026.812129 | H165: =IF($B165="","",IF(Sheet1!$Z$1=4,'Tabla de Pagos Crecientes'!H105,'Tabla Fijos'!H110)) -> 6364.090114 | I165: =IF($B165=0,0,IF(B165="","",VLOOKUP($B165,'Tabla Fijos'!$B$12:$R$311,8,0))) -> 0 | J165: =IF($B165="","",IF(Sheet1!$Z$1=4,'Tabla de Pagos Crecientes'!J105,'Tabla Fijos'!K110)) -> 476.988766 | K165: =IF($B165="","",IF(Sheet1!$Z$1=4,'Tabla de Pagos Crecientes'!K105,'Tabla Fijos'!L110)) -> 233.3333352 | L165: =IF($B165="","",IF(Sheet1!$Z$1=4,'Tabla de Pagos Crecientes'!L105,'Tabla Fijos'!M110)) -> 299 | M165: =IF($B165=0,0,IF(B165="","",VLOOKUP($B165,'Tabla Fijos'!$B$12:$R$311,13,0))) -> 0 | O165: =IF(B165="","",G165+H165+I165+J165+K165+L165-M165-'Tabla Fijos'!P110) -> 10400.22434 | P165: 791954.4646 | Q165: 1
B166: 100 | C166: =IF($B166="","",'Fecha Pago'!K103) -> 2031-11-03 | D166: =IF($B$67="","",'Fecha Pago'!L103) -> 30.4 | E166: =IF(B166="","",IF(Sheet1!$Z$1=4,'Tabla de Pagos Crecientes'!E106,$F$62)) -> 0.0948 | F166: =IF($B166="","",IF(Sheet1!$Z$1=4,'Tabla de Pagos Crecientes'!F106,'Tabla Fijos'!F111)) -> 791954.4646 | G166: =IF($B166="","",IF(Sheet1!$Z$1=4,'Tabla de Pagos Crecientes'!G106,'Tabla Fijos'!G111)) -> 3051.042769 | H166: =IF($B166="","",IF(Sheet1!$Z$1=4,'Tabla de Pagos Crecientes'!H106,'Tabla Fijos'!H111)) -> 6339.859474 | I166: =IF($B166=0,0,IF(B166="","",VLOOKUP($B166,'Tabla Fijos'!$B$12:$R$311,8,0))) -> 0 | J166: =IF($B166="","",IF(Sheet1!$Z$1=4,'Tabla de Pagos Crecientes'!J106,'Tabla Fijos'!K111)) -> 475.1726787 | K166: =IF($B166="","",IF(Sheet1!$Z$1=4,'Tabla de Pagos Crecientes'!K106,'Tabla Fijos'!L111)) -> 233.3333352 | L166: =IF($B166="","",IF(Sheet1!$Z$1=4,'Tabla de Pagos Crecientes'!L106,'Tabla Fijos'!M111)) -> 299 | M166: =IF($B166=0,0,IF(B166="","",VLOOKUP($B166,'Tabla Fijos'!$B$12:$R$311,13,0))) -> 0 | O166: =IF(B166="","",G166+H166+I166+J166+K166+L166-M166-'Tabla Fijos'!P111) -> 10398.40826 | P166: 788903.4218 | Q166: 1
B167: 101 | C167: =IF($B167="","",'Fecha Pago'!K104) -> 2031-12-03 | D167: =IF($B$67="","",'Fecha Pago'!L104) -> 30.4 | E167: =IF(B167="","",IF(Sheet1!$Z$1=4,'Tabla de Pagos Crecientes'!E107,$F$62)) -> 0.0948 | F167: =IF($B167="","",IF(Sheet1!$Z$1=4,'Tabla de Pagos Crecientes'!F107,'Tabla Fijos'!F112)) -> 788903.4218 | G167: =IF($B167="","",IF(Sheet1!$Z$1=4,'Tabla de Pagos Crecientes'!G107,'Tabla Fijos'!G112)) -> 3075.467384 | H167: =IF($B167="","",IF(Sheet1!$Z$1=4,'Tabla de Pagos Crecientes'!H107,'Tabla Fijos'!H112)) -> 6315.434859 | I167: =IF($B167=0,0,IF(B167="","",VLOOKUP($B167,'Tabla Fijos'!$B$12:$R$311,8,0))) -> 0 | J167: =IF($B167="","",IF(Sheet1!$Z$1=4,'Tabla de Pagos Crecientes'!J107,'Tabla Fijos'!K112)) -> 473.3420531 | K167: =IF($B167="","",IF(Sheet1!$Z$1=4,'Tabla de Pagos Crecientes'!K107,'Tabla Fijos'!L112)) -> 233.3333352 | L167: =IF($B167="","",IF(Sheet1!$Z$1=4,'Tabla de Pagos Crecientes'!L107,'Tabla Fijos'!M112)) -> 299 | M167: =IF($B167=0,0,IF(B167="","",VLOOKUP($B167,'Tabla Fijos'!$B$12:$R$311,13,0))) -> 0 | O167: =IF(B167="","",G167+H167+I167+J167+K167+L167-M167-'Tabla Fijos'!P112) -> 10396.57763 | P167: 785827.9544 | Q167: 1
B168: 102 | C168: =IF($B168="","",'Fecha Pago'!K105) -> 2032-01-03 | D168: =IF($B$67="","",'Fecha Pago'!L105) -> 30.4 | E168: =IF(B168="","",IF(Sheet1!$Z$1=4,'Tabla de Pagos Crecientes'!E108,$F$62)) -> 0.0948 | F168: =IF($B168="","",IF(Sheet1!$Z$1=4,'Tabla de Pagos Crecientes'!F108,'Tabla Fijos'!F113)) -> 785827.9544 | G168: =IF($B168="","",IF(Sheet1!$Z$1=4,'Tabla de Pagos Crecientes'!G108,'Tabla Fijos'!G113)) -> 3100.087525 | H168: =IF($B168="","",IF(Sheet1!$Z$1=4,'Tabla de Pagos Crecientes'!H108,'Tabla Fijos'!H113)) -> 6290.814718 | I168: =IF($B168=0,0,IF(B168="","",VLOOKUP($B168,'Tabla Fijos'!$B$12:$R$311,8,0))) -> 0 | J168: =IF($B168="","",IF(Sheet1!$Z$1=4,'Tabla de Pagos Crecientes'!J108,'Tabla Fijos'!K113)) -> 471.4967726 | K168: =IF($B168="","",IF(Sheet1!$Z$1=4,'Tabla de Pagos Crecientes'!K108,'Tabla Fijos'!L113)) -> 233.3333352 | L168: =IF($B168="","",IF(Sheet1!$Z$1=4,'Tabla de Pagos Crecientes'!L108,'Tabla Fijos'!M113)) -> 299 | M168: =IF($B168=0,0,IF(B168="","",VLOOKUP($B168,'Tabla Fijos'!$B$12:$R$311,13,0))) -> 0 | O168: =IF(B168="","",G168+H168+I168+J168+K168+L168-M168-'Tabla Fijos'!P113) -> 10394.73235 | P168: 782727.8669 | Q168: 1
B169: 103 | C169: =IF($B169="","",'Fecha Pago'!K106) -> 2032-02-03 | D169: =IF($B$67="","",'Fecha Pago'!L106) -> 30.4 | E169: =IF(B169="","",IF(Sheet1!$Z$1=4,'Tabla de Pagos Crecientes'!E109,$F$62)) -> 0.0948 | F169: =IF($B169="","",IF(Sheet1!$Z$1=4,'Tabla de Pagos Crecientes'!F109,'Tabla Fijos'!F114)) -> 782727.8669 | G169: =IF($B169="","",IF(Sheet1!$Z$1=4,'Tabla de Pagos Crecientes'!G109,'Tabla Fijos'!G114)) -> 3124.904759 | H169: =IF($B169="","",IF(Sheet1!$Z$1=4,'Tabla de Pagos Crecientes'!H109,'Tabla Fijos'!H114)) -> 6265.997484 | I169: =IF($B169=0,0,IF(B169="","",VLOOKUP($B169,'Tabla Fijos'!$B$12:$R$311,8,0))) -> 0 | J169: =IF($B169="","",IF(Sheet1!$Z$1=4,'Tabla de Pagos Crecientes'!J109,'Tabla Fijos'!K114)) -> 469.6367201 | K169: =IF($B169="","",IF(Sheet1!$Z$1=4,'Tabla de Pagos Crecientes'!K109,'Tabla Fijos'!L114)) -> 233.3333352 | L169: =IF($B169="","",IF(Sheet1!$Z$1=4,'Tabla de Pagos Crecientes'!L109,'Tabla Fijos'!M114)) -> 299 | M169: =IF($B169=0,0,IF(B169="","",VLOOKUP($B169,'Tabla Fijos'!$B$12:$R$311,13,0))) -> 0 | O169: =IF(B169="","",G169+H169+I169+J169+K169+L169-M169-'Tabla Fijos'!P114) -> 10392.8723 | P169: 779602.9621 | Q169: 1
B170: 104 | C170: =IF($B170="","",'Fecha Pago'!K107) -> 2032-03-03 | D170: =IF($B$67="","",'Fecha Pago'!L107) -> 30.4 | E170: =IF(B170="","",IF(Sheet1!$Z$1=4,'Tabla de Pagos Crecientes'!E110,$F$62)) -> 0.0948 | F170: =IF($B170="","",IF(Sheet1!$Z$1=4,'Tabla de Pagos Crecientes'!F110,'Tabla Fijos'!F115)) -> 779602.9621 | G170: =IF($B170="","",IF(Sheet1!$Z$1=4,'Tabla de Pagos Crecientes'!G110,'Tabla Fijos'!G115)) -> 3149.920664 | H170: =IF($B170="","",IF(Sheet1!$Z$1=4,'Tabla de Pagos Crecientes'!H110,'Tabla Fijos'!H115)) -> 6240.981579 | I170: =IF($B170=0,0,IF(B170="","",VLOOKUP($B170,'Tabla Fijos'!$B$12:$R$311,8,0))) -> 0 | J170: =IF($B170="","",IF(Sheet1!$Z$1=4,'Tabla de Pagos Crecientes'!J110,'Tabla Fijos'!K115)) -> 467.7617773 | K170: =IF($B170="","",IF(Sheet1!$Z$1=4,'Tabla de Pagos Crecientes'!K110,'Tabla Fijos'!L115)) -> 233.3333352 | L170: =IF($B170="","",IF(Sheet1!$Z$1=4,'Tabla de Pagos Crecientes'!L110,'Tabla Fijos'!M115)) -> 299 | M170: =IF($B170=0,0,IF(B170="","",VLOOKUP($B170,'Tabla Fijos'!$B$12:$R$311,13,0))) -> 0 | O170: =IF(B170="","",G170+H170+I170+J170+K170+L170-M170-'Tabla Fijos'!P115) -> 10390.99736 | P170: 776453.0414 | Q170: 1
B171: 105 | C171: =IF($B171="","",'Fecha Pago'!K108) -> 2032-04-03 | D171: =IF($B$67="","",'Fecha Pago'!L108) -> 30.4 | E171: =IF(B171="","",IF(Sheet1!$Z$1=4,'Tabla de Pagos Crecientes'!E111,$F$62)) -> 0.0948 | F171: =IF($B171="","",IF(Sheet1!$Z$1=4,'Tabla de Pagos Crecientes'!F111,'Tabla Fijos'!F116)) -> 776453.0414 | G171: =IF($B171="","",IF(Sheet1!$Z$1=4,'Tabla de Pagos Crecientes'!G111,'Tabla Fijos'!G116)) -> 3175.136829 | H171: =IF($B171="","",IF(Sheet1!$Z$1=4,'Tabla de Pagos Crecientes'!H111,'Tabla Fijos'!H116)) -> 6215.765414 | I171: =IF($B171=0,0,IF(B171="","",VLOOKUP($B171,'Tabla Fijos'!$B$12:$R$311,8,0))) -> 0 | J171: =IF($B171="","",IF(Sheet1!$Z$1=4,'Tabla de Pagos Crecientes'!J111,'Tabla Fijos'!K116)) -> 465.8718249 | K171: =IF($B171="","",IF(Sheet1!$Z$1=4,'Tabla de Pagos Crecientes'!K111,'Tabla Fijos'!L116)) -> 233.3333352 | L171: =IF($B171="","",IF(Sheet1!$Z$1=4,'Tabla de Pagos Crecientes'!L111,'Tabla Fijos'!M116)) -> 299 | M171: =IF($B171=0,0,IF(B171="","",VLOOKUP($B171,'Tabla Fijos'!$B$12:$R$311,13,0))) -> 0 | O171: =IF(B171="","",G171+H171+I171+J171+K171+L171-M171-'Tabla Fijos'!P116) -> 10389.1074 | P171: 773277.9046 | Q171: 1
B172: 106 | C172: =IF($B172="","",'Fecha Pago'!K109) -> 2032-05-03 | D172: =IF($B$67="","",'Fecha Pago'!L109) -> 30.4 | E172: =IF(B172="","",IF(Sheet1!$Z$1=4,'Tabla de Pagos Crecientes'!E112,$F$62)) -> 0.0948 | F172: =IF($B172="","",IF(Sheet1!$Z$1=4,'Tabla de Pagos Crecientes'!F112,'Tabla Fijos'!F117)) -> 773277.9046 | G172: =IF($B172="","",IF(Sheet1!$Z$1=4,'Tabla de Pagos Crecientes'!G112,'Tabla Fijos'!G117)) -> 3200.554857 | H172: =IF($B172="","",IF(Sheet1!$Z$1=4,'Tabla de Pagos Crecientes'!H112,'Tabla Fijos'!H117)) -> 6190.347386 | I172: =IF($B172=0,0,IF(B172="","",VLOOKUP($B172,'Tabla Fijos'!$B$12:$R$311,8,0))) -> 0 | J172: =IF($B172="","",IF(Sheet1!$Z$1=4,'Tabla de Pagos Crecientes'!J112,'Tabla Fijos'!K117)) -> 463.9667428 | K172: =IF($B172="","",IF(Sheet1!$Z$1=4,'Tabla de Pagos Crecientes'!K112,'Tabla Fijos'!L117)) -> 233.3333352 | L172: =IF($B172="","",IF(Sheet1!$Z$1=4,'Tabla de Pagos Crecientes'!L112,'Tabla Fijos'!M117)) -> 299 | M172: =IF($B172=0,0,IF(B172="","",VLOOKUP($B172,'Tabla Fijos'!$B$12:$R$311,13,0))) -> 0 | O172: =IF(B172="","",G172+H172+I172+J172+K172+L172-M172-'Tabla Fijos'!P117) -> 10387.20232 | P172: 770077.3498 | Q172: 1
B173: 107 | C173: =IF($B173="","",'Fecha Pago'!K110) -> 2032-06-03 | D173: =IF($B$67="","",'Fecha Pago'!L110) -> 30.4 | E173: =IF(B173="","",IF(Sheet1!$Z$1=4,'Tabla de Pagos Crecientes'!E113,$F$62)) -> 0.0948 | F173: =IF($B173="","",IF(Sheet1!$Z$1=4,'Tabla de Pagos Crecientes'!F113,'Tabla Fijos'!F118)) -> 770077.3498 | G173: =IF($B173="","",IF(Sheet1!$Z$1=4,'Tabla de Pagos Crecientes'!G113,'Tabla Fijos'!G118)) -> 3226.176366 | H173: =IF($B173="","",IF(Sheet1!$Z$1=4,'Tabla de Pagos Crecientes'!H113,'Tabla Fijos'!H118)) -> 6164.725877 | I173: =IF($B173=0,0,IF(B173="","",VLOOKUP($B173,'Tabla Fijos'!$B$12:$R$311,8,0))) -> 0 | J173: =IF($B173="","",IF(Sheet1!$Z$1=4,'Tabla de Pagos Crecientes'!J113,'Tabla Fijos'!K118)) -> 462.0464099 | K173: =IF($B173="","",IF(Sheet1!$Z$1=4,'Tabla de Pagos Crecientes'!K113,'Tabla Fijos'!L118)) -> 233.3333352 | L173: =IF($B173="","",IF(Sheet1!$Z$1=4,'Tabla de Pagos Crecientes'!L113,'Tabla Fijos'!M118)) -> 299 | M173: =IF($B173=0,0,IF(B173="","",VLOOKUP($B173,'Tabla Fijos'!$B$12:$R$311,13,0))) -> 0 | O173: =IF(B173="","",G173+H173+I173+J173+K173+L173-M173-'Tabla Fijos'!P118) -> 10385.28199 | P173: 766851.1734 | Q173: 1
B174: 108 | C174: =IF($B174="","",'Fecha Pago'!K111) -> 2032-07-03 | D174: =IF($B$67="","",'Fecha Pago'!L111) -> 30.4 | E174: =IF(B174="","",IF(Sheet1!$Z$1=4,'Tabla de Pagos Crecientes'!E114,$F$62)) -> 0.0948 | F174: =IF($B174="","",IF(Sheet1!$Z$1=4,'Tabla de Pagos Crecientes'!F114,'Tabla Fijos'!F119)) -> 766851.1734 | G174: =IF($B174="","",IF(Sheet1!$Z$1=4,'Tabla de Pagos Crecientes'!G114,'Tabla Fijos'!G119)) -> 3252.002983 | H174: =IF($B174="","",IF(Sheet1!$Z$1=4,'Tabla de Pagos Crecientes'!H114,'Tabla Fijos'!H119)) -> 6138.89926 | I174: =IF($B174=0,0,IF(B174="","",VLOOKUP($B174,'Tabla Fijos'!$B$12:$R$311,8,0))) -> 0 | J174: =IF($B174="","",IF(Sheet1!$Z$1=4,'Tabla de Pagos Crecientes'!J114,'Tabla Fijos'!K119)) -> 460.110704 | K174: =IF($B174="","",IF(Sheet1!$Z$1=4,'Tabla de Pagos Crecientes'!K114,'Tabla Fijos'!L119)) -> 233.3333352 | L174: =IF($B174="","",IF(Sheet1!$Z$1=4,'Tabla de Pagos Crecientes'!L114,'Tabla Fijos'!M119)) -> 299 | M174: =IF($B174=0,0,IF(B174="","",VLOOKUP($B174,'Tabla Fijos'!$B$12:$R$311,13,0))) -> 0 | O174: =IF(B174="","",G174+H174+I174+J174+K174+L174-M174-'Tabla Fijos'!P119) -> 10383.34628 | P174: 763599.1704 | Q174: 1
B175: 109 | C175: =IF($B175="","",'Fecha Pago'!K112) -> 2032-08-03 | D175: =IF($B$67="","",'Fecha Pago'!L112) -> 30.4 | E175: =IF(B175="","",IF(Sheet1!$Z$1=4,'Tabla de Pagos Crecientes'!E115,$F$62)) -> 0.0948 | F175: =IF($B175="","",IF(Sheet1!$Z$1=4,'Tabla de Pagos Crecientes'!F115,'Tabla Fijos'!F120)) -> 763599.1704 | G175: =IF($B175="","",IF(Sheet1!$Z$1=4,'Tabla de Pagos Crecientes'!G115,'Tabla Fijos'!G120)) -> 3278.036351 | H175: =IF($B175="","",IF(Sheet1!$Z$1=4,'Tabla de Pagos Crecientes'!H115,'Tabla Fijos'!H120)) -> 6112.865892 | I175: =IF($B175=0,0,IF(B175="","",VLOOKUP($B175,'Tabla Fijos'!$B$12:$R$311,8,0))) -> 0 | J175: =IF($B175="","",IF(Sheet1!$Z$1=4,'Tabla de Pagos Crecientes'!J115,'Tabla Fijos'!K120)) -> 458.1595022 | K175: =IF($B175="","",IF(Sheet1!$Z$1=4,'Tabla de Pagos Crecientes'!K115,'Tabla Fijos'!L120)) -> 233.3333352 | L175: =IF($B175="","",IF(Sheet1!$Z$1=4,'Tabla de Pagos Crecientes'!L115,'Tabla Fijos'!M120)) -> 299 | M175: =IF($B175=0,0,IF(B175="","",VLOOKUP($B175,'Tabla Fijos'!$B$12:$R$311,13,0))) -> 0 | O175: =IF(B175="","",G175+H175+I175+J175+K175+L175-M175-'Tabla Fijos'!P120) -> 10381.39508 | P175: 760321.1341 | Q175: 1
B176: 110 | C176: =IF($B176="","",'Fecha Pago'!K113) -> 2032-09-03 | D176: =IF($B$67="","",'Fecha Pago'!L113) -> 30.4 | E176: =IF(B176="","",IF(Sheet1!$Z$1=4,'Tabla de Pagos Crecientes'!E116,$F$62)) -> 0.0948 | F176: =IF($B176="","",IF(Sheet1!$Z$1=4,'Tabla de Pagos Crecientes'!F116,'Tabla Fijos'!F121)) -> 760321.1341 | G176: =IF($B176="","",IF(Sheet1!$Z$1=4,'Tabla de Pagos Crecientes'!G116,'Tabla Fijos'!G121)) -> 3304.278124 | H176: =IF($B176="","",IF(Sheet1!$Z$1=4,'Tabla de Pagos Crecientes'!H116,'Tabla Fijos'!H121)) -> 6086.624119 | I176: =IF($B176=0,0,IF(B176="","",VLOOKUP($B176,'Tabla Fijos'!$B$12:$R$311,8,0))) -> 0 | J176: =IF($B176="","",IF(Sheet1!$Z$1=4,'Tabla de Pagos Crecientes'!J116,'Tabla Fijos'!K121)) -> 456.1926804 | K176: =IF($B176="","",IF(Sheet1!$Z$1=4,'Tabla de Pagos Crecientes'!K116,'Tabla Fijos'!L121)) -> 233.3333352 | L176: =IF($B176="","",IF(Sheet1!$Z$1=4,'Tabla de Pagos Crecientes'!L116,'Tabla Fijos'!M121)) -> 299 | M176: =IF($B176=0,0,IF(B176="","",VLOOKUP($B176,'Tabla Fijos'!$B$12:$R$311,13,0))) -> 0 | O176: =IF(B176="","",G176+H176+I176+J176+K176+L176-M176-'Tabla Fijos'!P121) -> 10379.42826 | P176: 757016.8559 | Q176: 1
B177: 111 | C177: =IF($B177="","",'Fecha Pago'!K114) -> 2032-10-03 | D177: =IF($B$67="","",'Fecha Pago'!L114) -> 30.4 | E177: =IF(B177="","",IF(Sheet1!$Z$1=4,'Tabla de Pagos Crecientes'!E117,$F$62)) -> 0.0948 | F177: =IF($B177="","",IF(Sheet1!$Z$1=4,'Tabla de Pagos Crecientes'!F117,'Tabla Fijos'!F122)) -> 757016.8559 | G177: =IF($B177="","",IF(Sheet1!$Z$1=4,'Tabla de Pagos Crecientes'!G117,'Tabla Fijos'!G122)) -> 3330.729972 | H177: =IF($B177="","",IF(Sheet1!$Z$1=4,'Tabla de Pagos Crecientes'!H117,'Tabla Fijos'!H122)) -> 6060.172271 | I177: =IF($B177=0,0,IF(B177="","",VLOOKUP($B177,'Tabla Fijos'!$B$12:$R$311,8,0))) -> 0 | J177: =IF($B177="","",IF(Sheet1!$Z$1=4,'Tabla de Pagos Crecientes'!J117,'Tabla Fijos'!K122)) -> 454.2101136 | K177: =IF($B177="","",IF(Sheet1!$Z$1=4,'Tabla de Pagos Crecientes'!K117,'Tabla Fijos'!L122)) -> 233.3333352 | L177: =IF($B177="","",IF(Sheet1!$Z$1=4,'Tabla de Pagos Crecientes'!L117,'Tabla Fijos'!M122)) -> 299 | M177: =IF($B177=0,0,IF(B177="","",VLOOKUP($B177,'Tabla Fijos'!$B$12:$R$311,13,0))) -> 0 | O177: =IF(B177="","",G177+H177+I177+J177+K177+L177-M177-'Tabla Fijos'!P122) -> 10377.44569 | P177: 753686.126 | Q177: 1
B178: 112 | C178: =IF($B178="","",'Fecha Pago'!K115) -> 2032-11-03 | D178: =IF($B$67="","",'Fecha Pago'!L115) -> 30.4 | E178: =IF(B178="","",IF(Sheet1!$Z$1=4,'Tabla de Pagos Crecientes'!E118,$F$62)) -> 0.0948 | F178: =IF($B178="","",IF(Sheet1!$Z$1=4,'Tabla de Pagos Crecientes'!F118,'Tabla Fijos'!F123)) -> 753686.126 | G178: =IF($B178="","",IF(Sheet1!$Z$1=4,'Tabla de Pagos Crecientes'!G118,'Tabla Fijos'!G123)) -> 3357.393576 | H178: =IF($B178="","",IF(Sheet1!$Z$1=4,'Tabla de Pagos Crecientes'!H118,'Tabla Fijos'!H123)) -> 6033.508667 | I178: =IF($B178=0,0,IF(B178="","",VLOOKUP($B178,'Tabla Fijos'!$B$12:$R$311,8,0))) -> 0 | J178: =IF($B178="","",IF(Sheet1!$Z$1=4,'Tabla de Pagos Crecientes'!J118,'Tabla Fijos'!K123)) -> 452.2116756 | K178: =IF($B178="","",IF(Sheet1!$Z$1=4,'Tabla de Pagos Crecientes'!K118,'Tabla Fijos'!L123)) -> 233.3333352 | L178: =IF($B178="","",IF(Sheet1!$Z$1=4,'Tabla de Pagos Crecientes'!L118,'Tabla Fijos'!M123)) -> 299 | M178: =IF($B178=0,0,IF(B178="","",VLOOKUP($B178,'Tabla Fijos'!$B$12:$R$311,13,0))) -> 0 | O178: =IF(B178="","",G178+H178+I178+J178+K178+L178-M178-'Tabla Fijos'!P123) -> 10375.44725 | P178: 750328.7324 | Q178: 1
B179: 113 | C179: =IF($B179="","",'Fecha Pago'!K116) -> 2032-12-03 | D179: =IF($B$67="","",'Fecha Pago'!L116) -> 30.4 | E179: =IF(B179="","",IF(Sheet1!$Z$1=4,'Tabla de Pagos Crecientes'!E119,$F$62)) -> 0.0948 | F179: =IF($B179="","",IF(Sheet1!$Z$1=4,'Tabla de Pagos Crecientes'!F119,'Tabla Fijos'!F124)) -> 750328.7324 | G179: =IF($B179="","",IF(Sheet1!$Z$1=4,'Tabla de Pagos Crecientes'!G119,'Tabla Fijos'!G124)) -> 3384.270631 | H179: =IF($B179="","",IF(Sheet1!$Z$1=4,'Tabla de Pagos Crecientes'!H119,'Tabla Fijos'!H124)) -> 6006.631612 | I179: =IF($B179=0,0,IF(B179="","",VLOOKUP($B179,'Tabla Fijos'!$B$12:$R$311,8,0))) -> 0 | J179: =IF($B179="","",IF(Sheet1!$Z$1=4,'Tabla de Pagos Crecientes'!J119,'Tabla Fijos'!K124)) -> 450.1972394 | K179: =IF($B179="","",IF(Sheet1!$Z$1=4,'Tabla de Pagos Crecientes'!K119,'Tabla Fijos'!L124)) -> 233.3333352 | L179: =IF($B179="","",IF(Sheet1!$Z$1=4,'Tabla de Pagos Crecientes'!L119,'Tabla Fijos'!M124)) -> 299 | M179: =IF($B179=0,0,IF(B179="","",VLOOKUP($B179,'Tabla Fijos'!$B$12:$R$311,13,0))) -> 0 | O179: =IF(B179="","",G179+H179+I179+J179+K179+L179-M179-'Tabla Fijos'!P124) -> 10373.43282 | P179: 746944.4618 | Q179: 1
B180: 114 | C180: =IF($B180="","",'Fecha Pago'!K117) -> 2033-01-03 | D180: =IF($B$67="","",'Fecha Pago'!L117) -> 30.4 | E180: =IF(B180="","",IF(Sheet1!$Z$1=4,'Tabla de Pagos Crecientes'!E120,$F$62)) -> 0.0948 | F180: =IF($B180="","",IF(Sheet1!$Z$1=4,'Tabla de Pagos Crecientes'!F120,'Tabla Fijos'!F125)) -> 746944.4618 | G180: =IF($B180="","",IF(Sheet1!$Z$1=4,'Tabla de Pagos Crecientes'!G120,'Tabla Fijos'!G125)) -> 3411.362845 | H180: =IF($B180="","",IF(Sheet1!$Z$1=4,'Tabla de Pagos Crecientes'!H120,'Tabla Fijos'!H125)) -> 5979.539398 | I180: =IF($B180=0,0,IF(B180="","",VLOOKUP($B180,'Tabla Fijos'!$B$12:$R$311,8,0))) -> 0 | J180: =IF($B180="","",IF(Sheet1!$Z$1=4,'Tabla de Pagos Crecientes'!J120,'Tabla Fijos'!K125)) -> 448.1666771 | K180: =IF($B180="","",IF(Sheet1!$Z$1=4,'Tabla de Pagos Crecientes'!K120,'Tabla Fijos'!L125)) -> 233.3333352 | L180: =IF($B180="","",IF(Sheet1!$Z$1=4,'Tabla de Pagos Crecientes'!L120,'Tabla Fijos'!M125)) -> 299 | M180: =IF($B180=0,0,IF(B180="","",VLOOKUP($B180,'Tabla Fijos'!$B$12:$R$311,13,0))) -> 0 | O180: =IF(B180="","",G180+H180+I180+J180+K180+L180-M180-'Tabla Fijos'!P125) -> 10371.40226 | P180: 743533.0989 | Q180: 1
B181: 115 | C181: =IF($B181="","",'Fecha Pago'!K118) -> 2033-02-03 | D181: =IF($B$67="","",'Fecha Pago'!L118) -> 30.4 | E181: =IF(B181="","",IF(Sheet1!$Z$1=4,'Tabla de Pagos Crecientes'!E121,$F$62)) -> 0.0948 | F181: =IF($B181="","",IF(Sheet1!$Z$1=4,'Tabla de Pagos Crecientes'!F121,'Tabla Fijos'!F126)) -> 743533.0989 | G181: =IF($B181="","",IF(Sheet1!$Z$1=4,'Tabla de Pagos Crecientes'!G121,'Tabla Fijos'!G126)) -> 3438.671942 | H181: =IF($B181="","",IF(Sheet1!$Z$1=4,'Tabla de Pagos Crecientes'!H121,'Tabla Fijos'!H126)) -> 5952.230301 | I181: =IF($B181=0,0,IF(B181="","",VLOOKUP($B181,'Tabla Fijos'!$B$12:$R$311,8,0))) -> 0 | J181: =IF($B181="","",IF(Sheet1!$Z$1=4,'Tabla de Pagos Crecientes'!J121,'Tabla Fijos'!K126)) -> 446.1198593 | K181: =IF($B181="","",IF(Sheet1!$Z$1=4,'Tabla de Pagos Crecientes'!K121,'Tabla Fijos'!L126)) -> 233.3333352 | L181: =IF($B181="","",IF(Sheet1!$Z$1=4,'Tabla de Pagos Crecientes'!L121,'Tabla Fijos'!M126)) -> 299 | M181: =IF($B181=0,0,IF(B181="","",VLOOKUP($B181,'Tabla Fijos'!$B$12:$R$311,13,0))) -> 0 | O181: =IF(B181="","",G181+H181+I181+J181+K181+L181-M181-'Tabla Fijos'!P126) -> 10369.35544 | P181: 740094.427 | Q181: 1
B182: 116 | C182: =IF($B182="","",'Fecha Pago'!K119) -> 2033-03-03 | D182: =IF($B$67="","",'Fecha Pago'!L119) -> 30.4 | E182: =IF(B182="","",IF(Sheet1!$Z$1=4,'Tabla de Pagos Crecientes'!E122,$F$62)) -> 0.0948 | F182: =IF($B182="","",IF(Sheet1!$Z$1=4,'Tabla de Pagos Crecientes'!F122,'Tabla Fijos'!F127)) -> 740094.427 | G182: =IF($B182="","",IF(Sheet1!$Z$1=4,'Tabla de Pagos Crecientes'!G122,'Tabla Fijos'!G127)) -> 3466.199657 | H182: =IF($B182="","",IF(Sheet1!$Z$1=4,'Tabla de Pagos Crecientes'!H122,'Tabla Fijos'!H127)) -> 5924.702586 | I182: =IF($B182=0,0,IF(B182="","",VLOOKUP($B182,'Tabla Fijos'!$B$12:$R$311,8,0))) -> 0 | J182: =IF($B182="","",IF(Sheet1!$Z$1=4,'Tabla de Pagos Crecientes'!J122,'Tabla Fijos'!K127)) -> 444.0566562 | K182: =IF($B182="","",IF(Sheet1!$Z$1=4,'Tabla de Pagos Crecientes'!K122,'Tabla Fijos'!L127)) -> 233.3333352 | L182: =IF($B182="","",IF(Sheet1!$Z$1=4,'Tabla de Pagos Crecientes'!L122,'Tabla Fijos'!M127)) -> 299 | M182: =IF($B182=0,0,IF(B182="","",VLOOKUP($B182,'Tabla Fijos'!$B$12:$R$311,13,0))) -> 0 | O182: =IF(B182="","",G182+H182+I182+J182+K182+L182-M182-'Tabla Fijos'!P127) -> 10367.29223 | P182: 736628.2273 | Q182: 1
B183: 117 | C183: =IF($B183="","",'Fecha Pago'!K120) -> 2033-04-03 | D183: =IF($B$67="","",'Fecha Pago'!L120) -> 30.4 | E183: =IF(B183="","",IF(Sheet1!$Z$1=4,'Tabla de Pagos Crecientes'!E123,$F$62)) -> 0.0948 | F183: =IF($B183="","",IF(Sheet1!$Z$1=4,'Tabla de Pagos Crecientes'!F123,'Tabla Fijos'!F128)) -> 736628.2273 | G183: =IF($B183="","",IF(Sheet1!$Z$1=4,'Tabla de Pagos Crecientes'!G123,'Tabla Fijos'!G128)) -> 3493.947741 | H183: =IF($B183="","",IF(Sheet1!$Z$1=4,'Tabla de Pagos Crecientes'!H123,'Tabla Fijos'!H128)) -> 5896.954502 | I183: =IF($B183=0,0,IF(B183="","",VLOOKUP($B183,'Tabla Fijos'!$B$12:$R$311,8,0))) -> 0 | J183: =IF($B183="","",IF(Sheet1!$Z$1=4,'Tabla de Pagos Crecientes'!J123,'Tabla Fijos'!K128)) -> 441.9769364 | K183: =IF($B183="","",IF(Sheet1!$Z$1=4,'Tabla de Pagos Crecientes'!K123,'Tabla Fijos'!L128)) -> 233.3333352 | L183: =IF($B183="","",IF(Sheet1!$Z$1=4,'Tabla de Pagos Crecientes'!L123,'Tabla Fijos'!M128)) -> 299 | M183: =IF($B183=0,0,IF(B183="","",VLOOKUP($B183,'Tabla Fijos'!$B$12:$R$311,13,0))) -> 0 | O183: =IF(B183="","",G183+H183+I183+J183+K183+L183-M183-'Tabla Fijos'!P128) -> 10365.21251 | P183: 733134.2796 | Q183: 1
B184: 118 | C184: =IF($B184="","",'Fecha Pago'!K121) -> 2033-05-03 | D184: =IF($B$67="","",'Fecha Pago'!L121) -> 30.4 | E184: =IF(B184="","",IF(Sheet1!$Z$1=4,'Tabla de Pagos Crecientes'!E124,$F$62)) -> 0.0948 | F184: =IF($B184="","",IF(Sheet1!$Z$1=4,'Tabla de Pagos Crecientes'!F124,'Tabla Fijos'!F129)) -> 733134.2796 | G184: =IF($B184="","",IF(Sheet1!$Z$1=4,'Tabla de Pagos Crecientes'!G124,'Tabla Fijos'!G129)) -> 3521.917957 | H184: =IF($B184="","",IF(Sheet1!$Z$1=4,'Tabla de Pagos Crecientes'!H124,'Tabla Fijos'!H129)) -> 5868.984286 | I184: =IF($B184=0,0,IF(B184="","",VLOOKUP($B184,'Tabla Fijos'!$B$12:$R$311,8,0))) -> 0 | J184: =IF($B184="","",IF(Sheet1!$Z$1=4,'Tabla de Pagos Crecientes'!J124,'Tabla Fijos'!K129)) -> 439.8805677 | K184: =IF($B184="","",IF(Sheet1!$Z$1=4,'Tabla de Pagos Crecientes'!K124,'Tabla Fijos'!L129)) -> 233.3333352 | L184: =IF($B184="","",IF(Sheet1!$Z$1=4,'Tabla de Pagos Crecientes'!L124,'Tabla Fijos'!M129)) -> 299 | M184: =IF($B184=0,0,IF(B184="","",VLOOKUP($B184,'Tabla Fijos'!$B$12:$R$311,13,0))) -> 0 | O184: =IF(B184="","",G184+H184+I184+J184+K184+L184-M184-'Tabla Fijos'!P129) -> 10363.11615 | P184: 729612.3616 | Q184: 1
B185: 119 | C185: =IF($B185="","",'Fecha Pago'!K122) -> 2033-06-03 | D185: =IF($B$67="","",'Fecha Pago'!L122) -> 30.4 | E185: =IF(B185="","",IF(Sheet1!$Z$1=4,'Tabla de Pagos Crecientes'!E125,$F$62)) -> 0.0948 | F185: =IF($B185="","",IF(Sheet1!$Z$1=4,'Tabla de Pagos Crecientes'!F125,'Tabla Fijos'!F130)) -> 729612.3616 | G185: =IF($B185="","",IF(Sheet1!$Z$1=4,'Tabla de Pagos Crecientes'!G125,'Tabla Fijos'!G130)) -> 3550.112084 | H185: =IF($B185="","",IF(Sheet1!$Z$1=4,'Tabla de Pagos Crecientes'!H125,'Tabla Fijos'!H130)) -> 5840.790159 | I185: =IF($B185=0,0,IF(B185="","",VLOOKUP($B185,'Tabla Fijos'!$B$12:$R$311,8,0))) -> 0 | J185: =IF($B185="","",IF(Sheet1!$Z$1=4,'Tabla de Pagos Crecientes'!J125,'Tabla Fijos'!K130)) -> 437.767417 | K185: =IF($B185="","",IF(Sheet1!$Z$1=4,'Tabla de Pagos Crecientes'!K125,'Tabla Fijos'!L130)) -> 233.3333352 | L185: =IF($B185="","",IF(Sheet1!$Z$1=4,'Tabla de Pagos Crecientes'!L125,'Tabla Fijos'!M130)) -> 299 | M185: =IF($B185=0,0,IF(B185="","",VLOOKUP($B185,'Tabla Fijos'!$B$12:$R$311,13,0))) -> 0 | O185: =IF(B185="","",G185+H185+I185+J185+K185+L185-M185-'Tabla Fijos'!P130) -> 10361.003 | P185: 726062.2495 | Q185: 1
B186: 120 | C186: =IF($B186="","",'Fecha Pago'!K123) -> 2033-07-03 | D186: =IF($B$67="","",'Fecha Pago'!L123) -> 30.4 | E186: =IF(B186="","",IF(Sheet1!$Z$1=4,'Tabla de Pagos Crecientes'!E126,$F$62)) -> 0.0948 | F186: =IF($B186="","",IF(Sheet1!$Z$1=4,'Tabla de Pagos Crecientes'!F126,'Tabla Fijos'!F131)) -> 726062.2495 | G186: =IF($B186="","",IF(Sheet1!$Z$1=4,'Tabla de Pagos Crecientes'!G126,'Tabla Fijos'!G131)) -> 3578.531915 | H186: =IF($B186="","",IF(Sheet1!$Z$1=4,'Tabla de Pagos Crecientes'!H126,'Tabla Fijos'!H131)) -> 5812.370328 | I186: =IF($B186=0,0,IF(B186="","",VLOOKUP($B186,'Tabla Fijos'!$B$12:$R$311,8,0))) -> 0 | J186: =IF($B186="","",IF(Sheet1!$Z$1=4,'Tabla de Pagos Crecientes'!J126,'Tabla Fijos'!K131)) -> 435.6373497 | K186: =IF($B186="","",IF(Sheet1!$Z$1=4,'Tabla de Pagos Crecientes'!K126,'Tabla Fijos'!L131)) -> 233.3333352 | L186: =IF($B186="","",IF(Sheet1!$Z$1=4,'Tabla de Pagos Crecientes'!L126,'Tabla Fijos'!M131)) -> 299 | M186: =IF($B186=0,0,IF(B186="","",VLOOKUP($B186,'Tabla Fijos'!$B$12:$R$311,13,0))) -> 0 | O186: =IF(B186="","",G186+H186+I186+J186+K186+L186-M186-'Tabla Fijos'!P131) -> 10358.87293 | P186: 722483.7176 | Q186: 1
B187: 121 | C187: =IF($B187="","",'Fecha Pago'!K124) -> 2033-08-03 | D187: =IF($B$67="","",'Fecha Pago'!L124) -> 30.4 | E187: =IF(B187="","",IF(Sheet1!$Z$1=4,'Tabla de Pagos Crecientes'!E127,$F$62)) -> 0.0948 | F187: =IF($B187="","",IF(Sheet1!$Z$1=4,'Tabla de Pagos Crecientes'!F127,'Tabla Fijos'!F132)) -> 722483.7176 | G187: =IF($B187="","",IF(Sheet1!$Z$1=4,'Tabla de Pagos Crecientes'!G127,'Tabla Fijos'!G132)) -> 3607.179256 | H187: =IF($B187="","",IF(Sheet1!$Z$1=4,'Tabla de Pagos Crecientes'!H127,'Tabla Fijos'!H132)) -> 5783.722987 | I187: =IF($B187=0,0,IF(B187="","",VLOOKUP($B187,'Tabla Fijos'!$B$12:$R$311,8,0))) -> 0 | J187: =IF($B187="","",IF(Sheet1!$Z$1=4,'Tabla de Pagos Crecientes'!J127,'Tabla Fijos'!K132)) -> 433.4902306 | K187: =IF($B187="","",IF(Sheet1!$Z$1=4,'Tabla de Pagos Crecientes'!K127,'Tabla Fijos'!L132)) -> 233.3333352 | L187: =IF($B187="","",IF(Sheet1!$Z$1=4,'Tabla de Pagos Crecientes'!L127,'Tabla Fijos'!M132)) -> 299 | M187: =IF($B187=0,0,IF(B187="","",VLOOKUP($B187,'Tabla Fijos'!$B$12:$R$311,13,0))) -> 0 | O187: =IF(B187="","",G187+H187+I187+J187+K187+L187-M187-'Tabla Fijos'!P132) -> 10356.72581 | P187: 718876.5384 | Q187: 1
B188: 122 | C188: =IF($B188="","",'Fecha Pago'!K125) -> 2033-09-03 | D188: =IF($B$67="","",'Fecha Pago'!L125) -> 30.4 | E188: =IF(B188="","",IF(Sheet1!$Z$1=4,'Tabla de Pagos Crecientes'!E128,$F$62)) -> 0.0948 | F188: =IF($B188="","",IF(Sheet1!$Z$1=4,'Tabla de Pagos Crecientes'!F128,'Tabla Fijos'!F133)) -> 718876.5384 | G188: =IF($B188="","",IF(Sheet1!$Z$1=4,'Tabla de Pagos Crecientes'!G128,'Tabla Fijos'!G133)) -> 3636.055928 | H188: =IF($B188="","",IF(Sheet1!$Z$1=4,'Tabla de Pagos Crecientes'!H128,'Tabla Fijos'!H133)) -> 5754.846315 | I188: =IF($B188=0,0,IF(B188="","",VLOOKUP($B188,'Tabla Fijos'!$B$12:$R$311,8,0))) -> 0 | J188: =IF($B188="","",IF(Sheet1!$Z$1=4,'Tabla de Pagos Crecientes'!J128,'Tabla Fijos'!K133)) -> 431.325923 | K188: =IF($B188="","",IF(Sheet1!$Z$1=4,'Tabla de Pagos Crecientes'!K128,'Tabla Fijos'!L133)) -> 233.3333352 | L188: =IF($B188="","",IF(Sheet1!$Z$1=4,'Tabla de Pagos Crecientes'!L128,'Tabla Fijos'!M133)) -> 299 | M188: =IF($B188=0,0,IF(B188="","",VLOOKUP($B188,'Tabla Fijos'!$B$12:$R$311,13,0))) -> 0 | O188: =IF(B188="","",G188+H188+I188+J188+K188+L188-M188-'Tabla Fijos'!P133) -> 10354.5615 | P188: 715240.4824 | Q188: 1
B189: 123 | C189: =IF($B189="","",'Fecha Pago'!K126) -> 2033-10-03 | D189: =IF($B$67="","",'Fecha Pago'!L126) -> 30.4 | E189: =IF(B189="","",IF(Sheet1!$Z$1=4,'Tabla de Pagos Crecientes'!E129,$F$62)) -> 0.0948 | F189: =IF($B189="","",IF(Sheet1!$Z$1=4,'Tabla de Pagos Crecientes'!F129,'Tabla Fijos'!F134)) -> 715240.4824 | G189: =IF($B189="","",IF(Sheet1!$Z$1=4,'Tabla de Pagos Crecientes'!G129,'Tabla Fijos'!G134)) -> 3665.163768 | H189: =IF($B189="","",IF(Sheet1!$Z$1=4,'Tabla de Pagos Crecientes'!H129,'Tabla Fijos'!H134)) -> 5725.738475 | I189: =IF($B189=0,0,IF(B189="","",VLOOKUP($B189,'Tabla Fijos'!$B$12:$R$311,8,0))) -> 0 | J189: =IF($B189="","",IF(Sheet1!$Z$1=4,'Tabla de Pagos Crecientes'!J129,'Tabla Fijos'!K134)) -> 429.1442895 | K189: =IF($B189="","",IF(Sheet1!$Z$1=4,'Tabla de Pagos Crecientes'!K129,'Tabla Fijos'!L134)) -> 233.3333352 | L189: =IF($B189="","",IF(Sheet1!$Z$1=4,'Tabla de Pagos Crecientes'!L129,'Tabla Fijos'!M134)) -> 299 | M189: =IF($B189=0,0,IF(B189="","",VLOOKUP($B189,'Tabla Fijos'!$B$12:$R$311,13,0))) -> 0 | O189: =IF(B189="","",G189+H189+I189+J189+K189+L189-M189-'Tabla Fijos'!P134) -> 10352.37987 | P189: 711575.3187 | Q189: 1
B190: 124 | C190: =IF($B190="","",'Fecha Pago'!K127) -> 2033-11-03 | D190: =IF($B$67="","",'Fecha Pago'!L127) -> 30.4 | E190: =IF(B190="","",IF(Sheet1!$Z$1=4,'Tabla de Pagos Crecientes'!E130,$F$62)) -> 0.0948 | F190: =IF($B190="","",IF(Sheet1!$Z$1=4,'Tabla de Pagos Crecientes'!F130,'Tabla Fijos'!F135)) -> 711575.3187 | G190: =IF($B190="","",IF(Sheet1!$Z$1=4,'Tabla de Pagos Crecientes'!G130,'Tabla Fijos'!G135)) -> 3694.504625 | H190: =IF($B190="","",IF(Sheet1!$Z$1=4,'Tabla de Pagos Crecientes'!H130,'Tabla Fijos'!H135)) -> 5696.397618 | I190: =IF($B190=0,0,IF(B190="","",VLOOKUP($B190,'Tabla Fijos'!$B$12:$R$311,8,0))) -> 0 | J190: =IF($B190="","",IF(Sheet1!$Z$1=4,'Tabla de Pagos Crecientes'!J130,'Tabla Fijos'!K135)) -> 426.9451912 | K190: =IF($B190="","",IF(Sheet1!$Z$1=4,'Tabla de Pagos Crecientes'!K130,'Tabla Fijos'!L135)) -> 233.3333352 | L190: =IF($B190="","",IF(Sheet1!$Z$1=4,'Tabla de Pagos Crecientes'!L130,'Tabla Fijos'!M135)) -> 299 | M190: =IF($B190=0,0,IF(B190="","",VLOOKUP($B190,'Tabla Fijos'!$B$12:$R$311,13,0))) -> 0 | O190: =IF(B190="","",G190+H190+I190+J190+K190+L190-M190-'Tabla Fijos'!P135) -> 10350.18077 | P190: 707880.814 | Q190: 1
B191: 125 | C191: =IF($B191="","",'Fecha Pago'!K128) -> 2033-12-03 | D191: =IF($B$67="","",'Fecha Pago'!L128) -> 30.4 | E191: =IF(B191="","",IF(Sheet1!$Z$1=4,'Tabla de Pagos Crecientes'!E131,$F$62)) -> 0.0948 | F191: =IF($B191="","",IF(Sheet1!$Z$1=4,'Tabla de Pagos Crecientes'!F131,'Tabla Fijos'!F136)) -> 707880.814 | G191: =IF($B191="","",IF(Sheet1!$Z$1=4,'Tabla de Pagos Crecientes'!G131,'Tabla Fijos'!G136)) -> 3724.080366 | H191: =IF($B191="","",IF(Sheet1!$Z$1=4,'Tabla de Pagos Crecientes'!H131,'Tabla Fijos'!H136)) -> 5666.821877 | I191: =IF($B191=0,0,IF(B191="","",VLOOKUP($B191,'Tabla Fijos'!$B$12:$R$311,8,0))) -> 0 | J191: =IF($B191="","",IF(Sheet1!$Z$1=4,'Tabla de Pagos Crecientes'!J131,'Tabla Fijos'!K136)) -> 424.7284884 | K191: =IF($B191="","",IF(Sheet1!$Z$1=4,'Tabla de Pagos Crecientes'!K131,'Tabla Fijos'!L136)) -> 233.3333352 | L191: =IF($B191="","",IF(Sheet1!$Z$1=4,'Tabla de Pagos Crecientes'!L131,'Tabla Fijos'!M136)) -> 299 | M191: =IF($B191=0,0,IF(B191="","",VLOOKUP($B191,'Tabla Fijos'!$B$12:$R$311,13,0))) -> 0 | O191: =IF(B191="","",G191+H191+I191+J191+K191+L191-M191-'Tabla Fijos'!P136) -> 10347.96407 | P191: 704156.7337 | Q191: 1
B192: 126 | C192: =IF($B192="","",'Fecha Pago'!K129) -> 2034-01-03 | D192: =IF($B$67="","",'Fecha Pago'!L129) -> 30.4 | E192: =IF(B192="","",IF(Sheet1!$Z$1=4,'Tabla de Pagos Crecientes'!E132,$F$62)) -> 0.0948 | F192: =IF($B192="","",IF(Sheet1!$Z$1=4,'Tabla de Pagos Crecientes'!F132,'Tabla Fijos'!F137)) -> 704156.7337 | G192: =IF($B192="","",IF(Sheet1!$Z$1=4,'Tabla de Pagos Crecientes'!G132,'Tabla Fijos'!G137)) -> 3753.892871 | H192: =IF($B192="","",IF(Sheet1!$Z$1=4,'Tabla de Pagos Crecientes'!H132,'Tabla Fijos'!H137)) -> 5637.009372 | I192: =IF($B192=0,0,IF(B192="","",VLOOKUP($B192,'Tabla Fijos'!$B$12:$R$311,8,0))) -> 0 | J192: =IF($B192="","",IF(Sheet1!$Z$1=4,'Tabla de Pagos Crecientes'!J132,'Tabla Fijos'!K137)) -> 422.4940402 | K192: =IF($B192="","",IF(Sheet1!$Z$1=4,'Tabla de Pagos Crecientes'!K132,'Tabla Fijos'!L137)) -> 233.3333352 | L192: =IF($B192="","",IF(Sheet1!$Z$1=4,'Tabla de Pagos Crecientes'!L132,'Tabla Fijos'!M137)) -> 299 | M192: =IF($B192=0,0,IF(B192="","",VLOOKUP($B192,'Tabla Fijos'!$B$12:$R$311,13,0))) -> 0 | O192: =IF(B192="","",G192+H192+I192+J192+K192+L192-M192-'Tabla Fijos'!P137) -> 10345.72962 | P192: 700402.8408 | Q192: 1
B193: 127 | C193: =IF($B193="","",'Fecha Pago'!K130) -> 2034-02-03 | D193: =IF($B$67="","",'Fecha Pago'!L130) -> 30.4 | E193: =IF(B193="","",IF(Sheet1!$Z$1=4,'Tabla de Pagos Crecientes'!E133,$F$62)) -> 0.0948 | F193: =IF($B193="","",IF(Sheet1!$Z$1=4,'Tabla de Pagos Crecientes'!F133,'Tabla Fijos'!F138)) -> 700402.8408 | G193: =IF($B193="","",IF(Sheet1!$Z$1=4,'Tabla de Pagos Crecientes'!G133,'Tabla Fijos'!G138)) -> 3783.944035 | H193: =IF($B193="","",IF(Sheet1!$Z$1=4,'Tabla de Pagos Crecientes'!H133,'Tabla Fijos'!H138)) -> 5606.958208 | I193: =IF($B193=0,0,IF(B193="","",VLOOKUP($B193,'Tabla Fijos'!$B$12:$R$311,8,0))) -> 0 | J193: =IF($B193="","",IF(Sheet1!$Z$1=4,'Tabla de Pagos Crecientes'!J133,'Tabla Fijos'!K138)) -> 420.2417045 | K193: =IF($B193="","",IF(Sheet1!$Z$1=4,'Tabla de Pagos Crecientes'!K133,'Tabla Fijos'!L138)) -> 233.3333352 | L193: =IF($B193="","",IF(Sheet1!$Z$1=4,'Tabla de Pagos Crecientes'!L133,'Tabla Fijos'!M138)) -> 299 | M193: =IF($B193=0,0,IF(B193="","",VLOOKUP($B193,'Tabla Fijos'!$B$12:$R$311,13,0))) -> 0 | O193: =IF(B193="","",G193+H193+I193+J193+K193+L193-M193-'Tabla Fijos'!P138) -> 10343.47728 | P193: 696618.8968 | Q193: 1
B194: 128 | C194: =IF($B194="","",'Fecha Pago'!K131) -> 2034-03-03 | D194: =IF($B$67="","",'Fecha Pago'!L131) -> 30.4 | E194: =IF(B194="","",IF(Sheet1!$Z$1=4,'Tabla de Pagos Crecientes'!E134,$F$62)) -> 0.0948 | F194: =IF($B194="","",IF(Sheet1!$Z$1=4,'Tabla de Pagos Crecientes'!F134,'Tabla Fijos'!F139)) -> 696618.8968 | G194: =IF($B194="","",IF(Sheet1!$Z$1=4,'Tabla de Pagos Crecientes'!G134,'Tabla Fijos'!G139)) -> 3814.235768 | H194: =IF($B194="","",IF(Sheet1!$Z$1=4,'Tabla de Pagos Crecientes'!H134,'Tabla Fijos'!H139)) -> 5576.666475 | I194: =IF($B194=0,0,IF(B194="","",VLOOKUP($B194,'Tabla Fijos'!$B$12:$R$311,8,0))) -> 0 | J194: =IF($B194="","",IF(Sheet1!$Z$1=4,'Tabla de Pagos Crecientes'!J134,'Tabla Fijos'!K139)) -> 417.9713381 | K194: =IF($B194="","",IF(Sheet1!$Z$1=4,'Tabla de Pagos Crecientes'!K134,'Tabla Fijos'!L139)) -> 233.3333352 | L194: =IF($B194="","",IF(Sheet1!$Z$1=4,'Tabla de Pagos Crecientes'!L134,'Tabla Fijos'!M139)) -> 299 | M194: =IF($B194=0,0,IF(B194="","",VLOOKUP($B194,'Tabla Fijos'!$B$12:$R$311,13,0))) -> 0 | O194: =IF(B194="","",G194+H194+I194+J194+K194+L194-M194-'Tabla Fijos'!P139) -> 10341.20692 | P194: 692804.661 | Q194: 1
B195: 129 | C195: =IF($B195="","",'Fecha Pago'!K132) -> 2034-04-03 | D195: =IF($B$67="","",'Fecha Pago'!L132) -> 30.4 | E195: =IF(B195="","",IF(Sheet1!$Z$1=4,'Tabla de Pagos Crecientes'!E135,$F$62)) -> 0.0948 | F195: =IF($B195="","",IF(Sheet1!$Z$1=4,'Tabla de Pagos Crecientes'!F135,'Tabla Fijos'!F140)) -> 692804.661 | G195: =IF($B195="","",IF(Sheet1!$Z$1=4,'Tabla de Pagos Crecientes'!G135,'Tabla Fijos'!G140)) -> 3844.769997 | H195: =IF($B195="","",IF(Sheet1!$Z$1=4,'Tabla de Pagos Crecientes'!H135,'Tabla Fijos'!H140)) -> 5546.132246 | I195: =IF($B195=0,0,IF(B195="","",VLOOKUP($B195,'Tabla Fijos'!$B$12:$R$311,8,0))) -> 0 | J195: =IF($B195="","",IF(Sheet1!$Z$1=4,'Tabla de Pagos Crecientes'!J135,'Tabla Fijos'!K140)) -> 415.6827966 | K195: =IF($B195="","",IF(Sheet1!$Z$1=4,'Tabla de Pagos Crecientes'!K135,'Tabla Fijos'!L140)) -> 233.3333352 | L195: =IF($B195="","",IF(Sheet1!$Z$1=4,'Tabla de Pagos Crecientes'!L135,'Tabla Fijos'!M140)) -> 299 | M195: =IF($B195=0,0,IF(B195="","",VLOOKUP($B195,'Tabla Fijos'!$B$12:$R$311,13,0))) -> 0 | O195: =IF(B195="","",G195+H195+I195+J195+K195+L195-M195-'Tabla Fijos'!P140) -> 10338.91837 | P195: =IF(B195="","",F195-G195) -> 688959.891 | Q195: 1
B196: 130 | C196: =IF($B196="","",'Fecha Pago'!K133) -> 2034-05-03 | D196: =IF($B$67="","",'Fecha Pago'!L133) -> 30.4 | E196: =IF(B196="","",IF(Sheet1!$Z$1=4,'Tabla de Pagos Crecientes'!E136,$F$62)) -> 0.0948 | F196: =IF($B196="","",IF(Sheet1!$Z$1=4,'Tabla de Pagos Crecientes'!F136,'Tabla Fijos'!F141)) -> 688959.891 | G196: =IF($B196="","",IF(Sheet1!$Z$1=4,'Tabla de Pagos Crecientes'!G136,'Tabla Fijos'!G141)) -> 3875.548662 | H196: =IF($B196="","",IF(Sheet1!$Z$1=4,'Tabla de Pagos Crecientes'!H136,'Tabla Fijos'!H141)) -> 5515.353581 | I196: =IF($B196=0,0,IF(B196="","",VLOOKUP($B196,'Tabla Fijos'!$B$12:$R$311,8,0))) -> 0 | J196: =IF($B196="","",IF(Sheet1!$Z$1=4,'Tabla de Pagos Crecientes'!J136,'Tabla Fijos'!K141)) -> 413.3759346 | K196: =IF($B196="","",IF(Sheet1!$Z$1=4,'Tabla de Pagos Crecientes'!K136,'Tabla Fijos'!L141)) -> 233.3333352 | L196: =IF($B196="","",IF(Sheet1!$Z$1=4,'Tabla de Pagos Crecientes'!L136,'Tabla Fijos'!M141)) -> 299 | M196: =IF($B196=0,0,IF(B196="","",VLOOKUP($B196,'Tabla Fijos'!$B$12:$R$311,13,0))) -> 0 | O196: =IF(B196="","",G196+H196+I196+J196+K196+L196-M196-'Tabla Fijos'!P141) -> 10336.61151 | P196: 685084.3423 | Q196: =IF(OR($B196="",$F196<=0),0,1) -> 1
B197: =IF(B196="","",IF(B196=$H$49,"",B196+1)) -> 131 | C197: =IF($B197="","",'Fecha Pago'!K134) -> 2034-06-03 | D197: =IF($B$67="","",'Fecha Pago'!L134) -> 30.4 | E197: =IF(B197="","",IF(Sheet1!$Z$1=4,'Tabla de Pagos Crecientes'!E137,$F$62)) -> 0.0948 | F197: =IF($B197="","",IF(Sheet1!$Z$1=4,'Tabla de Pagos Crecientes'!F137,'Tabla Fijos'!F142)) -> 685084.3423 | G197: =IF($B197="","",IF(Sheet1!$Z$1=4,'Tabla de Pagos Crecientes'!G137,'Tabla Fijos'!G142)) -> 3906.573721 | H197: =IF($B197="","",IF(Sheet1!$Z$1=4,'Tabla de Pagos Crecientes'!H137,'Tabla Fijos'!H142)) -> 5484.328522 | I197: =IF($B197=0,0,IF(B197="","",VLOOKUP($B197,'Tabla Fijos'!$B$12:$R$311,8,0))) -> 0 | J197: =IF($B197="","",IF(Sheet1!$Z$1=4,'Tabla de Pagos Crecientes'!J137,'Tabla Fijos'!K142)) -> 411.0506054 | K197: =IF($B197="","",IF(Sheet1!$Z$1=4,'Tabla de Pagos Crecientes'!K137,'Tabla Fijos'!L142)) -> 233.3333352 | L197: =IF($B197="","",IF(Sheet1!$Z$1=4,'Tabla de Pagos Crecientes'!L137,'Tabla Fijos'!M142)) -> 299 | M197: =IF($B197=0,0,IF(B197="","",VLOOKUP($B197,'Tabla Fijos'!$B$12:$R$311,13,0))) -> 0 | O197: =IF(B197="","",G197+H197+I197+J197+K197+L197-M197-'Tabla Fijos'!P142) -> 10334.28618 | P197: 681177.7686 | Q197: 1
B198: 132 | C198: =IF($B198="","",'Fecha Pago'!K135) -> 2034-07-03 | D198: =IF($B$67="","",'Fecha Pago'!L135) -> 30.4 | E198: =IF(B198="","",IF(Sheet1!$Z$1=4,'Tabla de Pagos Crecientes'!E138,$F$62)) -> 0.0948 | F198: =IF($B198="","",IF(Sheet1!$Z$1=4,'Tabla de Pagos Crecientes'!F138,'Tabla Fijos'!F143)) -> 681177.7686 | G198: =IF($B198="","",IF(Sheet1!$Z$1=4,'Tabla de Pagos Crecientes'!G138,'Tabla Fijos'!G143)) -> 3937.847146 | H198: =IF($B198="","",IF(Sheet1!$Z$1=4,'Tabla de Pagos Crecientes'!H138,'Tabla Fijos'!H143)) -> 5453.055097 | I198: =IF($B198=0,0,IF(B198="","",VLOOKUP($B198,'Tabla Fijos'!$B$12:$R$311,8,0))) -> 0 | J198: =IF($B198="","",IF(Sheet1!$Z$1=4,'Tabla de Pagos Crecientes'!J138,'Tabla Fijos'!K143)) -> 408.7066612 | K198: =IF($B198="","",IF(Sheet1!$Z$1=4,'Tabla de Pagos Crecientes'!K138,'Tabla Fijos'!L143)) -> 233.3333352 | L198: =IF($B198="","",IF(Sheet1!$Z$1=4,'Tabla de Pagos Crecientes'!L138,'Tabla Fijos'!M143)) -> 299 | M198: =IF($B198=0,0,IF(B198="","",VLOOKUP($B198,'Tabla Fijos'!$B$12:$R$311,13,0))) -> 0 | O198: =IF(B198="","",G198+H198+I198+J198+K198+L198-M198-'Tabla Fijos'!P143) -> 10331.94224 | P198: 677239.9215 | Q198: 1
B199: 133 | C199: =IF($B199="","",'Fecha Pago'!K136) -> 2034-08-03 | D199: =IF($B$67="","",'Fecha Pago'!L136) -> 30.4 | E199: =IF(B199="","",IF(Sheet1!$Z$1=4,'Tabla de Pagos Crecientes'!E139,$F$62)) -> 0.0948 | F199: =IF($B199="","",IF(Sheet1!$Z$1=4,'Tabla de Pagos Crecientes'!F139,'Tabla Fijos'!F144)) -> 677239.9215 | G199: =IF($B199="","",IF(Sheet1!$Z$1=4,'Tabla de Pagos Crecientes'!G139,'Tabla Fijos'!G144)) -> 3969.370925 | H199: =IF($B199="","",IF(Sheet1!$Z$1=4,'Tabla de Pagos Crecientes'!H139,'Tabla Fijos'!H144)) -> 5421.531318 | I199: =IF($B199=0,0,IF(B199="","",VLOOKUP($B199,'Tabla Fijos'!$B$12:$R$311,8,0))) -> 0 | J199: =IF($B199="","",IF(Sheet1!$Z$1=4,'Tabla de Pagos Crecientes'!J139,'Tabla Fijos'!K144)) -> 406.3439529 | K199: =IF($B199="","",IF(Sheet1!$Z$1=4,'Tabla de Pagos Crecientes'!K139,'Tabla Fijos'!L144)) -> 233.3333352 | L199: =IF($B199="","",IF(Sheet1!$Z$1=4,'Tabla de Pagos Crecientes'!L139,'Tabla Fijos'!M144)) -> 299 | M199: =IF($B199=0,0,IF(B199="","",VLOOKUP($B199,'Tabla Fijos'!$B$12:$R$311,13,0))) -> 0 | O199: =IF(B199="","",G199+H199+I199+J199+K199+L199-M199-'Tabla Fijos'!P144) -> 10329.57953 | P199: 673270.5506 | Q199: 1
B200: 134 | C200: =IF($B200="","",'Fecha Pago'!K137) -> 2034-09-03 | D200: =IF($B$67="","",'Fecha Pago'!L137) -> 30.4 | E200: =IF(B200="","",IF(Sheet1!$Z$1=4,'Tabla de Pagos Crecientes'!E140,$F$62)) -> 0.0948 | F200: =IF($B200="","",IF(Sheet1!$Z$1=4,'Tabla de Pagos Crecientes'!F140,'Tabla Fijos'!F145)) -> 673270.5506 | G200: =IF($B200="","",IF(Sheet1!$Z$1=4,'Tabla de Pagos Crecientes'!G140,'Tabla Fijos'!G145)) -> 4001.147062 | H200: =IF($B200="","",IF(Sheet1!$Z$1=4,'Tabla de Pagos Crecientes'!H140,'Tabla Fijos'!H145)) -> 5389.755181 | I200: =IF($B200=0,0,IF(B200="","",VLOOKUP($B200,'Tabla Fijos'!$B$12:$R$311,8,0))) -> 0 | J200: =IF($B200="","",IF(Sheet1!$Z$1=4,'Tabla de Pagos Crecientes'!J140,'Tabla Fijos'!K145)) -> 403.9623303 | K200: =IF($B200="","",IF(Sheet1!$Z$1=4,'Tabla de Pagos Crecientes'!K140,'Tabla Fijos'!L145)) -> 233.3333352 | L200: =IF($B200="","",IF(Sheet1!$Z$1=4,'Tabla de Pagos Crecientes'!L140,'Tabla Fijos'!M145)) -> 299 | M200: =IF($B200=0,0,IF(B200="","",VLOOKUP($B200,'Tabla Fijos'!$B$12:$R$311,13,0))) -> 0 | O200: =IF(B200="","",G200+H200+I200+J200+K200+L200-M200-'Tabla Fijos'!P145) -> 10327.19791 | P200: 669269.4035 | Q200: 1
B201: 135 | C201: =IF($B201="","",'Fecha Pago'!K138) -> 2034-10-03 | D201: =IF($B$67="","",'Fecha Pago'!L138) -> 30.4 | E201: =IF(B201="","",IF(Sheet1!$Z$1=4,'Tabla de Pagos Crecientes'!E141,$F$62)) -> 0.0948 | F201: =IF($B201="","",IF(Sheet1!$Z$1=4,'Tabla de Pagos Crecientes'!F141,'Tabla Fijos'!F146)) -> 669269.4035 | G201: =IF($B201="","",IF(Sheet1!$Z$1=4,'Tabla de Pagos Crecientes'!G141,'Tabla Fijos'!G146)) -> 4033.177578 | H201: =IF($B201="","",IF(Sheet1!$Z$1=4,'Tabla de Pagos Crecientes'!H141,'Tabla Fijos'!H146)) -> 5357.724665 | I201: =IF($B201=0,0,IF(B201="","",VLOOKUP($B201,'Tabla Fijos'!$B$12:$R$311,8,0))) -> 0 | J201: =IF($B201="","",IF(Sheet1!$Z$1=4,'Tabla de Pagos Crecientes'!J141,'Tabla Fijos'!K146)) -> 401.5616421 | K201: =IF($B201="","",IF(Sheet1!$Z$1=4,'Tabla de Pagos Crecientes'!K141,'Tabla Fijos'!L146)) -> 233.3333352 | L201: =IF($B201="","",IF(Sheet1!$Z$1=4,'Tabla de Pagos Crecientes'!L141,'Tabla Fijos'!M146)) -> 299 | M201: =IF($B201=0,0,IF(B201="","",VLOOKUP($B201,'Tabla Fijos'!$B$12:$R$311,13,0))) -> 0 | O201: =IF(B201="","",G201+H201+I201+J201+K201+L201-M201-'Tabla Fijos'!P146) -> 10324.79722 | P201: 665236.2259 | Q201: 1
B202: 136 | C202: =IF($B202="","",'Fecha Pago'!K139) -> 2034-11-03 | D202: =IF($B$67="","",'Fecha Pago'!L139) -> 30.4 | E202: =IF(B202="","",IF(Sheet1!$Z$1=4,'Tabla de Pagos Crecientes'!E142,$F$62)) -> 0.0948 | F202: =IF($B202="","",IF(Sheet1!$Z$1=4,'Tabla de Pagos Crecientes'!F142,'Tabla Fijos'!F147)) -> 665236.2259 | G202: =IF($B202="","",IF(Sheet1!$Z$1=4,'Tabla de Pagos Crecientes'!G142,'Tabla Fijos'!G147)) -> 4065.464509 | H202: =IF($B202="","",IF(Sheet1!$Z$1=4,'Tabla de Pagos Crecientes'!H142,'Tabla Fijos'!H147)) -> 5325.437734 | I202: =IF($B202=0,0,IF(B202="","",VLOOKUP($B202,'Tabla Fijos'!$B$12:$R$311,8,0))) -> 0 | J202: =IF($B202="","",IF(Sheet1!$Z$1=4,'Tabla de Pagos Crecientes'!J142,'Tabla Fijos'!K147)) -> 399.1417355 | K202: =IF($B202="","",IF(Sheet1!$Z$1=4,'Tabla de Pagos Crecientes'!K142,'Tabla Fijos'!L147)) -> 233.3333352 | L202: =IF($B202="","",IF(Sheet1!$Z$1=4,'Tabla de Pagos Crecientes'!L142,'Tabla Fijos'!M147)) -> 299 | M202: =IF($B202=0,0,IF(B202="","",VLOOKUP($B202,'Tabla Fijos'!$B$12:$R$311,13,0))) -> 0 | O202: =IF(B202="","",G202+H202+I202+J202+K202+L202-M202-'Tabla Fijos'!P147) -> 10322.37731 | P202: 661170.7614 | Q202: 1
B203: 137 | C203: =IF($B203="","",'Fecha Pago'!K140) -> 2034-12-03 | D203: =IF($B$67="","",'Fecha Pago'!L140) -> 30.4 | E203: =IF(B203="","",IF(Sheet1!$Z$1=4,'Tabla de Pagos Crecientes'!E143,$F$62)) -> 0.0948 | F203: =IF($B203="","",IF(Sheet1!$Z$1=4,'Tabla de Pagos Crecientes'!F143,'Tabla Fijos'!F148)) -> 661170.7614 | G203: =IF($B203="","",IF(Sheet1!$Z$1=4,'Tabla de Pagos Crecientes'!G143,'Tabla Fijos'!G148)) -> 4098.009908 | H203: =IF($B203="","",IF(Sheet1!$Z$1=4,'Tabla de Pagos Crecientes'!H143,'Tabla Fijos'!H148)) -> 5292.892335 | I203: =IF($B203=0,0,IF(B203="","",VLOOKUP($B203,'Tabla Fijos'!$B$12:$R$311,8,0))) -> 0 | J203: =IF($B203="","",IF(Sheet1!$Z$1=4,'Tabla de Pagos Crecientes'!J143,'Tabla Fijos'!K148)) -> 396.7024568 | K203: =IF($B203="","",IF(Sheet1!$Z$1=4,'Tabla de Pagos Crecientes'!K143,'Tabla Fijos'!L148)) -> 233.3333352 | L203: =IF($B203="","",IF(Sheet1!$Z$1=4,'Tabla de Pagos Crecientes'!L143,'Tabla Fijos'!M148)) -> 299 | M203: =IF($B203=0,0,IF(B203="","",VLOOKUP($B203,'Tabla Fijos'!$B$12:$R$311,13,0))) -> 0 | O203: =IF(B203="","",G203+H203+I203+J203+K203+L203-M203-'Tabla Fijos'!P148) -> 10319.93804 | P203: 657072.7515 | Q203: 1
B204: 138 | C204: =IF($B204="","",'Fecha Pago'!K141) -> 2035-01-03 | D204: =IF($B$67="","",'Fecha Pago'!L141) -> 30.4 | E204: =IF(B204="","",IF(Sheet1!$Z$1=4,'Tabla de Pagos Crecientes'!E144,$F$62)) -> 0.0948 | F204: =IF($B204="","",IF(Sheet1!$Z$1=4,'Tabla de Pagos Crecientes'!F144,'Tabla Fijos'!F149)) -> 657072.7515 | G204: =IF($B204="","",IF(Sheet1!$Z$1=4,'Tabla de Pagos Crecientes'!G144,'Tabla Fijos'!G149)) -> 4130.815843 | H204: =IF($B204="","",IF(Sheet1!$Z$1=4,'Tabla de Pagos Crecientes'!H144,'Tabla Fijos'!H149)) -> 5260.0864 | I204: =IF($B204=0,0,IF(B204="","",VLOOKUP($B204,'Tabla Fijos'!$B$12:$R$311,8,0))) -> 0 | J204: =IF($B204="","",IF(Sheet1!$Z$1=4,'Tabla de Pagos Crecientes'!J144,'Tabla Fijos'!K149)) -> 394.2436509 | K204: =IF($B204="","",IF(Sheet1!$Z$1=4,'Tabla de Pagos Crecientes'!K144,'Tabla Fijos'!L149)) -> 233.3333352 | L204: =IF($B204="","",IF(Sheet1!$Z$1=4,'Tabla de Pagos Crecientes'!L144,'Tabla Fijos'!M149)) -> 299 | M204: =IF($B204=0,0,IF(B204="","",VLOOKUP($B204,'Tabla Fijos'!$B$12:$R$311,13,0))) -> 0 | O204: =IF(B204="","",G204+H204+I204+J204+K204+L204-M204-'Tabla Fijos'!P149) -> 10317.47923 | P204: 652941.9357 | Q204: 1
B205: 139 | C205: =IF($B205="","",'Fecha Pago'!K142) -> 2035-02-03 | D205: =IF($B$67="","",'Fecha Pago'!L142) -> 30.4 | E205: =IF(B205="","",IF(Sheet1!$Z$1=4,'Tabla de Pagos Crecientes'!E145,$F$62)) -> 0.0948 | F205: =IF($B205="","",IF(Sheet1!$Z$1=4,'Tabla de Pagos Crecientes'!F145,'Tabla Fijos'!F150)) -> 652941.9357 | G205: =IF($B205="","",IF(Sheet1!$Z$1=4,'Tabla de Pagos Crecientes'!G145,'Tabla Fijos'!G150)) -> 4163.884401 | H205: =IF($B205="","",IF(Sheet1!$Z$1=4,'Tabla de Pagos Crecientes'!H145,'Tabla Fijos'!H150)) -> 5227.017842 | I205: =IF($B205=0,0,IF(B205="","",VLOOKUP($B205,'Tabla Fijos'!$B$12:$R$311,8,0))) -> 0 | J205: =IF($B205="","",IF(Sheet1!$Z$1=4,'Tabla de Pagos Crecientes'!J145,'Tabla Fijos'!K150)) -> 391.7651614 | K205: =IF($B205="","",IF(Sheet1!$Z$1=4,'Tabla de Pagos Crecientes'!K145,'Tabla Fijos'!L150)) -> 233.3333352 | L205: =IF($B205="","",IF(Sheet1!$Z$1=4,'Tabla de Pagos Crecientes'!L145,'Tabla Fijos'!M150)) -> 299 | M205: =IF($B205=0,0,IF(B205="","",VLOOKUP($B205,'Tabla Fijos'!$B$12:$R$311,13,0))) -> 0 | O205: =IF(B205="","",G205+H205+I205+J205+K205+L205-M205-'Tabla Fijos'!P150) -> 10315.00074 | P205: 648778.0513 | Q205: 1
B206: 140 | C206: =IF($B206="","",'Fecha Pago'!K143) -> 2035-03-03 | D206: =IF($B$67="","",'Fecha Pago'!L143) -> 30.4 | E206: =IF(B206="","",IF(Sheet1!$Z$1=4,'Tabla de Pagos Crecientes'!E146,$F$62)) -> 0.0948 | F206: =IF($B206="","",IF(Sheet1!$Z$1=4,'Tabla de Pagos Crecientes'!F146,'Tabla Fijos'!F151)) -> 648778.0513 | G206: =IF($B206="","",IF(Sheet1!$Z$1=4,'Tabla de Pagos Crecientes'!G146,'Tabla Fijos'!G151)) -> 4197.217683 | H206: =IF($B206="","",IF(Sheet1!$Z$1=4,'Tabla de Pagos Crecientes'!H146,'Tabla Fijos'!H151)) -> 5193.68456 | I206: =IF($B206=0,0,IF(B206="","",VLOOKUP($B206,'Tabla Fijos'!$B$12:$R$311,8,0))) -> 0 | J206: =IF($B206="","",IF(Sheet1!$Z$1=4,'Tabla de Pagos Crecientes'!J146,'Tabla Fijos'!K151)) -> 389.2668308 | K206: =IF($B206="","",IF(Sheet1!$Z$1=4,'Tabla de Pagos Crecientes'!K146,'Tabla Fijos'!L151)) -> 233.3333352 | L206: =IF($B206="","",IF(Sheet1!$Z$1=4,'Tabla de Pagos Crecientes'!L146,'Tabla Fijos'!M151)) -> 299 | M206: =IF($B206=0,0,IF(B206="","",VLOOKUP($B206,'Tabla Fijos'!$B$12:$R$311,13,0))) -> 0 | O206: =IF(B206="","",G206+H206+I206+J206+K206+L206-M206-'Tabla Fijos'!P151) -> 10312.50241 | P206: 644580.8336 | Q206: 1
B207: 141 | C207: =IF($B207="","",'Fecha Pago'!K144) -> 2035-04-03 | D207: =IF($B$67="","",'Fecha Pago'!L144) -> 30.4 | E207: =IF(B207="","",IF(Sheet1!$Z$1=4,'Tabla de Pagos Crecientes'!E147,$F$62)) -> 0.0948 | F207: =IF($B207="","",IF(Sheet1!$Z$1=4,'Tabla de Pagos Crecientes'!F147,'Tabla Fijos'!F152)) -> 644580.8336 | G207: =IF($B207="","",IF(Sheet1!$Z$1=4,'Tabla de Pagos Crecientes'!G147,'Tabla Fijos'!G152)) -> 4230.81781 | H207: =IF($B207="","",IF(Sheet1!$Z$1=4,'Tabla de Pagos Crecientes'!H147,'Tabla Fijos'!H152)) -> 5160.084433 | I207: =IF($B207=0,0,IF(B207="","",VLOOKUP($B207,'Tabla Fijos'!$B$12:$R$311,8,0))) -> 0 | J207: =IF($B207="","",IF(Sheet1!$Z$1=4,'Tabla de Pagos Crecientes'!J147,'Tabla Fijos'!K152)) -> 386.7485001 | K207: =IF($B207="","",IF(Sheet1!$Z$1=4,'Tabla de Pagos Crecientes'!K147,'Tabla Fijos'!L152)) -> 233.3333352 | L207: =IF($B207="","",IF(Sheet1!$Z$1=4,'Tabla de Pagos Crecientes'!L147,'Tabla Fijos'!M152)) -> 299 | M207: =IF($B207=0,0,IF(B207="","",VLOOKUP($B207,'Tabla Fijos'!$B$12:$R$311,13,0))) -> 0 | O207: =IF(B207="","",G207+H207+I207+J207+K207+L207-M207-'Tabla Fijos'!P152) -> 10309.98408 | P207: 640350.0158 | Q207: 1
B208: 142 | C208: =IF($B208="","",'Fecha Pago'!K145) -> 2035-05-03 | D208: =IF($B$67="","",'Fecha Pago'!L145) -> 30.4 | E208: =IF(B208="","",IF(Sheet1!$Z$1=4,'Tabla de Pagos Crecientes'!E148,$F$62)) -> 0.0948 | F208: =IF($B208="","",IF(Sheet1!$Z$1=4,'Tabla de Pagos Crecientes'!F148,'Tabla Fijos'!F153)) -> 640350.0158 | G208: =IF($B208="","",IF(Sheet1!$Z$1=4,'Tabla de Pagos Crecientes'!G148,'Tabla Fijos'!G153)) -> 4264.686917 | H208: =IF($B208="","",IF(Sheet1!$Z$1=4,'Tabla de Pagos Crecientes'!H148,'Tabla Fijos'!H153)) -> 5126.215326 | I208: =IF($B208=0,0,IF(B208="","",VLOOKUP($B208,'Tabla Fijos'!$B$12:$R$311,8,0))) -> 0 | J208: =IF($B208="","",IF(Sheet1!$Z$1=4,'Tabla de Pagos Crecientes'!J148,'Tabla Fijos'!K153)) -> 384.2100095 | K208: =IF($B208="","",IF(Sheet1!$Z$1=4,'Tabla de Pagos Crecientes'!K148,'Tabla Fijos'!L153)) -> 233.3333352 | L208: =IF($B208="","",IF(Sheet1!$Z$1=4,'Tabla de Pagos Crecientes'!L148,'Tabla Fijos'!M153)) -> 299 | M208: =IF($B208=0,0,IF(B208="","",VLOOKUP($B208,'Tabla Fijos'!$B$12:$R$311,13,0))) -> 0 | O208: =IF(B208="","",G208+H208+I208+J208+K208+L208-M208-'Tabla Fijos'!P153) -> 10307.44559 | P208: 636085.3288 | Q208: 1
B209: 143 | C209: =IF($B209="","",'Fecha Pago'!K146) -> 2035-06-03 | D209: =IF($B$67="","",'Fecha Pago'!L146) -> 30.4 | E209: =IF(B209="","",IF(Sheet1!$Z$1=4,'Tabla de Pagos Crecientes'!E149,$F$62)) -> 0.0948 | F209: =IF($B209="","",IF(Sheet1!$Z$1=4,'Tabla de Pagos Crecientes'!F149,'Tabla Fijos'!F154)) -> 636085.3288 | G209: =IF($B209="","",IF(Sheet1!$Z$1=4,'Tabla de Pagos Crecientes'!G149,'Tabla Fijos'!G154)) -> 4298.827157 | H209: =IF($B209="","",IF(Sheet1!$Z$1=4,'Tabla de Pagos Crecientes'!H149,'Tabla Fijos'!H154)) -> 5092.075086 | I209: =IF($B209=0,0,IF(B209="","",VLOOKUP($B209,'Tabla Fijos'!$B$12:$R$311,8,0))) -> 0 | J209: =IF($B209="","",IF(Sheet1!$Z$1=4,'Tabla de Pagos Crecientes'!J149,'Tabla Fijos'!K154)) -> 381.6511973 | K209: =IF($B209="","",IF(Sheet1!$Z$1=4,'Tabla de Pagos Crecientes'!K149,'Tabla Fijos'!L154)) -> 233.3333352 | L209: =IF($B209="","",IF(Sheet1!$Z$1=4,'Tabla de Pagos Crecientes'!L149,'Tabla Fijos'!M154)) -> 299 | M209: =IF($B209=0,0,IF(B209="","",VLOOKUP($B209,'Tabla Fijos'!$B$12:$R$311,13,0))) -> 0 | O209: =IF(B209="","",G209+H209+I209+J209+K209+L209-M209-'Tabla Fijos'!P154) -> 10304.88678 | P209: 631786.5017 | Q209: 1
B210: 144 | C210: =IF($B210="","",'Fecha Pago'!K147) -> 2035-07-03 | D210: =IF($B$67="","",'Fecha Pago'!L147) -> 30.4 | E210: =IF(B210="","",IF(Sheet1!$Z$1=4,'Tabla de Pagos Crecientes'!E150,$F$62)) -> 0.0948 | F210: =IF($B210="","",IF(Sheet1!$Z$1=4,'Tabla de Pagos Crecientes'!F150,'Tabla Fijos'!F155)) -> 631786.5017 | G210: =IF($B210="","",IF(Sheet1!$Z$1=4,'Tabla de Pagos Crecientes'!G150,'Tabla Fijos'!G155)) -> 4333.240702 | H210: =IF($B210="","",IF(Sheet1!$Z$1=4,'Tabla de Pagos Crecientes'!H150,'Tabla Fijos'!H155)) -> 5057.661541 | I210: =IF($B210=0,0,IF(B210="","",VLOOKUP($B210,'Tabla Fijos'!$B$12:$R$311,8,0))) -> 0 | J210: =IF($B210="","",IF(Sheet1!$Z$1=4,'Tabla de Pagos Crecientes'!J150,'Tabla Fijos'!K155)) -> 379.071901 | K210: =IF($B210="","",IF(Sheet1!$Z$1=4,'Tabla de Pagos Crecientes'!K150,'Tabla Fijos'!L155)) -> 233.3333352 | L210: =IF($B210="","",IF(Sheet1!$Z$1=4,'Tabla de Pagos Crecientes'!L150,'Tabla Fijos'!M155)) -> 299 | M210: =IF($B210=0,0,IF(B210="","",VLOOKUP($B210,'Tabla Fijos'!$B$12:$R$311,13,0))) -> 0 | O210: =IF(B210="","",G210+H210+I210+J210+K210+L210-M210-'Tabla Fijos'!P155) -> 10302.30748 | P210: 627453.261 | Q210: 1
B211: 145 | C211: =IF($B211="","",'Fecha Pago'!K148) -> 2035-08-03 | D211: =IF($B$67="","",'Fecha Pago'!L148) -> 30.4 | E211: =IF(B211="","",IF(Sheet1!$Z$1=4,'Tabla de Pagos Crecientes'!E151,$F$62)) -> 0.0948 | F211: =IF($B211="","",IF(Sheet1!$Z$1=4,'Tabla de Pagos Crecientes'!F151,'Tabla Fijos'!F156)) -> 627453.261 | G211: =IF($B211="","",IF(Sheet1!$Z$1=4,'Tabla de Pagos Crecientes'!G151,'Tabla Fijos'!G156)) -> 4367.929738 | H211: =IF($B211="","",IF(Sheet1!$Z$1=4,'Tabla de Pagos Crecientes'!H151,'Tabla Fijos'!H156)) -> 5022.972505 | I211: =IF($B211=0,0,IF(B211="","",VLOOKUP($B211,'Tabla Fijos'!$B$12:$R$311,8,0))) -> 0 | J211: =IF($B211="","",IF(Sheet1!$Z$1=4,'Tabla de Pagos Crecientes'!J151,'Tabla Fijos'!K156)) -> 376.4719566 | K211: =IF($B211="","",IF(Sheet1!$Z$1=4,'Tabla de Pagos Crecientes'!K151,'Tabla Fijos'!L156)) -> 233.3333352 | L211: =IF($B211="","",IF(Sheet1!$Z$1=4,'Tabla de Pagos Crecientes'!L151,'Tabla Fijos'!M156)) -> 299 | M211: =IF($B211=0,0,IF(B211="","",VLOOKUP($B211,'Tabla Fijos'!$B$12:$R$311,13,0))) -> 0 | O211: =IF(B211="","",G211+H211+I211+J211+K211+L211-M211-'Tabla Fijos'!P156) -> 10299.70753 | P211: 623085.3312 | Q211: 1
B212: 146 | C212: =IF($B212="","",'Fecha Pago'!K149) -> 2035-09-03 | D212: =IF($B$67="","",'Fecha Pago'!L149) -> 30.4 | E212: =IF(B212="","",IF(Sheet1!$Z$1=4,'Tabla de Pagos Crecientes'!E152,$F$62)) -> 0.0948 | F212: =IF($B212="","",IF(Sheet1!$Z$1=4,'Tabla de Pagos Crecientes'!F152,'Tabla Fijos'!F157)) -> 623085.3312 | G212: =IF($B212="","",IF(Sheet1!$Z$1=4,'Tabla de Pagos Crecientes'!G152,'Tabla Fijos'!G157)) -> 4402.896471 | H212: =IF($B212="","",IF(Sheet1!$Z$1=4,'Tabla de Pagos Crecientes'!H152,'Tabla Fijos'!H157)) -> 4988.005772 | I212: =IF($B212=0,0,IF(B212="","",VLOOKUP($B212,'Tabla Fijos'!$B$12:$R$311,8,0))) -> 0 | J212: =IF($B212="","",IF(Sheet1!$Z$1=4,'Tabla de Pagos Crecientes'!J152,'Tabla Fijos'!K157)) -> 373.8511987 | K212: =IF($B212="","",IF(Sheet1!$Z$1=4,'Tabla de Pagos Crecientes'!K152,'Tabla Fijos'!L157)) -> 233.3333352 | L212: =IF($B212="","",IF(Sheet1!$Z$1=4,'Tabla de Pagos Crecientes'!L152,'Tabla Fijos'!M157)) -> 299 | M212: =IF($B212=0,0,IF(B212="","",VLOOKUP($B212,'Tabla Fijos'!$B$12:$R$311,13,0))) -> 0 | O212: =IF(B212="","",G212+H212+I212+J212+K212+L212-M212-'Tabla Fijos'!P157) -> 10297.08678 | P212: 618682.4348 | Q212: 1
B213: 147 | C213: =IF($B213="","",'Fecha Pago'!K150) -> 2035-10-03 | D213: =IF($B$67="","",'Fecha Pago'!L150) -> 30.4 | E213: =IF(B213="","",IF(Sheet1!$Z$1=4,'Tabla de Pagos Crecientes'!E153,$F$62)) -> 0.0948 | F213: =IF($B213="","",IF(Sheet1!$Z$1=4,'Tabla de Pagos Crecientes'!F153,'Tabla Fijos'!F158)) -> 618682.4348 | G213: =IF($B213="","",IF(Sheet1!$Z$1=4,'Tabla de Pagos Crecientes'!G153,'Tabla Fijos'!G158)) -> 4438.143125 | H213: =IF($B213="","",IF(Sheet1!$Z$1=4,'Tabla de Pagos Crecientes'!H153,'Tabla Fijos'!H158)) -> 4952.759118 | I213: =IF($B213=0,0,IF(B213="","",VLOOKUP($B213,'Tabla Fijos'!$B$12:$R$311,8,0))) -> 0 | J213: =IF($B213="","",IF(Sheet1!$Z$1=4,'Tabla de Pagos Crecientes'!J153,'Tabla Fijos'!K158)) -> 371.2094609 | K213: =IF($B213="","",IF(Sheet1!$Z$1=4,'Tabla de Pagos Crecientes'!K153,'Tabla Fijos'!L158)) -> 233.3333352 | L213: =IF($B213="","",IF(Sheet1!$Z$1=4,'Tabla de Pagos Crecientes'!L153,'Tabla Fijos'!M158)) -> 299 | M213: =IF($B213=0,0,IF(B213="","",VLOOKUP($B213,'Tabla Fijos'!$B$12:$R$311,13,0))) -> 0 | O213: =IF(B213="","",G213+H213+I213+J213+K213+L213-M213-'Tabla Fijos'!P158) -> 10294.44504 | P213: 614244.2916 | Q213: 1
B214: 148 | C214: =IF($B214="","",'Fecha Pago'!K151) -> 2035-11-03 | D214: =IF($B$67="","",'Fecha Pago'!L151) -> 30.4 | E214: =IF(B214="","",IF(Sheet1!$Z$1=4,'Tabla de Pagos Crecientes'!E154,$F$62)) -> 0.0948 | F214: =IF($B214="","",IF(Sheet1!$Z$1=4,'Tabla de Pagos Crecientes'!F154,'Tabla Fijos'!F159)) -> 614244.2916 | G214: =IF($B214="","",IF(Sheet1!$Z$1=4,'Tabla de Pagos Crecientes'!G154,'Tabla Fijos'!G159)) -> 4473.67194 | H214: =IF($B214="","",IF(Sheet1!$Z$1=4,'Tabla de Pagos Crecientes'!H154,'Tabla Fijos'!H159)) -> 4917.230303 | I214: =IF($B214=0,0,IF(B214="","",VLOOKUP($B214,'Tabla Fijos'!$B$12:$R$311,8,0))) -> 0 | J214: =IF($B214="","",IF(Sheet1!$Z$1=4,'Tabla de Pagos Crecientes'!J154,'Tabla Fijos'!K159)) -> 368.546575 | K214: =IF($B214="","",IF(Sheet1!$Z$1=4,'Tabla de Pagos Crecientes'!K154,'Tabla Fijos'!L159)) -> 233.3333352 | L214: =IF($B214="","",IF(Sheet1!$Z$1=4,'Tabla de Pagos Crecientes'!L154,'Tabla Fijos'!M159)) -> 299 | M214: =IF($B214=0,0,IF(B214="","",VLOOKUP($B214,'Tabla Fijos'!$B$12:$R$311,13,0))) -> 0 | O214: =IF(B214="","",G214+H214+I214+J214+K214+L214-M214-'Tabla Fijos'!P159) -> 10291.78215 | P214: 609770.6197 | Q214: 1
... 416 more rows

Sheet Tabla Notaría
I3: =VLOOKUP(Simulador!$F$9,'Tabla Notaría'!M6:Q28,5,0) -> Tasa fija con amortización creciente
B4: Cliente: | C4: =IF(Simulador!K1="","",Simulador!$K$1) ->  | M4: Hipoteca Fuerte | O4: =Simulador!F9&Simulador!N7 -> AdquisiciónTradicional
B5: Esquema: | C5: Crédito Hipotecario | D5: =IF(Sheet1!$Z$1=4,"Pagos Crecientes",I3) -> Tasa fija con amortización creciente | M5: Destino | N5: Programas
B6: Tasa de Interés Anual (Fija): | C6: =Simulador!$F$62 -> 0.0948 | M6: Adquisición | N6: Tradicional | O6: =M6&N6 -> AdquisiciónTradicional | Q6: Tasa fija con amortización creciente
B7: Monto Total de Crédito: | C7: =IF(Simulador!$N$17='Tabla Parámetros'!$N$10,Simulador!$H$48+Simulador!$L$46,IF(Simulador!$N$17='Tabla Parámetros'!$N$11,Simulador!H48,)) -> 1000000 | M7: Adquisición | N7: Apoyo INFONAVIT | O7: =M7&N7 -> AdquisiciónApoyo INFONAVIT | Q7: Tasa fija Apoyo Infonavit
B8: Destino del Crédito: | C8: =Simulador!$F$9 -> Adquisición | D8: =IF(OR(C8="Liquidez",C8="Terreno_Urbanizado"),"",Simulador!$F$11) -> Hipoteca Fuerte | M8: Adquisición | N8: Cofinavit | O8: AdquisiciónCofinavit | Q8: Tasa fija Cofinanciamiento INFONAVIT
M9: Adquisición | N9: FOVISSSTE para todos | O9: AdquisiciónFOVISSSTE para todos | Q9: Tasa fija FOVISSSTE para todos
B10: Tabla de amortización en pesos | M10: Adquisición | N10: Cuenta INFONAVIT + BANORTE | O10: AdquisiciónCuenta INFONAVIT + BANORTE | Q10: Tasa fija Cuenta INFONAVIT + BANORTE con amortización creciente
B11: No. | C11: Saldo | D11: Amortización a Capital | E11: Saldo Nuevo | M11: Mejora | N11: Tradicional | O11: MejoraTradicional | Q11: Tasa fija con amortización creciente
B12: 1 | C12: =IF(Simulador!$F$9='Tabla Parámetros'!$G$34,Simulador!F392,IF(Simulador!$F$9='Tabla Parámetros'!$G$35,Simulador!F392,IF(Simulador!$F$9='Tabla Parámetros'!$G$36,Simulador!F392,Simulador!F67))) -> 1000000 | D12: =IF(B12="","",IF(Sheet1!$Z$1=4,'Tabla de Pagos Crecientes'!V7,'Tabla Fijos CAT'!G12)) -> 1385.56891 | E12: =IF(B12="","",C12-D12) -> 998614.4311 | M12: Mejora | N12: Apoyo INFONAVIT | O12: MejoraApoyo INFONAVIT | Q12: Tasa fija Apoyo Infonavit
B13: =IF(B12=Simulador!$H$49,"",IF(B12="","",'Tabla Notaría'!B12+1)) -> 2 | C13: =IF(B13="","",C12-D12) -> 998614.4311 | D13: =IF(B13="","",IF(Sheet1!$Z$1=4,'Tabla de Pagos Crecientes'!V8,'Tabla Fijos CAT'!G13)) -> 1396.660851 | E13: 997217.7702
B14: =IF(B13=Simulador!$H$49,"",IF(B13="","",'Tabla Notaría'!B13+1)) -> 3 | C14: =IF(B14="","",C13-D13) -> 997217.7702 | D14: =IF(B14="","",IF(Sheet1!$Z$1=4,'Tabla de Pagos Crecientes'!V9,'Tabla Fijos CAT'!G14)) -> 1407.841586 | E14: 995809.9287 | M14: Mejora_más_Remodelación | N14: Tradicional | O14: Mejora_más_RemodelaciónTradicional | Q14: Tasa fija con amortización creciente
B15: =IF(B14=Simulador!$H$49,"",IF(B14="","",'Tabla Notaría'!B14+1)) -> 4 | C15: 995809.9287 | D15: =IF(B15="","",IF(Sheet1!$Z$1=4,'Tabla de Pagos Crecientes'!V10,'Tabla Fijos CAT'!G15)) -> 1419.111827 | E15: 994390.8168
B16: =IF(B15=Simulador!$H$49,"",IF(B15="","",'Tabla Notaría'!B15+1)) -> 5 | C16: 994390.8168 | D16: =IF(B16="","",IF(Sheet1!$Z$1=4,'Tabla de Pagos Crecientes'!V11,'Tabla Fijos CAT'!G16)) -> 1430.472291 | E16: 992960.3445 | M16: Remodelación | N16: Tradicional | O16: RemodelaciónTradicional | Q16: Tasa fija con amortización creciente
B17: =IF(B16=Simulador!$H$49,"",IF(B16="","",'Tabla Notaría'!B16+1)) -> 6 | C17: 992960.3445 | D17: =IF(B17="","",IF(Sheet1!$Z$1=4,'Tabla de Pagos Crecientes'!V12,'Tabla Fijos CAT'!G17)) -> 1441.923698 | E17: 991518.4208
B18: =IF(B17=Simulador!$H$49,"",IF(B17="","",'Tabla Notaría'!B17+1)) -> 7 | C18: 991518.4208 | D18: =IF(B18="","",IF(Sheet1!$Z$1=4,'Tabla de Pagos Crecientes'!V13,'Tabla Fijos CAT'!G18)) -> 1453.466778 | E18: 990064.9541 | M18: Construcción | N18: Tradicional | O18: ConstrucciónTradicional | Q18: Tasa fija con amortización creciente
B19: =IF(B18=Simulador!$H$49,"",IF(B18="","",'Tabla Notaría'!B18+1)) -> 8 | C19: 990064.9541 | D19: =IF(B19="","",IF(Sheet1!$Z$1=4,'Tabla de Pagos Crecientes'!V14,'Tabla Fijos CAT'!G19)) -> 1465.102264 | E19: 988599.8518 | M19: Construcción | N19: Apoyo INFONAVIT | O19: ConstrucciónApoyo INFONAVIT | Q19: Tasa fija Apoyo Infonavit
B20: =IF(B19=Simulador!$H$49,"",IF(B19="","",'Tabla Notaría'!B19+1)) -> 9 | C20: 988599.8518 | D20: =IF(B20="","",IF(Sheet1!$Z$1=4,'Tabla de Pagos Crecientes'!V15,'Tabla Fijos CAT'!G20)) -> 1476.830896 | E20: 987123.0209
B21: =IF(B20=Simulador!$H$49,"",IF(B20="","",'Tabla Notaría'!B20+1)) -> 10 | C21: 987123.0209 | D21: =IF(B21="","",IF(Sheet1!$Z$1=4,'Tabla de Pagos Crecientes'!V16,'Tabla Fijos CAT'!G21)) -> 1488.65342 | E21: 985634.3675 | M21: Terreno_más_Construcción | N21: Tradicional | O21: Terreno_más_ConstrucciónTradicional | Q21: Tasa fija con amortización creciente
B22: =IF(B21=Simulador!$H$49,"",IF(B21="","",'Tabla Notaría'!B21+1)) -> 11 | C22: 985634.3675 | D22: =IF(B22="","",IF(Sheet1!$Z$1=4,'Tabla de Pagos Crecientes'!V17,'Tabla Fijos CAT'!G22)) -> 1500.570587 | E22: 984133.7969 | M22: Terreno_más_Construcción | N22: Apoyo INFONAVIT | O22: Terreno_más_ConstrucciónApoyo INFONAVIT | Q22: Tasa fija Apoyo Infonavit
B23: =IF(B22=Simulador!$H$49,"",IF(B22="","",'Tabla Notaría'!B22+1)) -> 12 | C23: 984133.7969 | D23: =IF(B23="","",IF(Sheet1!$Z$1=4,'Tabla de Pagos Crecientes'!V18,'Tabla Fijos CAT'!G23)) -> 1512.583154 | E23: 982621.2137
B24: =IF(B23=Simulador!$H$49,"",IF(B23="","",'Tabla Notaría'!B23+1)) -> 13 | C24: 982621.2137 | D24: =IF(B24="","",IF(Sheet1!$Z$1=4,'Tabla de Pagos Crecientes'!V19,'Tabla Fijos CAT'!G24)) -> 1524.691887 | E24: 981096.5219 | M24: Compra_Venta_Termino_Obra | N24: Tradicional | O24: Compra_Venta_Termino_ObraTradicional | Q24: Tasa fija con amortización creciente
B25: =IF(B24=Simulador!$H$49,"",IF(B24="","",'Tabla Notaría'!B24+1)) -> 14 | C25: 981096.5219 | D25: =IF(B25="","",IF(Sheet1!$Z$1=4,'Tabla de Pagos Crecientes'!V20,'Tabla Fijos CAT'!G25)) -> 1536.897553 | E25: 979559.6243 | M25: Compra_Venta_Termino_Obra | N25: Apoyo INFONAVIT | O25: Compra_Venta_Termino_ObraApoyo INFONAVIT | Q25: Tasa fija Apoyo Infonavit
B26: =IF(B25=Simulador!$H$49,"",IF(B25="","",'Tabla Notaría'!B25+1)) -> 15 | C26: 979559.6243 | D26: =IF(B26="","",IF(Sheet1!$Z$1=4,'Tabla de Pagos Crecientes'!V21,'Tabla Fijos CAT'!G26)) -> 1549.200931 | E26: 978010.4234
B27: =IF(B26=Simulador!$H$49,"",IF(B26="","",'Tabla Notaría'!B26+1)) -> 16 | C27: 978010.4234 | D27: =IF(B27="","",IF(Sheet1!$Z$1=4,'Tabla de Pagos Crecientes'!V22,'Tabla Fijos CAT'!G27)) -> 1561.6028 | E27: 976448.8206 | M27: Liquidez | N27: Tradicional | O27: LiquidezTradicional | Q27: Tasa fija con amortización creciente
B28: =IF(B27=Simulador!$H$49,"",IF(B27="","",'Tabla Notaría'!B27+1)) -> 17 | C28: 976448.8206 | D28: =IF(B28="","",IF(Sheet1!$Z$1=4,'Tabla de Pagos Crecientes'!V23,'Tabla Fijos CAT'!G28)) -> 1574.103951 | E28: 974874.7166 | M28: Terreno_Urbanizado | N28: Tradicional | O28: Terreno_UrbanizadoTradicional | Q28: Tasa fija con amortización creciente
B29: =IF(B28=Simulador!$H$49,"",IF(B28="","",'Tabla Notaría'!B28+1)) -> 18 | C29: 974874.7166 | D29: =IF(B29="","",IF(Sheet1!$Z$1=4,'Tabla de Pagos Crecientes'!V24,'Tabla Fijos CAT'!G29)) -> 1586.705178 | E29: 973288.0114
B30: =IF(B29=Simulador!$H$49,"",IF(B29="","",'Tabla Notaría'!B29+1)) -> 19 | C30: 973288.0114 | D30: =IF(B30="","",IF(Sheet1!$Z$1=4,'Tabla de Pagos Crecientes'!V25,'Tabla Fijos CAT'!G30)) -> 1599.407282 | E30: 971688.6042 | M30: Más por Menos | O30: =Simulador!F9&Simulador!N7 -> AdquisiciónTradicional
B31: =IF(B30=Simulador!$H$49,"",IF(B30="","",'Tabla Notaría'!B30+1)) -> 20 | C31: 971688.6042 | D31: =IF(B31="","",IF(Sheet1!$Z$1=4,'Tabla de Pagos Crecientes'!V26,'Tabla Fijos CAT'!G31)) -> 1612.211071 | E31: 970076.3931 | M31: Destino | N31: Programas
B32: =IF(B31=Simulador!$H$49,"",IF(B31="","",'Tabla Notaría'!B31+1)) -> 21 | C32: 970076.3931 | D32: =IF(B32="","",IF(Sheet1!$Z$1=4,'Tabla de Pagos Crecientes'!V27,'Tabla Fijos CAT'!G32)) -> 1625.117358 | E32: 968451.2757 | M32: Adquisición | N32: Tradicional | O32: =M32&N32 -> AdquisiciónTradicional | Q32: Pagos crecientes amortización creciente
B33: =IF(B32=Simulador!$H$49,"",IF(B32="","",'Tabla Notaría'!B32+1)) -> 22 | C33: 968451.2757 | D33: =IF(B33="","",IF(Sheet1!$Z$1=4,'Tabla de Pagos Crecientes'!V28,'Tabla Fijos CAT'!G33)) -> 1638.126964 | E33: 966813.1488 | M33: Adquisición | N33: Apoyo INFONAVIT | O33: AdquisiciónApoyo INFONAVIT | Q33: Pagos crecientes Apoyo INFONAVIT
B34: =IF(B33=Simulador!$H$49,"",IF(B33="","",'Tabla Notaría'!B33+1)) -> 23 | C34: 966813.1488 | D34: =IF(B34="","",IF(Sheet1!$Z$1=4,'Tabla de Pagos Crecientes'!V29,'Tabla Fijos CAT'!G34)) -> 1651.240716 | E34: 965161.908 | M34: Adquisición | N34: Cofinavit | O34: AdquisiciónCofinavit | Q34: Pagos crecientes Cofinanciamiento INFONAVIT
B35: =IF(B34=Simulador!$H$49,"",IF(B34="","",'Tabla Notaría'!B34+1)) -> 24 | C35: 965161.908 | D35: =IF(B35="","",IF(Sheet1!$Z$1=4,'Tabla de Pagos Crecientes'!V30,'Tabla Fijos CAT'!G35)) -> 1664.459448 | E35: 963497.4486 | M35: Adquisición | N35: Alia2+ | O35: AdquisiciónAlia2+ | Q35: Pagos crecientes Alia2+
B36: =IF(B35=Simulador!$H$49,"",IF(B35="","",'Tabla Notaría'!B35+1)) -> 25 | C36: 963497.4486 | D36: =IF(B36="","",IF(Sheet1!$Z$1=4,'Tabla de Pagos Crecientes'!V31,'Tabla Fijos CAT'!G36)) -> 1677.784001 | E36: 961819.6646 | M36: Adquisición | N36: Respalda2 | O36: AdquisiciónRespalda2 | Q36: Pagos crecientes Respalda2
B37: =IF(B36=Simulador!$H$49,"",IF(B36="","",'Tabla Notaría'!B36+1)) -> 26 | C37: 961819.6646 | D37: =IF(B37="","",IF(Sheet1!$Z$1=4,'Tabla de Pagos Crecientes'!V32,'Tabla Fijos CAT'!G37)) -> 1691.215221 | E37: 960128.4494
B38: =IF(B37=Simulador!$H$49,"",IF(B37="","",'Tabla Notaría'!B37+1)) -> 27 | C38: 960128.4494 | D38: =IF(B38="","",IF(Sheet1!$Z$1=4,'Tabla de Pagos Crecientes'!V33,'Tabla Fijos CAT'!G38)) -> 1704.753963 | E38: 958423.6954 | M38: Mejora | N38: Tradicional | O38: MejoraTradicional | Q38: Pagos crecientes amortización creciente
B39: =IF(B38=Simulador!$H$49,"",IF(B38="","",'Tabla Notaría'!B38+1)) -> 28 | C39: 958423.6954 | D39: =IF(B39="","",IF(Sheet1!$Z$1=4,'Tabla de Pagos Crecientes'!V34,'Tabla Fijos CAT'!G39)) -> 1718.401087 | E39: 956705.2943 | M39: Mejora | N39: Apoyo INFONAVIT | O39: MejoraApoyo INFONAVIT | Q39: Pagos crecientes Apoyo INFONAVIT
B40: =IF(B39=Simulador!$H$49,"",IF(B39="","",'Tabla Notaría'!B39+1)) -> 29 | C40: 956705.2943 | D40: =IF(B40="","",IF(Sheet1!$Z$1=4,'Tabla de Pagos Crecientes'!V35,'Tabla Fijos CAT'!G40)) -> 1732.15746 | E40: 954973.1369
B41: =IF(B40=Simulador!$H$49,"",IF(B40="","",'Tabla Notaría'!B40+1)) -> 30 | C41: 954973.1369 | D41: =IF(B41="","",IF(Sheet1!$Z$1=4,'Tabla de Pagos Crecientes'!V36,'Tabla Fijos CAT'!G41)) -> 1746.023958 | E41: 953227.1129 | M41: Mejora más Remodelación | N41: Tradicional | O41: Mejora más RemodelaciónTradicional | Q41: Pagos crecientes amortización creciente
B42: =IF(B41=Simulador!$H$49,"",IF(B41="","",'Tabla Notaría'!B41+1)) -> 31 | C42: 953227.1129 | D42: =IF(B42="","",IF(Sheet1!$Z$1=4,'Tabla de Pagos Crecientes'!V37,'Tabla Fijos CAT'!G42)) -> 1760.001462 | E42: 951467.1114
B43: =IF(B42=Simulador!$H$49,"",IF(B42="","",'Tabla Notaría'!B42+1)) -> 32 | C43: 951467.1114 | D43: =IF(B43="","",IF(Sheet1!$Z$1=4,'Tabla de Pagos Crecientes'!V38,'Tabla Fijos CAT'!G43)) -> 1774.09086 | E43: 949693.0206 | M43: Remodelación | N43: Tradicional | O43: RemodelaciónTradicional | Q43: Pagos crecientes amortización creciente
B44: =IF(B43=Simulador!$H$49,"",IF(B43="","",'Tabla Notaría'!B43+1)) -> 33 | C44: 949693.0206 | D44: =IF(B44="","",IF(Sheet1!$Z$1=4,'Tabla de Pagos Crecientes'!V39,'Tabla Fijos CAT'!G44)) -> 1788.293049 | E44: 947904.7275
B45: =IF(B44=Simulador!$H$49,"",IF(B44="","",'Tabla Notaría'!B44+1)) -> 34 | C45: 947904.7275 | D45: =IF(B45="","",IF(Sheet1!$Z$1=4,'Tabla de Pagos Crecientes'!V40,'Tabla Fijos CAT'!G45)) -> 1802.608931 | E45: 946102.1186 | M45: Construcción | N45: Tradicional | O45: ConstrucciónTradicional | Q45: Pagos crecientes amortización creciente
B46: =IF(B45=Simulador!$H$49,"",IF(B45="","",'Tabla Notaría'!B45+1)) -> 35 | C46: 946102.1186 | D46: =IF(B46="","",IF(Sheet1!$Z$1=4,'Tabla de Pagos Crecientes'!V41,'Tabla Fijos CAT'!G46)) -> 1817.039416 | E46: 944285.0792 | M46: Construcción | N46: Apoyo INFONAVIT | O46: ConstrucciónApoyo INFONAVIT | Q46: Pagos crecientes Apoyo INFONAVIT
B47: =IF(B46=Simulador!$H$49,"",IF(B46="","",'Tabla Notaría'!B46+1)) -> 36 | C47: 944285.0792 | D47: =IF(B47="","",IF(Sheet1!$Z$1=4,'Tabla de Pagos Crecientes'!V42,'Tabla Fijos CAT'!G47)) -> 1831.585422 | E47: 942453.4938
B48: =IF(B47=Simulador!$H$49,"",IF(B47="","",'Tabla Notaría'!B47+1)) -> 37 | C48: 942453.4938 | D48: =IF(B48="","",IF(Sheet1!$Z$1=4,'Tabla de Pagos Crecientes'!V43,'Tabla Fijos CAT'!G48)) -> 1846.247874 | E48: 940607.2459 | M48: Terreno_más_Construcción | N48: Tradicional | O48: Terreno_más_ConstrucciónTradicional | Q48: Pagos crecientes amortización creciente
B49: =IF(B48=Simulador!$H$49,"",IF(B48="","",'Tabla Notaría'!B48+1)) -> 38 | C49: 940607.2459 | D49: =IF(B49="","",IF(Sheet1!$Z$1=4,'Tabla de Pagos Crecientes'!V44,'Tabla Fijos CAT'!G49)) -> 1861.027704 | E49: 938746.2182 | M49: Terreno_más_Construcción | N49: Apoyo INFONAVIT | O49: Terreno_más_ConstrucciónApoyo INFONAVIT | Q49: Pagos crecientes Apoyo INFONAVIT
B50: =IF(B49=Simulador!$H$49,"",IF(B49="","",'Tabla Notaría'!B49+1)) -> 39 | C50: 938746.2182 | D50: =IF(B50="","",IF(Sheet1!$Z$1=4,'Tabla de Pagos Crecientes'!V45,'Tabla Fijos CAT'!G50)) -> 1875.925851 | E50: 936870.2923
B51: =IF(B50=Simulador!$H$49,"",IF(B50="","",'Tabla Notaría'!B50+1)) -> 40 | C51: 936870.2923 | D51: =IF(B51="","",IF(Sheet1!$Z$1=4,'Tabla de Pagos Crecientes'!V46,'Tabla Fijos CAT'!G51)) -> 1890.943263 | E51: 934979.3491 | M51: Compra_Venta_Termino_Obra | N51: Tradicional | O51: Compra_Venta_Termino_ObraTradicional | Q51: Pagos crecientes amortización creciente
B52: =IF(B51=Simulador!$H$49,"",IF(B51="","",'Tabla Notaría'!B51+1)) -> 41 | C52: 934979.3491 | D52: =IF(B52="","",IF(Sheet1!$Z$1=4,'Tabla de Pagos Crecientes'!V47,'Tabla Fijos CAT'!G52)) -> 1906.080894 | E52: 933073.2682 | M52: Compra_Venta_Termino_Obra | N52: Apoyo INFONAVIT | O52: Compra_Venta_Termino_ObraApoyo INFONAVIT | Q52: Pagos crecientes Apoyo INFONAVIT
B53: =IF(B52=Simulador!$H$49,"",IF(B52="","",'Tabla Notaría'!B52+1)) -> 42 | C53: 933073.2682 | D53: =IF(B53="","",IF(Sheet1!$Z$1=4,'Tabla de Pagos Crecientes'!V48,'Tabla Fijos CAT'!G53)) -> 1921.339707 | E53: 931151.9285
B54: =IF(B53=Simulador!$H$49,"",IF(B53="","",'Tabla Notaría'!B53+1)) -> 43 | C54: 931151.9285 | D54: =IF(B54="","",IF(Sheet1!$Z$1=4,'Tabla de Pagos Crecientes'!V49,'Tabla Fijos CAT'!G54)) -> 1936.720672 | E54: 929215.2078
B55: =IF(B54=Simulador!$H$49,"",IF(B54="","",'Tabla Notaría'!B54+1)) -> 44 | C55: 929215.2078 | D55: =IF(B55="","",IF(Sheet1!$Z$1=4,'Tabla de Pagos Crecientes'!V50,'Tabla Fijos CAT'!G55)) -> 1952.224766 | E55: 927262.983
B56: =IF(B55=Simulador!$H$49,"",IF(B55="","",'Tabla Notaría'!B55+1)) -> 45 | C56: 927262.983 | D56: =IF(B56="","",IF(Sheet1!$Z$1=4,'Tabla de Pagos Crecientes'!V51,'Tabla Fijos CAT'!G56)) -> 1967.852976 | E56: 925295.1301
B57: =IF(B56=Simulador!$H$49,"",IF(B56="","",'Tabla Notaría'!B56+1)) -> 46 | C57: 925295.1301 | D57: =IF(B57="","",IF(Sheet1!$Z$1=4,'Tabla de Pagos Crecientes'!V52,'Tabla Fijos CAT'!G57)) -> 1983.606295 | E57: 923311.5238
B58: =IF(B57=Simulador!$H$49,"",IF(B57="","",'Tabla Notaría'!B57+1)) -> 47 | C58: 923311.5238 | D58: =IF(B58="","",IF(Sheet1!$Z$1=4,'Tabla de Pagos Crecientes'!V53,'Tabla Fijos CAT'!G58)) -> 1999.485725 | E58: 921312.038
B59: =IF(B58=Simulador!$H$49,"",IF(B58="","",'Tabla Notaría'!B58+1)) -> 48 | C59: 921312.038 | D59: =IF(B59="","",IF(Sheet1!$Z$1=4,'Tabla de Pagos Crecientes'!V54,'Tabla Fijos CAT'!G59)) -> 2015.492274 | E59: 919296.5458
B60: =IF(B59=Simulador!$H$49,"",IF(B59="","",'Tabla Notaría'!B59+1)) -> 49 | C60: 919296.5458 | D60: =IF(B60="","",IF(Sheet1!$Z$1=4,'Tabla de Pagos Crecientes'!V55,'Tabla Fijos CAT'!G60)) -> 2031.626962 | E60: 917264.9188
B61: =IF(B60=Simulador!$H$49,"",IF(B60="","",'Tabla Notaría'!B60+1)) -> 50 | C61: 917264.9188 | D61: =IF(B61="","",IF(Sheet1!$Z$1=4,'Tabla de Pagos Crecientes'!V56,'Tabla Fijos CAT'!G61)) -> 2047.890813 | E61: 915217.028
B62: =IF(B61=Simulador!$H$49,"",IF(B61="","",'Tabla Notaría'!B61+1)) -> 51 | C62: 915217.028 | D62: =IF(B62="","",IF(Sheet1!$Z$1=4,'Tabla de Pagos Crecientes'!V57,'Tabla Fijos CAT'!G62)) -> 2064.284862 | E62: 913152.7431
B63: =IF(B62=Simulador!$H$49,"",IF(B62="","",'Tabla Notaría'!B62+1)) -> 52 | C63: 913152.7431 | D63: =IF(B63="","",IF(Sheet1!$Z$1=4,'Tabla de Pagos Crecientes'!V58,'Tabla Fijos CAT'!G63)) -> 2080.81015 | E63: 911071.933
B64: =IF(B63=Simulador!$H$49,"",IF(B63="","",'Tabla Notaría'!B63+1)) -> 53 | C64: 911071.933 | D64: =IF(B64="","",IF(Sheet1!$Z$1=4,'Tabla de Pagos Crecientes'!V59,'Tabla Fijos CAT'!G64)) -> 2097.467729 | E64: 908974.4653
B65: =IF(B64=Simulador!$H$49,"",IF(B64="","",'Tabla Notaría'!B64+1)) -> 54 | C65: 908974.4653 | D65: =IF(B65="","",IF(Sheet1!$Z$1=4,'Tabla de Pagos Crecientes'!V60,'Tabla Fijos CAT'!G65)) -> 2114.258657 | E65: 906860.2066
B66: =IF(B65=Simulador!$H$49,"",IF(B65="","",'Tabla Notaría'!B65+1)) -> 55 | C66: 906860.2066 | D66: =IF(B66="","",IF(Sheet1!$Z$1=4,'Tabla de Pagos Crecientes'!V61,'Tabla Fijos CAT'!G66)) -> 2131.184002 | E66: 904729.0226
B67: =IF(B66=Simulador!$H$49,"",IF(B66="","",'Tabla Notaría'!B66+1)) -> 56 | C67: 904729.0226 | D67: =IF(B67="","",IF(Sheet1!$Z$1=4,'Tabla de Pagos Crecientes'!V62,'Tabla Fijos CAT'!G67)) -> 2148.244841 | E67: 902580.7778
B68: =IF(B67=Simulador!$H$49,"",IF(B67="","",'Tabla Notaría'!B67+1)) -> 57 | C68: 902580.7778 | D68: =IF(B68="","",IF(Sheet1!$Z$1=4,'Tabla de Pagos Crecientes'!V63,'Tabla Fijos CAT'!G68)) -> 2165.442257 | E68: 900415.3355
B69: =IF(B68=Simulador!$H$49,"",IF(B68="","",'Tabla Notaría'!B68+1)) -> 58 | C69: 900415.3355 | D69: =IF(B69="","",IF(Sheet1!$Z$1=4,'Tabla de Pagos Crecientes'!V64,'Tabla Fijos CAT'!G69)) -> 2182.777344 | E69: 898232.5582
B70: =IF(B69=Simulador!$H$49,"",IF(B69="","",'Tabla Notaría'!B69+1)) -> 59 | C70: 898232.5582 | D70: =IF(B70="","",IF(Sheet1!$Z$1=4,'Tabla de Pagos Crecientes'!V65,'Tabla Fijos CAT'!G70)) -> 2200.251204 | E70: 896032.3069
B71: =IF(B70=Simulador!$H$49,"",IF(B70="","",'Tabla Notaría'!B70+1)) -> 60 | C71: 896032.3069 | D71: =IF(B71="","",IF(Sheet1!$Z$1=4,'Tabla de Pagos Crecientes'!V66,'Tabla Fijos CAT'!G71)) -> 2217.864948 | E71: 893814.442
B72: =IF(B71=Simulador!$H$49,"",IF(B71="","",'Tabla Notaría'!B71+1)) -> 61 | C72: 893814.442 | D72: =IF(B72="","",IF(Sheet1!$Z$1=4,'Tabla de Pagos Crecientes'!V67,'Tabla Fijos CAT'!G72)) -> 2235.619697 | E72: 891578.8223
B73: =IF(B72=Simulador!$H$49,"",IF(B72="","",'Tabla Notaría'!B72+1)) -> 62 | C73: 891578.8223 | D73: =IF(B73="","",IF(Sheet1!$Z$1=4,'Tabla de Pagos Crecientes'!V68,'Tabla Fijos CAT'!G73)) -> 2253.516578 | E73: 889325.3057
B74: =IF(B73=Simulador!$H$49,"",IF(B73="","",'Tabla Notaría'!B73+1)) -> 63 | C74: 889325.3057 | D74: =IF(B74="","",IF(Sheet1!$Z$1=4,'Tabla de Pagos Crecientes'!V69,'Tabla Fijos CAT'!G74)) -> 2271.556729 | E74: 887053.749
B75: =IF(B74=Simulador!$H$49,"",IF(B74="","",'Tabla Notaría'!B74+1)) -> 64 | C75: 887053.749 | D75: =IF(B75="","",IF(Sheet1!$Z$1=4,'Tabla de Pagos Crecientes'!V70,'Tabla Fijos CAT'!G75)) -> 2289.741298 | E75: 884764.0077
B76: =IF(B75=Simulador!$H$49,"",IF(B75="","",'Tabla Notaría'!B75+1)) -> 65 | C76: 884764.0077 | D76: =IF(B76="","",IF(Sheet1!$Z$1=4,'Tabla de Pagos Crecientes'!V71,'Tabla Fijos CAT'!G76)) -> 2308.07144 | E76: =IF(B76="","",C76-D76) -> 882455.9363
B77: =IF(B76=Simulador!$H$49,"",IF(B76="","",'Tabla Notaría'!B76+1)) -> 66 | C77: 882455.9363 | D77: =IF(B77="","",IF(Sheet1!$Z$1=4,'Tabla de Pagos Crecientes'!V72,'Tabla Fijos CAT'!G77)) -> 2326.548321 | E77: 880129.3879
B78: =IF(B77=Simulador!$H$49,"",IF(B77="","",'Tabla Notaría'!B77+1)) -> 67 | C78: =IF(B78="","",C77-D77) -> 880129.3879 | D78: =IF(B78="","",IF(Sheet1!$Z$1=4,'Tabla de Pagos Crecientes'!V73,'Tabla Fijos CAT'!G78)) -> 2345.173116 | E78: 877784.2148
B79: =IF(B78=Simulador!$H$49,"",IF(B78="","",'Tabla Notaría'!B78+1)) -> 68 | C79: 877784.2148 | D79: =IF(B79="","",IF(Sheet1!$Z$1=4,'Tabla de Pagos Crecientes'!V74,'Tabla Fijos CAT'!G79)) -> 2363.947009 | E79: 875420.2678
B80: =IF(B79=Simulador!$H$49,"",IF(B79="","",'Tabla Notaría'!B79+1)) -> 69 | C80: 875420.2678 | D80: =IF(B80="","",IF(Sheet1!$Z$1=4,'Tabla de Pagos Crecientes'!V75,'Tabla Fijos CAT'!G80)) -> 2382.871192 | E80: 873037.3966
B81: =IF(B80=Simulador!$H$49,"",IF(B80="","",'Tabla Notaría'!B80+1)) -> 70 | C81: 873037.3966 | D81: =IF(B81="","",IF(Sheet1!$Z$1=4,'Tabla de Pagos Crecientes'!V76,'Tabla Fijos CAT'!G81)) -> 2401.946871 | E81: 870635.4497
B82: =IF(B81=Simulador!$H$49,"",IF(B81="","",'Tabla Notaría'!B81+1)) -> 71 | C82: 870635.4497 | D82: =IF(B82="","",IF(Sheet1!$Z$1=4,'Tabla de Pagos Crecientes'!V77,'Tabla Fijos CAT'!G82)) -> 2421.175256 | E82: 868214.2745
B83: =IF(B82=Simulador!$H$49,"",IF(B82="","",'Tabla Notaría'!B82+1)) -> 72 | C83: 868214.2745 | D83: =IF(B83="","",IF(Sheet1!$Z$1=4,'Tabla de Pagos Crecientes'!V78,'Tabla Fijos CAT'!G83)) -> 2440.557571 | E83: 865773.7169
B84: =IF(B83=Simulador!$H$49,"",IF(B83="","",'Tabla Notaría'!B83+1)) -> 73 | C84: 865773.7169 | D84: =IF(B84="","",IF(Sheet1!$Z$1=4,'Tabla de Pagos Crecientes'!V79,'Tabla Fijos CAT'!G84)) -> 2460.095048 | E84: 863313.6219
B85: =IF(B84=Simulador!$H$49,"",IF(B84="","",'Tabla Notaría'!B84+1)) -> 74 | C85: 863313.6219 | D85: =IF(B85="","",IF(Sheet1!$Z$1=4,'Tabla de Pagos Crecientes'!V80,'Tabla Fijos CAT'!G85)) -> 2479.788929 | E85: 860833.8329
B86: =IF(B85=Simulador!$H$49,"",IF(B85="","",'Tabla Notaría'!B85+1)) -> 75 | C86: 860833.8329 | D86: =IF(B86="","",IF(Sheet1!$Z$1=4,'Tabla de Pagos Crecientes'!V81,'Tabla Fijos CAT'!G86)) -> 2499.640466 | E86: 858334.1925
B87: =IF(B86=Simulador!$H$49,"",IF(B86="","",'Tabla Notaría'!B86+1)) -> 76 | C87: 858334.1925 | D87: =IF(B87="","",IF(Sheet1!$Z$1=4,'Tabla de Pagos Crecientes'!V82,'Tabla Fijos CAT'!G87)) -> 2519.650921 | E87: 855814.5416
B88: =IF(B87=Simulador!$H$49,"",IF(B87="","",'Tabla Notaría'!B87+1)) -> 77 | C88: 855814.5416 | D88: =IF(B88="","",IF(Sheet1!$Z$1=4,'Tabla de Pagos Crecientes'!V83,'Tabla Fijos CAT'!G88)) -> 2539.821566 | E88: 853274.72
B89: =IF(B88=Simulador!$H$49,"",IF(B88="","",'Tabla Notaría'!B88+1)) -> 78 | C89: 853274.72 | D89: =IF(B89="","",IF(Sheet1!$Z$1=4,'Tabla de Pagos Crecientes'!V84,'Tabla Fijos CAT'!G89)) -> 2560.153685 | E89: 850714.5663
B90: =IF(B89=Simulador!$H$49,"",IF(B89="","",'Tabla Notaría'!B89+1)) -> 79 | C90: 850714.5663 | D90: =IF(B90="","",IF(Sheet1!$Z$1=4,'Tabla de Pagos Crecientes'!V85,'Tabla Fijos CAT'!G90)) -> 2580.648568 | E90: 848133.9177
B91: =IF(B90=Simulador!$H$49,"",IF(B90="","",'Tabla Notaría'!B90+1)) -> 80 | C91: 848133.9177 | D91: =IF(B91="","",IF(Sheet1!$Z$1=4,'Tabla de Pagos Crecientes'!V86,'Tabla Fijos CAT'!G91)) -> 2601.30752 | E91: 845532.6102
B92: =IF(B91=Simulador!$H$49,"",IF(B91="","",'Tabla Notaría'!B91+1)) -> 81 | C92: 845532.6102 | D92: =IF(B92="","",IF(Sheet1!$Z$1=4,'Tabla de Pagos Crecientes'!V87,'Tabla Fijos CAT'!G92)) -> 2622.131854 | E92: 842910.4784
B93: =IF(B92=Simulador!$H$49,"",IF(B92="","",'Tabla Notaría'!B92+1)) -> 82 | C93: 842910.4784 | D93: =IF(B93="","",IF(Sheet1!$Z$1=4,'Tabla de Pagos Crecientes'!V88,'Tabla Fijos CAT'!G93)) -> 2643.122894 | E93: 840267.3555
B94: =IF(B93=Simulador!$H$49,"",IF(B93="","",'Tabla Notaría'!B93+1)) -> 83 | C94: 840267.3555 | D94: =IF(B94="","",IF(Sheet1!$Z$1=4,'Tabla de Pagos Crecientes'!V89,'Tabla Fijos CAT'!G94)) -> 2664.281973 | E94: 837603.0735
B95: =IF(B94=Simulador!$H$49,"",IF(B94="","",'Tabla Notaría'!B94+1)) -> 84 | C95: 837603.0735 | D95: =IF(B95="","",IF(Sheet1!$Z$1=4,'Tabla de Pagos Crecientes'!V90,'Tabla Fijos CAT'!G95)) -> 2685.610439 | E95: 834917.4631
B96: =IF(B95=Simulador!$H$49,"",IF(B95="","",'Tabla Notaría'!B95+1)) -> 85 | C96: 834917.4631 | D96: =IF(B96="","",IF(Sheet1!$Z$1=4,'Tabla de Pagos Crecientes'!V91,'Tabla Fijos CAT'!G96)) -> 2707.109645 | E96: 832210.3534
B97: =IF(B96=Simulador!$H$49,"",IF(B96="","",'Tabla Notaría'!B96+1)) -> 86 | C97: 832210.3534 | D97: =IF(B97="","",IF(Sheet1!$Z$1=4,'Tabla de Pagos Crecientes'!V92,'Tabla Fijos CAT'!G97)) -> 2728.78096 | E97: 829481.5725
B98: =IF(B97=Simulador!$H$49,"",IF(B97="","",'Tabla Notaría'!B97+1)) -> 87 | C98: 829481.5725 | D98: =IF(B98="","",IF(Sheet1!$Z$1=4,'Tabla de Pagos Crecientes'!V93,'Tabla Fijos CAT'!G98)) -> 2750.625762 | E98: 826730.9467
B99: =IF(B98=Simulador!$H$49,"",IF(B98="","",'Tabla Notaría'!B98+1)) -> 88 | C99: 826730.9467 | D99: =IF(B99="","",IF(Sheet1!$Z$1=4,'Tabla de Pagos Crecientes'!V94,'Tabla Fijos CAT'!G99)) -> 2772.645438 | E99: 823958.3013
B100: =IF(B99=Simulador!$H$49,"",IF(B99="","",'Tabla Notaría'!B99+1)) -> 89 | C100: 823958.3013 | D100: =IF(B100="","",IF(Sheet1!$Z$1=4,'Tabla de Pagos Crecientes'!V95,'Tabla Fijos CAT'!G100)) -> 2794.841389 | E100: 821163.4599
B101: =IF(B100=Simulador!$H$49,"",IF(B100="","",'Tabla Notaría'!B100+1)) -> 90 | C101: 821163.4599 | D101: =IF(B101="","",IF(Sheet1!$Z$1=4,'Tabla de Pagos Crecientes'!V96,'Tabla Fijos CAT'!G101)) -> 2817.215026 | E101: 818346.2448
B102: =IF(B101=Simulador!$H$49,"",IF(B101="","",'Tabla Notaría'!B101+1)) -> 91 | C102: 818346.2448 | D102: =IF(B102="","",IF(Sheet1!$Z$1=4,'Tabla de Pagos Crecientes'!V97,'Tabla Fijos CAT'!G102)) -> 2839.767771 | E102: 815506.4771
B103: =IF(B102=Simulador!$H$49,"",IF(B102="","",'Tabla Notaría'!B102+1)) -> 92 | C103: 815506.4771 | D103: =IF(B103="","",IF(Sheet1!$Z$1=4,'Tabla de Pagos Crecientes'!V98,'Tabla Fijos CAT'!G103)) -> 2862.501059 | E103: 812643.976
B104: =IF(B103=Simulador!$H$49,"",IF(B103="","",'Tabla Notaría'!B103+1)) -> 93 | C104: 812643.976 | D104: =IF(B104="","",IF(Sheet1!$Z$1=4,'Tabla de Pagos Crecientes'!V99,'Tabla Fijos CAT'!G104)) -> 2885.416334 | E104: 809758.5597
B105: =IF(B104=Simulador!$H$49,"",IF(B104="","",'Tabla Notaría'!B104+1)) -> 94 | C105: 809758.5597 | D105: =IF(B105="","",IF(Sheet1!$Z$1=4,'Tabla de Pagos Crecientes'!V100,'Tabla Fijos CAT'!G105)) -> 2908.515053 | E105: 806850.0446
B106: =IF(B105=Simulador!$H$49,"",IF(B105="","",'Tabla Notaría'!B105+1)) -> 95 | C106: 806850.0446 | D106: =IF(B106="","",IF(Sheet1!$Z$1=4,'Tabla de Pagos Crecientes'!V101,'Tabla Fijos CAT'!G106)) -> 2931.798686 | E106: 803918.2459
B107: =IF(B106=Simulador!$H$49,"",IF(B106="","",'Tabla Notaría'!B106+1)) -> 96 | C107: 803918.2459 | D107: =IF(B107="","",IF(Sheet1!$Z$1=4,'Tabla de Pagos Crecientes'!V102,'Tabla Fijos CAT'!G107)) -> 2955.268712 | E107: 800962.9772
B108: =IF(B107=Simulador!$H$49,"",IF(B107="","",'Tabla Notaría'!B107+1)) -> 97 | C108: 800962.9772 | D108: =IF(B108="","",IF(Sheet1!$Z$1=4,'Tabla de Pagos Crecientes'!V103,'Tabla Fijos CAT'!G108)) -> 2978.926623 | E108: 797984.0506
B109: =IF(B108=Simulador!$H$49,"",IF(B108="","",'Tabla Notaría'!B108+1)) -> 98 | C109: 797984.0506 | D109: =IF(B109="","",IF(Sheet1!$Z$1=4,'Tabla de Pagos Crecientes'!V104,'Tabla Fijos CAT'!G109)) -> 3002.773923 | E109: 794981.2767
B110: =IF(B109=Simulador!$H$49,"",IF(B109="","",'Tabla Notaría'!B109+1)) -> 99 | C110: 794981.2767 | D110: =IF(B110="","",IF(Sheet1!$Z$1=4,'Tabla de Pagos Crecientes'!V105,'Tabla Fijos CAT'!G110)) -> 3026.812129 | E110: 791954.4646
B111: =IF(B110=Simulador!$H$49,"",IF(B110="","",'Tabla Notaría'!B110+1)) -> 100 | C111: 791954.4646 | D111: =IF(B111="","",IF(Sheet1!$Z$1=4,'Tabla de Pagos Crecientes'!V106,'Tabla Fijos CAT'!G111)) -> 3051.042769 | E111: 788903.4218
B112: =IF(B111=Simulador!$H$49,"",IF(B111="","",'Tabla Notaría'!B111+1)) -> 101 | C112: 788903.4218 | D112: =IF(B112="","",IF(Sheet1!$Z$1=4,'Tabla de Pagos Crecientes'!V107,'Tabla Fijos CAT'!G112)) -> 3075.467384 | E112: 785827.9544
B113: =IF(B112=Simulador!$H$49,"",IF(B112="","",'Tabla Notaría'!B112+1)) -> 102 | C113: 785827.9544 | D113: =IF(B113="","",IF(Sheet1!$Z$1=4,'Tabla de Pagos Crecientes'!V108,'Tabla Fijos CAT'!G113)) -> 3100.087525 | E113: 782727.8669
B114: =IF(B113=Simulador!$H$49,"",IF(B113="","",'Tabla Notaría'!B113+1)) -> 103 | C114: 782727.8669 | D114: =IF(B114="","",IF(Sheet1!$Z$1=4,'Tabla de Pagos Crecientes'!V109,'Tabla Fijos CAT'!G114)) -> 3124.904759 | E114: 779602.9621
B115: =IF(B114=Simulador!$H$49,"",IF(B114="","",'Tabla Notaría'!B114+1)) -> 104 | C115: 779602.9621 | D115: =IF(B115="","",IF(Sheet1!$Z$1=4,'Tabla de Pagos Crecientes'!V110,'Tabla Fijos CAT'!G115)) -> 3149.920664 | E115: 776453.0414
B116: =IF(B115=Simulador!$H$49,"",IF(B115="","",'Tabla Notaría'!B115+1)) -> 105 | C116: 776453.0414 | D116: =IF(B116="","",IF(Sheet1!$Z$1=4,'Tabla de Pagos Crecientes'!V111,'Tabla Fijos CAT'!G116)) -> 3175.136829 | E116: 773277.9046
B117: =IF(B116=Simulador!$H$49,"",IF(B116="","",'Tabla Notaría'!B116+1)) -> 106 | C117: 773277.9046 | D117: =IF(B117="","",IF(Sheet1!$Z$1=4,'Tabla de Pagos Crecientes'!V112,'Tabla Fijos CAT'!G117)) -> 3200.554857 | E117: 770077.3498
B118: =IF(B117=Simulador!$H$49,"",IF(B117="","",'Tabla Notaría'!B117+1)) -> 107 | C118: 770077.3498 | D118: =IF(B118="","",IF(Sheet1!$Z$1=4,'Tabla de Pagos Crecientes'!V113,'Tabla Fijos CAT'!G118)) -> 3226.176366 | E118: 766851.1734
B119: =IF(B118=Simulador!$H$49,"",IF(B118="","",'Tabla Notaría'!B118+1)) -> 108 | C119: 766851.1734 | D119: =IF(B119="","",IF(Sheet1!$Z$1=4,'Tabla de Pagos Crecientes'!V114,'Tabla Fijos CAT'!G119)) -> 3252.002983 | E119: 763599.1704
B120: =IF(B119=Simulador!$H$49,"",IF(B119="","",'Tabla Notaría'!B119+1)) -> 109 | C120: 763599.1704 | D120: =IF(B120="","",IF(Sheet1!$Z$1=4,'Tabla de Pagos Crecientes'!V115,'Tabla Fijos CAT'!G120)) -> 3278.036351 | E120: 760321.1341
B121: =IF(B120=Simulador!$H$49,"",IF(B120="","",'Tabla Notaría'!B120+1)) -> 110 | C121: 760321.1341 | D121: =IF(B121="","",IF(Sheet1!$Z$1=4,'Tabla de Pagos Crecientes'!V116,'Tabla Fijos CAT'!G121)) -> 3304.278124 | E121: 757016.8559
B122: =IF(B121=Simulador!$H$49,"",IF(B121="","",'Tabla Notaría'!B121+1)) -> 111 | C122: 757016.8559 | D122: =IF(B122="","",IF(Sheet1!$Z$1=4,'Tabla de Pagos Crecientes'!V117,'Tabla Fijos CAT'!G122)) -> 3330.729972 | E122: 753686.126
B123: =IF(B122=Simulador!$H$49,"",IF(B122="","",'Tabla Notaría'!B122+1)) -> 112 | C123: 753686.126 | D123: =IF(B123="","",IF(Sheet1!$Z$1=4,'Tabla de Pagos Crecientes'!V118,'Tabla Fijos CAT'!G123)) -> 3357.393576 | E123: 750328.7324
B124: =IF(B123=Simulador!$H$49,"",IF(B123="","",'Tabla Notaría'!B123+1)) -> 113 | C124: 750328.7324 | D124: =IF(B124="","",IF(Sheet1!$Z$1=4,'Tabla de Pagos Crecientes'!V119,'Tabla Fijos CAT'!G124)) -> 3384.270631 | E124: 746944.4618
B125: =IF(B124=Simulador!$H$49,"",IF(B124="","",'Tabla Notaría'!B124+1)) -> 114 | C125: 746944.4618 | D125: =IF(B125="","",IF(Sheet1!$Z$1=4,'Tabla de Pagos Crecientes'!V120,'Tabla Fijos CAT'!G125)) -> 3411.362845 | E125: 743533.0989
B126: =IF(B125=Simulador!$H$49,"",IF(B125="","",'Tabla Notaría'!B125+1)) -> 115 | C126: 743533.0989 | D126: =IF(B126="","",IF(Sheet1!$Z$1=4,'Tabla de Pagos Crecientes'!V121,'Tabla Fijos CAT'!G126)) -> 3438.671942 | E126: 740094.427
B127: =IF(B126=Simulador!$H$49,"",IF(B126="","",'Tabla Notaría'!B126+1)) -> 116 | C127: 740094.427 | D127: =IF(B127="","",IF(Sheet1!$Z$1=4,'Tabla de Pagos Crecientes'!V122,'Tabla Fijos CAT'!G127)) -> 3466.199657 | E127: 736628.2273
B128: =IF(B127=Simulador!$H$49,"",IF(B127="","",'Tabla Notaría'!B127+1)) -> 117 | C128: 736628.2273 | D128: =IF(B128="","",IF(Sheet1!$Z$1=4,'Tabla de Pagos Crecientes'!V123,'Tabla Fijos CAT'!G128)) -> 3493.947741 | E128: 733134.2796
B129: =IF(B128=Simulador!$H$49,"",IF(B128="","",'Tabla Notaría'!B128+1)) -> 118 | C129: 733134.2796 | D129: =IF(B129="","",IF(Sheet1!$Z$1=4,'Tabla de Pagos Crecientes'!V124,'Tabla Fijos CAT'!G129)) -> 3521.917957 | E129: 729612.3616
B130: =IF(B129=Simulador!$H$49,"",IF(B129="","",'Tabla Notaría'!B129+1)) -> 119 | C130: 729612.3616 | D130: =IF(B130="","",IF(Sheet1!$Z$1=4,'Tabla de Pagos Crecientes'!V125,'Tabla Fijos CAT'!G130)) -> 3550.112084 | E130: 726062.2495
B131: =IF(B130=Simulador!$H$49,"",IF(B130="","",'Tabla Notaría'!B130+1)) -> 120 | C131: 726062.2495 | D131: =IF(B131="","",IF(Sheet1!$Z$1=4,'Tabla de Pagos Crecientes'!V126,'Tabla Fijos CAT'!G131)) -> 3578.531915 | E131: 722483.7176
B132: =IF(B131=Simulador!$H$49,"",IF(B131="","",'Tabla Notaría'!B131+1)) -> 121 | C132: 722483.7176 | D132: =IF(B132="","",IF(Sheet1!$Z$1=4,'Tabla de Pagos Crecientes'!V127,'Tabla Fijos CAT'!G132)) -> 3607.179256 | E132: 718876.5384
B133: =IF(B132=Simulador!$H$49,"",IF(B132="","",'Tabla Notaría'!B132+1)) -> 122 | C133: 718876.5384 | D133: =IF(B133="","",IF(Sheet1!$Z$1=4,'Tabla de Pagos Crecientes'!V128,'Tabla Fijos CAT'!G133)) -> 3636.055928 | E133: 715240.4824
B134: =IF(B133=Simulador!$H$49,"",IF(B133="","",'Tabla Notaría'!B133+1)) -> 123 | C134: 715240.4824 | D134: =IF(B134="","",IF(Sheet1!$Z$1=4,'Tabla de Pagos Crecientes'!V129,'Tabla Fijos CAT'!G134)) -> 3665.163768 | E134: 711575.3187
B135: =IF(B134=Simulador!$H$49,"",IF(B134="","",'Tabla Notaría'!B134+1)) -> 124 | C135: 711575.3187 | D135: =IF(B135="","",IF(Sheet1!$Z$1=4,'Tabla de Pagos Crecientes'!V130,'Tabla Fijos CAT'!G135)) -> 3694.504625 | E135: 707880.814
B136: =IF(B135=Simulador!$H$49,"",IF(B135="","",'Tabla Notaría'!B135+1)) -> 125 | C136: 707880.814 | D136: =IF(B136="","",IF(Sheet1!$Z$1=4,'Tabla de Pagos Crecientes'!V131,'Tabla Fijos CAT'!G136)) -> 3724.080366 | E136: 704156.7337
B137: =IF(B136=Simulador!$H$49,"",IF(B136="","",'Tabla Notaría'!B136+1)) -> 126 | C137: 704156.7337 | D137: =IF(B137="","",IF(Sheet1!$Z$1=4,'Tabla de Pagos Crecientes'!V132,'Tabla Fijos CAT'!G137)) -> 3753.892871 | E137: 700402.8408
B138: =IF(B137=Simulador!$H$49,"",IF(B137="","",'Tabla Notaría'!B137+1)) -> 127 | C138: 700402.8408 | D138: =IF(B138="","",IF(Sheet1!$Z$1=4,'Tabla de Pagos Crecientes'!V133,'Tabla Fijos CAT'!G138)) -> 3783.944035 | E138: 696618.8968
B139: =IF(B138=Simulador!$H$49,"",IF(B138="","",'Tabla Notaría'!B138+1)) -> 128 | C139: 696618.8968 | D139: =IF(B139="","",IF(Sheet1!$Z$1=4,'Tabla de Pagos Crecientes'!V134,'Tabla Fijos CAT'!G139)) -> 3814.235768 | E139: 692804.661
B140: =IF(B139=Simulador!$H$49,"",IF(B139="","",'Tabla Notaría'!B139+1)) -> 129 | C140: 692804.661 | D140: =IF(B140="","",IF(Sheet1!$Z$1=4,'Tabla de Pagos Crecientes'!V135,'Tabla Fijos CAT'!G140)) -> 3844.769997 | E140: =IF(B140="","",C140-D140) -> 688959.891
B141: =IF(B140=Simulador!$H$49,"",IF(B140="","",'Tabla Notaría'!B140+1)) -> 130 | C141: 688959.891 | D141: =IF(B141="","",IF(Sheet1!$Z$1=4,'Tabla de Pagos Crecientes'!V136,'Tabla Fijos CAT'!G141)) -> 3875.548662 | E141: 685084.3423
B142: =IF(B141=Simulador!$H$49,"",IF(B141="","",'Tabla Notaría'!B141+1)) -> 131 | C142: =IF(B142="","",C141-D141) -> 685084.3423 | D142: =IF(B142="","",IF(Sheet1!$Z$1=4,'Tabla de Pagos Crecientes'!V137,'Tabla Fijos CAT'!G142)) -> 3906.573721 | E142: 681177.7686
B143: =IF(B142=Simulador!$H$49,"",IF(B142="","",'Tabla Notaría'!B142+1)) -> 132 | C143: 681177.7686 | D143: =IF(B143="","",IF(Sheet1!$Z$1=4,'Tabla de Pagos Crecientes'!V138,'Tabla Fijos CAT'!G143)) -> 3937.847146 | E143: 677239.9215
B144: =IF(B143=Simulador!$H$49,"",IF(B143="","",'Tabla Notaría'!B143+1)) -> 133 | C144: 677239.9215 | D144: =IF(B144="","",IF(Sheet1!$Z$1=4,'Tabla de Pagos Crecientes'!V139,'Tabla Fijos CAT'!G144)) -> 3969.370925 | E144: 673270.5506
B145: =IF(B144=Simulador!$H$49,"",IF(B144="","",'Tabla Notaría'!B144+1)) -> 134 | C145: 673270.5506 | D145: =IF(B145="","",IF(Sheet1!$Z$1=4,'Tabla de Pagos Crecientes'!V140,'Tabla Fijos CAT'!G145)) -> 4001.147062 | E145: 669269.4035
B146: =IF(B145=Simulador!$H$49,"",IF(B145="","",'Tabla Notaría'!B145+1)) -> 135 | C146: 669269.4035 | D146: =IF(B146="","",IF(Sheet1!$Z$1=4,'Tabla de Pagos Crecientes'!V141,'Tabla Fijos CAT'!G146)) -> 4033.177578 | E146: 665236.2259
B147: =IF(B146=Simulador!$H$49,"",IF(B146="","",'Tabla Notaría'!B146+1)) -> 136 | C147: 665236.2259 | D147: =IF(B147="","",IF(Sheet1!$Z$1=4,'Tabla de Pagos Crecientes'!V142,'Tabla Fijos CAT'!G147)) -> 4065.464509 | E147: 661170.7614
B148: =IF(B147=Simulador!$H$49,"",IF(B147="","",'Tabla Notaría'!B147+1)) -> 137 | C148: 661170.7614 | D148: =IF(B148="","",IF(Sheet1!$Z$1=4,'Tabla de Pagos Crecientes'!V143,'Tabla Fijos CAT'!G148)) -> 4098.009908 | E148: 657072.7515
B149: =IF(B148=Simulador!$H$49,"",IF(B148="","",'Tabla Notaría'!B148+1)) -> 138 | C149: 657072.7515 | D149: =IF(B149="","",IF(Sheet1!$Z$1=4,'Tabla de Pagos Crecientes'!V144,'Tabla Fijos CAT'!G149)) -> 4130.815843 | E149: 652941.9357
B150: =IF(B149=Simulador!$H$49,"",IF(B149="","",'Tabla Notaría'!B149+1)) -> 139 | C150: 652941.9357 | D150: =IF(B150="","",IF(Sheet1!$Z$1=4,'Tabla de Pagos Crecientes'!V145,'Tabla Fijos CAT'!G150)) -> 4163.884401 | E150: 648778.0513
B151: =IF(B150=Simulador!$H$49,"",IF(B150="","",'Tabla Notaría'!B150+1)) -> 140 | C151: 648778.0513 | D151: =IF(B151="","",IF(Sheet1!$Z$1=4,'Tabla de Pagos Crecientes'!V146,'Tabla Fijos CAT'!G151)) -> 4197.217683 | E151: 644580.8336
B152: =IF(B151=Simulador!$H$49,"",IF(B151="","",'Tabla Notaría'!B151+1)) -> 141 | C152: 644580.8336 | D152: =IF(B152="","",IF(Sheet1!$Z$1=4,'Tabla de Pagos Crecientes'!V147,'Tabla Fijos CAT'!G152)) -> 4230.81781 | E152: 640350.0158
B153: =IF(B152=Simulador!$H$49,"",IF(B152="","",'Tabla Notaría'!B152+1)) -> 142 | C153: 640350.0158 | D153: =IF(B153="","",IF(Sheet1!$Z$1=4,'Tabla de Pagos Crecientes'!V148,'Tabla Fijos CAT'!G153)) -> 4264.686917 | E153: 636085.3288
B154: =IF(B153=Simulador!$H$49,"",IF(B153="","",'Tabla Notaría'!B153+1)) -> 143 | C154: 636085.3288 | D154: =IF(B154="","",IF(Sheet1!$Z$1=4,'Tabla de Pagos Crecientes'!V149,'Tabla Fijos CAT'!G154)) -> 4298.827157 | E154: 631786.5017
B155: =IF(B154=Simulador!$H$49,"",IF(B154="","",'Tabla Notaría'!B154+1)) -> 144 | C155: 631786.5017 | D155: =IF(B155="","",IF(Sheet1!$Z$1=4,'Tabla de Pagos Crecientes'!V150,'Tabla Fijos CAT'!G155)) -> 4333.240702 | E155: 627453.261
B156: =IF(B155=Simulador!$H$49,"",IF(B155="","",'Tabla Notaría'!B155+1)) -> 145 | C156: 627453.261 | D156: =IF(B156="","",IF(Sheet1!$Z$1=4,'Tabla de Pagos Crecientes'!V151,'Tabla Fijos CAT'!G156)) -> 4367.929738 | E156: 623085.3312
B157: =IF(B156=Simulador!$H$49,"",IF(B156="","",'Tabla Notaría'!B156+1)) -> 146 | C157: 623085.3312 | D157: =IF(B157="","",IF(Sheet1!$Z$1=4,'Tabla de Pagos Crecientes'!V152,'Tabla Fijos CAT'!G157)) -> 4402.896471 | E157: 618682.4348
B158: =IF(B157=Simulador!$H$49,"",IF(B157="","",'Tabla Notaría'!B157+1)) -> 147 | C158: 618682.4348 | D158: =IF(B158="","",IF(Sheet1!$Z$1=4,'Tabla de Pagos Crecientes'!V153,'Tabla Fijos CAT'!G158)) -> 4438.143125 | E158: 614244.2916
B159: =IF(B158=Simulador!$H$49,"",IF(B158="","",'Tabla Notaría'!B158+1)) -> 148 | C159: 614244.2916 | D159: =IF(B159="","",IF(Sheet1!$Z$1=4,'Tabla de Pagos Crecientes'!V154,'Tabla Fijos CAT'!G159)) -> 4473.67194 | E159: 609770.6197
B160: =IF(B159=Simulador!$H$49,"",IF(B159="","",'Tabla Notaría'!B159+1)) -> 149 | C160: 609770.6197 | D160: =IF(B160="","",IF(Sheet1!$Z$1=4,'Tabla de Pagos Crecientes'!V155,'Tabla Fijos CAT'!G160)) -> 4509.485175 | E160: 605261.1345
B161: =IF(B160=Simulador!$H$49,"",IF(B160="","",'Tabla Notaría'!B160+1)) -> 150 | C161: 605261.1345 | D161: =IF(B161="","",IF(Sheet1!$Z$1=4,'Tabla de Pagos Crecientes'!V156,'Tabla Fijos CAT'!G161)) -> 4545.585107 | E161: 600715.5494
B162: =IF(B161=Simulador!$H$49,"",IF(B161="","",'Tabla Notaría'!B161+1)) -> 151 | C162: 600715.5494 | D162: =IF(B162="","",IF(Sheet1!$Z$1=4,'Tabla de Pagos Crecientes'!V157,'Tabla Fijos CAT'!G162)) -> 4581.974031 | E162: 596133.5754
B163: =IF(B162=Simulador!$H$49,"",IF(B162="","",'Tabla Notaría'!B162+1)) -> 152 | C163: 596133.5754 | D163: =IF(B163="","",IF(Sheet1!$Z$1=4,'Tabla de Pagos Crecientes'!V158,'Tabla Fijos CAT'!G163)) -> 4618.654261 | E163: 591514.9211
B164: =IF(B163=Simulador!$H$49,"",IF(B163="","",'Tabla Notaría'!B163+1)) -> 153 | C164: 591514.9211 | D164: =IF(B164="","",IF(Sheet1!$Z$1=4,'Tabla de Pagos Crecientes'!V159,'Tabla Fijos CAT'!G164)) -> 4655.628128 | E164: 586859.293
B165: =IF(B164=Simulador!$H$49,"",IF(B164="","",'Tabla Notaría'!B164+1)) -> 154 | C165: 586859.293 | D165: =IF(B165="","",IF(Sheet1!$Z$1=4,'Tabla de Pagos Crecientes'!V160,'Tabla Fijos CAT'!G165)) -> 4692.897983 | E165: 582166.395
B166: =IF(B165=Simulador!$H$49,"",IF(B165="","",'Tabla Notaría'!B165+1)) -> 155 | C166: 582166.395 | D166: =IF(B166="","",IF(Sheet1!$Z$1=4,'Tabla de Pagos Crecientes'!V161,'Tabla Fijos CAT'!G166)) -> 4730.466195 | E166: 577435.9288
B167: =IF(B166=Simulador!$H$49,"",IF(B166="","",'Tabla Notaría'!B166+1)) -> 156 | C167: 577435.9288 | D167: =IF(B167="","",IF(Sheet1!$Z$1=4,'Tabla de Pagos Crecientes'!V162,'Tabla Fijos CAT'!G167)) -> 4768.335154 | E167: 572667.5937
B168: =IF(B167=Simulador!$H$49,"",IF(B167="","",'Tabla Notaría'!B167+1)) -> 157 | C168: 572667.5937 | D168: =IF(B168="","",IF(Sheet1!$Z$1=4,'Tabla de Pagos Crecientes'!V163,'Tabla Fijos CAT'!G168)) -> 4806.507266 | E168: 567861.0864
B169: =IF(B168=Simulador!$H$49,"",IF(B168="","",'Tabla Notaría'!B168+1)) -> 158 | C169: 567861.0864 | D169: =IF(B169="","",IF(Sheet1!$Z$1=4,'Tabla de Pagos Crecientes'!V164,'Tabla Fijos CAT'!G169)) -> 4844.984959 | E169: 563016.1014
B170: =IF(B169=Simulador!$H$49,"",IF(B169="","",'Tabla Notaría'!B169+1)) -> 159 | C170: 563016.1014 | D170: =IF(B170="","",IF(Sheet1!$Z$1=4,'Tabla de Pagos Crecientes'!V165,'Tabla Fijos CAT'!G170)) -> 4883.770679 | E170: 558132.3308
B171: =IF(B170=Simulador!$H$49,"",IF(B170="","",'Tabla Notaría'!B170+1)) -> 160 | C171: 558132.3308 | D171: =IF(B171="","",IF(Sheet1!$Z$1=4,'Tabla de Pagos Crecientes'!V166,'Tabla Fijos CAT'!G171)) -> 4922.866891 | E171: 553209.4639
B172: =IF(B171=Simulador!$H$49,"",IF(B171="","",'Tabla Notaría'!B171+1)) -> 161 | C172: 553209.4639 | D172: =IF(B172="","",IF(Sheet1!$Z$1=4,'Tabla de Pagos Crecientes'!V167,'Tabla Fijos CAT'!G172)) -> 4962.276082 | E172: 548247.1878
B173: =IF(B172=Simulador!$H$49,"",IF(B172="","",'Tabla Notaría'!B172+1)) -> 162 | C173: 548247.1878 | D173: =IF(B173="","",IF(Sheet1!$Z$1=4,'Tabla de Pagos Crecientes'!V168,'Tabla Fijos CAT'!G173)) -> 5002.000756 | E173: 543245.187
B174: =IF(B173=Simulador!$H$49,"",IF(B173="","",'Tabla Notaría'!B173+1)) -> 163 | C174: 543245.187 | D174: =IF(B174="","",IF(Sheet1!$Z$1=4,'Tabla de Pagos Crecientes'!V169,'Tabla Fijos CAT'!G174)) -> 5042.043439 | E174: 538203.1436
B175: =IF(B174=Simulador!$H$49,"",IF(B174="","",'Tabla Notaría'!B174+1)) -> 164 | C175: 538203.1436 | D175: =IF(B175="","",IF(Sheet1!$Z$1=4,'Tabla de Pagos Crecientes'!V170,'Tabla Fijos CAT'!G175)) -> 5082.406677 | E175: 533120.7369
B176: =IF(B175=Simulador!$H$49,"",IF(B175="","",'Tabla Notaría'!B175+1)) -> 165 | C176: 533120.7369 | D176: =IF(B176="","",IF(Sheet1!$Z$1=4,'Tabla de Pagos Crecientes'!V171,'Tabla Fijos CAT'!G176)) -> 5123.093037 | E176: 527997.6439
B177: =IF(B176=Simulador!$H$49,"",IF(B176="","",'Tabla Notaría'!B176+1)) -> 166 | C177: 527997.6439 | D177: =IF(B177="","",IF(Sheet1!$Z$1=4,'Tabla de Pagos Crecientes'!V172,'Tabla Fijos CAT'!G177)) -> 5164.105104 | E177: 522833.5388
B178: =IF(B177=Simulador!$H$49,"",IF(B177="","",'Tabla Notaría'!B177+1)) -> 167 | C178: 522833.5388 | D178: =IF(B178="","",IF(Sheet1!$Z$1=4,'Tabla de Pagos Crecientes'!V173,'Tabla Fijos CAT'!G178)) -> 5205.445487 | E178: 517628.0933
B179: =IF(B178=Simulador!$H$49,"",IF(B178="","",'Tabla Notaría'!B178+1)) -> 168 | C179: 517628.0933 | D179: =IF(B179="","",IF(Sheet1!$Z$1=4,'Tabla de Pagos Crecientes'!V174,'Tabla Fijos CAT'!G179)) -> 5247.116813 | E179: 512380.9765
B180: =IF(B179=Simulador!$H$49,"",IF(B179="","",'Tabla Notaría'!B179+1)) -> 169 | C180: 512380.9765 | D180: =IF(B180="","",IF(Sheet1!$Z$1=4,'Tabla de Pagos Crecientes'!V175,'Tabla Fijos CAT'!G180)) -> 5289.121733 | E180: 507091.8547
B181: =IF(B180=Simulador!$H$49,"",IF(B180="","",'Tabla Notaría'!B180+1)) -> 170 | C181: 507091.8547 | D181: =IF(B181="","",IF(Sheet1!$Z$1=4,'Tabla de Pagos Crecientes'!V176,'Tabla Fijos CAT'!G181)) -> 5331.462915 | E181: 501760.3918
B182: =IF(B181=Simulador!$H$49,"",IF(B181="","",'Tabla Notaría'!B181+1)) -> 171 | C182: 501760.3918 | D182: =IF(B182="","",IF(Sheet1!$Z$1=4,'Tabla de Pagos Crecientes'!V177,'Tabla Fijos CAT'!G182)) -> 5374.143053 | E182: 496386.2488
B183: =IF(B182=Simulador!$H$49,"",IF(B182="","",'Tabla Notaría'!B182+1)) -> 172 | C183: 496386.2488 | D183: =IF(B183="","",IF(Sheet1!$Z$1=4,'Tabla de Pagos Crecientes'!V178,'Tabla Fijos CAT'!G183)) -> 5417.164859 | E183: 490969.0839
B184: =IF(B183=Simulador!$H$49,"",IF(B183="","",'Tabla Notaría'!B183+1)) -> 173 | C184: 490969.0839 | D184: =IF(B184="","",IF(Sheet1!$Z$1=4,'Tabla de Pagos Crecientes'!V179,'Tabla Fijos CAT'!G184)) -> 5460.53107 | E184: 485508.5529
B185: =IF(B184=Simulador!$H$49,"",IF(B184="","",'Tabla Notaría'!B184+1)) -> 174 | C185: 485508.5529 | D185: =IF(B185="","",IF(Sheet1!$Z$1=4,'Tabla de Pagos Crecientes'!V180,'Tabla Fijos CAT'!G185)) -> 5504.244441 | E185: 480004.3084
B186: =IF(B185=Simulador!$H$49,"",IF(B185="","",'Tabla Notaría'!B185+1)) -> 175 | C186: 480004.3084 | D186: =IF(B186="","",IF(Sheet1!$Z$1=4,'Tabla de Pagos Crecientes'!V181,'Tabla Fijos CAT'!G186)) -> 5548.307753 | E186: 474456.0007
B187: =IF(B186=Simulador!$H$49,"",IF(B186="","",'Tabla Notaría'!B186+1)) -> 176 | C187: 474456.0007 | D187: =IF(B187="","",IF(Sheet1!$Z$1=4,'Tabla de Pagos Crecientes'!V182,'Tabla Fijos CAT'!G187)) -> 5592.723806 | E187: 468863.2769
B188: =IF(B187=Simulador!$H$49,"",IF(B187="","",'Tabla Notaría'!B187+1)) -> 177 | C188: 468863.2769 | D188: =IF(B188="","",IF(Sheet1!$Z$1=4,'Tabla de Pagos Crecientes'!V183,'Tabla Fijos CAT'!G188)) -> 5637.495424 | E188: 463225.7814
B189: =IF(B188=Simulador!$H$49,"",IF(B188="","",'Tabla Notaría'!B188+1)) -> 178 | C189: 463225.7814 | D189: =IF(B189="","",IF(Sheet1!$Z$1=4,'Tabla de Pagos Crecientes'!V184,'Tabla Fijos CAT'!G189)) -> 5682.625454 | E189: 457543.156
B190: =IF(B189=Simulador!$H$49,"",IF(B189="","",'Tabla Notaría'!B189+1)) -> 179 | C190: 457543.156 | D190: =IF(B190="","",IF(Sheet1!$Z$1=4,'Tabla de Pagos Crecientes'!V185,'Tabla Fijos CAT'!G190)) -> 5728.116765 | E190: 451815.0392
B191: =IF(B190=Simulador!$H$49,"",IF(B190="","",'Tabla Notaría'!B190+1)) -> 180 | C191: 451815.0392 | D191: =IF(B191="","",IF(Sheet1!$Z$1=4,'Tabla de Pagos Crecientes'!V186,'Tabla Fijos CAT'!G191)) -> 5773.972249 | E191: 446041.067
B192: =IF(B191=Simulador!$H$49,"",IF(B191="","",'Tabla Notaría'!B191+1)) -> 181 | C192: 446041.067 | D192: =IF(B192="","",IF(Sheet1!$Z$1=4,'Tabla de Pagos Crecientes'!V187,'Tabla Fijos CAT'!G192)) -> 5820.194822 | E192: =IF(B192="","",C192-D192) -> 440220.8721
B193: =IF(B192=Simulador!$H$49,"",IF(B192="","",'Tabla Notaría'!B192+1)) -> 182 | C193: 440220.8721 | D193: =IF(B193="","",IF(Sheet1!$Z$1=4,'Tabla de Pagos Crecientes'!V188,'Tabla Fijos CAT'!G193)) -> 5866.787421 | E193: =IF(B193="","",C193-D193) -> 434354.0847
B194: =IF(B193=Simulador!$H$49,"",IF(B193="","",'Tabla Notaría'!B193+1)) -> 183 | C194: 434354.0847 | D194: =IF(B194="","",IF(Sheet1!$Z$1=4,'Tabla de Pagos Crecientes'!V189,'Tabla Fijos CAT'!G194)) -> 5913.75301 | E194: 428440.3317
B195: =IF(B194=Simulador!$H$49,"",IF(B194="","",'Tabla Notaría'!B194+1)) -> 184 | C195: 428440.3317 | D195: =IF(B195="","",IF(Sheet1!$Z$1=4,'Tabla de Pagos Crecientes'!V190,'Tabla Fijos CAT'!G195)) -> 5961.094574 | E195: 422479.2371
B196: =IF(B195=Simulador!$H$49,"",IF(B195="","",'Tabla Notaría'!B195+1)) -> 185 | C196: 422479.2371 | D196: =IF(B196="","",IF(Sheet1!$Z$1=4,'Tabla de Pagos Crecientes'!V191,'Tabla Fijos CAT'!G196)) -> 6008.815123 | E196: 416470.422
B197: =IF(B196=Simulador!$H$49,"",IF(B196="","",'Tabla Notaría'!B196+1)) -> 186 | C197: 416470.422 | D197: =IF(B197="","",IF(Sheet1!$Z$1=4,'Tabla de Pagos Crecientes'!V192,'Tabla Fijos CAT'!G197)) -> 6056.917691 | E197: 410413.5043
B198: =IF(B197=Simulador!$H$49,"",IF(B197="","",'Tabla Notaría'!B197+1)) -> 187 | C198: 410413.5043 | D198: =IF(B198="","",IF(Sheet1!$Z$1=4,'Tabla de Pagos Crecientes'!V193,'Tabla Fijos CAT'!G198)) -> 6105.405336 | E198: 404308.099
B199: =IF(B198=Simulador!$H$49,"",IF(B198="","",'Tabla Notaría'!B198+1)) -> 188 | C199: 404308.099 | D199: =IF(B199="","",IF(Sheet1!$Z$1=4,'Tabla de Pagos Crecientes'!V194,'Tabla Fijos CAT'!G199)) -> 6154.281141 | E199: 398153.8178
B200: =IF(B199=Simulador!$H$49,"",IF(B199="","",'Tabla Notaría'!B199+1)) -> 189 | C200: 398153.8178 | D200: =IF(B200="","",IF(Sheet1!$Z$1=4,'Tabla de Pagos Crecientes'!V195,'Tabla Fijos CAT'!G200)) -> 6203.548213 | E200: 391950.2696
B201: =IF(B200=Simulador!$H$49,"",IF(B200="","",'Tabla Notaría'!B200+1)) -> 190 | C201: 391950.2696 | D201: =IF(B201="","",IF(Sheet1!$Z$1=4,'Tabla de Pagos Crecientes'!V196,'Tabla Fijos CAT'!G201)) -> 6253.209685 | E201: 385697.0599
B202: =IF(B201=Simulador!$H$49,"",IF(B201="","",'Tabla Notaría'!B201+1)) -> 191 | C202: 385697.0599 | D202: =IF(B202="","",IF(Sheet1!$Z$1=4,'Tabla de Pagos Crecientes'!V197,'Tabla Fijos CAT'!G202)) -> 6303.268712 | E202: 379393.7912
... 109 more rows

Sheet Tabla Parámetros (hidden)
R1: Básico | W1: =G45 -> Hipoteca Fuerte | Y1: Más por Menos | AF1: 0
B2: Nombre Tasa | C2: Mejora/Mejora + Remodelación | D2: En General | F2: Mes | G2: Tasa | J2: Destinos | L2: Tipo evaluación | N2: Seguros | P2: Tipo de Pago | R2: Factor Vida | S2: Factor Daños | U2: Comisión Apertura | W2: Plazo en meses | Y2: Plazo en meses | AA2: Hipoteca Fuerte | AC2: Reduce Pago | AF2: 1 | AG2: =IF(Simulador!$F$11='Tabla Parámetros'!$AA$2,'Tabla Parámetros'!AG9,IF(Simulador!$F$11='Tabla Parámetros'!$AA$4,'Tabla Parámetros'!AH9,IF(Simulador!$F$11='Tabla Parámetros'!$AA$5,'Tabla Parámetros'!AI9,IF(Simulador!$F$11='Tabla Parámetros'!$AA$3,'Tabla Parámetros'!AJ9,)))) -> Reduce Pago
B3: Premium | C3: 0.0948 | D3: 0.0948 | F3: 1 | G3: 0.113 | I3: 1 | J3: Adquisición | L3: Por monto del crédito | M3: 1 | N3: Amplio | O3: Hipoteca Fuerte | P3: Pago Fijo | R3: 7.2 | S3: =IF(Sheet1!$I$10=5,0,3.6) -> 3.6 | T3: =T4*1000 -> 3.6 | U3: 0.01 | W3: =IF(Sheet1!$I$10=5,60,X3) -> 60 | X3: =IF(Sheet1!$X$1=1,Sheet1!P2,IF(Sheet1!$X$1=2,Sheet1!S2,IF(Sheet1!$X$1=3,Sheet1!T2,IF(Sheet1!$X$1=4,Sheet1!Q2,"")))) -> 60 | Y3: 180 | AA3: Más por Menos | AC3: Reduce Plazo | AF3: 2 | AG3: =IF(Simulador!$F$11='Tabla Parámetros'!$AA$2,'Tabla Parámetros'!AG10,IF(Simulador!$F$11='Tabla Parámetros'!$AA$4,'Tabla Parámetros'!AH10,IF(Simulador!$F$11='Tabla Parámetros'!$AA$5,'Tabla Parámetros'!AI10,IF(Simulador!$F$11='Tabla Parámetros'!$AA$3," ",)))) -> Reduce Plazo
B4: Mínima | C4: 0.0978 | D4: 0.0978 | F4: 38 | G4: 0.1155 | I4: 2 | J4: Mejora | L4: Por valor de la vivienda | M4: 2 | N4: Básico | O4: Más por Menos | P4: Pago Creciente | R4: =R3/1000 -> 0.0072 | S4: =S3/1000 -> 0.0036 | T4: =T6*12 -> 0.0036 | U4: Promoción | W4: =IF(Sheet1!$I$10=5,120,X4) -> 72 | X4: =IF(Sheet1!$X$1=1,Sheet1!P3,IF(Sheet1!$X$1=2,Sheet1!S3,IF(Sheet1!$X$1=3,Sheet1!T3,IF(Sheet1!$X$1=4,Sheet1!Q3,"")))) -> 72 | Y4: 240 | AA4: Liquidez | AC4: Reduce Plazo y Pago | AF4: 3 | AG4: =IF(Simulador!$F$11='Tabla Parámetros'!$AA$2,'Tabla Parámetros'!AG11,IF(Simulador!$F$11='Tabla Parámetros'!$AA$4,'Tabla Parámetros'!AH11,IF(Simulador!$F$11='Tabla Parámetros'!$AA$5,'Tabla Parámetros'!AI11,IF(Simulador!$F$11='Tabla Parámetros'!$AA$3,"",)))) -> Reduce Plazo y Pago
B5: Baja | C5: 0.1028 | D5: =IF(Simulador!E11=2,'Tabla Parámetros'!C13,10.28%) -> 0.1028 | F5: 74 | G5: 0.118 | I5: 2 | J5: Mejora_más_Remodelación | L5: Por pago mensual | O5: Liquidez | R5: =IF(Sheet1!$Z$1=2,0,0.0006) -> 0.0006 | S5: =IF(Sheet1!$Z$1=2,0,IF(Simulador!F9=J11,0,$S$6)) -> 0.0003 | U5: 0 | W5: =IF(Sheet1!$I$10=5,180,IF(X5=0,"",X5)) -> 84 | X5: =IF(Sheet1!$X$1=1,Sheet1!P4,IF(Sheet1!$X$1=2,Sheet1!S4,IF(Sheet1!$X$1=3,Sheet1!T4,IF(Sheet1!$X$1=4,Sheet1!Q4,"")))) -> 84 | AA5: Terreno_Urbanizado
B6: Media | C6: 0.1068 | D6: 0.1068 | I6: 1 | J6: Remodelación | L6: Por ingreso mensual | N6: SI | O6: Terreno_Urbanizado | R6: =R3/360 -> 0.02 | S6: =S4/12 -> 0.0003 | T6: 0.0003 | U6: Financiada | W6: =IF(Sheet1!$I$10=5,240,IF(X6=0,"",X6)) -> 96 | X6: =IF(Sheet1!$X$1=1,Sheet1!P5,IF(Sheet1!$X$1=2,Sheet1!S5,IF(Sheet1!$X$1=3,Sheet1!T5,IF(Sheet1!$X$1=4,Sheet1!Q5,"")))) -> 96
B7: Alta | C7: 0.1108 | D7: 0.1108 | I7: 1 | J7: Construcción | N7: NO | R7: Amplio | U7: Si | W7: =IF(Sheet1!$I$10=5,"",IF(X7=0,"",X7)) -> 108 | X7: =IF(Sheet1!$X$1=1,Sheet1!P6,IF(Sheet1!$X$1=2,Sheet1!S6,IF(Sheet1!$X$1=3,Sheet1!T6,IF(Sheet1!$X$1=4,Sheet1!Q6,"")))) -> 108 | AM7: =VLOOKUP(Simulador!$F$11,'Tabla Parámetros'!AL8:AM14,2,0) -> 1
I8: 1 | J8: Terreno_más_Construcción | R8: Factor Vida | S8: Factor Daños | U8: No | W8: =IF(Sheet1!$I$10=5,"",IF(X8=0,"",X8)) -> 120 | X8: =IF(Sheet1!$X$1=1,Sheet1!P7,IF(Sheet1!$X$1=2,Sheet1!S7,IF(Sheet1!$X$1=3,Sheet1!T7,IF(Sheet1!$X$1=4,Sheet1!Q7,"")))) -> 120 | Y8: Comisión Investigación | AG8: Hipoteca Fuerte | AH8: Liquidez | AI8: Terreno Urbanizado | AJ8: Más por Menos | AL8: Hipoteca Fuerte | AM8: 1 | AN8: =IF($AM$7=2,"",AG9) -> Reduce Pago
I9: 1 | J9: Compra_Venta_Termino_Obra | N9: Comisión Financiada | R9: 10.2996 | S9: =S3 -> 3.6 | U9: Comisión Ministración | W9: =IF(Sheet1!$I$10=5,"",IF(X9=0,"",X9)) -> 132 | X9: =IF(Sheet1!$X$1=1,Sheet1!P8,IF(Sheet1!$X$1=2,Sheet1!S8,IF(Sheet1!$X$1=3,Sheet1!T8,IF(Sheet1!$X$1=4,Sheet1!Q8,"")))) -> 132 | Y9: 500 | AG9: =IF(Sheet1!$I$10=5,"","Reduce Pago") -> Reduce Pago | AH9: Reduce Pago | AI9: Reduce Pago | AJ9: Reduce Plazo | AL9: Hipoteca Fuerte Cero | AM9: 1 | AN9: =IF($AM$7=2,"Reduce Plazo",AG10) -> Reduce Plazo
B10: Tasas | F10: Tasas | I10: 3 | J10: Liquidez | N10: SI | R10: 0.0008583 | S10: =IF(Simulador!F9=J11,0,0.0003) -> 0.0003 | U10: 0.01 | W10: =IF(Sheet1!$I$10=5,"",IF(X10=0,"",X10)) -> 144 | X10: =IF(Sheet1!$X$1=1,Sheet1!P9,IF(Sheet1!$X$1=2,Sheet1!S9,IF(Sheet1!$X$1=3,Sheet1!T9,IF(Sheet1!$X$1=4,Sheet1!Q9,"")))) -> 144 | AG10: Reduce Plazo | AH10: Reduce Plazo | AI10: Reduce Plazo | AL10: Hipoteca Fuerte con Bonficación | AM10: 2 | AN10: =IF($AM$7=2,"",AG11) -> Reduce Plazo y Pago
I11: 3 | J11: Terreno_Urbanizado | N11: NO | U11: Ministraciones | W11: =IF(Sheet1!$I$10=5,"",IF(X11=0,"",X11)) -> 156 | X11: =IF(Sheet1!$X$1=1,Sheet1!P10,IF(Sheet1!$X$1=2,Sheet1!S10,IF(Sheet1!$X$1=3,Sheet1!T10,IF(Sheet1!$X$1=4,Sheet1!Q10,"")))) -> 156 | Y11: Comisión Diferida | AG11: =IF(Sheet1!$I$10=5,"","Reduce Plazo y Pago") -> Reduce Plazo y Pago | AH11: Reduce Plazo y Pago | AI11: Reduce Plazo y Pago | AL11: Hipoteca Fuerte a tu Medida Pagos Crecientes | AM11: 2
B12: HIPOTECA FUERTE | F12: HIPOTECA MÁS POR MENOS | W12: =IF(Sheet1!$I$10=5,"",IF(X12=0,"",X12)) -> 168 | X12: =IF(Sheet1!$X$1=1,Sheet1!P11,IF(Sheet1!$X$1=2,Sheet1!S11,IF(Sheet1!$X$1=3,Sheet1!T11,IF(Sheet1!$X$1=4,Sheet1!Q11,"")))) -> 168 | Y12: 299 | AL12: Hipoteca Fuerte a tu Medida Pagos Fijos | AM12: 1
C13: =VLOOKUP(Simulador!F9,'Tabla Parámetros'!B14:C15,2,0) ->  | R13: Factor Daños para CAT: | S13: =0.0003/1.16 -> 0.0002586206897 | T13: Construcción | U13: 4 | W13: =IF(Sheet1!$I$10=5,"",IF(X13=0,"",X13)) -> 180 | X13: =IF(Sheet1!$X$1=1,Sheet1!P12,IF(Sheet1!$X$1=2,Sheet1!S12,IF(Sheet1!$X$1=3,Sheet1!T12,IF(Sheet1!$X$1=4,Sheet1!Q12,"")))) -> 180 | AL13: Liquidez | AM13: 1
B14: Liquidez | C14: 0.1399 | D14: 360 | T14: Terreno_más_Construcción | U14: 4 | W14: =IF(Sheet1!$I$10=5,"",IF(X14=0,"",X14)) -> 192 | X14: =IF(Sheet1!$X$1=1,Sheet1!P13,IF(Sheet1!$X$1=2,Sheet1!S13,IF(Sheet1!$X$1=3,Sheet1!T13,IF(Sheet1!$X$1=4,Sheet1!Q13,"")))) -> 192 | Y14: Liquidez | AG14: Adquisición | AL14: Terreno Urbanizado | AM14: 1
B15: Terreno_Urbanizado | C15: =IF(Simulador!F19<=120,11.99%,12.49%) -> 0.1249 | D15: 250 | S15: =S13 -> 0.0002586206897 | T15: Compra_Venta_Termino_Obra | U15: 12 | W15: =IF(Sheet1!$I$10=5,"",IF(X15=0,"",X15)) -> 204 | X15: =IF(Sheet1!$X$1=1,Sheet1!P14,IF(Sheet1!$X$1=2,Sheet1!S14,IF(Sheet1!$X$1=3,Sheet1!T14,IF(Sheet1!$X$1=4,Sheet1!Q14,"")))) -> 204 | Y15: Comisión Investigación | Z15: Comisión Apertura | AG15: 0.1
S16: =S15 -> 0.0002586206897 | W16: =IF(Sheet1!$I$10=5,"",IF(X16=0,"",X16)) -> 216 | X16: =IF(Sheet1!$X$1=1,Sheet1!P15,IF(Sheet1!$X$1=2,Sheet1!S15,IF(Sheet1!$X$1=3,Sheet1!T15,IF(Sheet1!$X$1=4,Sheet1!Q15,"")))) -> 216 | Y16: 500 | Z16: 0.015 | AG16: 0.15
S17: Para calcular el CAT | W17: =IF(Sheet1!$I$10=5,"",IF(X17=0,"",X17)) -> 228 | X17: =IF(Sheet1!$X$1=1,Sheet1!P16,IF(Sheet1!$X$1=2,Sheet1!S16,IF(Sheet1!$X$1=3,Sheet1!T16,IF(Sheet1!$X$1=4,Sheet1!Q16,"")))) -> 228 | AG17: 0.2
B18: FOVISSSTE para todos | F18: Enganche | J18: Plazo | K18: Fac Pago p/Mil | L18: Fac Ajuste Pago | N18: Liquidez | P18: Terreno Urbanizado | W18: =IF(Sheet1!$I$10=5,"",IF(X18=0,"",X18)) -> 240 | X18: =IF(Sheet1!$X$1=1,Sheet1!P17,IF(Sheet1!$X$1=2,Sheet1!S17,IF(Sheet1!$X$1=3,Sheet1!T17,IF(Sheet1!$X$1=4,Sheet1!Q17,"")))) -> 240 | Y18: Comisión Diferida | AG18: 0.25
D19: 0.0949 | F19: =+Simulador!$N$11-Simulador!$F$15 -> 111111.12 | J19: 180 | K19: 10.62 | L19: 0.0212 | N19: 5 | O19: 24.27 | P19: 24.16 | W19: =IF(Sheet1!$I$10=5,"",IF(X19=0,"",X19)) ->  | X19: =IF(Sheet1!$X$1=1,Sheet1!P18,IF(Sheet1!$X$1=2,Sheet1!S18,IF(Sheet1!$X$1=3,Sheet1!T18,IF(Sheet1!$X$1=4,Sheet1!Q18,"")))) -> 0 | Y19: 360 | AG19: 0.3
F20: =+IF(Simulador!F9='Tabla Parámetros'!J3,'Tabla Parámetros'!F19,IF(Simulador!F9='Tabla Parámetros'!J9,'Tabla Parámetros'!F19,IF(Simulador!F9='Tabla Parámetros'!J11,'Tabla Parámetros'!F19,0))) -> 111111.12 | J20: 240 | K20: 9.57 | L20: 0.0201 | N20: 10 | O20: 16.69 | P20: 16.57 | W20: =IF(Sheet1!$I$10=5,"",IF(X20=0,"",X20)) ->  | X20: =IF(Sheet1!$X$1=1,Sheet1!P19,IF(Sheet1!$X$1=2,Sheet1!S19,IF(Sheet1!$X$1=3,Sheet1!T19,IF(Sheet1!$X$1=4,Sheet1!Q19,"")))) -> 0 | AG20: 0.35
N21: 15 | O21: 14.62 | P21: 14.48 | W21: =IF(Sheet1!$I$10=5,"",IF(X21=0,"",X21)) ->  | X21: =IF(Sheet1!$X$1=1,Sheet1!P20,IF(Sheet1!$X$1=2,Sheet1!S20,IF(Sheet1!$X$1=3,Sheet1!T20,IF(Sheet1!$X$1=4,Sheet1!Q20,"")))) -> 0 | Y21: Terreno_Urbanizado | AG21: 0.4
J22: Meses de Gracia | W22: =IF(Sheet1!$I$10=5,"",IF(X22=0,"",X22)) ->  | X22: =IF(Sheet1!$X$1=1,Sheet1!P21,IF(Sheet1!$X$1=2,Sheet1!S21,IF(Sheet1!$X$1=3,Sheet1!T21,IF(Sheet1!$X$1=4,Sheet1!Q21,"")))) -> 0 | Y22: Comisión Investigación | Z22: Comisión Apertura | AG22: 0.45
J23: 30 | K23: 1 | W23: =IF(Sheet1!$I$10=5,"",IF(X23=0,"",X23)) ->  | X23: =IF(Sheet1!$X$1=1,Sheet1!P22,IF(Sheet1!$X$1=2,Sheet1!S22,IF(Sheet1!$X$1=3,Sheet1!T22,IF(Sheet1!$X$1=4,Sheet1!Q22,"")))) -> 0 | Y23: 500 | Z23: 0.015 | AG23: 0.5
P24: Mejora | R24: =Simulador!$L$46+Simulador!$L$47+Simulador!$L$48+Simulador!$L$49 -> 91861.11184 | W24: Comisión Investigación | AG24: 0.55
B25: === HIPOTECA FUERTE === | J25: === HIPOTECA MÁS POR MENOS === | P25: Mejora más Remodelación | W25: =IF(OR(Sheet1!$I$10=5,Sheet1!$Z$1=2,Sheet1!$Z$1=4,Sheet1!$Z$1=5),0,750) -> 750 | Y25: Comisión Diferida | AG25: 0.6
P26: Remodelación | Y26: 250 | AG26: 0.65
P27: Construcción | W27: Comisión Diferida | AG27: 0.7
B28: Hipoteca Fuerte | P28: Compra_Venta_Termino_Obra | W28: =IF(OR(Sheet1!$I$10=5,Sheet1!$Z$1=2),0,299) -> 299 | Y28: Plazos Liquidez | Z28: Plazos Terreno Urbanizado | AG28: 0.75
B29: Destino | C29: Programas | D29: Aforo Max | F29: Aforo | H29: Comisión Apertura Tradicional | I29: Promoción | L29: Programa | M29: Aforo | N29: Vivienda | P29: Liquidez | Y29: 60 | Z29: 60 | AG29: 0.8
B30: Adquisición | C30: Tradicional | D30: 0.9 | E30: 1 | F30: 0.1 | G30: Adquisición | H30: =IF(Sheet1!$I$10=5,0%,J30) -> 0.01 | I30: 0 | J30: =IF(OR(Sheet1!$Z$1=1,Sheet1!$Z$1=3),1%,0%) -> 0.01 | L30: Cofinavit | M30: 0.93 | N30: 7000001 | O30: =Simulador!N7&Simulador!N17 -> TradicionalNO | P30: Gastos Iniciales | T30: COFINAVIT | V30: Vivienda Rec | Y30: =Y29+12 -> 72 | Z30: 72 | AG30: 0.85
B31: Adquisición | C31: Apoyo INFONAVIT | D31: 0.95 | E31: 2 | F31: 0.2 | G31: Mejora | H31: 0 | I31: 0 | P31: =R31&S31 -> TradicionalSI | Q31: =Simulador!$F$17+Simulador!$L$47+Simulador!$L$48+Simulador!$L$49 -> 202972.2318 | R31: Tradicional | S31: SI | T31: =Simulador!N31/Simulador!N11 -> 1 | U31: Sub Viv | V31: =Simulador!$N$25 -> 0 | Y31: 84 | Z31: 84 | AG31: 0.9
B32: Adquisición | C32: Cofinavit | D32: 0.95 | E32: 3 | F32: 0.3 | G32: Mejora_más_Remodelación | H32: 0 | I32: 0 | P32: =R32&S32 -> TradicionalNO | Q32: =Simulador!$F$17+Simulador!$L$46+Simulador!$L$47+Simulador!$L$48+Simulador!$L$49 -> 202972.2318 | R32: Tradicional | S32: NO | T32: =Simulador!N31-Simulador!N11 -> 0 | U32: Créd Info | V32: =Simulador!$N$26 -> 0 | Y32: 96 | Z32: 96
B33: Adquisición | D33: 0.95 | E33: 4 | F33: 0.4 | G33: Remodelación | H33: 0.01 | I33: 0 | P33: =R33&S33 -> Apoyo INFONAVITSI | Q33: =Simulador!$F$17+Simulador!$L$47+Simulador!$L$48+Simulador!$L$49 -> 202972.2318 | R33: Apoyo INFONAVIT | S33: SI | U33: Créd Bnte | V33: =Simulador!$N$27 -> 1000000 | Y33: 108 | Z33: 108
B34: Adquisición | D34: 0.95 | E34: 5 | F34: 0.5 | G34: Construcción | H34: 0.01 | I34: 0 | P34: Apoyo INFONAVITNO | Q34: =Simulador!$F$17+Simulador!$L$46+Simulador!$L$47+Simulador!$L$48+Simulador!$L$49 -> 202972.2318 | R34: Apoyo INFONAVIT | S34: NO | U34: Ap Obl | V34: =Simulador!$N$28 -> 111111.12 | Y34: 120 | Z34: 120
F35: 0.6 | G35: Terreno_más_Construcción | H35: 0.01 | I35: 0 | L35: Elije | P35: CofinavitSI | Q35: =V47 -> 202972.2318 | R35: Cofinavit | S35: SI | U35: Ap Opc | V35: =Simulador!$N$29 -> 0 | Y35: =Y34+12 -> 132 | Z35: 132
B36: Mejora | C36: Tradicional | D36: 0.85 | E36: 6 | F36: 0.65 | G36: Compra_Venta_Termino_Obra | H36: 0.01 | I36: 0 | P36: CofinavitNO | Q36: =V47 -> 202972.2318 | R36: Cofinavit | S36: NO | U36: Suma | V36: =SUM(V31:V35) -> 1111111.12 | Y36: 144 | Z36: 144
B37: Mejora | C37: Apoyo INFONAVIT | D37: 0.95 | E37: 7 | F37: 0.7 | G37: Liquidez | H37: 0.015 | I37: 0.015 | P37: Alia2+SI | Q37: =+Simulador!$G$38+Simulador!$G$39+Simulador!$L$47+Simulador!$L$48+Simulador!$L$49 ->  | R37: Alia2+ | S37: SI | U37: A favor del cliente | V37: =Simulador!$N$30 -> 0 | Y37: 156 | Z37: 156
F38: 0.75 | G38: Terreno_Urbanizado | H38: 0.015 | I38: 0.015 | P38: Alia2+NO | Q38: =Simulador!$G$38+Simulador!$G$39+Simulador!$L$46+Simulador!$L$47+Simulador!$L$48+Simulador!$L$49 ->  | R38: Alia2+ | S38: NO | Y38: 168 | Z38: 168
B39: Mejora_más_Remodelación | C39: Tradicional | D39: 0.7 | E39: 8 | F39: 0.8 | P39: =R39&S39 -> Respalda2SI | Q39: =+Simulador!$G$38+Simulador!$G$39+Simulador!$L$47+Simulador!$L$48+Simulador!$L$49 ->  | R39: Respalda2 | S39: SI | V39: Gastos Orig | Y39: 180 | Z39: 180
F40: 0.85 | P40: Respalda2NO | Q40: =Simulador!$G$38+Simulador!$G$39+Simulador!$L$46+Simulador!$L$47+Simulador!$L$48+Simulador!$L$49 ->  | R40: Respalda2 | S40: NO | U40: G Info | V40: =Simulador!$I$30 -> 0
B41: Remodelación | C41: Tradicional | D41: 0.4 | E41: 9 | F41: 0.9 | U41: G Nota | V41: =Simulador!$L$48 -> 91111.11184
F42: 0.95 | L42: === HIPOTECA MÁS POR MENOS === | U42: Com Apert | V42: =IF(Simulador!N17="SI",0,Simulador!$L$46) -> 0
B43: Construcción | C43: Tradicional | D43: 0.7 | E43: 10 | L43: Construcción | M43: Tradicional | N43: 0.5 | U43: Suma | V43: =SUM(V40:V42) -> 91111.11184
B44: Construcción | C44: Apoyo INFONAVIT | D44: 0.8 | E44: 11 | L44: Construcción | M44: Apoyo INFONAVIT | N44: 0.6 | U44: A favor del cliente | V44: =V37 -> 0
G45: =Simulador!F11 -> Hipoteca Fuerte | U45: A pagar | V45: =IF(T32>0,V43-T32,V43-V44) -> 91111.11184
B46: Terreno_más_Construcción | C46: Tradicional | D46: 0.85 | E46: 12 | G46: Celda Referencia | J46: CAT | K46: Vida | L46: Daños
B47: Terreno_más_Construcción | C47: Apoyo INFONAVIT | D47: 0.95 | E47: 13 | G47: =Simulador!$F$9&Simulador!$N$7 -> AdquisiciónTradicional | H47: =B30&C30 -> AdquisiciónTradicional | I47: =IF(OR(Sheet1!$Z$1=4,Sheet1!$Z$1=5),85%,90%) -> 0.9 | J47: =IF(Sheet1!Z1=4,'Tabla de Pagos Crecientes'!AD8,'Tabla Fijos CAT'!$AB$14) -> 0.1166508656 | K47: ='Tabla Fijos'!$K$8 -> 600 | L47: ='Tabla Fijos'!$L$8 -> 233.3333352 | U47: Des Est | V47: =+Simulador!$L$47+Simulador!$L$49+'Tabla Parámetros'!$V$34+V35+'Tabla Parámetros'!$V$45 -> 202972.2318
H48: =B31&C31 -> AdquisiciónApoyo INFONAVIT | I48: =IF(OR(Sheet1!$Z$1=4,Sheet1!$Z$1=5),90%,95%) -> 0.95 | J48: ='Tabla Fijos CAT'!$AB$14 -> 0.1166508656 | K48: ='Tabla Fijos'!$K$8 -> 600 | L48: ='Tabla Fijos'!$L$8 -> 233.3333352
B49: Compra_Venta_Termino_Obra | C49: Tradicional | D49: 0.85 | E49: 14 | G49: =MIN(VLOOKUP(G47,H47:I63,2,0),Simulador!$F$15/Simulador!$N$11) -> 0.8999999928 | H49: AdquisiciónCofinavit | I49: =IF(OR(Sheet1!$Z$1=4,Sheet1!$Z$1=5),90%,95%) -> 0.95 | J49: ='Tabla Fijos CAT'!$AB$14 -> 0.1166508656 | K49: ='Tabla Fijos'!$K$8 -> 600 | L49: ='Tabla Fijos'!$L$8 -> 233.3333352 | V49: =IF(V47<0,"Saldo a Favor del Cliente","") -> 
B50: Compra_Venta_Termino_Obra | C50: Apoyo INFONAVIT | D50: 0.95 | E50: 15 | G50: =VLOOKUP(G47,H47:J63,3,0) -> 0.1166508656 | H50: =B33&C33 -> Adquisición | I50: 0.95 | J50: ='Tabla Fijos CAT'!$AB$14 -> 0.1166508656 | K50: ='Tabla Fijos'!$K$8 -> 600 | L50: ='Tabla Fijos'!$L$8 -> 233.3333352
H51: =B34&C34 -> Adquisición | J51: ='Tabla Fijos CAT'!$AB$14 -> 0.1166508656 | K51: ='Tabla Fijos'!$K$8 -> 600 | L51: ='Tabla Fijos'!$L$8 -> 233.3333352
B52: Liquidez | C52: Tradicional | D52: 0.7 | E52: 16 | H52: =B36&C36 -> MejoraTradicional | I52: 0.9 | J52: ='Tabla Fijos CAT'!$AB$14 -> 0.1166508656 | K52: ='Tabla Fijos'!$K$8 -> 600 | L52: ='Tabla Fijos'!$L$8 -> 233.3333352 | M52: ¿Destino anterior causa I.V.A.? | O52: ¿Destino anterior es Terreno?
B53: Terreno_Urbanizado | C53: Tradicional | D53: 0.7 | E53: 17 | H53: =B37&C37 -> MejoraApoyo INFONAVIT | I53: 0.95 | J53: ='Tabla Fijos CAT'!$AB$14 -> 0.1166508656 | K53: ='Tabla Fijos'!$K$8 -> 600 | L53: ='Tabla Fijos'!$L$8 -> 233.3333352 | M53: =IF(OR((Simulador!N7="Cofinavit"),(Simulador!N7="Cuenta INFONAVIT + BANORTE")),"","Monto supera Aforo") -> Monto supera Aforo | N53: Monto supera Aforo
H54: =B39&Mejora_más_Remodelación -> Mejora_más_RemodelaciónTradicional | I54: 0.85 | J54: ='Tabla Fijos CAT'!$AB$14 -> 0.1166508656 | K54: ='Tabla Fijos'!$K$8 -> 600 | L54: ='Tabla Fijos'!$L$8 -> 233.3333352 | M54: Enganche No Válido
B55: Más por Menos | H55: =B41&Remodelación -> RemodelaciónTradicional | I55: 0.3 | J55: ='Tabla Fijos CAT'!$AB$14 -> 0.1166508656 | K55: ='Tabla Fijos'!$K$8 -> 600 | L55: ='Tabla Fijos'!$L$8 -> 233.3333352 | M55: Ver en sección Cofinavit
B56: Destino | C56: Programas | D56: Aforo Max | H56: =B43&C43 -> ConstrucciónTradicional | I56: 0.7 | J56: ='Tabla Construcción Fijos CAT'!$V$6 ->  | K56: ='Tabla Construcción Fijos'!$K$3 -> 600 | L56: ='Tabla Construcción Fijos'!$L$3 -> 233.3333352
B57: Adquisición | C57: Tradicional | D57: 0.9 | E57: 18 | H57: =B44&C44 -> ConstrucciónApoyo INFONAVIT | I57: 0.8 | J57: ='Tabla Construcción Fijos CAT'!$V$6 ->  | K57: ='Tabla Construcción Fijos'!$K$3 -> 600 | L57: ='Tabla Construcción Fijos'!$L$3 -> 233.3333352
B58: Adquisición | C58: Apoyo INFONAVIT | D58: 0.95 | E58: 19 | H58: =B46&C46 -> Terreno_más_ConstrucciónTradicional | I58: 0.85 | J58: ='Tabla Construcción Fijos CAT'!$V$6 ->  | K58: ='Tabla Construcción Fijos'!$K$3 -> 600 | L58: ='Tabla Construcción Fijos'!$L$3 -> 233.3333352
B59: Adquisición | C59: Cofinavit | D59: 0.95 | E59: 20 | H59: =B47&C47 -> Terreno_más_ConstrucciónApoyo INFONAVIT | I59: 0.95 | J59: ='Tabla Construcción Fijos CAT'!$V$6 ->  | K59: ='Tabla Construcción Fijos'!$K$3 -> 600 | L59: ='Tabla Construcción Fijos'!$L$3 -> 233.3333352
B60: Adquisición | C60: Alia2+ | D60: 0.95 | E60: 21 | H60: =B49&C49 -> Compra_Venta_Termino_ObraTradicional | I60: 0.9 | J60: ='Tabla Construcción Fijos CAT'!$V$6 ->  | K60: ='Tabla Construcción Fijos'!$K$3 -> 600 | L60: ='Tabla Construcción Fijos'!$L$3 -> 233.3333352
B61: Adquisición | C61: Respalda2 | D61: 0.95 | E61: 22 | G61: =VLOOKUP(G47,H47:J63,3,0) -> 0.1166508656 | H61: =B50&C50 -> Compra_Venta_Termino_ObraApoyo INFONAVIT | I61: 0.95 | J61: ='Tabla Construcción Fijos CAT'!$V$6 ->  | K61: ='Tabla Construcción Fijos'!$K$3 -> 600 | L61: ='Tabla Construcción Fijos'!$L$3 -> 233.3333352
G62: =MIN(VLOOKUP(G47,H62:J63,2,0),Simulador!$F$15/Simulador!$N$11) ->  | H62: =B52&Liquidez -> LiquidezTradicional | I62: 0.7 | J62: ='Tabla Fijos CAT'!$AB$14 -> 0.1166508656 | K62: ='Tabla Fijos'!$K$8 -> 600 | L62: ='Tabla Fijos'!$L$8 -> 233.3333352
B63: Mejora | C63: Tradicional | D63: 0.85 | E63: 23 | G63: =MIN(VLOOKUP(G47,H62:J63,2,0),Simulador!$F$15/Simulador!$N$11) ->  | H63: =B53&Terreno_Urbanizado -> Terreno_UrbanizadoTradicional | I63: 0.7 | J63: ='Tabla Fijos CAT'!$AB$14 -> 0.1166508656 | K63: ='Tabla Fijos'!$K$8 -> 600 | L63: ='Tabla Fijos'!$L$8 -> 233.3333352
B64: Mejora | C64: Apoyo INFONAVIT | D64: 0.95 | E64: 24
G65: Más por Menos
B66: Mejora_más_Remodelación | C66: Tradicional | D66: 0.7 | E66: 25 | G66: Celda Referencia | K66: Vida | L66: Daños
G67: =Simulador!$F$9&Simulador!$N$7 -> AdquisiciónTradicional | H67: =B57&C57 -> AdquisiciónTradicional | I67: 0.9 | J67: =#REF! ->  | K67: =#REF! ->  | L67: =#REF! -> 
B68: Remodelación | C68: Tradicional | D68: 0.4 | E68: 26 | G68: =MIN(VLOOKUP(G67,H66:I81,2,0),Simulador!$F$15/Simulador!$N$11) -> 0.8999999928 | H68: =B58&C58 -> AdquisiciónApoyo INFONAVIT | I68: 0.95 | J68: =#REF! ->  | K68: =#REF! ->  | L68: =#REF! -> 
H69: AdquisiciónCofinavit | I69: 0.95 | J69: =#REF! ->  | K69: =#REF! ->  | L69: =#REF! -> 
B70: Construcción | C70: Tradicional | D70: 0.5 | E70: 27 | G70: =IF(Simulador!$F$62="","",VLOOKUP(G67,H67:J81,3,0)) ->  | H70: AdquisiciónAlia2+ | J70: =#REF! ->  | K70: =#REF! ->  | L70: =#REF! -> 
B71: Construcción | C71: Apoyo INFONAVIT | D71: 0.6 | E71: 28 | H71: AdquisiciónRespalda2 | J71: =#REF! ->  | K71: =#REF! ->  | L71: =#REF! -> 
H72: =B63&C63 -> MejoraTradicional | I72: 0.88 | J72: =#REF! ->  | K72: =#REF! ->  | L72: =#REF! -> 
B73: Terreno_más_Construcción | C73: Tradicional | D73: 0.85 | E73: 29 | H73: =B64&C64 -> MejoraApoyo INFONAVIT | I73: 0.95 | J73: =#REF! ->  | K73: =#REF! ->  | L73: =#REF! -> 
B74: Terreno_más_Construcción | C74: Apoyo INFONAVIT | D74: 0.95 | E74: 30 | H74: =B66&C66 -> Mejora_más_RemodelaciónTradicional | I74: 0.7 | J74: =#REF! ->  | K74: =#REF! ->  | L74: =#REF! -> 
H75: =B68&C68 -> RemodelaciónTradicional | I75: 0.3 | J75: =#REF! ->  | K75: =#REF! ->  | L75: =#REF! -> 
B76: Compra_Venta_Termino_Obra | C76: Tradicional | D76: 0.85 | E76: 31 | H76: =B70&C70 -> ConstrucciónTradicional | I76: 0.5 | J76: ='Tabla Construcción CAT crecient'!$U$6 ->  | K76: ='Tabla Construcción Crecientes'!$K$3 -> 600 | L76: ='Tabla Construcción Crecientes'!$L$3 -> 233.3333352
B77: Compra_Venta_Termino_Obra | C77: Apoyo INFONAVIT | D77: 0.95 | E77: 32 | H77: =B71&C71 -> ConstrucciónApoyo INFONAVIT | I77: 0.6 | J77: ='Tabla Construcción CAT crecient'!$U$6 ->  | K77: ='Tabla Construcción Crecientes'!$K$3 -> 600 | L77: ='Tabla Construcción Crecientes'!$L$3 -> 233.3333352
H78: =B73&C73 -> Terreno_más_ConstrucciónTradicional | I78: 0.8 | J78: ='Tabla Construcción CAT crecient'!$U$6 ->  | K78: ='Tabla Construcción Crecientes'!$K$3 -> 600 | L78: ='Tabla Construcción Crecientes'!$L$3 -> 233.3333352
B79: Liquidez | C79: Tradicional | D79: 0.7 | H79: =B74&C74 -> Terreno_más_ConstrucciónApoyo INFONAVIT | I79: 0.95 | J79: ='Tabla Construcción CAT crecient'!$U$6 ->  | K79: ='Tabla Construcción Crecientes'!$K$3 -> 600 | L79: ='Tabla Construcción Crecientes'!$L$3 -> 233.3333352
B80: Terreno_Urbanizado | C80: Tradicional | D80: 0.7 | H80: =B76&C76 -> Compra_Venta_Termino_ObraTradicional | I80: 0.9 | J80: ='Tabla Construcción CAT crecient'!$U$6 ->  | K80: ='Tabla Construcción Crecientes'!$K$3 -> 600 | L80: ='Tabla Construcción Crecientes'!$L$3 -> 233.3333352
H81: =B77&C77 -> Compra_Venta_Termino_ObraApoyo INFONAVIT | I81: 0.95 | J81: ='Tabla Construcción CAT crecient'!$U$6 ->  | K81: ='Tabla Construcción Crecientes'!$K$3 -> 600 | L81: ='Tabla Construcción Crecientes'!$L$3 -> 233.3333352
B85: Comisiones | G85: === HIPOTECA MÁS POR MENOS === | L85: Parametros avalúo
B86: Apertura | C86: 0.01 | D86: Mejora / Mejora +Remodelación | E86: 0
B87: Diferida | C87: 349 | G87: 299 | L87: Comisión Avalúo Escalonada
B88: Avalúo | C88: $3 al millar + IVA | S88: Resultados
B89: Socioeconómico | C89: 750 | L89: Parámetros | P89: Cálculos | S89: Leyenda Avalúo | T89: =IF(Q96,Q97,Q98) -> $3,000.00
L90: Valor Avalúo | M90: =Simulador!N11 -> 1111111.12 | P90: Tarifa (al millar) | Q90: =VLOOKUP(M90,L95:N100,2,TRUE) -> 2.5 | S90: Comisión Avalúo | T90: =IF(OR(Sheet1!Z1=2,Sheet1!Z1=4,Sheet1!Z1=5),0,MAX( Q94,Q91)) -> 3000
B91: Mínimo Vivienda | C91: 350000 | D91: Construcción | E91: 500000 | F91: Terreno + Construcción | G91: 800000 | P91: Mínimo | Q91: =VLOOKUP(M90,L95:N100,3,TRUE) -> 3000 | S91: Comisón Promoción | T91: =IF(M90<=10000000,0,T90*0.5) -> 0
B92: Mínimo Crédito | C92: 75000 | D92: Remodelación | E92: 150000 | F92: Construcción/Terreno + Construcción | G92: 200000 | L92: Constantes | T92: =+IF(Simulador!F9="Liquidez",'Tabla Parámetros'!T90,IF(Simulador!F9="Terreno_Urbanizado",'Tabla Parámetros'!T90,'Tabla Parámetros'!T91)) -> 0
L93: Millar | M93: 1000 | P93: Factor Tarifa | Q93: =Q90/M93 -> 0.0025
P94: Monto por Tarifa | Q94: =M90*Q93 -> 2777.7778
B95: Liquidez | D95: Terreno Urbanizado | L95: De | M95: Tarifa (al millar) | N95: Mínimo
L96: 0 | M96: 3 | N96: =1200 * 1 -> 1200 | P96: Tope Mínimo? | Q96: =Q94<Q91 -> TRUE
B97: Apertura | C97: 0.03 | D97: 0.015 | L97: 1000001 | M97: 2.5 | N97: 3000 | P97: Leyenda Tope | Q97: =DOLLAR(Q91) -> $3,000.00
B98: Diferida | C98: 360 | D98: 250 | L98: 5000001 | M98: 2 | N98: 12500 | P98: Leyenda Tarifa | Q98: =TEXT(Q93, "0.00 %") -> 0.25 %
B99: Avalúo | C99: $3 al millar + IVA | L99: 10000001 | M99: 1.5 | N99: 20000
B100: Socioeconómico | C100: 500 | L100: 20000001 | M100: 1 | N100: 30000
B102: Mínimo Vivienda | C102: 500000
B103: Mínimo Crédito | C103: 200000

Sheet Notariales (hidden)
B1: Mejora / Mejora más Remodelación
B2: Aguascalientes | C2: 7,000 Más IVA | D2: =7000*1.16 -> 8120 | E2: =D2/1.16 -> 7000
B3: Baja California Norte | C3: 5,000.00 Más IVA | D3: =5000*1.16 -> 5800 | E3: =D3/1.16 -> 5000
B4: Baja California Sur | C4: 5,000.00 Más IVA | D4: =5000*1.16 -> 5800 | E4: 5000
B5: Campeche | C5: 5,000 Más IVA | D5: 5800 | E5: 5000
B6: Chiapas | C6: 5,000 Más IVA | D6: 5800 | E6: 5000
B7: Chihuahua | C7: 5,000 Más IVA | D7: 5800 | E7: 5000
B8: Coahuila | C8: 5,000 Más IVA | D8: 5800 | E8: 5000
B9: Colima | C9: 4,000 Más IVA | D9: 5800 | E9: 5000
B10: Ciudad de México | C10: 15,000 ya se incluye el IVA | D10: 15000 | E10: 12931.03448
B11: Durango | C11: 5,000 Más IVA | D11: 5800 | E11: 5000
B12: Estado de México | C12: 15,000 ya se incluye el IVA | D12: 15000 | E12: 12931.03448
B13: Guanajuato | C13: 5,000 Más IVA | D13: 5800 | E13: 5000
B14: Guerrero | C14: 5,000 Más IVA | D14: 5800 | E14: 5000
B15: Hidalgo | C15: 5,000 Más IVA | D15: 5800 | E15: 5000
B16: Jalisco | C16: 5,000 Más IVA | D16: 5800 | E16: 5000
B17: Michoacán | C17: 5,000 Más IVA | D17: 5800 | E17: 5000
B18: Morelos | C18: 5,000 Más IVA | D18: 5800 | E18: 5000
B19: Nayarit | C19: 6,000 Más IVA | D19: 5800 | E19: 5000
B20: Nuevo León | C20: 5,000 Más IVA | D20: 5800 | E20: 5000
B21: Oaxaca | C21: 5,000 Más IVA hasta operaciones de 1,999,999.00, Mayores a este serían 7,000 más IVA | D21: 8120 | E21: 7000
B22: Puebla | C22: 5,000 Más IVA | D22: 5800 | E22: 5000
B23: Querétaro | C23: 5,000 Más IVA | D23: 5800 | E23: 5000
B24: Quintana Roo | C24: 5,000 Más IVA | D24: 5800 | E24: 5000
B25: San Luis Potosí | C25: 7,500 Más IVA | E25: 0
B26: Sinaloa | C26: 5,000 Más IVA | D26: 5800 | E26: 5000
B27: Sonora | C27: 7,500 Más IVA | D27: =7500*1.16 -> 8700 | E27: 7500
B28: Tabasco | C28: 5,000 Más IVA | D28: 5800 | E28: 5000
B29: Tamaulipas | C29: 5,000 Más IVA | D29: 5800 | E29: 5000
B30: Tlaxcala | C30: 5,000 Más IVA | D30: 5800 | E30: 5000
B31: Veracruz | C31: 5,000 Más IVA hasta operaciones de 1,999,999.00, Mayores a este serían 7,000 más IVA | D31: 8120 | E31: 7000
B32: Yucatán | C32: 5,000 Más IVA | D32: 5800 | E32: 5000
B33: Zacatecas | C33: 5,000 Más IVA | D33: 5800 | E33: 5000

Sheet Sheet1 (hidden)
P1: HF | Q1: L y T | R1: FPT | S1: HFATMC | T1: HFATMPF | X1: =VLOOKUP(Simulador!$F$11,Sheet1!$W$2:$X$8,2,0) -> 1 | Y1: =VLOOKUP(Simulador!$F$11,Sheet1!$W$2:$Y$8,3,0) -> 1 | Z1: =VLOOKUP(Simulador!$F$11,Sheet1!$W$2:$Z$8,4,0) -> 1 | AA1: =VLOOKUP(Simulador!$F$11,Sheet1!$W$2:$AA$8,5,0) -> 1 | AB1: =VLOOKUP(Simulador!$F$11,Sheet1!$W$2:$AB$8,6,0) -> 0.0978 | AC1: =VLOOKUP(AB1,AB2:AC8,2,0) -> Mínima
B2: Adquisición | C2: 1 | E2: =B29 -> Hipoteca Fuerte | F2: 1 | H2: Tradicional | I2: 1 | M2: 0 | P2: 60 | Q2: 60 | R2: 60 | S2: 180 | T2: 60 | W2: Hipoteca Fuerte | X2: 1 | Y2: 1 | Z2: 1 | AA2: 1 | AB2: ='Tabla Parámetros'!D4 -> 0.0978 | AC2: Mínima
B3: Mejora | C3: 1 | E3: Más por Menos | F3: 2 | H3: Apoyo INFONAVIT | I3: 2 | M3: 3 | P3: 72 | Q3: 72 | R3: 120 | S3: 240 | T3: 72 | X3: 1 | Y3: 2 | Z3: 2 | AA3: 2 | AB3: 0.1068 | AC3: Media
B4: Mejora más Remodelación | C4: 1 | E4: Liquidez | F4: 2 | H4: Cofinavit | I4: 3 | P4: 84 | Q4: 84 | R4: 180 | T4: 84 | X4: 1 | Y4: 2 | Z4: 3 | AA4: 2 | AB4: 0.1068 | AC4: Media
B5: Remodelación | C5: 1 | E5: Terreno Urbanizado | F5: 2 | H5: FOVISSSTE para todos | I5: 4 | P5: 96 | Q5: 96 | R5: 240 | T5: 96 | X5: 2 | Y5: 2 | Z5: 4 | AA5: 3 | AB5: 0.1055 | AC5: Crecientes
B6: Construcción | C6: 2 | H6: Cuenta INFONAVIT + BANORTE | I6: 5 | P6: 108 | Q6: 108 | T6: 108 | X6: 3 | Y6: 2 | Z6: 5 | AA6: 4 | AB6: 0.1108 | AC6: Alta
B7: Terreno_más_Construcción | C7: 2 | P7: 120 | Q7: 120 | T7: 120 | X7: 4 | Y7: 3 | Z7: 6 | AA7: 5 | AB7: ='Tabla Parámetros'!C14 -> 0.1399 | AC7: =W7 -> 0
B8: Compra_Venta_Termino_Obra | C8: 2 | P8: 132 | Q8: 132 | T8: 132 | X8: 4 | Y8: 3 | Z8: 7 | AA8: 6 | AB8: ='Tabla Parámetros'!C15 -> 0.1249 | AC8: =W8 -> 0
B9: Liquidez | C9: 1 | P9: 144 | Q9: 144 | T9: 144
B10: Terreno_Urbanizado | C10: 1 | I10: =VLOOKUP(Simulador!N7,Sheet1!H11:I15,2,0) -> 1 | P10: 156 | Q10: 156 | T10: 156
H11: Tradicional | I11: 1 | P11: 168 | Q11: 168 | T11: 168
H12: Apoyo INFONAVIT | I12: 2 | K12: =+VLOOKUP(Simulador!N7,Sheet1!H11:I14,2,0) -> 1 | P12: 180 | Q12: 180 | T12: 180
H13: Cofinavit | I13: 3 | P13: 192 | T13: 192 | Y13: =VLOOKUP(Simulador!H49,Sheet1!X14:Y34,2,0) -> 4
B14: =+VLOOKUP(Simulador!$F$9,Sheet1!B15:C23,2,0) -> 1 | D14: =VLOOKUP(Simulador!$F$9,Sheet1!$B$15:$D$23,3,0) -> 1 | E14: =VLOOKUP(Simulador!$F$9,Sheet1!$B$15:$E$23,4,0) -> 1 | H14: Cuenta INFONAVIT + BANORTE | I14: 4 | P14: 204 | T14: 204 | X14: 60 | Y14: 1
B15: Adquisición | C15: 1 | D15: 1 | E15: 1 | H15: FOVISSSTE para todos | I15: 5 | L15: =VLOOKUP(Simulador!F62,Sheet1!L17:M22,2,0) ->  | P15: 216 | T15: 216 | X15: 72 | Y15: 2
B16: Mejora | C16: 1 | D16: 2 | E16: 2 | L16: 0.0948 | M16: 1 | P16: 228 | T16: 228 | X16: 84 | Y16: 2
B17: Mejora_más_Remodelación | C17: 2 | D17: 2 | E17: 3 | L17: 0.09 | M17: 1 | P17: 240 | T17: 240 | X17: 96 | Y17: 2
B18: Remodelación | C18: 2 | D18: 3 | E18: 3 | L18: 0.1 | M18: 2 | T18: 252 | X18: 108 | Y18: 2
B19: Construcción | C19: 2 | D19: 3 | E19: 3 | L19: 0.11 | M19: 2 | T19: 264 | X19: 120 | Y19: 2
B20: Terreno_más_Construcción | C20: 2 | D20: 1 | E20: 3 | L20: 0.125 | M20: 2 | T20: 276 | X20: 132 | Y20: 3
B21: Compra_Venta_Termino_Obra | C21: 2 | D21: 1 | E21: 3 | L21: 0.13 | M21: 2 | T21: 288 | X21: 144 | Y21: 3
B22: Liquidez | C22: 2 | D22: 3 | E22: 4 | L22: 0.157 | M22: 2 | T22: 300 | X22: 156 | Y22: 3
B23: Terreno_Urbanizado | C23: 2 | D23: 1 | E23: 5 | X23: 168 | Y23: 3
J24: Hipoteca Fuerte | K24: Hipoteca Fuerte Cero | L24: Hipoteca Fuerte con Bonficación | M24: Hipoteca Fuerte a tu Medida Pagos Crecientes | N24: Hipoteca Fuerte a tu Medida Pagos Fijos | O24: Liquidez | P24: Terreno Urbanizado | X24: 180 | Y24: 3
J25: 0.0948 | X25: 192 | Y25: 4
X26: 204 | Y26: 4
X27: 216 | Y27: 4
X28: 228 | Y28: 4
B29: =VLOOKUP('Tabla Parámetros'!$W$1,Sheet1!B30:B36,1,0) -> Hipoteca Fuerte | C29: =VLOOKUP('Tabla Parámetros'!$W$1,Sheet1!B30:C36,2,0) -> 299 | X29: 240 | Y29: 4
B30: Hipoteca Fuerte | C30: ='Tabla Parámetros'!W28 -> 299 | X30: 252 | Y30: 5
B31: Hipoteca Fuerte Cero | C31: 0 | X31: 264 | Y31: 5
B32: Hipoteca Fuerte con Bonficación | C32: 299 | X32: 276 | Y32: 5
B33: Hipoteca Fuerte a tu Medida Pagos Crecientes | C33: 299 | X33: 288 | Y33: 5
B34: Hipoteca Fuerte a tu Medida Pagos Fijos | C34: 299 | X34: 300 | Y34: 5
B35: Liquidez | C35: 360
B36: Terreno Urbanizado | C36: 250

Sheet Tabla Fijos (hidden)
O1: Si | S1: Plazo
B2: Vivienda | C2: =Simulador!N11 -> 1111111.12 | E2: Tasa | F2: =Simulador!F62 -> 0.0948 | H2: Destino | J2: =Simulador!F9 -> Adquisición | L2: Com. Apertura Finan | M2: =Simulador!$N$17 -> NO | O2: No | S2: Pago
B3: Crédito | C3: =IF($M$2="SI",Simulador!$H$48+Simulador!$L$46,IF('Tabla Fijos'!$M$2="NO",Simulador!$H$48,)) -> 1000000 | E3: Seguro | F3: =IF(Simulador!F13='Tabla Parámetros'!$N$6,Simulador!N9,IF(Simulador!F13='Tabla Parámetros'!$N$7,"",)) -> Básico | H3: Programa | J3: =Simulador!N7 -> Tradicional | L3: Com. Apertura | M3: =Simulador!N15 -> 0 | S3: Plazo y Pago
B4: Plazo | C4: =Simulador!F19 -> 240 | E4: Vida | F4: =IF(F3="","",IF(F3='Tabla Parámetros'!N4,'Tabla Parámetros'!R5,IF('Tabla Fijos CAT'!F3='Tabla Parámetros'!N3,'Tabla Parámetros'!R10))) -> 0.0006 | H4: Comisión Diferida | J4: =Sheet1!C29 -> 299
B5: Valor Destructible | C5: =IF(Simulador!$K$13="No",Simulador!$N$13,IF(Simulador!$K$13="Si",Simulador!$O$13,)) -> 777777.784 | E5: Daños | F5: =IF(F3="","",IF(F3='Tabla Parámetros'!N4,'Tabla Parámetros'!S5,IF(F3='Tabla Parámetros'!N3,'Tabla Parámetros'!S10))) -> 0.0003
Q7: Prepago | R7: =Simulador!N62 -> Reduce Plazo
G8: =PPMT((F2/360*30.4),B12,C4,-F12) -> 1385.56891 | J8: =PMT((F2/360)*14,C4,-C3) -> 6285.543205 | K8: =$C$3*$F$4 -> 600 | L8: =$C$5*$F$5 -> 233.3333352
P9: =PMT(F2/360*30.4,C4,-C3) -> 9390.902243
B10: Periodo | C10: Fecha | D10: Días | E10: Tasa | F10: Saldo Inicial | G10: Capital | H10: Interés | I10: IVA Interés | J10: Pago | K10: Seguro de Vida | L10: Seguro de Daños y Contenidos | M10: Comisión Diferida | N10: Aportación Patronal | O10: Aportaciones a Capital | P10: Bonificaciones | Q10: Pago Mensual | R10: Saldo Final | T10: Reduce Plazo y Pago | W10: Reduce Plazo | Z10: Reduce Pago
B11: 0 | R11: =$C$3 -> 1000000 | T11: Capital | U11: Interés | V11: Pago | W11: Capital | X11: Interés | Y11: Pago | Z11: Capital | AA11: Interés | AB11: Pago
B12: 1 | C12: =IF($B12="","",'Fecha Pago'!K4) -> 2023-08-03 | D12: =IF($B$12="","",'Fecha Pago'!L4) -> 7 | E12: =IF(B12="","",$F$2) -> 0.0948 | F12: =R11 -> 1000000 | G12: =IF(B12="","",IF((J12-H12)>F12,F12,IF($R$7=$T$10,T12,IF($R$7=$W$10,W12,IF($R$7=$Z$10,Z12,))))) -> 1385.56891 | H12: =IF(C12="","",IF($R$7=$T$10,U12,IF($R$7=$W$10,X12,IF($R$7=$Z$10,AA12,)))) -> 1843.333333 | I12: =IF(B12="","",IF(Simulador!$F$9="Liquidez",'Tabla Fijos'!H12*0.16,IF(Simulador!$F$9="Terreno_Urbanizado",'Tabla Fijos'!H12*0.16,IF(Simulador!$J$9="SI",H12*0.16,IF(Simulador!$J$11="SI",H12*0.16,0))))) -> 0 | J12: =IF(D12="","",IF($R$7=$T$10,V12,IF($R$7=$W$10,Y12,IF($R$7=$Z$10,AB12,)))) -> 3228.902243 | K12: =IF(B12="","",IF($F$3="",0,($F$4/30*D12)*F12)) -> 140 | L12: =IF(B12="","",IF(F12=0,0,($F$5/30*D12)*$C$5)) -> 54.44444488 | M12: =IF(B12="","",IF(F12=0,0,$J$4)) -> 299 | N12: =IF(B12="","",IF(F12=0,0,IF(Simulador!$N$7='Tabla Parámetros'!$C$31,AportPat!L4,IF(Simulador!$N$7='Tabla Parámetros'!$C$34,AportPatFov!G2,0)))) -> 0 | O12: =Simulador!N67 -> 0 | Q12: =IF(B12="","",G12+H12+K12+L12+M12)-N12 -> 3722.346688 | R12: =IF(B12="","",F12-G12) -> 998614.4311 | T12: =IF(F12=0,0,PPMT(E12/360*30.4,B12,$C$4,-$R$11)+N12+O12+P12) -> 1385.56891 | U12: =(E12/360*D12)*F12 -> 1843.333333 | V12: =T12+U12 -> 3228.902243 | W12: =PPMT(E12/360*30.4,B12,$C$4,-$R$11)+N12+O12+P12 -> 1385.56891 | X12: =(E12/360*D12)*F12 -> 1843.333333 | Y12: =W12+X12 -> 3228.902243 | Z12: =PPMT(E12/360*30.4,B12,$C$4,-$R$11)+N12+O12+P12 -> 1385.56891 | AA12: =(E12/360*D12)*F12 -> 1843.333333 | AB12: =Z12+AA12 -> 3228.902243
B13: =IF(B12="","",IF(B12=$C$4,"",B12+1)) -> 2 | C13: =IF($B13="","",'Fecha Pago'!K5) -> 2023-09-03 | D13: =IF($B$12="","",'Fecha Pago'!L5) -> 30.4 | E13: =IF(B13="","",$F$2) -> 0.0948 | F13: =IF(B13="","",F12-G12) -> 998614.4311 | G13: 1396.660851 | H13: =IF(C13="","",IF($R$7=$T$10,U13,IF($R$7=$W$10,X13,IF($R$7=$Z$10,AA13,)))) -> 7994.241392 | I13: =IF(B13="","",IF(Simulador!$F$9="Liquidez",'Tabla Fijos'!H13*0.16,IF(Simulador!$F$9="Terreno_Urbanizado",'Tabla Fijos'!H13*0.16,IF(Simulador!$J$9="SI",H13*0.16,IF(Simulador!$J$11="SI",H13*0.16,0))))) -> 0 | J13: =IF(D13="","",IF($R$7=$T$10,V13,IF($R$7=$W$10,Y13,IF($R$7=$Z$10,AB13,)))) -> 9390.902243 | K13: =IF(B13="","",IF($F$3="",0,($F$4*F13))) -> 599.1686587 | L13: =IF(B13="","",IF(F13=0,0,$F$5*$C$5)) -> 233.3333352 | M13: =IF(B13="","",IF(F13=0,0,$J$4)) -> 299 | N13: =IF(B13="","",IF(F13=0,0,IF(Simulador!$N$7='Tabla Parámetros'!$C$31,AportPat!L5,IF(Simulador!$N$7='Tabla Parámetros'!$C$34,AportPatFov!G3,0)))) -> 0 | O13: =Simulador!N68 -> 0 | Q13: =IF(B13="","",G13+H13+K13+L13+M13)-N13 -> 10522.40424 | R13: =IF(B13="","",F13-G13) -> 997217.7702 | T13: =IF(F13=0,0,PPMT(E13/360*30.4,B13,$C$4,-$R$11)+N13+O13+P13) -> 1396.660851 | U13: =(E13/360*D13)*F13 -> 7994.241392 | V13: =T13+U13 -> 9390.902243 | W13: =Y13-X13 -> 1396.660851 | X13: =(E13/360*D13)*F13 -> 7994.241392 | Y13: =IF(F13=0,0,PMT($F$2/360*30.4,$C$4,-$C$3)+N13+O13+P13) -> 9390.902243 | Z13: =AB13-AA13 -> 1396.660851 | AA13: =(E13/360*D13)*F13 -> 7994.241392 | AB13: =PMT($F$2/360*30.4,$C$4-B12,-R12)+N13+O13+P13 -> 9390.902243
B14: =IF(B13="","",IF(B13=$C$4,"",B13+1)) -> 3 | C14: =IF($B14="","",'Fecha Pago'!K6) -> 2023-10-03 | D14: =IF($B$12="","",'Fecha Pago'!L6) -> 30.4 | E14: 0.0948 | F14: 997217.7702 | G14: 1407.841586 | H14: 7983.060657 | I14: =IF(B14="","",IF(Simulador!$F$9="Liquidez",'Tabla Fijos'!H14*0.16,IF(Simulador!$F$9="Terreno_Urbanizado",'Tabla Fijos'!H14*0.16,IF(Simulador!$J$9="SI",H14*0.16,IF(Simulador!$J$11="SI",H14*0.16,0))))) -> 0 | J14: 9390.902243 | K14: =IF(B14="","",IF($F$3="",0,($F$4*F14))) -> 598.3306621 | L14: =IF(B14="","",IF(F14=0,0,$F$5*$C$5)) -> 233.3333352 | M14: 299 | N14: =IF(B14="","",IF(F14=0,0,IF(Simulador!$N$7='Tabla Parámetros'!$C$31,AportPat!L6,IF(Simulador!$N$7='Tabla Parámetros'!$C$34,AportPatFov!G4,0)))) -> 0 | O14: =Simulador!N69 -> 0 | Q14: 10521.56624 | R14: 995809.9287 | T14: 1407.841586 | U14: 7983.060657 | V14: 9390.902243 | W14: 1407.841586 | X14: 7983.060657 | Y14: =IF(F14=0,0,PMT($F$2/360*30.4,$C$4,-$C$3)+N14+O14+P14) -> 9390.902243 | Z14: 1407.841586 | AA14: 7983.060657 | AB14: =PMT($F$2/360*30.4,$C$4-B13,-R13)+N14+O14+P14 -> 9390.902243
B15: 4 | C15: =IF($B15="","",'Fecha Pago'!K7) -> 2023-11-03 | D15: =IF($B$12="","",'Fecha Pago'!L7) -> 30.4 | E15: 0.0948 | F15: 995809.9287 | G15: 1419.111827 | H15: 7971.790416 | I15: =IF(B15="","",IF(Simulador!$F$9="Liquidez",'Tabla Fijos'!H15*0.16,IF(Simulador!$F$9="Terreno_Urbanizado",'Tabla Fijos'!H15*0.16,IF(Simulador!$J$9="SI",H15*0.16,IF(Simulador!$J$11="SI",H15*0.16,0))))) -> 0 | J15: 9390.902243 | K15: 597.4859572 | L15: 233.3333352 | M15: 299 | N15: =IF(B15="","",IF(F15=0,0,IF(Simulador!$N$7='Tabla Parámetros'!$C$31,AportPat!L7,IF(Simulador!$N$7='Tabla Parámetros'!$C$34,AportPatFov!G5,0)))) -> 0 | O15: =Simulador!N70 -> 0 | Q15: 10520.72154 | R15: 994390.8168 | T15: 1419.111827 | U15: 7971.790416 | V15: 9390.902243 | W15: 1419.111827 | X15: 7971.790416 | Y15: 9390.902243 | Z15: 1419.111827 | AA15: 7971.790416 | AB15: 9390.902243
B16: 5 | C16: =IF($B16="","",'Fecha Pago'!K8) -> 2023-12-03 | D16: =IF($B$12="","",'Fecha Pago'!L8) -> 30.4 | E16: 0.0948 | F16: 994390.8168 | G16: =IF(B16="","",IF((J16-H16)>F16,F16,IF($R$7=$T$10,T16,IF($R$7=$W$10,W16,IF($R$7=$Z$10,Z16,))))) -> 1430.472291 | H16: 7960.429952 | I16: =IF(B16="","",IF(Simulador!$F$9="Liquidez",'Tabla Fijos'!H16*0.16,IF(Simulador!$F$9="Terreno_Urbanizado",'Tabla Fijos'!H16*0.16,IF(Simulador!$J$9="SI",H16*0.16,IF(Simulador!$J$11="SI",H16*0.16,0))))) -> 0 | J16: 9390.902243 | K16: 596.6344901 | L16: 233.3333352 | M16: 299 | N16: =IF(B16="","",IF(F16=0,0,IF(Simulador!$N$7='Tabla Parámetros'!$C$31,AportPat!L8,IF(Simulador!$N$7='Tabla Parámetros'!$C$34,AportPatFov!G6,0)))) -> 0 | O16: =Simulador!N71 -> 0 | Q16: 10519.87007 | R16: 992960.3445 | T16: 1430.472291 | U16: 7960.429952 | V16: 9390.902243 | W16: 1430.472291 | X16: 7960.429952 | Y16: 9390.902243 | Z16: 1430.472291 | AA16: 7960.429952 | AB16: 9390.902243
B17: 6 | C17: =IF($B17="","",'Fecha Pago'!K9) -> 2024-01-03 | D17: =IF($B$12="","",'Fecha Pago'!L9) -> 30.4 | E17: 0.0948 | F17: 992960.3445 | G17: 1441.923698 | H17: 7948.978545 | I17: =IF(B17="","",IF(Simulador!$F$9="Liquidez",'Tabla Fijos'!H17*0.16,IF(Simulador!$F$9="Terreno_Urbanizado",'Tabla Fijos'!H17*0.16,IF(Simulador!$J$9="SI",H17*0.16,IF(Simulador!$J$11="SI",H17*0.16,0))))) -> 0 | J17: 9390.902243 | K17: 595.7762067 | L17: 233.3333352 | M17: 299 | N17: =IF(B17="","",IF(F17=0,0,IF(Simulador!$N$7='Tabla Parámetros'!$C$31,AportPat!L9,IF(Simulador!$N$7='Tabla Parámetros'!$C$34,AportPatFov!G7,0)))) -> 0 | O17: =Simulador!N72 -> 0 | Q17: 10519.01178 | R17: 991518.4208 | T17: 1441.923698 | U17: 7948.978545 | V17: 9390.902243 | W17: 1441.923698 | X17: 7948.978545 | Y17: 9390.902243 | Z17: 1441.923698 | AA17: 7948.978545 | AB17: 9390.902243
B18: 7 | C18: =IF($B18="","",'Fecha Pago'!K10) -> 2024-02-03 | D18: =IF($B$12="","",'Fecha Pago'!L10) -> 30.4 | E18: 0.0948 | F18: 991518.4208 | G18: 1453.466778 | H18: 7937.435465 | I18: =IF(B18="","",IF(Simulador!$F$9="Liquidez",'Tabla Fijos'!H18*0.16,IF(Simulador!$F$9="Terreno_Urbanizado",'Tabla Fijos'!H18*0.16,IF(Simulador!$J$9="SI",H18*0.16,IF(Simulador!$J$11="SI",H18*0.16,0))))) -> 0 | J18: 9390.902243 | K18: 594.9110525 | L18: 233.3333352 | M18: 299 | N18: =IF(B18="","",IF(F18=0,0,IF(Simulador!$N$7='Tabla Parámetros'!$C$31,AportPat!L10,IF(Simulador!$N$7='Tabla Parámetros'!$C$34,AportPatFov!G8,0)))) -> 0 | O18: =Simulador!N73 -> 0 | Q18: 10518.14663 | R18: 990064.9541 | T18: 1453.466778 | U18: 7937.435465 | V18: 9390.902243 | W18: 1453.466778 | X18: 7937.435465 | Y18: 9390.902243 | Z18: 1453.466778 | AA18: 7937.435465 | AB18: 9390.902243
B19: 8 | C19: =IF($B19="","",'Fecha Pago'!K11) -> 2024-03-03 | D19: =IF($B$12="","",'Fecha Pago'!L11) -> 30.4 | E19: 0.0948 | F19: 990064.9541 | G19: 1465.102264 | H19: 7925.799979 | I19: =IF(B19="","",IF(Simulador!$F$9="Liquidez",'Tabla Fijos'!H19*0.16,IF(Simulador!$F$9="Terreno_Urbanizado",'Tabla Fijos'!H19*0.16,IF(Simulador!$J$9="SI",H19*0.16,IF(Simulador!$J$11="SI",H19*0.16,0))))) -> 0 | J19: 9390.902243 | K19: 594.0389724 | L19: 233.3333352 | M19: 299 | N19: =IF(B19="","",IF(F19=0,0,IF(Simulador!$N$7='Tabla Parámetros'!$C$31,AportPat!L11,IF(Simulador!$N$7='Tabla Parámetros'!$C$34,AportPatFov!G9,0)))) -> 0 | O19: =Simulador!N74 -> 0 | Q19: 10517.27455 | R19: 988599.8518 | T19: 1465.102264 | U19: 7925.799979 | V19: 9390.902243 | W19: 1465.102264 | X19: 7925.799979 | Y19: 9390.902243 | Z19: 1465.102264 | AA19: 7925.799979 | AB19: 9390.902243
B20: 9 | C20: =IF($B20="","",'Fecha Pago'!K12) -> 2024-04-03 | D20: =IF($B$12="","",'Fecha Pago'!L12) -> 30.4 | E20: 0.0948 | F20: 988599.8518 | G20: 1476.830896 | H20: 7914.071347 | I20: =IF(B20="","",IF(Simulador!$F$9="Liquidez",'Tabla Fijos'!H20*0.16,IF(Simulador!$F$9="Terreno_Urbanizado",'Tabla Fijos'!H20*0.16,IF(Simulador!$J$9="SI",H20*0.16,IF(Simulador!$J$11="SI",H20*0.16,0))))) -> 0 | J20: 9390.902243 | K20: 593.1599111 | L20: 233.3333352 | M20: 299 | N20: =IF(B20="","",IF(F20=0,0,IF(Simulador!$N$7='Tabla Parámetros'!$C$31,AportPat!L12,IF(Simulador!$N$7='Tabla Parámetros'!$C$34,AportPatFov!G10,0)))) -> 0 | O20: =Simulador!N75 -> 0 | Q20: 10516.39549 | R20: 987123.0209 | T20: 1476.830896 | U20: 7914.071347 | V20: 9390.902243 | W20: 1476.830896 | X20: 7914.071347 | Y20: 9390.902243 | Z20: 1476.830896 | AA20: 7914.071347 | AB20: 9390.902243
B21: 10 | C21: =IF($B21="","",'Fecha Pago'!K13) -> 2024-05-03 | D21: =IF($B$12="","",'Fecha Pago'!L13) -> 30.4 | E21: 0.0948 | F21: 987123.0209 | G21: 1488.65342 | H21: 7902.248823 | I21: =IF(B21="","",IF(Simulador!$F$9="Liquidez",'Tabla Fijos'!H21*0.16,IF(Simulador!$F$9="Terreno_Urbanizado",'Tabla Fijos'!H21*0.16,IF(Simulador!$J$9="SI",H21*0.16,IF(Simulador!$J$11="SI",H21*0.16,0))))) -> 0 | J21: 9390.902243 | K21: 592.2738125 | L21: 233.3333352 | M21: 299 | N21: =IF(B21="","",IF(F21=0,0,IF(Simulador!$N$7='Tabla Parámetros'!$C$31,AportPat!L13,IF(Simulador!$N$7='Tabla Parámetros'!$C$34,AportPatFov!G11,0)))) -> 0 | O21: =Simulador!N76 -> 0 | Q21: 10515.50939 | R21: 985634.3675 | T21: 1488.65342 | U21: 7902.248823 | V21: 9390.902243 | W21: 1488.65342 | X21: 7902.248823 | Y21: 9390.902243 | Z21: 1488.65342 | AA21: 7902.248823 | AB21: 9390.902243
B22: 11 | C22: =IF($B22="","",'Fecha Pago'!K14) -> 2024-06-03 | D22: =IF($B$12="","",'Fecha Pago'!L14) -> 30.4 | E22: 0.0948 | F22: 985634.3675 | G22: 1500.570587 | H22: 7890.331656 | I22: =IF(B22="","",IF(Simulador!$F$9="Liquidez",'Tabla Fijos'!H22*0.16,IF(Simulador!$F$9="Terreno_Urbanizado",'Tabla Fijos'!H22*0.16,IF(Simulador!$J$9="SI",H22*0.16,IF(Simulador!$J$11="SI",H22*0.16,0))))) -> 0 | J22: 9390.902243 | K22: 591.3806205 | L22: 233.3333352 | M22: 299 | N22: =IF(B22="","",IF(F22=0,0,IF(Simulador!$N$7='Tabla Parámetros'!$C$31,AportPat!L14,IF(Simulador!$N$7='Tabla Parámetros'!$C$34,AportPatFov!G12,0)))) -> 0 | O22: =Simulador!N77 -> 0 | Q22: 10514.6162 | R22: 984133.7969 | T22: 1500.570587 | U22: 7890.331656 | V22: 9390.902243 | W22: 1500.570587 | X22: 7890.331656 | Y22: 9390.902243 | Z22: 1500.570587 | AA22: 7890.331656 | AB22: 9390.902243
B23: 12 | C23: =IF($B23="","",'Fecha Pago'!K15) -> 2024-07-03 | D23: =IF($B$12="","",'Fecha Pago'!L15) -> 30.4 | E23: 0.0948 | F23: 984133.7969 | G23: 1512.583154 | H23: 7878.319089 | I23: =IF(B23="","",IF(Simulador!$F$9="Liquidez",'Tabla Fijos'!H23*0.16,IF(Simulador!$F$9="Terreno_Urbanizado",'Tabla Fijos'!H23*0.16,IF(Simulador!$J$9="SI",H23*0.16,IF(Simulador!$J$11="SI",H23*0.16,0))))) -> 0 | J23: 9390.902243 | K23: 590.4802781 | L23: 233.3333352 | M23: 299 | N23: =IF(B23="","",IF(F23=0,0,IF(Simulador!$N$7='Tabla Parámetros'!$C$31,AportPat!L15,IF(Simulador!$N$7='Tabla Parámetros'!$C$34,AportPatFov!G13,0)))) -> 0 | O23: =Simulador!N78 -> 0 | Q23: 10513.71586 | R23: 982621.2137 | T23: 1512.583154 | U23: 7878.319089 | V23: 9390.902243 | W23: 1512.583154 | X23: 7878.319089 | Y23: 9390.902243 | Z23: 1512.583154 | AA23: 7878.319089 | AB23: 9390.902243
B24: 13 | C24: =IF($B24="","",'Fecha Pago'!K16) -> 2024-08-03 | D24: =IF($B$12="","",'Fecha Pago'!L16) -> 30.4 | E24: 0.0948 | F24: 982621.2137 | G24: 1524.691887 | H24: 7866.210356 | I24: =IF(B24="","",IF(Simulador!$F$9="Liquidez",'Tabla Fijos'!H24*0.16,IF(Simulador!$F$9="Terreno_Urbanizado",'Tabla Fijos'!H24*0.16,IF(Simulador!$J$9="SI",H24*0.16,IF(Simulador!$J$11="SI",H24*0.16,0))))) -> 0 | J24: 9390.902243 | K24: 589.5727282 | L24: 233.3333352 | M24: 299 | N24: =IF(B24="","",IF(F24=0,0,IF(Simulador!$N$7='Tabla Parámetros'!$C$31,AportPat!L16,IF(Simulador!$N$7='Tabla Parámetros'!$C$34,AportPatFov!G14,0)))) -> 0 | O24: =Simulador!N79 -> 0 | Q24: 10512.80831 | R24: 981096.5219 | T24: 1524.691887 | U24: 7866.210356 | V24: 9390.902243 | W24: 1524.691887 | X24: 7866.210356 | Y24: 9390.902243 | Z24: 1524.691887 | AA24: 7866.210356 | AB24: 9390.902243
B25: 14 | C25: =IF($B25="","",'Fecha Pago'!K17) -> 2024-09-03 | D25: =IF($B$12="","",'Fecha Pago'!L17) -> 30.4 | E25: 0.0948 | F25: 981096.5219 | G25: 1536.897553 | H25: 7854.00469 | I25: =IF(B25="","",IF(Simulador!$F$9="Liquidez",'Tabla Fijos'!H25*0.16,IF(Simulador!$F$9="Terreno_Urbanizado",'Tabla Fijos'!H25*0.16,IF(Simulador!$J$9="SI",H25*0.16,IF(Simulador!$J$11="SI",H25*0.16,0))))) -> 0 | J25: 9390.902243 | K25: 588.6579131 | L25: 233.3333352 | M25: 299 | N25: =IF(B25="","",IF(F25=0,0,IF(Simulador!$N$7='Tabla Parámetros'!$C$31,AportPat!L17,IF(Simulador!$N$7='Tabla Parámetros'!$C$34,AportPatFov!G15,0)))) -> 0 | O25: =Simulador!N80 -> 0 | Q25: 10511.89349 | R25: 979559.6243 | T25: 1536.897553 | U25: 7854.00469 | V25: 9390.902243 | W25: 1536.897553 | X25: 7854.00469 | Y25: 9390.902243 | Z25: 1536.897553 | AA25: 7854.00469 | AB25: 9390.902243
B26: 15 | C26: =IF($B26="","",'Fecha Pago'!K18) -> 2024-10-03 | D26: =IF($B$12="","",'Fecha Pago'!L18) -> 30.4 | E26: 0.0948 | F26: =IF(B26="","",F25-G25) -> 979559.6243 | G26: 1549.200931 | H26: 7841.701312 | I26: =IF(B26="","",IF(Simulador!$F$9="Liquidez",'Tabla Fijos'!H26*0.16,IF(Simulador!$F$9="Terreno_Urbanizado",'Tabla Fijos'!H26*0.16,IF(Simulador!$J$9="SI",H26*0.16,IF(Simulador!$J$11="SI",H26*0.16,0))))) -> 0 | J26: 9390.902243 | K26: 587.7357746 | L26: 233.3333352 | M26: 299 | N26: =IF(B26="","",IF(F26=0,0,IF(Simulador!$N$7='Tabla Parámetros'!$C$31,AportPat!L18,IF(Simulador!$N$7='Tabla Parámetros'!$C$34,AportPatFov!G16,0)))) -> 0 | O26: =Simulador!N81 -> 0 | Q26: 10510.97135 | R26: 978010.4234 | T26: 1549.200931 | U26: 7841.701312 | V26: 9390.902243 | W26: 1549.200931 | X26: 7841.701312 | Y26: 9390.902243 | Z26: 1549.200931 | AA26: 7841.701312 | AB26: 9390.902243
B27: 16 | C27: =IF($B27="","",'Fecha Pago'!K19) -> 2024-11-03 | D27: =IF($B$12="","",'Fecha Pago'!L19) -> 30.4 | E27: 0.0948 | F27: =IF(B27="","",F26-G26) -> 978010.4234 | G27: 1561.6028 | H27: 7829.299443 | I27: =IF(B27="","",IF(Simulador!$F$9="Liquidez",'Tabla Fijos'!H27*0.16,IF(Simulador!$F$9="Terreno_Urbanizado",'Tabla Fijos'!H27*0.16,IF(Simulador!$J$9="SI",H27*0.16,IF(Simulador!$J$11="SI",H27*0.16,0))))) -> 0 | J27: 9390.902243 | K27: 586.806254 | L27: 233.3333352 | M27: 299 | N27: =IF(B27="","",IF(F27=0,0,IF(Simulador!$N$7='Tabla Parámetros'!$C$31,AportPat!L19,IF(Simulador!$N$7='Tabla Parámetros'!$C$34,AportPatFov!G17,0)))) -> 0 | O27: =Simulador!N82 -> 0 | Q27: 10510.04183 | R27: 976448.8206 | T27: 1561.6028 | U27: 7829.299443 | V27: 9390.902243 | W27: 1561.6028 | X27: 7829.299443 | Y27: 9390.902243 | Z27: 1561.6028 | AA27: 7829.299443 | AB27: 9390.902243
B28: 17 | C28: =IF($B28="","",'Fecha Pago'!K20) -> 2024-12-03 | D28: =IF($B$12="","",'Fecha Pago'!L20) -> 30.4 | E28: 0.0948 | F28: 976448.8206 | G28: 1574.103951 | H28: 7816.798292 | I28: =IF(B28="","",IF(Simulador!$F$9="Liquidez",'Tabla Fijos'!H28*0.16,IF(Simulador!$F$9="Terreno_Urbanizado",'Tabla Fijos'!H28*0.16,IF(Simulador!$J$9="SI",H28*0.16,IF(Simulador!$J$11="SI",H28*0.16,0))))) -> 0 | J28: 9390.902243 | K28: 585.8692923 | L28: 233.3333352 | M28: 299 | N28: =IF(B28="","",IF(F28=0,0,IF(Simulador!$N$7='Tabla Parámetros'!$C$31,AportPat!L20,IF(Simulador!$N$7='Tabla Parámetros'!$C$34,AportPatFov!G18,0)))) -> 0 | O28: =Simulador!N83 -> 0 | Q28: 10509.10487 | R28: 974874.7166 | T28: 1574.103951 | U28: 7816.798292 | V28: 9390.902243 | W28: 1574.103951 | X28: 7816.798292 | Y28: 9390.902243 | Z28: 1574.103951 | AA28: 7816.798292 | AB28: 9390.902243
B29: 18 | C29: =IF($B29="","",'Fecha Pago'!K21) -> 2025-01-03 | D29: =IF($B$12="","",'Fecha Pago'!L21) -> 30.4 | E29: 0.0948 | F29: 974874.7166 | G29: 1586.705178 | H29: 7804.197065 | I29: =IF(B29="","",IF(Simulador!$F$9="Liquidez",'Tabla Fijos'!H29*0.16,IF(Simulador!$F$9="Terreno_Urbanizado",'Tabla Fijos'!H29*0.16,IF(Simulador!$J$9="SI",H29*0.16,IF(Simulador!$J$11="SI",H29*0.16,0))))) -> 0 | J29: 9390.902243 | K29: 584.92483 | L29: 233.3333352 | M29: 299 | N29: =IF(B29="","",IF(F29=0,0,IF(Simulador!$N$7='Tabla Parámetros'!$C$31,AportPat!L21,IF(Simulador!$N$7='Tabla Parámetros'!$C$34,AportPatFov!G19,0)))) -> 0 | O29: =Simulador!N84 -> 0 | Q29: 10508.16041 | R29: 973288.0114 | T29: 1586.705178 | U29: 7804.197065 | V29: 9390.902243 | W29: 1586.705178 | X29: 7804.197065 | Y29: 9390.902243 | Z29: 1586.705178 | AA29: 7804.197065 | AB29: 9390.902243
B30: 19 | C30: =IF($B30="","",'Fecha Pago'!K22) -> 2025-02-03 | D30: =IF($B$12="","",'Fecha Pago'!L22) -> 30.4 | E30: 0.0948 | F30: 973288.0114 | G30: 1599.407282 | H30: 7791.494961 | I30: =IF(B30="","",IF(Simulador!$F$9="Liquidez",'Tabla Fijos'!H30*0.16,IF(Simulador!$F$9="Terreno_Urbanizado",'Tabla Fijos'!H30*0.16,IF(Simulador!$J$9="SI",H30*0.16,IF(Simulador!$J$11="SI",H30*0.16,0))))) -> 0 | J30: 9390.902243 | K30: 583.9728069 | L30: 233.3333352 | M30: 299 | N30: =IF(B30="","",IF(F30=0,0,IF(Simulador!$N$7='Tabla Parámetros'!$C$31,AportPat!L22,IF(Simulador!$N$7='Tabla Parámetros'!$C$34,AportPatFov!G20,0)))) -> 0 | O30: =Simulador!N85 -> 0 | Q30: 10507.20839 | R30: 971688.6042 | T30: 1599.407282 | U30: 7791.494961 | V30: 9390.902243 | W30: 1599.407282 | X30: 7791.494961 | Y30: 9390.902243 | Z30: 1599.407282 | AA30: 7791.494961 | AB30: 9390.902243
B31: 20 | C31: =IF($B31="","",'Fecha Pago'!K23) -> 2025-03-03 | D31: =IF($B$12="","",'Fecha Pago'!L23) -> 30.4 | E31: 0.0948 | F31: 971688.6042 | G31: 1612.211071 | H31: 7778.691172 | I31: =IF(B31="","",IF(Simulador!$F$9="Liquidez",'Tabla Fijos'!H31*0.16,IF(Simulador!$F$9="Terreno_Urbanizado",'Tabla Fijos'!H31*0.16,IF(Simulador!$J$9="SI",H31*0.16,IF(Simulador!$J$11="SI",H31*0.16,0))))) -> 0 | J31: 9390.902243 | K31: 583.0131625 | L31: 233.3333352 | M31: 299 | N31: =IF(B31="","",IF(F31=0,0,IF(Simulador!$N$7='Tabla Parámetros'!$C$31,AportPat!L23,IF(Simulador!$N$7='Tabla Parámetros'!$C$34,AportPatFov!G21,0)))) -> 0 | O31: =Simulador!N86 -> 0 | Q31: 10506.24874 | R31: 970076.3931 | T31: 1612.211071 | U31: 7778.691172 | V31: 9390.902243 | W31: 1612.211071 | X31: 7778.691172 | Y31: 9390.902243 | Z31: 1612.211071 | AA31: 7778.691172 | AB31: 9390.902243
B32: 21 | C32: =IF($B32="","",'Fecha Pago'!K24) -> 2025-04-03 | D32: =IF($B$12="","",'Fecha Pago'!L24) -> 30.4 | E32: 0.0948 | F32: 970076.3931 | G32: 1625.117358 | H32: 7765.784885 | I32: =IF(B32="","",IF(Simulador!$F$9="Liquidez",'Tabla Fijos'!H32*0.16,IF(Simulador!$F$9="Terreno_Urbanizado",'Tabla Fijos'!H32*0.16,IF(Simulador!$J$9="SI",H32*0.16,IF(Simulador!$J$11="SI",H32*0.16,0))))) -> 0 | J32: 9390.902243 | K32: 582.0458359 | L32: 233.3333352 | M32: 299 | N32: =IF(B32="","",IF(F32=0,0,IF(Simulador!$N$7='Tabla Parámetros'!$C$31,AportPat!L24,IF(Simulador!$N$7='Tabla Parámetros'!$C$34,AportPatFov!G22,0)))) -> 0 | O32: =Simulador!N87 -> 0 | Q32: 10505.28141 | R32: 968451.2757 | T32: 1625.117358 | U32: 7765.784885 | V32: 9390.902243 | W32: 1625.117358 | X32: 7765.784885 | Y32: 9390.902243 | Z32: 1625.117358 | AA32: 7765.784885 | AB32: 9390.902243
B33: 22 | C33: =IF($B33="","",'Fecha Pago'!K25) -> 2025-05-03 | D33: =IF($B$12="","",'Fecha Pago'!L25) -> 30.4 | E33: 0.0948 | F33: 968451.2757 | G33: 1638.126964 | H33: 7752.775279 | I33: =IF(B33="","",IF(Simulador!$F$9="Liquidez",'Tabla Fijos'!H33*0.16,IF(Simulador!$F$9="Terreno_Urbanizado",'Tabla Fijos'!H33*0.16,IF(Simulador!$J$9="SI",H33*0.16,IF(Simulador!$J$11="SI",H33*0.16,0))))) -> 0 | J33: 9390.902243 | K33: 581.0707654 | L33: 233.3333352 | M33: 299 | N33: =IF(B33="","",IF(F33=0,0,IF(Simulador!$N$7='Tabla Parámetros'!$C$31,AportPat!L25,IF(Simulador!$N$7='Tabla Parámetros'!$C$34,AportPatFov!G23,0)))) -> 0 | O33: =Simulador!N88 -> 0 | Q33: 10504.30634 | R33: 966813.1488 | T33: 1638.126964 | U33: 7752.775279 | V33: 9390.902243 | W33: 1638.126964 | X33: 7752.775279 | Y33: 9390.902243 | Z33: 1638.126964 | AA33: 7752.775279 | AB33: 9390.902243
B34: 23 | C34: =IF($B34="","",'Fecha Pago'!K26) -> 2025-06-03 | D34: =IF($B$12="","",'Fecha Pago'!L26) -> 30.4 | E34: 0.0948 | F34: 966813.1488 | G34: 1651.240716 | H34: 7739.661527 | I34: =IF(B34="","",IF(Simulador!$F$9="Liquidez",'Tabla Fijos'!H34*0.16,IF(Simulador!$F$9="Terreno_Urbanizado",'Tabla Fijos'!H34*0.16,IF(Simulador!$J$9="SI",H34*0.16,IF(Simulador!$J$11="SI",H34*0.16,0))))) -> 0 | J34: 9390.902243 | K34: 580.0878893 | L34: 233.3333352 | M34: 299 | N34: =IF(B34="","",IF(F34=0,0,IF(Simulador!$N$7='Tabla Parámetros'!$C$31,AportPat!L26,IF(Simulador!$N$7='Tabla Parámetros'!$C$34,AportPatFov!G24,0)))) -> 0 | O34: =Simulador!N89 -> 0 | Q34: 10503.32347 | R34: 965161.908 | T34: 1651.240716 | U34: 7739.661527 | V34: 9390.902243 | W34: 1651.240716 | X34: 7739.661527 | Y34: 9390.902243 | Z34: 1651.240716 | AA34: 7739.661527 | AB34: 9390.902243
B35: 24 | C35: =IF($B35="","",'Fecha Pago'!K27) -> 2025-07-03 | D35: =IF($B$12="","",'Fecha Pago'!L27) -> 30.4 | E35: 0.0948 | F35: 965161.908 | G35: 1664.459448 | H35: 7726.442795 | I35: =IF(B35="","",IF(Simulador!$F$9="Liquidez",'Tabla Fijos'!H35*0.16,IF(Simulador!$F$9="Terreno_Urbanizado",'Tabla Fijos'!H35*0.16,IF(Simulador!$J$9="SI",H35*0.16,IF(Simulador!$J$11="SI",H35*0.16,0))))) -> 0 | J35: 9390.902243 | K35: 579.0971448 | L35: 233.3333352 | M35: 299 | N35: =IF(B35="","",IF(F35=0,0,IF(Simulador!$N$7='Tabla Parámetros'!$C$31,AportPat!L27,IF(Simulador!$N$7='Tabla Parámetros'!$C$34,AportPatFov!G25,0)))) -> 0 | O35: =Simulador!N90 -> 0 | Q35: 10502.33272 | R35: 963497.4486 | T35: 1664.459448 | U35: 7726.442795 | V35: 9390.902243 | W35: 1664.459448 | X35: 7726.442795 | Y35: 9390.902243 | Z35: 1664.459448 | AA35: 7726.442795 | AB35: 9390.902243
B36: 25 | C36: =IF($B36="","",'Fecha Pago'!K28) -> 2025-08-03 | D36: =IF($B$12="","",'Fecha Pago'!L28) -> 30.4 | E36: 0.0948 | F36: 963497.4486 | G36: 1677.784001 | H36: 7713.118242 | I36: =IF(B36="","",IF(Simulador!$F$9="Liquidez",'Tabla Fijos'!H36*0.16,IF(Simulador!$F$9="Terreno_Urbanizado",'Tabla Fijos'!H36*0.16,IF(Simulador!$J$9="SI",H36*0.16,IF(Simulador!$J$11="SI",H36*0.16,0))))) -> 0 | J36: 9390.902243 | K36: 578.0984692 | L36: 233.3333352 | M36: 299 | N36: =IF(B36="","",IF(F36=0,0,IF(Simulador!$N$7='Tabla Parámetros'!$C$31,AportPat!L28,IF(Simulador!$N$7='Tabla Parámetros'!$C$34,AportPatFov!G26,0)))) -> 0 | O36: =Simulador!N91 -> 0 | Q36: 10501.33405 | R36: 961819.6646 | T36: 1677.784001 | U36: 7713.118242 | V36: 9390.902243 | W36: 1677.784001 | X36: 7713.118242 | Y36: 9390.902243 | Z36: 1677.784001 | AA36: 7713.118242 | AB36: 9390.902243
B37: 26 | C37: =IF($B37="","",'Fecha Pago'!K29) -> 2025-09-03 | D37: =IF($B$12="","",'Fecha Pago'!L29) -> 30.4 | E37: 0.0948 | F37: 961819.6646 | G37: 1691.215221 | H37: 7699.687022 | I37: =IF(B37="","",IF(Simulador!$F$9="Liquidez",'Tabla Fijos'!H37*0.16,IF(Simulador!$F$9="Terreno_Urbanizado",'Tabla Fijos'!H37*0.16,IF(Simulador!$J$9="SI",H37*0.16,IF(Simulador!$J$11="SI",H37*0.16,0))))) -> 0 | J37: 9390.902243 | K37: 577.0917988 | L37: 233.3333352 | M37: 299 | N37: =IF(B37="","",IF(F37=0,0,IF(Simulador!$N$7='Tabla Parámetros'!$C$31,AportPat!L29,IF(Simulador!$N$7='Tabla Parámetros'!$C$34,AportPatFov!G27,0)))) -> 0 | O37: =Simulador!N92 -> 0 | Q37: 10500.32738 | R37: 960128.4494 | T37: 1691.215221 | U37: 7699.687022 | V37: 9390.902243 | W37: 1691.215221 | X37: 7699.687022 | Y37: 9390.902243 | Z37: 1691.215221 | AA37: 7699.687022 | AB37: 9390.902243
B38: 27 | C38: =IF($B38="","",'Fecha Pago'!K30) -> 2025-10-03 | D38: =IF($B$12="","",'Fecha Pago'!L30) -> 30.4 | E38: 0.0948 | F38: 960128.4494 | G38: 1704.753963 | H38: 7686.14828 | I38: =IF(B38="","",IF(Simulador!$F$9="Liquidez",'Tabla Fijos'!H38*0.16,IF(Simulador!$F$9="Terreno_Urbanizado",'Tabla Fijos'!H38*0.16,IF(Simulador!$J$9="SI",H38*0.16,IF(Simulador!$J$11="SI",H38*0.16,0))))) -> 0 | J38: 9390.902243 | K38: 576.0770696 | L38: 233.3333352 | M38: 299 | N38: =IF(B38="","",IF(F38=0,0,IF(Simulador!$N$7='Tabla Parámetros'!$C$31,AportPat!L30,IF(Simulador!$N$7='Tabla Parámetros'!$C$34,AportPatFov!G28,0)))) -> 0 | O38: =Simulador!N93 -> 0 | Q38: 10499.31265 | R38: 958423.6954 | T38: 1704.753963 | U38: 7686.14828 | V38: 9390.902243 | W38: 1704.753963 | X38: 7686.14828 | Y38: 9390.902243 | Z38: 1704.753963 | AA38: 7686.14828 | AB38: 9390.902243
B39: 28 | C39: =IF($B39="","",'Fecha Pago'!K31) -> 2025-11-03 | D39: =IF($B$12="","",'Fecha Pago'!L31) -> 30.4 | E39: 0.0948 | F39: 958423.6954 | G39: 1718.401087 | H39: 7672.501156 | I39: =IF(B39="","",IF(Simulador!$F$9="Liquidez",'Tabla Fijos'!H39*0.16,IF(Simulador!$F$9="Terreno_Urbanizado",'Tabla Fijos'!H39*0.16,IF(Simulador!$J$9="SI",H39*0.16,IF(Simulador!$J$11="SI",H39*0.16,0))))) -> 0 | J39: 9390.902243 | K39: 575.0542172 | L39: 233.3333352 | M39: 299 | N39: =IF(B39="","",IF(F39=0,0,IF(Simulador!$N$7='Tabla Parámetros'!$C$31,AportPat!L31,IF(Simulador!$N$7='Tabla Parámetros'!$C$34,AportPatFov!G29,0)))) -> 0 | O39: =Simulador!N94 -> 0 | Q39: 10498.2898 | R39: 956705.2943 | T39: 1718.401087 | U39: 7672.501156 | V39: 9390.902243 | W39: 1718.401087 | X39: 7672.501156 | Y39: 9390.902243 | Z39: 1718.401087 | AA39: 7672.501156 | AB39: 9390.902243
B40: 29 | C40: =IF($B40="","",'Fecha Pago'!K32) -> 2025-12-03 | D40: =IF($B$12="","",'Fecha Pago'!L32) -> 30.4 | E40: 0.0948 | F40: 956705.2943 | G40: 1732.15746 | H40: 7658.744783 | I40: =IF(B40="","",IF(Simulador!$F$9="Liquidez",'Tabla Fijos'!H40*0.16,IF(Simulador!$F$9="Terreno_Urbanizado",'Tabla Fijos'!H40*0.16,IF(Simulador!$J$9="SI",H40*0.16,IF(Simulador!$J$11="SI",H40*0.16,0))))) -> 0 | J40: 9390.902243 | K40: 574.0231766 | L40: 233.3333352 | M40: 299 | N40: =IF(B40="","",IF(F40=0,0,IF(Simulador!$N$7='Tabla Parámetros'!$C$31,AportPat!L32,IF(Simulador!$N$7='Tabla Parámetros'!$C$34,AportPatFov!G30,0)))) -> 0 | O40: =Simulador!N95 -> 0 | Q40: 10497.25875 | R40: 954973.1369 | T40: 1732.15746 | U40: 7658.744783 | V40: 9390.902243 | W40: 1732.15746 | X40: 7658.744783 | Y40: 9390.902243 | Z40: 1732.15746 | AA40: 7658.744783 | AB40: 9390.902243
B41: 30 | C41: =IF($B41="","",'Fecha Pago'!K33) -> 2026-01-03 | D41: =IF($B$12="","",'Fecha Pago'!L33) -> 30.4 | E41: 0.0948 | F41: 954973.1369 | G41: 1746.023958 | H41: 7644.878285 | I41: =IF(B41="","",IF(Simulador!$F$9="Liquidez",'Tabla Fijos'!H41*0.16,IF(Simulador!$F$9="Terreno_Urbanizado",'Tabla Fijos'!H41*0.16,IF(Simulador!$J$9="SI",H41*0.16,IF(Simulador!$J$11="SI",H41*0.16,0))))) -> 0 | J41: 9390.902243 | K41: 572.9838821 | L41: 233.3333352 | M41: 299 | N41: =IF(B41="","",IF(F41=0,0,IF(Simulador!$N$7='Tabla Parámetros'!$C$31,AportPat!L33,IF(Simulador!$N$7='Tabla Parámetros'!$C$34,AportPatFov!G31,0)))) -> 0 | O41: =Simulador!N96 -> 0 | Q41: 10496.21946 | R41: 953227.1129 | T41: 1746.023958 | U41: 7644.878285 | V41: 9390.902243 | W41: 1746.023958 | X41: 7644.878285 | Y41: 9390.902243 | Z41: 1746.023958 | AA41: 7644.878285 | AB41: 9390.902243
B42: 31 | C42: =IF($B42="","",'Fecha Pago'!K34) -> 2026-02-03 | D42: =IF($B$12="","",'Fecha Pago'!L34) -> 30.4 | E42: 0.0948 | F42: 953227.1129 | G42: 1760.001462 | H42: 7630.900781 | I42: =IF(B42="","",IF(Simulador!$F$9="Liquidez",'Tabla Fijos'!H42*0.16,IF(Simulador!$F$9="Terreno_Urbanizado",'Tabla Fijos'!H42*0.16,IF(Simulador!$J$9="SI",H42*0.16,IF(Simulador!$J$11="SI",H42*0.16,0))))) -> 0 | J42: 9390.902243 | K42: 571.9362677 | L42: 233.3333352 | M42: 299 | N42: =IF(B42="","",IF(F42=0,0,IF(Simulador!$N$7='Tabla Parámetros'!$C$31,AportPat!L34,IF(Simulador!$N$7='Tabla Parámetros'!$C$34,AportPatFov!G32,0)))) -> 0 | O42: =Simulador!N97 -> 0 | Q42: 10495.17185 | R42: 951467.1114 | T42: 1760.001462 | U42: 7630.900781 | V42: 9390.902243 | W42: 1760.001462 | X42: 7630.900781 | Y42: 9390.902243 | Z42: 1760.001462 | AA42: 7630.900781 | AB42: 9390.902243
B43: 32 | C43: =IF($B43="","",'Fecha Pago'!K35) -> 2026-03-03 | D43: =IF($B$12="","",'Fecha Pago'!L35) -> 30.4 | E43: 0.0948 | F43: 951467.1114 | G43: 1774.09086 | H43: 7616.811383 | I43: =IF(B43="","",IF(Simulador!$F$9="Liquidez",'Tabla Fijos'!H43*0.16,IF(Simulador!$F$9="Terreno_Urbanizado",'Tabla Fijos'!H43*0.16,IF(Simulador!$J$9="SI",H43*0.16,IF(Simulador!$J$11="SI",H43*0.16,0))))) -> 0 | J43: 9390.902243 | K43: 570.8802669 | L43: 233.3333352 | M43: 299 | N43: =IF(B43="","",IF(F43=0,0,IF(Simulador!$N$7='Tabla Parámetros'!$C$31,AportPat!L35,IF(Simulador!$N$7='Tabla Parámetros'!$C$34,AportPatFov!G33,0)))) -> 0 | O43: =Simulador!N98 -> 0 | Q43: 10494.11585 | R43: 949693.0206 | T43: 1774.09086 | U43: 7616.811383 | V43: 9390.902243 | W43: 1774.09086 | X43: 7616.811383 | Y43: 9390.902243 | Z43: 1774.09086 | AA43: 7616.811383 | AB43: 9390.902243
B44: 33 | C44: =IF($B44="","",'Fecha Pago'!K36) -> 2026-04-03 | D44: =IF($B$12="","",'Fecha Pago'!L36) -> 30.4 | E44: 0.0948 | F44: 949693.0206 | G44: 1788.293049 | H44: 7602.609194 | I44: =IF(B44="","",IF(Simulador!$F$9="Liquidez",'Tabla Fijos'!H44*0.16,IF(Simulador!$F$9="Terreno_Urbanizado",'Tabla Fijos'!H44*0.16,IF(Simulador!$J$9="SI",H44*0.16,IF(Simulador!$J$11="SI",H44*0.16,0))))) -> 0 | J44: 9390.902243 | K44: 569.8158124 | L44: 233.3333352 | M44: 299 | N44: =IF(B44="","",IF(F44=0,0,IF(Simulador!$N$7='Tabla Parámetros'!$C$31,AportPat!L36,IF(Simulador!$N$7='Tabla Parámetros'!$C$34,AportPatFov!G34,0)))) -> 0 | O44: =Simulador!N99 -> 0 | Q44: 10493.05139 | R44: 947904.7275 | T44: 1788.293049 | U44: 7602.609194 | V44: 9390.902243 | W44: 1788.293049 | X44: 7602.609194 | Y44: 9390.902243 | Z44: 1788.293049 | AA44: 7602.609194 | AB44: 9390.902243
B45: 34 | C45: =IF($B45="","",'Fecha Pago'!K37) -> 2026-05-03 | D45: =IF($B$12="","",'Fecha Pago'!L37) -> 30.4 | E45: 0.0948 | F45: 947904.7275 | G45: 1802.608931 | H45: 7588.293312 | I45: =IF(B45="","",IF(Simulador!$F$9="Liquidez",'Tabla Fijos'!H45*0.16,IF(Simulador!$F$9="Terreno_Urbanizado",'Tabla Fijos'!H45*0.16,IF(Simulador!$J$9="SI",H45*0.16,IF(Simulador!$J$11="SI",H45*0.16,0))))) -> 0 | J45: 9390.902243 | K45: 568.7428365 | L45: 233.3333352 | M45: 299 | N45: =IF(B45="","",IF(F45=0,0,IF(Simulador!$N$7='Tabla Parámetros'!$C$31,AportPat!L37,IF(Simulador!$N$7='Tabla Parámetros'!$C$34,AportPatFov!G35,0)))) -> 0 | O45: =Simulador!N100 -> 0 | Q45: 10491.97841 | R45: 946102.1186 | T45: 1802.608931 | U45: 7588.293312 | V45: 9390.902243 | W45: 1802.608931 | X45: 7588.293312 | Y45: 9390.902243 | Z45: 1802.608931 | AA45: 7588.293312 | AB45: 9390.902243
B46: 35 | C46: =IF($B46="","",'Fecha Pago'!K38) -> 2026-06-03 | D46: =IF($B$12="","",'Fecha Pago'!L38) -> 30.4 | E46: 0.0948 | F46: 946102.1186 | G46: 1817.039416 | H46: 7573.862827 | I46: =IF(B46="","",IF(Simulador!$F$9="Liquidez",'Tabla Fijos'!H46*0.16,IF(Simulador!$F$9="Terreno_Urbanizado",'Tabla Fijos'!H46*0.16,IF(Simulador!$J$9="SI",H46*0.16,IF(Simulador!$J$11="SI",H46*0.16,0))))) -> 0 | J46: 9390.902243 | K46: 567.6612712 | L46: 233.3333352 | M46: 299 | N46: =IF(B46="","",IF(F46=0,0,IF(Simulador!$N$7='Tabla Parámetros'!$C$31,AportPat!L38,IF(Simulador!$N$7='Tabla Parámetros'!$C$34,AportPatFov!G36,0)))) -> 0 | O46: =Simulador!N101 -> 0 | Q46: 10490.89685 | R46: 944285.0792 | T46: 1817.039416 | U46: 7573.862827 | V46: 9390.902243 | W46: 1817.039416 | X46: 7573.862827 | Y46: 9390.902243 | Z46: 1817.039416 | AA46: 7573.862827 | AB46: 9390.902243
B47: 36 | C47: =IF($B47="","",'Fecha Pago'!K39) -> 2026-07-03 | D47: =IF($B$12="","",'Fecha Pago'!L39) -> 30.4 | E47: 0.0948 | F47: 944285.0792 | G47: 1831.585422 | H47: 7559.316821 | I47: =IF(B47="","",IF(Simulador!$F$9="Liquidez",'Tabla Fijos'!H47*0.16,IF(Simulador!$F$9="Terreno_Urbanizado",'Tabla Fijos'!H47*0.16,IF(Simulador!$J$9="SI",H47*0.16,IF(Simulador!$J$11="SI",H47*0.16,0))))) -> 0 | J47: 9390.902243 | K47: 566.5710475 | L47: 233.3333352 | M47: 299 | N47: =IF(B47="","",IF(F47=0,0,IF(Simulador!$N$7='Tabla Parámetros'!$C$31,AportPat!L39,IF(Simulador!$N$7='Tabla Parámetros'!$C$34,AportPatFov!G37,0)))) -> 0 | O47: =Simulador!N102 -> 0 | Q47: 10489.80663 | R47: 942453.4938 | T47: 1831.585422 | U47: 7559.316821 | V47: 9390.902243 | W47: 1831.585422 | X47: 7559.316821 | Y47: 9390.902243 | Z47: 1831.585422 | AA47: 7559.316821 | AB47: 9390.902243
B48: 37 | C48: =IF($B48="","",'Fecha Pago'!K40) -> 2026-08-03 | D48: =IF($B$12="","",'Fecha Pago'!L40) -> 30.4 | E48: 0.0948 | F48: 942453.4938 | G48: 1846.247874 | H48: 7544.654369 | I48: =IF(B48="","",IF(Simulador!$F$9="Liquidez",'Tabla Fijos'!H48*0.16,IF(Simulador!$F$9="Terreno_Urbanizado",'Tabla Fijos'!H48*0.16,IF(Simulador!$J$9="SI",H48*0.16,IF(Simulador!$J$11="SI",H48*0.16,0))))) -> 0 | J48: 9390.902243 | K48: 565.4720963 | L48: 233.3333352 | M48: 299 | N48: =IF(B48="","",IF(F48=0,0,IF(Simulador!$N$7='Tabla Parámetros'!$C$31,AportPat!L40,IF(Simulador!$N$7='Tabla Parámetros'!$C$34,AportPatFov!G38,0)))) -> 0 | O48: =Simulador!N103 -> 0 | P48: =IF(B48="","",IF(Sheet1!$Z$1=3,'Tabla Fijos'!$P$9,0)) -> 0 | Q48: 10488.70767 | R48: 940607.2459 | T48: 1846.247874 | U48: 7544.654369 | V48: 9390.902243 | W48: 1846.247874 | X48: 7544.654369 | Y48: 9390.902243 | Z48: 1846.247874 | AA48: 7544.654369 | AB48: 9390.902243
B49: 38 | C49: =IF($B49="","",'Fecha Pago'!K41) -> 2026-09-03 | D49: =IF($B$12="","",'Fecha Pago'!L41) -> 30.4 | E49: 0.0948 | F49: 940607.2459 | G49: 1861.027704 | H49: 7529.874539 | I49: =IF(B49="","",IF(Simulador!$F$9="Liquidez",'Tabla Fijos'!H49*0.16,IF(Simulador!$F$9="Terreno_Urbanizado",'Tabla Fijos'!H49*0.16,IF(Simulador!$J$9="SI",H49*0.16,IF(Simulador!$J$11="SI",H49*0.16,0))))) -> 0 | J49: 9390.902243 | K49: 564.3643475 | L49: 233.3333352 | M49: 299 | N49: =IF(B49="","",IF(F49=0,0,IF(Simulador!$N$7='Tabla Parámetros'!$C$31,AportPat!L41,IF(Simulador!$N$7='Tabla Parámetros'!$C$34,AportPatFov!G39,0)))) -> 0 | O49: =Simulador!N104 -> 0 | Q49: 10487.59993 | R49: 938746.2182 | T49: 1861.027704 | U49: 7529.874539 | V49: 9390.902243 | W49: 1861.027704 | X49: 7529.874539 | Y49: 9390.902243 | Z49: 1861.027704 | AA49: 7529.874539 | AB49: 9390.902243
B50: 39 | C50: =IF($B50="","",'Fecha Pago'!K42) -> 2026-10-03 | D50: =IF($B$12="","",'Fecha Pago'!L42) -> 30.4 | E50: 0.0948 | F50: 938746.2182 | G50: 1875.925851 | H50: 7514.976392 | I50: =IF(B50="","",IF(Simulador!$F$9="Liquidez",'Tabla Fijos'!H50*0.16,IF(Simulador!$F$9="Terreno_Urbanizado",'Tabla Fijos'!H50*0.16,IF(Simulador!$J$9="SI",H50*0.16,IF(Simulador!$J$11="SI",H50*0.16,0))))) -> 0 | J50: 9390.902243 | K50: 563.2477309 | L50: 233.3333352 | M50: 299 | N50: =IF(B50="","",IF(F50=0,0,IF(Simulador!$N$7='Tabla Parámetros'!$C$31,AportPat!L42,IF(Simulador!$N$7='Tabla Parámetros'!$C$34,AportPatFov!G40,0)))) -> 0 | O50: =Simulador!N105 -> 0 | Q50: 10486.48331 | R50: 936870.2923 | T50: 1875.925851 | U50: 7514.976392 | V50: 9390.902243 | W50: 1875.925851 | X50: 7514.976392 | Y50: 9390.902243 | Z50: 1875.925851 | AA50: 7514.976392 | AB50: 9390.902243
B51: 40 | C51: =IF($B51="","",'Fecha Pago'!K43) -> 2026-11-03 | D51: =IF($B$12="","",'Fecha Pago'!L43) -> 30.4 | E51: 0.0948 | F51: 936870.2923 | G51: 1890.943263 | H51: 7499.95898 | I51: =IF(B51="","",IF(Simulador!$F$9="Liquidez",'Tabla Fijos'!H51*0.16,IF(Simulador!$F$9="Terreno_Urbanizado",'Tabla Fijos'!H51*0.16,IF(Simulador!$J$9="SI",H51*0.16,IF(Simulador!$J$11="SI",H51*0.16,0))))) -> 0 | J51: 9390.902243 | K51: 562.1221754 | L51: 233.3333352 | M51: 299 | N51: =IF(B51="","",IF(F51=0,0,IF(Simulador!$N$7='Tabla Parámetros'!$C$31,AportPat!L43,IF(Simulador!$N$7='Tabla Parámetros'!$C$34,AportPatFov!G41,0)))) -> 0 | O51: =Simulador!N106 -> 0 | Q51: 10485.35775 | R51: 934979.3491 | T51: 1890.943263 | U51: 7499.95898 | V51: 9390.902243 | W51: 1890.943263 | X51: 7499.95898 | Y51: 9390.902243 | Z51: 1890.943263 | AA51: 7499.95898 | AB51: 9390.902243
B52: 41 | C52: =IF($B52="","",'Fecha Pago'!K44) -> 2026-12-03 | D52: =IF($B$12="","",'Fecha Pago'!L44) -> 30.4 | E52: 0.0948 | F52: 934979.3491 | G52: 1906.080894 | H52: 7484.821349 | I52: =IF(B52="","",IF(Simulador!$F$9="Liquidez",'Tabla Fijos'!H52*0.16,IF(Simulador!$F$9="Terreno_Urbanizado",'Tabla Fijos'!H52*0.16,IF(Simulador!$J$9="SI",H52*0.16,IF(Simulador!$J$11="SI",H52*0.16,0))))) -> 0 | J52: 9390.902243 | K52: 560.9876094 | L52: 233.3333352 | M52: 299 | N52: =IF(B52="","",IF(F52=0,0,IF(Simulador!$N$7='Tabla Parámetros'!$C$31,AportPat!L44,IF(Simulador!$N$7='Tabla Parámetros'!$C$34,AportPatFov!G42,0)))) -> 0 | O52: =Simulador!N107 -> 0 | Q52: 10484.22319 | R52: 933073.2682 | T52: 1906.080894 | U52: 7484.821349 | V52: 9390.902243 | W52: 1906.080894 | X52: 7484.821349 | Y52: 9390.902243 | Z52: 1906.080894 | AA52: 7484.821349 | AB52: 9390.902243
